Workbook

Sheet Liste de choix
A1: Liste de choix pour les menus.
A3: RETOUR
A5: Code légumes | B5: Nb lettres code légumes | C5: Légumes | D5: Nb lettres légumes | E5: Jours légumes | F5: Nb lettres jours légumes | G5: Conditionnement légumes | H5: Nb lettres conditionnement légumes | I5: Code viandes | J5: Nb lettres code viandes | K5: Viandes | L5: Nb lettres viandes | M5: Jours viandes | N5: Nb lettres jours viandes | O5: Conditionnement viandes | P5: Nb lettres conditionnement viandes | Q5: Code desserts | R5: Nb lettres code desserts | S5: Desserts | T5: Nb lettres desserts | U5: Jours desserts | V5: Nb lettres jours desserts | W5: Conditionnement desserts | X5: Nb lettres conditionnement desserts | Y5: Code observations | Z5: Nb lettres code observations | AA5: Observations | AB5: Nb lettres observations | AC5: Nom des menus | AD5: Nb lettres nom des menus | AE5: Période des viandes | AF5: Nb lettre période des viandes | AG5: Mois concerné | AH5: Nb lettres mois concerné
A6: LLM01 | B6: 5 | C6: Cassoulet | D6: 9 | E6: Lundi et mardi soirs | F6: 20 | G6: Boîte pour deux repas | H6: 21 | I6: V01 | J6: 3 | K6: Bifteck haché de bœuf | L6: 21 | M6: Lundi à dimanche soirs | N6: 22 | O6: Paquet pour deux repas | P6: 22 | Q6: D01 | R6: 3 | S6: Ananas | T6: 6 | U6: Samedis et dimanches midis et soirs | V6: 35 | W6: Unité. Un pour quatre repas | X6: 27 | Y6: O01 | Z6: 3 | AA6: Armistice du 11 novembre 1918 | AB6: 29 | AC6: Menus journaliers | AD6: 15 | AE6: Viande premier semestre | AF6: 23 | AG6: Janvier | AH6: 7
A7: LLM02 | B7: 5 | C7: Choucroute | D7: 10 | E7: Lundi et mardi soirs | F7: 20 | G7: Boîte pour deux repas | H7: 21 | I7: V02 | J7: 3 | K7: Bifteck haché de cheval | L7: 23 | M7: Lundi à dimanche soirs | N7: 22 | O7: cent vingt-cinq grammes par repas | P7: 33 | Q7: D02 | R7: 3 | S7: Autres fruits | T7: 13 | U7: Samedis et dimanches midis et soirs | V7: 35 | W7: Unité. Deux à quatre par repas | X7: 30 | Y7: O02 | Z7: 3 | AA7: Ascension | AB7: 9 | AC7: Menus midi retraite | AD7: 18 | AE7: Viande deuxième semestre | AF7: 24 | AG7: Février | AH7: 7
A8: LLM03 | B8: 5 | C8: Chou-fleur | D8: 10 | E8: Lundi et mardi soirs | F8: 20 | G8: Unité. Un pour deux repas | H8: 25 | I8: V03 | J8: 3 | K8: Bifteck haché de veau | L8: 21 | M8: Lundi à dimanche soirs | N8: 22 | O8: Paquet pour deux repas | P8: 22 | Q8: D03 | R8: 3 | S8: Avocats | T8: 7 | U8: Samedis et dimanches midis et soirs | V8: 35 | W8: Un par repas | X8: 12 | Y8: O03 | Z8: 3 | AA8: Assomption | AB8: 10 | AG8: Mars | AH8: 4
A9: LLM04 | B9: 5 | C9: Choux de Bruxelles | D9: 18 | E9: Lundi et mardi soirs | F9: 20 | G9: Boîte pour deux repas | H9: 21 | I9: V04 | J9: 3 | K9: Bouchée à la reine | L9: 18 | M9: Lundi à dimanche soirs | N9: 22 | O9: Paquet pour deux repas | P9: 22 | Q9: D04 | R9: 3 | S9: Bananes | T9: 7 | U9: Samedis et dimanches midis et soirs | V9: 35 | W9: Une par repas | X9: 13 | Y9: O04 | Z9: 3 | AA9: Fête du travail | AB9: 15 | AG9: Avril | AH9: 5
A10: LLM05 | B10: 5 | C10: Couscous | D10: 8 | E10: Lundi et mardi soirs | F10: 20 | G10: Vingt-cinq grammes par repas | H10: 27 | I10: V05 | J10: 3 | K10: Boudin | L10: 6 | M10: Lundi à dimanche soirs | N10: 22 | O10: Paquet pour deux repas | P10: 22 | Q10: D05 | R10: 3 | S10: Clémentines | T10: 11 | U10: Samedis et dimanches midis et soirs | V10: 35 | W10: Quatre par repas | X10: 16 | Y10: O05 | Z10: 3 | AA10: Fête nationale | AB10: 14 | AG10: Mai | AH10: 3
A11: LLM06 | B11: 5 | C11: Endives | D11: 7 | E11: Lundi et mardi soirs | F11: 20 | G11: Boîte pour deux repas | H11: 21 | I11: V06 | J11: 3 | K11: Cervelas | L11: 8 | M11: Lundi à dimanche soirs | N11: 22 | O11: Paquet pour deux repas | P11: 22 | Q11: D06 | R11: 3 | S11: Crème | T11: 5 | U11: Samedis et dimanches midis et soirs | V11: 35 | W11: Un sachet pour quatre repas | X11: 27 | Y11: O06 | Z11: 3 | AA11: Jour de l'an | AB11: 12 | AG11: Juin | AH11: 4
A12: LLM07 | B12: 5 | C12: Haricots verts | D12: 14 | E12: Lundi et mardi soirs | F12: 20 | G12: Boîte pour deux repas | H12: 21 | I12: V07 | J12: 3 | K12: Cœur | L12: 4 | M12: Lundi à dimanche soirs | N12: 22 | O12: Paquet pour deux repas | P12: 22 | Q12: D07 | R12: 3 | S12: Dattes | T12: 6 | U12: Samedis et dimanches midis et soirs | V12: 35 | W12: Cinq par repas | X12: 14 | Y12: O07 | Z12: 3 | AA12: Lundi de Pâques | AB12: 15 | AG12: Juillet | AH12: 7
A13: LLM08 | B13: 5 | C13: Maïs | D13: 4 | E13: Lundi et mardi soirs | F13: 20 | G13: Boîte pour deux repas | H13: 21 | I13: V08 | J13: 3 | K13: Croque-monsieur | L13: 15 | M13: Lundi à dimanche soirs | N13: 22 | O13: Paquet pour deux repas | P13: 22 | Q13: D08 | R13: 3 | S13: Figues | T13: 6 | U13: Samedis et dimanches midis et soirs | V13: 35 | W13: Cinq par repas | X13: 14 | Y13: O08 | Z13: 3 | AA13: Lundi de Pentecôte | AB13: 18 | AG13: Août | AH13: 4
A14: LLM09 | B14: 5 | C14: Paella | D14: 6 | E14: Lundi et mardi soirs | F14: 20 | G14: Boîte pour deux repas | H14: 21 | I14: V09 | J14: 3 | K14: Foie | L14: 4 | M14: Lundi à dimanche soirs | N14: 22 | O14: Paquet pour deux repas | P14: 22 | Q14: D09 | R14: 3 | S14: Fromage blanc | T14: 13 | U14: Samedis et dimanches midis et soirs | V14: 35 | W14: Pack de quatre pots pour le week-end | X14: 36 | Y14: O09 | Z14: 3 | AA14: Noël | AB14: 4 | AG14: Septembre | AH14: 9
A15: LLM10 | B15: 5 | C15: Poireau | D15: 7 | E15: Lundi et mardi soirs | F15: 20 | G15: Un par repas | H15: 12 | I15: V10 | J15: 3 | K15: Fromage de tête | L15: 15 | M15: Lundi à dimanche soirs | N15: 22 | O15: Paquet pour deux repas | P15: 22 | Q15: D10 | R15: 3 | S15: Fruits au sirop | T15: 15 | U15: Samedis et dimanches midis et soirs | V15: 35 | W15: Boîte pour deux repas | X15: 21 | Y15: O10 | Z15: 3 | AA15: Pâques | AB15: 6 | AG15: Octobre | AH15: 7
A16: LLM11 | B16: 5 | C16: Pomme de terre | D16: 14 | E16: Lundi et mardi soirs | F16: 20 | G16: Une par repas | H16: 13 | I16: V11 | J16: 3 | K16: Jambon | L16: 6 | M16: Lundi à dimanche soirs | N16: 22 | O16: Paquet pour deux repas | P16: 22 | Q16: D11 | R16: 3 | S16: Fruits de saison | T16: 16 | U16: Samedis et dimanches midis et soirs | V16: 35 | W16: Unité. Deux à quatre par repas | X16: 30 | Y16: O11 | Z16: 3 | AA16: Pentecôte | AB16: 9 | AG16: Novembre | AH16: 8
A17: LLM12 | B17: 5 | C17: Purée | D17: 5 | E17: Lundi et mardi soirs | F17: 20 | G17: Vingt-cinq grammes par repas | H17: 24 | I17: V12 | J17: 3 | K17: Jambonneau | L17: 10 | M17: Lundi à dimanche soirs | N17: 22 | O17: Paquet pour deux repas | P17: 22 | Q17: D12 | R17: 3 | S17: Gâteau de riz | T17: 13 | U17: Samedis et dimanches midis et soirs | V17: 35 | W17: Pack de quatre pots pour le week-end | X17: 36 | Y17: O12 | Z17: 3 | AA17: Toussaint | AB17: 9 | AG17: Décembre | AH17: 8
A18: LLM13 | B18: 5 | C18: Quenelles | D18: 9 | E18: Lundi et mardi soirs | F18: 20 | G18: Boîte pour deux repas | H18: 21 | I18: V13 | J18: 3 | K18: Mortadelle | L18: 10 | M18: Lundi à dimanche soirs | N18: 22 | O18: Paquet pour deux repas | P18: 22 | Q18: D13 | R18: 3 | S18: Gâteaux samedis et dimanches | T18: 28 | U18: Samedis et dimanches midis et soirs | V18: 35 | W18: Boîte pour deux repas | X18: 21 | Y18: O13 | Z18: 3 | AA18: Victoire du 08 mai 1945 | AB18: 23
A19: LLM14 | B19: 5 | C19: Riz | D19: 3 | E19: Lundi et mardi soirs | F19: 20 | G19: Vingt-cinq grammes par repas | H19: 27 | I19: V14 | J19: 3 | K19: Œufs | L19: 4 | M19: Lundi à dimanche soirs | N19: 22 | O19: Boîte de six œufs. Trois œufs par repas | P19: 39 | Q19: D14 | R19: 3 | S19: Mousse au chocolat | T19: 18 | U19: Samedis et dimanches midis et soirs | V19: 35 | W19: Pack de quatre pots pour le week-end | X19: 36
A20: LMJ01 | B20: 5 | C20: Macédoine de légumes | D20: 20 | E20: Mercredi et jeudi soirs | F20: 23 | G20: Boîte pour deux repas | H20: 21 | I20: V15 | J20: 3 | K20: Pizza | L20: 5 | M20: Lundi à dimanche soirs | N20: 22 | O20: Paquet pour deux repas | P20: 22 | Q20: D15 | R20: 3 | S20: Oranges | T20: 7 | U20: Samedis et dimanches midis et soirs | V20: 35 | W20: Unité. Une par repas | X20: 20
A21: LMJ02 | B21: 5 | C21: Petits pois | D21: 11 | E21: Mercredi et jeudi soirs | F21: 23 | G21: Boîte pour deux repas | H21: 21 | I21: V16 | J21: 3 | K21: Poisson | L21: 7 | M21: Lundi à dimanche soirs | N21: 22 | O21: Unité. Un par repas | P21: 19 | Q21: D16 | R21: 3 | S21: Petits suisses | T21: 14 | U21: Samedis et dimanches midis et soirs | V21: 35 | W21: Pack de six pots. Trois pots par repas | X21: 38
A22: LMJ03 | B22: 5 | C22: Petits pois et jeunes carottes | D22: 30 | E22: Mercredi et jeudi soirs | F22: 23 | G22: Boîte pour deux repas | H22: 21 | I22: V17 | J22: 3 | K22: Quiche lorraine | L22: 15 | M22: Lundi à dimanche soirs | N22: 22 | O22: Paquet pour deux repas | P22: 22 | Q22: D17 | R22: 3 | S22: Pomme | T22: 5 | U22: Lundi à vendredi soirs | V22: 22 | W22: Une par repas | X22: 13
A23: LMJ04 | B23: 5 | C23: Ratatouille | D23: 11 | E23: Mercredi et jeudi soirs | F23: 23 | G23: Boîte pour deux repas | H23: 21 | I23: V18 | J23: 3 | K23: Roulade à la pistache | L23: 21 | M23: Lundi à dimanche soirs | N23: 22 | O23: Trois tranches par repas | P23: 24 | Q23: D18 | R23: 3 | S23: Pruneaux | T23: 8 | U23: Samedis et dimanches midis et soirs | V23: 35 | W23: Cinq par repas | X23: 14
A24: LMJ05 | B24: 5 | C24: Raviolis | D24: 8 | E24: Mercredi et jeudi soirs | F24: 23 | G24: Boîte pour deux repas | H24: 21 | I24: V19 | J24: 3 | K24: Roulé au fromage | L24: 16 | M24: Lundi à dimanche soirs | N24: 22 | O24: Paquet pour deux repas | P24: 22 | Q24: D19 | R24: 3 | S24: Riz | T24: 3 | U24: Samedis et dimanches midis et soirs | V24: 35 | W24: Pack de quatre pots pour le week-end | X24: 36
A25: LMJ06 | B25: 5 | C25: Tomates pelées | D25: 14 | E25: Mercredi et jeudi soirs | F25: 23 | G25: Boîte pour deux repas | H25: 21 | I25: V20 | J25: 3 | K25: Salami | L25: 6 | M25: Lundi à dimanche soirs | N25: 22 | O25: Paquet pour deux repas. Dix tranches par repas | P25: 46 | Q25: D20 | R25: 3 | S25: Semoule de blé | T25: 14 | U25: Samedis et dimanches midis et soirs | V25: 35 | W25: Pack de quatre pots pour le week-end | X25: 36
A26: LV01 | B26: 4 | C26: Asperges | D26: 8 | E26: Vendredi soir | F26: 13 | G26: Boîte pour un repas | H26: 19 | I26: V21 | J26: 3 | K26: Saucisses | L26: 9 | M26: Lundi à dimanche soirs | N26: 22 | O26: Paquet pour deux repas. Deux saucisses par repas | P26: 49 | Q26: D21 | R26: 3 | S26: Tapioca | T26: 7 | U26: Samedis et dimanches midis et soirs | V26: 35 | W26: Cinquante grammes par repas | X26: 27
A27: LV02 | B27: 4 | C27: Avocat | D27: 6 | E27: Vendredi soir | F27: 13 | G27: Un par repas | H27: 12 | I27: V22 | J27: 3 | K27: Saucisson | L27: 9 | M27: Lundi à dimanche soirs | N27: 22 | O27: Morceau de quatre cent grammes pour trois repas | P27: 47 | Q27: D22 | R27: 3 | S27: Yaourts | T27: 7 | U27: Samedis et dimanches midis et soirs | V27: 35 | W27: Pack de quatre pots pour le week-end. 1 pot par repas | X27: 36
A28: LV03 | B28: 4 | C28: Betterave rouge | D28: 15 | E28: Vendredi soir | F28: 13 | G28: Une par repas | H28: 13 | I28: V23 | J28: 3 | K28: Tête persillée | L28: 14 | M28: Lundi à dimanche soirs | N28: 22 | O28: Paquet pour deux repas | P28: 22 | Q28: DMR01 | R28: 5 | S28: Pomme | T28: 5 | U28: Lundi à vendredi midis | V28: 22 | W28: Une par repas | X28: 13
A29: LV04 | B29: 4 | C29: Carottes | D29: 8 | E29: Vendredi soir | F29: 13 | G29: Deux par repas | H29: 14 | I29: V24 | J29: 3 | K29: Tête roulée | L29: 11 | M29: Lundi à dimanche soirs | N29: 22 | O29: Paquet pour deux repas | P29: 22
A30: LV05 | B30: 4 | C30: Céleri | D30: 6 | E30: Vendredi soir | F30: 13 | G30: Une branche par repas | H30: 21 | I30: V25 | J30: 3 | K30: Thon | L30: 4 | M30: Lundi à dimanche soirs | N30: 22 | O30: Boîte pour un repas | P30: 19
A31: LV06 | B31: 4 | C31: Champignons | D31: 11 | E31: Vendredi soir | F31: 13 | G31: Boîte pour un repas | H31: 19 | I31: V26 | J31: 3 | K31: Viande cassoulet | L31: 16 | M31: Lundi et mardi soirs | N31: 20 | O31: Boîte pour deux repas | P31: 21
A32: LV07 | B32: 4 | C32: Concombre | D32: 9 | E32: Vendredi soir | F32: 13 | G32: Un par repas | H32: 12 | I32: V27 | J32: 3 | K32: Viande choucroute | L32: 17 | M32: Lundi et mardi soirs | N32: 20 | O32: Boîte pour deux repas | P32: 21
A33: LV08 | B33: 4 | C33: Radis | D33: 5 | E33: Vendredi soir | F33: 13 | G33: Un sachet par repas | H33: 19 | I33: V28 | J33: 3 | K33: Viande paella | L33: 13 | M33: Lundi et mardi soirs | N33: 20 | O33: Boîte pour deux repas | P33: 21
A34: LV09 | B34: 4 | C34: Salade | D34: 6 | E34: Vendredi soir | F34: 13 | G34: Une par repas | H34: 13 | I34: V29 | J34: 3 | K34: Agneau | L34: 6 | M34: Samedi et dimanche midis | N34: 24 | O34: Une tranche par repas | P34: 21
A35: LV10 | B35: 4 | C35: Salsifis | D35: 8 | E35: Vendredi soir | F35: 13 | G35: Boîte pour un repas | H35: 19 | I35: V30 | J35: 3 | K35: Bœuf | L35: 4 | M35: Samedi et dimanche midis | N35: 24 | O35: Une tranche par repas | P35: 21
A36: LV11 | B36: 4 | C36: Tomates | D36: 7 | E36: Vendredi soir | F36: 13 | G36: Deux par repas | H36: 14 | I36: V31 | J36: 3 | K36: Cheval | L36: 6 | M36: Samedi et dimanche midis | N36: 24 | O36: Une tranche par repas | P36: 21
A37: LS01 | B37: 4 | C37: Pâtes à la sauce tomates | D37: 24 | E37: Samedi midi et soir | F37: 19 | G37: Cinq cuillères par repas | H37: 24 | I37: V32 | J37: 3 | K37: Dinde | L37: 5 | M37: Samedi et dimanche midis | N37: 24 | O37: Une tranche par repas | P37: 21
A38: LS02 | B38: 4 | C38: Pâtes au beurre | D38: 15 | E38: Samedi midi et soir | F38: 19 | G38: Cinq cuillères par repas | H38: 24 | I38: V33 | J38: 3 | K38: Poisson | L38: 7 | M38: Samedi et dimanche midis | N38: 24 | O38: Unité. Un par repas | P38: 19
A39: LS03 | B39: 4 | C39: Pâtes au fromage râpé | D39: 21 | E39: Samedi midi et soir | F39: 19 | G39: Cinq cuillères par repas | H39: 24 | I39: V34 | J39: 3 | K39: Porc | L39: 4 | M39: Samedi et dimanche midis | N39: 24 | O39: Une tranche par repas | P39: 21
A40: LD01 | B40: 4 | C40: Asperges | D40: 8 | E40: Dimanche soir | F40: 13 | G40: Boîte pour un repas | H40: 19 | I40: V35 | J40: 3 | K40: Veau | L40: 4 | M40: Samedi et dimanche midis | N40: 24 | O40: Une tranche par repas | P40: 21
A41: LD02 | B41: 4 | C41: Chips | D41: 5 | E41: Dimanche midi et soir | F41: 21 | G41: Un sachet pour deux repas | H41: 25 | I41: VMR01 | J41: 5 | K41: Rôti d'agneau | L41: 13 | M41: Lundi à vendredi midis | N41: 22 | O41: Un morceau pour cinq repas | P41: 26
A42: LD03 | B42: 4 | C42: Frites | D42: 6 | E42: Dimanche midi | F42: 13 | G42: Vingt frites par repas | H42: 22 | I42: VMR02 | J42: 5 | K42: Rôti de bœuf | L42: 12 | M42: Lundi à vendredi midis | N42: 22 | O42: Un morceau pour cinq repas | P42: 26
A43: LD04 | B43: 4 | C43: Haricots verts | D43: 14 | E43: Dimanche midi et soir | F43: 21 | G43: Boîte pour deux repas | H43: 21 | I43: VMR03 | J43: 5 | K43: Rôti de cheval | L43: 14 | M43: Lundi à vendredi midis | N43: 22 | O43: Un morceau pour cinq repas | P43: 26
A44: LMR01 | B44: 5 | C44: Asperges | D44: 8 | E44: Midi retraite | F44: 13 | G44: Boîte pour un repas | H44: 19 | I44: VMR04 | J44: 5 | K44: Rôti de porc | L44: 12 | M44: Lundi à vendredi midis | N44: 22 | O44: Un morceau pour cinq repas | P44: 26
A45: LMR02 | B45: 5 | C45: Avocat | D45: 6 | E45: Midi retraite | F45: 13 | G45: Un par repas | H45: 12 | I45: VMR05 | J45: 5 | K45: Rôti de veau | L45: 12 | M45: Lundi à vendredi midis | N45: 22 | O45: Un morceau pour cinq repas | P45: 26
A46: LMR03 | B46: 5 | C46: Carottes | D46: 8 | E46: Midi retraite | F46: 13 | G46: Deux par repas | H46: 14
A47: LMR04 | B47: 5 | C47: Céleri | D47: 6 | E47: Midi retraite | F47: 13 | G47: Une branche par repas | H47: 21
A48: LMR05 | B48: 5 | C48: Champignons | D48: 11 | E48: Midi retraite | F48: 13 | G48: Boîte pour un repas | H48: 19
A49: LMR06 | B49: 5 | C49: Concombre | D49: 9 | E49: Midi retraite | F49: 13 | G49: Un par repas | H49: 12
A50: LMR07 | B50: 5 | C50: Couscous | D50: 8 | E50: Midi retraite | F50: 13 | G50: Cinquante grammes par repas | H50: 27
A51: LMR08 | B51: 5 | C51: Maïs | D51: 4 | E51: Midi retraite | F51: 13 | G51: Boîte pour deux repas | H51: 21
A52: LMR09 | B52: 5 | C52: Pâtes à la sauce tomates | D52: 24 | E52: Midi retraite | F52: 13 | G52: Cinq cuillères par repas | H52: 24
A53: LMR10 | B53: 5 | C53: Pâtes au beurre | D53: 15 | E53: Midi retraite | F53: 13 | G53: Cinq cuillères par repas | H53: 24
A54: LMR11 | B54: 5 | C54: Poireau | D54: 7 | E54: Midi retraite | F54: 13 | G54: Un par repas | H54: 12
A55: LMR12 | B55: 5 | C55: Pomme de terre | D55: 14 | E55: Midi retraite | F55: 13 | G55: Une par repas | H55: 13
A56: LMR13 | B56: 5 | C56: Purée | D56: 5 | E56: Midi retraite | F56: 13 | G56: Vingt-cinq grammes par repas | H56: 24
A57: LMR14 | B57: 5 | C57: Radis | D57: 5 | E57: Midi retraite | F57: 13 | G57: Un sachet pour deux repas | H57: 25
A58: LMR15 | B58: 5 | C58: Riz | D58: 3 | E58: Midi retraite | F58: 13 | G58: Vingt-cinq grammes par repas | H58: 27
A59: LMR16 | B59: 5 | C59: Salade | D59: 6 | E59: Midi retraite | F59: 13 | G59: Une par repas | H59: 13
A60: LMR17 | B60: 5 | C60: Tomates | D60: 7 | E60: Midi retraite | F60: 13 | G60: Deux par repas | H60: 14

Sheet Accueil
A1: Accueil
A3: Liste de choix | B3: Novembre
A4: Saisie des menus | B4: Décembre
A5: Menus midi retraite
A6: Menus journaliers
A7: Menus viandes week-end
A8: Quantités légumes
A9: Quantités viandes
A10: Quantités desserts
A11: Janvier
A12: Février
A13: Mars
A14: Avril
A15: Mai
A16: Juin
A17: Juillet
A18: Août
A19: Septembre
A20: Octobre

Sheet Saisie des menus
A1: Saisie des menus | C1: Accueil
A3: Numéro du menu
A4: Titre
A5: =IF($B$4="Menus","Menus","Viandes") -> Viandes
A6: Date du menu
A7: Code légumes
A8: Code légumes deux | B8: =IF($B$7="LD03","LD01","") -> 
A9: Légumes | B9: =IF($B$7<>"",VLOOKUP($B$7,'Liste de choix'!$A$6:$G$60,3,FALSE),"") -> 
A10: Légumes deux | B10: =IF($B$8<>"",VLOOKUP($B$8,'Liste de choix'!$A$6:$G$60,3,FALSE),"") -> 
A11: Jours légumes | B11: =IF($B$7<>"",VLOOKUP($B$7,'Liste de choix'!$A$6:$G$60,5,FALSE),"") -> 
A12: Jours légumes deux | B12: =IF($B$8<>"",VLOOKUP($B$8,'Liste de choix'!$A$6:$G$60,5,FALSE),"") -> 
A13: Conditionnement légumes | B13: =IF($B$7<>"",VLOOKUP($B$7,'Liste de choix'!$A$6:$G$60,7,FALSE),"") -> 
A14: Conditionnement légumes deux
A15: Quantité légumes
A16: Quantité légumes deux
A17: Code viandes
A18: Viandes
A19: Jours viandes | B19: =IF($B$17<>"",VLOOKUP($B$17,'Liste de choix'!$I$6:$W$45,5,FALSE),"") -> 
A20: Conditionnement viandes | B20: =IF($B$17<>"",VLOOKUP($B$17,'Liste de choix'!$I$6:$W$45,7,FALSE),"") -> 
A21: Quantité viandes
A22: Code desserts
A23: Desserts | B23: =IF($B$22<>"",VLOOKUP($B$22,'Liste de choix'!$Q$6:$W$28,3,FALSE),"") -> 
A24: Jours desserts | B24: =IF($B$22<>"",VLOOKUP($B$22,'Liste de choix'!$Q$6:$W$28,5,FALSE),"") -> 
A25: Conditionnement desserts | B25: =IF($B$22<>"",VLOOKUP($B$22,'Liste de choix'!$Q$6:$W$28,7,FALSE),"") -> 
A26: Quantité desserts
A27: Code observations
A28: Observations | B28: =IF($B$27<>"",VLOOKUP($B$27,'Liste de choix'!$Y$6:$AA$18,3,FALSE),"") -> 
A29: Mois concerné

Sheet Menus midi retraite
A1: Menus midi retraite du mois de janvier 2017.
A2: Accueil
A3: Date du menu | B3: Légumes | C3: Viandes | D3: Dessert | E3: Observations | F3: Nature du menu | G3: Mois concerné | H3: Numéro du menu
A4: 2017-01-02 | B4: Pâtes à la sauce tomates | C4: Rôti de porc | D4: Pomme | F4: Menus midi retraite | G4: Janvier | H4: 1
A5: 2017-01-03 | B5: Pâtes au beurre | C5: Rôti de porc | D5: Pomme | F5: Menus midi retraite | G5: Janvier | H5: 2
A6: 2017-01-04 | B6: Poireau | C6: Rôti de porc | D6: Pomme | F6: Menus midi retraite | G6: Janvier | H6: 3
A7: 2017-01-05 | B7: Pomme de terre | C7: Rôti de porc | D7: Pomme | F7: Menus midi retraite | G7: Janvier | H7: 4
A8: 2017-01-06 | B8: Purée | C8: Rôti de porc | D8: Pomme | F8: Menus midi retraite | G8: Janvier | H8: 5
A9: 2017-01-09 | B9: Radis | C9: Rôti de veau | D9: Pomme | F9: Menus midi retraite | G9: Janvier | H9: 6
A10: 2017-01-10 | B10: Radis | C10: Rôti de veau | D10: Pomme | F10: Menus midi retraite | G10: Janvier | H10: 7
A11: 2017-01-11 | B11: Riz | C11: Rôti de veau | D11: Pomme | F11: Menus midi retraite | G11: Janvier | H11: 8
A12: 2017-01-12 | B12: Salade | C12: Rôti de veau | D12: Pomme | F12: Menus midi retraite | G12: Janvier | H12: 9
A13: 2017-01-13 | B13: Tomates | C13: Rôti de veau | D13: Pomme | F13: Menus midi retraite | G13: Janvier | H13: 10
A14: 2017-01-16 | B14: Asperges | C14: Rôti d'agneau | D14: Pomme | F14: Menus midi retraite | G14: Janvier | H14: 11
A15: 2017-01-17 | B15: Avocat | C15: Rôti d'agneau | D15: Pomme | F15: Menus midi retraite | G15: Janvier | H15: 12
A16: 2017-01-18 | B16: Carottes | C16: Rôti d'agneau | D16: Pomme | F16: Menus midi retraite | G16: Janvier | H16: 13
A17: 2017-01-19 | B17: Céleri | C17: Rôti d'agneau | D17: Pomme | F17: Menus midi retraite | G17: Janvier | H17: 14
A18: 2017-01-20 | B18: Champignons | C18: Rôti d'agneau | D18: Pomme | F18: Menus midi retraite | G18: Janvier | H18: 15
A19: 2017-01-23 | B19: Concombre | C19: Rôti de bœuf | D19: Pomme | F19: Menus midi retraite | G19: Janvier | H19: 16
A20: 2017-01-24 | B20: Couscous | C20: Rôti de bœuf | D20: Pomme | F20: Menus midi retraite | G20: Janvier | H20: 17
A21: 2017-01-25 | B21: Maïs | C21: Rôti de bœuf | D21: Pomme | F21: Menus midi retraite | G21: Janvier | H21: 18
A22: 2017-01-26 | B22: Maïs | C22: Rôti de bœuf | D22: Pomme | F22: Menus midi retraite | G22: Janvier | H22: 19
A23: 2017-01-27 | B23: Pâtes à la sauce tomates | C23: Rôti de bœuf | D23: Pomme | F23: Menus midi retraite | G23: Janvier | H23: 20
A24: 2017-01-30 | B24: Pâtes au beurre | C24: Rôti de cheval | D24: Pomme | F24: Menus midi retraite | G24: Janvier | H24: 21
A25: 2017-01-31 | B25: Poireau | C25: Rôti de cheval | D25: Pomme | F25: Menus midi retraite | G25: Janvier | H25: 22
A26: Fait à Limeil-Brévannes, le jeudi 29 décembre 2016.
A27: Menus midi retraite du mois de février 2017.
A28: Accueil
A29: Date du menu | B29: Légumes | C29: Viandes | D29: Dessert | E29: Observations | F29: Nature du menu | G29: Mois concerné | H29: Numéro du menu
A30: 2017-02-01 | B30: Pomme de terre | C30: Rôti de cheval | D30: Pomme | F30: Menus midi retraite | G30: Février | H30: 23
A31: 2017-02-02 | B31: Purée | C31: Rôti de cheval | D31: Pomme | F31: Menus midi retraite | G31: Février | H31: 24
A32: 2017-02-03 | B32: Radis | C32: Rôti de cheval | D32: Pomme | F32: Menus midi retraite | G32: Février | H32: 25
A33: 2017-02-06 | B33: Radis | C33: Rôti de porc | D33: Pomme | F33: Menus midi retraite | G33: Février | H33: 26
A34: 2017-02-07 | B34: Riz | C34: Rôti de porc | D34: Pomme | F34: Menus midi retraite | G34: Février | H34: 27
A35: 2017-02-08 | B35: Salade | C35: Rôti de porc | D35: Pomme | F35: Menus midi retraite | G35: Février | H35: 28
A36: 2017-02-09 | B36: Tomates | C36: Rôti de porc | D36: Pomme | F36: Menus midi retraite | G36: Février | H36: 29
A37: 2017-02-10 | B37: Asperges | C37: Rôti de porc | D37: Pomme | F37: Menus midi retraite | G37: Février | H37: 30
A38: 2017-02-13 | B38: Avocat | C38: Rôti de veau | D38: Pomme | F38: Menus midi retraite | G38: Février | H38: 31
A39: 2017-02-14 | B39: Carottes | C39: Rôti de veau | D39: Pomme | F39: Menus midi retraite | G39: Février | H39: 32
A40: 2017-02-15 | B40: Céleri | C40: Rôti de veau | D40: Pomme | F40: Menus midi retraite | G40: Février | H40: 33
A41: 2017-02-16 | B41: Champignons | C41: Rôti de veau | D41: Pomme | F41: Menus midi retraite | G41: Février | H41: 34
A42: 2017-02-17 | B42: Concombre | C42: Rôti de veau | D42: Pomme | F42: Menus midi retraite | G42: Février | H42: 35
A43: 2017-02-20 | B43: Couscous | C43: Rôti d'agneau | D43: Pomme | F43: Menus midi retraite | G43: Février | H43: 36
A44: 2017-02-21 | B44: Maïs | C44: Rôti d'agneau | D44: Pomme | F44: Menus midi retraite | G44: Février | H44: 37
A45: 2017-02-22 | B45: Maïs | C45: Rôti d'agneau | D45: Pomme | F45: Menus midi retraite | G45: Février | H45: 38
A46: 2017-02-23 | B46: Pâtes à la sauce tomates | C46: Rôti d'agneau | D46: Pomme | F46: Menus midi retraite | G46: Février | H46: 39
A47: 2017-02-24 | B47: Pâtes au beurre | C47: Rôti d'agneau | D47: Pomme | F47: Menus midi retraite | G47: Février | H47: 40
A48: 2017-02-27 | B48: Poireau | C48: Rôti de bœuf | D48: Pomme | F48: Menus midi retraite | G48: Février | H48: 41
A49: 2017-02-28 | B49: Pomme de terre | C49: Rôti de bœuf | D49: Pomme | F49: Menus midi retraite | G49: Février | H49: 42
A50: Fait à Limeil-Brévannes, le jeudi 29 décembre 2016.
A51: Menus midi retraite du mois de mars 2017.
A52: Accueil
A53: Date du menu | B53: Légumes | C53: Viandes | D53: Dessert | E53: Observations | F53: Nature du menu | G53: Mois concerné | H53: Numéro du menu
A54: 2017-03-01 | B54: Purée | C54: Rôti de bœuf | D54: Pomme | F54: Menus midi retraite | G54: Mars | H54: 43
A55: 2017-03-02 | B55: Radis | C55: Rôti de bœuf | D55: Pomme | F55: Menus midi retraite | G55: Mars | H55: 44
A56: 2017-03-03 | B56: Radis | C56: Rôti de bœuf | D56: Pomme | F56: Menus midi retraite | G56: Mars | H56: 45
A57: 2017-03-06 | B57: Riz | C57: Rôti de cheval | D57: Pomme | F57: Menus midi retraite | G57: Mars | H57: 46
A58: 2017-03-07 | B58: Salade | C58: Rôti de cheval | D58: Pomme | F58: Menus midi retraite | G58: Mars | H58: 47
A59: 2017-03-08 | B59: Tomates | C59: Rôti de cheval | D59: Pomme | F59: Menus midi retraite | G59: Mars | H59: 48
A60: 2017-03-09 | B60: Asperges | C60: Rôti de cheval | D60: Pomme | F60: Menus midi retraite | G60: Mars | H60: 49
A61: 2017-03-10 | B61: Avocat | C61: Rôti de cheval | D61: Pomme | F61: Menus midi retraite | G61: Mars | H61: 50
A62: 2017-03-13 | B62: Carottes | C62: Rôti de porc | D62: Pomme | F62: Menus midi retraite | G62: Mars | H62: 51
A63: 2017-03-14 | B63: Céleri | C63: Rôti de porc | D63: Pomme | F63: Menus midi retraite | G63: Mars | H63: 52
A64: 2017-03-15 | B64: Champignons | C64: Rôti de porc | D64: Pomme | F64: Menus midi retraite | G64: Mars | H64: 53
A65: 2017-03-16 | B65: Concombre | C65: Rôti de porc | D65: Pomme | F65: Menus midi retraite | G65: Mars | H65: 54
A66: 2017-03-17 | B66: Couscous | C66: Rôti de porc | D66: Pomme | F66: Menus midi retraite | G66: Mars | H66: 55
A67: 2017-03-20 | B67: Maïs | C67: Rôti de veau | D67: Pomme | F67: Menus midi retraite | G67: Mars | H67: 56
A68: 2017-03-21 | B68: Maïs | C68: Rôti de veau | D68: Pomme | F68: Menus midi retraite | G68: Mars | H68: 57
A69: 2017-03-22 | B69: Pâtes à la sauce tomates | C69: Rôti de veau | D69: Pomme | F69: Menus midi retraite | G69: Mars | H69: 58
A70: 2017-03-23 | B70: Pâtes au beurre | C70: Rôti de veau | D70: Pomme | F70: Menus midi retraite | G70: Mars | H70: 59
A71: 2017-03-24 | B71: Poireau | C71: Rôti de veau | D71: Pomme | F71: Menus midi retraite | G71: Mars | H71: 60
A72: 2017-03-27 | B72: Pomme de terre | C72: Rôti d'agneau | D72: Pomme | F72: Menus midi retraite | G72: Mars | H72: 61
A73: 2017-03-28 | B73: Purée | C73: Rôti d'agneau | D73: Pomme | F73: Menus midi retraite | G73: Mars | H73: 62
A74: 2017-03-29 | B74: Radis | C74: Rôti d'agneau | D74: Pomme | F74: Menus midi retraite | G74: Mars | H74: 63
A75: 2017-03-30 | B75: Radis | C75: Rôti d'agneau | D75: Pomme | F75: Menus midi retraite | G75: Mars | H75: 64
A76: 2017-03-31 | B76: Riz | C76: Rôti d'agneau | D76: Pomme | F76: Menus midi retraite | G76: Mars | H76: 65
A77: Fait à Limeil-Brévannes, le jeudi 29 décembre 2016.
A78: Menus midi retraite du mois d'avril 2017.
A79: Accueil
A80: Date du menu | B80: Légumes | C80: Viandes | D80: Dessert | E80: Observations | F80: Nature du menu | G80: Mois concerné | H80: Numéro du menu
A81: 2017-04-03 | B81: Salade | C81: Rôti de bœuf | D81: Pomme | F81: Menus midi retraite | G81: Avril | H81: 66
A82: 2017-04-04 | B82: Tomates | C82: Rôti de bœuf | D82: Pomme | F82: Menus midi retraite | G82: Avril | H82: 67
A83: 2017-04-05 | B83: Asperges | C83: Rôti de bœuf | D83: Pomme | F83: Menus midi retraite | G83: Avril | H83: 68
A84: 2017-04-06 | B84: Avocat | C84: Rôti de bœuf | D84: Pomme | F84: Menus midi retraite | G84: Avril | H84: 69
A85: 2017-04-07 | B85: Carottes | C85: Rôti de bœuf | D85: Pomme | F85: Menus midi retraite | G85: Avril | H85: 70
A86: 2017-04-10 | B86: Céleri | C86: Rôti de cheval | D86: Pomme | F86: Menus midi retraite | G86: Avril | H86: 71
A87: 2017-04-11 | B87: Champignons | C87: Rôti de cheval | D87: Pomme | F87: Menus midi retraite | G87: Avril | H87: 72
A88: 2017-04-12 | B88: Concombre | C88: Rôti de cheval | D88: Pomme | F88: Menus midi retraite | G88: Avril | H88: 73
A89: 2017-04-13 | B89: Couscous | C89: Rôti de cheval | D89: Pomme | F89: Menus midi retraite | G89: Avril | H89: 74
A90: 2017-04-14 | B90: Maïs | C90: Rôti de cheval | D90: Pomme | F90: Menus midi retraite | G90: Avril | H90: 75
A91: 2017-04-17 | B91: Maïs | C91: Rôti de porc | D91: Pomme | E91: Lundi de Pâques | F91: Menus midi retraite | G91: Avril | H91: 76
A92: 2017-04-18 | B92: Pâtes à la sauce tomates | C92: Rôti de porc | D92: Pomme | F92: Menus midi retraite | G92: Avril | H92: 77
A93: 2017-04-19 | B93: Pâtes au beurre | C93: Rôti de porc | D93: Pomme | F93: Menus midi retraite | G93: Avril | H93: 78
A94: 2017-04-20 | B94: Poireau | C94: Rôti de porc | D94: Pomme | F94: Menus midi retraite | G94: Avril | H94: 79
A95: 2017-04-21 | B95: Pomme de terre | C95: Rôti de porc | D95: Pomme | F95: Menus midi retraite | G95: Avril | H95: 80
A96: 2017-04-24 | B96: Purée | C96: Rôti de veau | D96: Pomme | F96: Menus midi retraite | G96: Avril | H96: 81
A97: 2017-04-25 | B97: Radis | C97: Rôti de veau | D97: Pomme | F97: Menus midi retraite | G97: Avril | H97: 82
A98: 2017-04-26 | B98: Radis | C98: Rôti de veau | D98: Pomme | F98: Menus midi retraite | G98: Avril | H98: 83
A99: 2017-04-27 | B99: Riz | C99: Rôti de veau | D99: Pomme | F99: Menus midi retraite | G99: Avril | H99: 84
A100: 2017-04-28 | B100: Salade | C100: Rôti de veau | D100: Pomme | F100: Menus midi retraite | G100: Avril | H100: 85
A101: Fait à Limeil-Brévannes, le jeudi 29 décembre 2016.
A102: Menus midi retraite du mois de mai 2017.
A103: Accueil
A104: Date du menu | B104: Légumes | C104: Viandes | D104: Dessert | E104: Observations | F104: Nature du menu | G104: Mois concerné | H104: Numéro du menu
A105: 2017-05-01 | B105: Tomates | C105: Rôti d'agneau | D105: Pomme | E105: Fête du travail | F105: Menus midi retraite | G105: Mai | H105: 86
A106: 2017-05-02 | B106: Asperges | C106: Rôti d'agneau | D106: Pomme | F106: Menus midi retraite | G106: Mai | H106: 87
A107: 2017-05-03 | B107: Avocat | C107: Rôti d'agneau | D107: Pomme | F107: Menus midi retraite | G107: Mai | H107: 88
A108: 2017-05-04 | B108: Carottes | C108: Rôti d'agneau | D108: Pomme | F108: Menus midi retraite | G108: Mai | H108: 89
A109: 2017-05-05 | B109: Céleri | C109: Rôti d'agneau | D109: Pomme | F109: Menus midi retraite | G109: Mai | H109: 90
A110: 2017-05-08 | B110: Champignons | C110: Rôti de bœuf | D110: Pomme | E110: Victoire du 08 mai 1945 | F110: Menus midi retraite | G110: Mai | H110: 91
A111: 2017-05-09 | B111: Concombre | C111: Rôti de bœuf | D111: Pomme | F111: Menus midi retraite | G111: Mai | H111: 92
A112: 2017-05-10 | B112: Couscous | C112: Rôti de bœuf | D112: Pomme | F112: Menus midi retraite | G112: Mai | H112: 93
A113: 2017-05-11 | B113: Maïs | C113: Rôti de bœuf | D113: Pomme | F113: Menus midi retraite | G113: Mai | H113: 94
A114: 2017-05-12 | B114: Maïs | C114: Rôti de bœuf | D114: Pomme | F114: Menus midi retraite | G114: Mai | H114: 95
A115: 2017-05-15 | B115: Pâtes à la sauce tomates | C115: Rôti de cheval | D115: Pomme | F115: Menus midi retraite | G115: Mai | H115: 96
A116: 2017-05-16 | B116: Pâtes au beurre | C116: Rôti de cheval | D116: Pomme | F116: Menus midi retraite | G116: Mai | H116: 97
A117: 2017-05-17 | B117: Poireau | C117: Rôti de cheval | D117: Pomme | F117: Menus midi retraite | G117: Mai | H117: 98
A118: 2017-05-18 | B118: Pomme de terre | C118: Rôti de cheval | D118: Pomme | F118: Menus midi retraite | G118: Mai | H118: 99
A119: 2017-05-19 | B119: Purée | C119: Rôti de cheval | D119: Pomme | F119: Menus midi retraite | G119: Mai | H119: 100
A120: 2017-05-22 | B120: Radis | C120: Rôti de porc | D120: Pomme | F120: Menus midi retraite | G120: Mai | H120: 101
A121: 2017-05-23 | B121: Radis | C121: Rôti de porc | D121: Pomme | F121: Menus midi retraite | G121: Mai | H121: 102
A122: 2017-05-24 | B122: Riz | C122: Rôti de porc | D122: Pomme | F122: Menus midi retraite | G122: Mai | H122: 103
A123: 2017-05-25 | B123: Salade | C123: Rôti de porc | D123: Pomme | E123: Ascension | F123: Menus midi retraite | G123: Mai | H123: 104
A124: 2017-05-26 | B124: Tomates | C124: Rôti de porc | D124: Pomme | F124: Menus midi retraite | G124: Mai | H124: 105
A125: 2017-05-29 | B125: Asperges | C125: Rôti de veau | D125: Pomme | F125: Menus midi retraite | G125: Mai | H125: 106
A126: 2017-05-30 | B126: Avocat | C126: Rôti de veau | D126: Pomme | F126: Menus midi retraite | G126: Mai | H126: 107
A127: 2017-05-31 | B127: Carottes | C127: Rôti de veau | D127: Pomme | F127: Menus midi retraite | G127: Mai | H127: 108
A128: Fait à Limeil-Brévannes, le jeudi 29 décembre 2016.
A129: Menus midi retraite du mois de juin 2017.
A130: Accueil
A131: Date du menu | B131: Légumes | C131: Viandes | D131: Dessert | E131: Observations | F131: Nature du menu | G131: Mois concerné | H131: Numéro du menu
A132: 2017-06-01 | B132: Céleri | C132: Rôti de veau | D132: Pomme | F132: Menus midi retraite | G132: Juin | H132: 109
A133: 2017-06-02 | B133: Champignons | C133: Rôti de veau | D133: Pomme | F133: Menus midi retraite | G133: Juin | H133: 110
A134: 2017-06-05 | B134: Concombre | C134: Rôti d'agneau | D134: Pomme | E134: Lundi de Pentecôte | F134: Menus midi retraite | G134: Juin | H134: 111
A135: 2017-06-06 | B135: Couscous | C135: Rôti d'agneau | D135: Pomme | F135: Menus midi retraite | G135: Juin | H135: 112
A136: 2017-06-07 | B136: Maïs | C136: Rôti d'agneau | D136: Pomme | F136: Menus midi retraite | G136: Juin | H136: 113
A137: 2017-06-08 | B137: Maïs | C137: Rôti d'agneau | D137: Pomme | F137: Menus midi retraite | G137: Juin | H137: 114
A138: 2017-06-09 | B138: Pâtes à la sauce tomates | C138: Rôti d'agneau | D138: Pomme | F138: Menus midi retraite | G138: Juin | H138: 115
A139: 2017-06-12 | B139: Pâtes au beurre | C139: Rôti de bœuf | D139: Pomme | F139: Menus midi retraite | G139: Juin | H139: 116
A140: 2017-06-13 | B140: Poireau | C140: Rôti de bœuf | D140: Pomme | F140: Menus midi retraite | G140: Juin | H140: 117
A141: 2017-06-14 | B141: Pomme de terre | C141: Rôti de bœuf | D141: Pomme | F141: Menus midi retraite | G141: Juin | H141: 118
A142: 2017-06-15 | B142: Purée | C142: Rôti de bœuf | D142: Pomme | F142: Menus midi retraite | G142: Juin | H142: 119
A143: 2017-06-16 | B143: Radis | C143: Rôti de bœuf | D143: Pomme | F143: Menus midi retraite | G143: Juin | H143: 120
A144: 2017-06-19 | B144: Radis | C144: Rôti de cheval | D144: Pomme | F144: Menus midi retraite | G144: Juin | H144: 121
A145: 2017-06-20 | B145: Riz | C145: Rôti de cheval | D145: Pomme | F145: Menus midi retraite | G145: Juin | H145: 122
A146: 2017-06-21 | B146: Salade | C146: Rôti de cheval | D146: Pomme | F146: Menus midi retraite | G146: Juin | H146: 123
A147: 2017-06-22 | B147: Tomates | C147: Rôti de cheval | D147: Pomme | F147: Menus midi retraite | G147: Juin | H147: 124
A148: 2017-06-23 | B148: Asperges | C148: Rôti de cheval | D148: Pomme | F148: Menus midi retraite | G148: Juin | H148: 125
A149: 2017-06-26 | B149: Avocat | C149: Rôti de porc | D149: Pomme | F149: Menus midi retraite | G149: Juin | H149: 126
A150: 2017-06-27 | B150: Carottes | C150: Rôti de porc | D150: Pomme | F150: Menus midi retraite | G150: Juin | H150: 127
A151: 2017-06-28 | B151: Céleri | C151: Rôti de porc | D151: Pomme | F151: Menus midi retraite | G151: Juin | H151: 128
A152: 2017-06-29 | B152: Champignons | C152: Rôti de porc | D152: Pomme | F152: Menus midi retraite | G152: Juin | H152: 129
A153: 2017-06-30 | B153: Concombre | C153: Rôti de porc | D153: Pomme | F153: Menus midi retraite | G153: Juin | H153: 130
A154: Fait à Limeil-Brévannes, le jeudi 29 décembre 2016.
A155: Menus midi retraite du mois de juillet 2017.
A156: Accueil
A157: Date du menu | B157: Légumes | C157: Viandes | D157: Dessert | E157: Observations | F157: Nature du menu | G157: Mois concerné | H157: Numéro du menu
A158: 2017-07-04 | B158: Maïs | C158: Rôti de veau | D158: Pomme | F158: Menus midi retraite | G158: Juillet | H158: 132
A159: 2017-07-05 | B159: Maïs | C159: Rôti de veau | D159: Pomme | F159: Menus midi retraite | G159: Juillet | H159: 133
A160: 2017-07-06 | B160: Pâtes à la sauce tomates | C160: Rôti de veau | D160: Pomme | F160: Menus midi retraite | G160: Juillet | H160: 134
A161: 2017-07-07 | B161: Pâtes au beurre | C161: Rôti de veau | D161: Pomme | F161: Menus midi retraite | G161: Juillet | H161: 135
A162: 2017-07-10 | B162: Poireau | C162: Rôti d'agneau | D162: Pomme | F162: Menus midi retraite | G162: Juillet | H162: 136
A163: 2017-07-11 | B163: Pomme de terre | C163: Rôti d'agneau | D163: Pomme | F163: Menus midi retraite | G163: Juillet | H163: 137
A164: 2017-07-12 | B164: Purée | C164: Rôti d'agneau | D164: Pomme | F164: Menus midi retraite | G164: Juillet | H164: 138
A165: 2017-07-13 | B165: Radis | C165: Rôti d'agneau | D165: Pomme | F165: Menus midi retraite | G165: Juillet | H165: 139
A166: 2017-07-14 | B166: Radis | C166: Rôti d'agneau | D166: Pomme | E166: Fête nationale | F166: Menus midi retraite | G166: Juillet | H166: 140
A167: 2017-07-17 | B167: Riz | C167: Rôti de bœuf | D167: Pomme | F167: Menus midi retraite | G167: Juillet | H167: 141
A168: 2017-07-18 | B168: Salade | C168: Rôti de bœuf | D168: Pomme | F168: Menus midi retraite | G168: Juillet | H168: 142
A169: 2017-07-19 | B169: Tomates | C169: Rôti de bœuf | D169: Pomme | F169: Menus midi retraite | G169: Juillet | H169: 143
A170: 2017-07-20 | B170: Asperges | C170: Rôti de bœuf | D170: Pomme | F170: Menus midi retraite | G170: Juillet | H170: 144
A171: 2017-07-21 | B171: Avocat | C171: Rôti de bœuf | D171: Pomme | F171: Menus midi retraite | G171: Juillet | H171: 145
A172: 2017-07-24 | B172: Carottes | C172: Rôti de cheval | D172: Pomme | F172: Menus midi retraite | G172: Juillet | H172: 146
A173: 2017-07-25 | B173: Céleri | C173: Rôti de cheval | D173: Pomme | F173: Menus midi retraite | G173: Juillet | H173: 147
A174: 2017-07-26 | B174: Champignons | C174: Rôti de cheval | D174: Pomme | F174: Menus midi retraite | G174: Juillet | H174: 148
A175: 2017-07-27 | B175: Concombre | C175: Rôti de cheval | D175: Pomme | F175: Menus midi retraite | G175: Juillet | H175: 149
A176: 2017-07-28 | B176: Couscous | C176: Rôti de cheval | D176: Pomme | F176: Menus midi retraite | G176: Juillet | H176: 150
A177: 2017-07-31 | B177: Maïs | C177: Rôti de porc | D177: Pomme | F177: Menus midi retraite | G177: Juillet | H177: 151
A178: Fait à Limeil-Brévannes, le jeudi 29 décembre 2016.
A179: Menus midi retraite du mois d'août 2017.
A180: Accueil
A181: Date du menu | B181: Légumes | C181: Viandes | D181: Dessert | E181: Observations | F181: Nature du menu | G181: Mois concerné | H181: Numéro du menu
A182: 2017-08-01 | B182: Maïs | C182: Rôti de porc | D182: Pomme | F182: Menus midi retraite | G182: Août | H182: 152
A183: 2017-08-02 | B183: Pâtes à la sauce tomates | C183: Rôti de porc | D183: Pomme | F183: Menus midi retraite | G183: Août | H183: 153
A184: 2017-08-03 | B184: Pâtes au beurre | C184: Rôti de porc | D184: Pomme | F184: Menus midi retraite | G184: Août | H184: 154
A185: 2017-08-04 | B185: Poireau | C185: Rôti de porc | D185: Pomme | F185: Menus midi retraite | G185: Août | H185: 155
A186: 2017-08-07 | B186: Pomme de terre | C186: Rôti de veau | D186: Pomme | F186: Menus midi retraite | G186: Août | H186: 156
A187: 2017-08-08 | B187: Purée | C187: Rôti de veau | D187: Pomme | F187: Menus midi retraite | G187: Août | H187: 157
A188: 2017-08-09 | B188: Radis | C188: Rôti de veau | D188: Pomme | F188: Menus midi retraite | G188: Août | H188: 158
A189: 2017-08-10 | B189: Radis | C189: Rôti de veau | D189: Pomme | F189: Menus midi retraite | G189: Août | H189: 159
A190: 2017-08-11 | B190: Riz | C190: Rôti de veau | D190: Pomme | F190: Menus midi retraite | G190: Août | H190: 160
A191: 2017-08-14 | B191: Salade | C191: Rôti d'agneau | D191: Pomme | F191: Menus midi retraite | G191: Août | H191: 161
A192: 2017-08-15 | B192: Tomates | C192: Rôti d'agneau | D192: Pomme | E192: Assomption | F192: Menus midi retraite | G192: Août | H192: 162
A193: 2017-08-16 | B193: Asperges | C193: Rôti d'agneau | D193: Pomme | F193: Menus midi retraite | G193: Août | H193: 163
A194: 2017-08-17 | B194: Avocat | C194: Rôti d'agneau | D194: Pomme | F194: Menus midi retraite | G194: Août | H194: 164
A195: 2017-08-18 | B195: Carottes | C195: Rôti d'agneau | D195: Pomme | F195: Menus midi retraite | G195: Août | H195: 165
A196: 2017-08-21 | B196: Céleri | C196: Rôti de bœuf | D196: Pomme | F196: Menus midi retraite | G196: Août | H196: 166
A197: 2017-08-22 | B197: Champignons | C197: Rôti de bœuf | D197: Pomme | F197: Menus midi retraite | G197: Août | H197: 167
A198: 2017-08-23 | B198: Concombre | C198: Rôti de bœuf | D198: Pomme | F198: Menus midi retraite | G198: Août | H198: 168
A199: 2017-08-24 | B199: Couscous | C199: Rôti de bœuf | D199: Pomme | F199: Menus midi retraite | G199: Août | H199: 169
A200: 2017-08-25 | B200: Maïs | C200: Rôti de bœuf | D200: Pomme | F200: Menus midi retraite | G200: Août | H200: 170
... 107 more rows

Sheet Menus journaliers
A1: Menus journaliers du mois de janvier 2017.
A2: Accueil
A3: Date du menu | B3: Légumes | C3: Légumes deux | D3: Viandes | E3: Desserts | F3: Observations | G3: Nature du menu | H3: Mois concerné | I3: Numéro du menu
A4: 2017-01-01 | B4: Haricots verts | D4: Saucisson | E4: Oranges | F4: Jour de l'an | G4: Menus journaliers | H4: Janvier | I4: 1
A5: 2017-01-02 | B5: Maïs | D5: Bifteck haché de bœuf | E5: Pomme | G5: Menus journaliers | H5: Janvier | I5: 2
A6: 2017-01-03 | B6: Maïs | D6: Saucisson | E6: Pomme | G6: Menus journaliers | H6: Janvier | I6: 3
A7: 2017-01-04 | B7: Petits pois et jeunes carottes | D7: Bifteck haché de cheval | E7: Pomme | G7: Menus journaliers | H7: Janvier | I7: 4
A8: 2017-01-05 | B8: Petits pois et jeunes carottes | D8: Saucisson | E8: Pomme | G8: Menus journaliers | H8: Janvier | I8: 5
A9: 2017-01-06 | B9: Salsifis | D9: Bifteck haché de veau | E9: Pomme | G9: Menus journaliers | H9: Janvier | I9: 6
A10: 2017-01-07 | B10: Pâtes au beurre | D10: Saucisson | E10: Petits suisses | G10: Menus journaliers | H10: Janvier | I10: 7
A11: 2017-01-08 | B11: Chips | D11: Bifteck haché de veau | E11: Petits suisses | G11: Menus journaliers | H11: Janvier | I11: 8
A12: 2017-01-09 | B12: Paella | D12: Viande paella | E12: Pomme | G12: Menus journaliers | H12: Janvier | I12: 9
A13: 2017-01-10 | B13: Paella | D13: Viande paella | E13: Pomme | G13: Menus journaliers | H13: Janvier | I13: 10
A14: 2017-01-11 | B14: Ratatouille | D14: Saucisson | E14: Pomme | G14: Menus journaliers | H14: Janvier | I14: 11
A15: 2017-01-12 | B15: Ratatouille | D15: Bouchée à la reine | E15: Pomme | G15: Menus journaliers | H15: Janvier | I15: 12
A16: 2017-01-13 | B16: Tomates | D16: Saucisson | E16: Pomme | G16: Menus journaliers | H16: Janvier | I16: 13
A17: 2017-01-14 | B17: Pâtes au fromage râpé | D17: Bouchée à la reine | E17: Pruneaux | G17: Menus journaliers | H17: Janvier | I17: 14
A18: 2017-01-15 | B18: Frites | C18: Asperges | D18: Saucisson | E18: Pruneaux | G18: Menus journaliers | H18: Janvier | I18: 15
A19: 2017-01-16 | B19: Poireau | D19: Boudin | E19: Pomme | G19: Menus journaliers | H19: Janvier | I19: 16
A20: 2017-01-17 | B20: Poireau | D20: Saucisson | E20: Pomme | G20: Menus journaliers | H20: Janvier | I20: 17
A21: 2017-01-18 | B21: Raviolis | D21: Boudin | E21: Pomme | G21: Menus journaliers | H21: Janvier | I21: 18
A22: 2017-01-19 | B22: Raviolis | D22: Saucisson | E22: Pomme | G22: Menus journaliers | H22: Janvier | I22: 19
A23: 2017-01-20 | B23: Asperges | D23: Cervelas | E23: Pomme | G23: Menus journaliers | H23: Janvier | I23: 20
A24: 2017-01-21 | B24: Pâtes à la sauce tomates | D24: Saucisson | E24: Riz | G24: Menus journaliers | H24: Janvier | I24: 21
A25: 2017-01-22 | B25: Haricots verts | D25: Cervelas | E25: Riz | G25: Menus journaliers | H25: Janvier | I25: 22
A26: 2017-01-23 | B26: Pomme de terre | D26: Saucisson | E26: Pomme | G26: Menus journaliers | H26: Janvier | I26: 23
A27: 2017-01-24 | B27: Pomme de terre | D27: Cœur | E27: Pomme | G27: Menus journaliers | H27: Janvier | I27: 24
A28: 2017-01-25 | B28: Tomates pelées | D28: Saucisson | E28: Pomme | G28: Menus journaliers | H28: Janvier | I28: 25
A29: 2017-01-26 | B29: Tomates pelées | D29: Cœur | E29: Pomme | G29: Menus journaliers | H29: Janvier | I29: 26
A30: 2017-01-27 | B30: Avocat | D30: Saucisson | E30: Pomme | G30: Menus journaliers | H30: Janvier | I30: 27
A31: 2017-01-28 | B31: Pâtes au beurre | D31: Croque-monsieur | E31: Semoule de blé | G31: Menus journaliers | H31: Janvier | I31: 28
A32: 2017-01-29 | B32: Chips | D32: Saucisson | E32: Semoule de blé | G32: Menus journaliers | H32: Janvier | I32: 29
A33: 2017-01-30 | B33: Purée | D33: Croque-monsieur | E33: Pomme | G33: Menus journaliers | H33: Janvier | I33: 30
A34: 2017-01-31 | B34: Purée | D34: Saucisson | E34: Pomme | G34: Menus journaliers | H34: Janvier | I34: 31
A35: Fait à Limeil-Brévannes, le lundi 02 janvier 2017.
A36: Menus journaliers du mois de février 2017.
A37: Accueil
A38: Date du menu | B38: Légumes | C38: Légumes deux | D38: Viandes | E38: Desserts | F38: Observations | G38: Nature du menu | H38: Mois concerné | I38: Numéro du menu
A39: 2017-02-01 | B39: Macédoine de légumes | D39: Foie | E39: Pomme | G39: Menus journaliers | H39: Février | I39: 32
A40: 2017-02-02 | B40: Macédoine de légumes | D40: Saucisson | E40: Pomme | G40: Menus journaliers | H40: Février | I40: 33
A41: 2017-02-03 | B41: Betterave rouge | D41: Foie | E41: Pomme | G41: Menus journaliers | H41: Février | I41: 34
A42: 2017-02-04 | B42: Pâtes au fromage râpé | D42: Saucisson | E42: Tapioca | G42: Menus journaliers | H42: Février | I42: 35
A43: 2017-02-05 | B43: Frites | C43: Asperges | D43: Fromage de tête | E43: Tapioca | G43: Menus journaliers | H43: Février | I43: 36
A44: 2017-02-06 | B44: Quenelles | D44: Saucisson | E44: Pomme | G44: Menus journaliers | H44: Février | I44: 37
A45: 2017-02-07 | B45: Quenelles | D45: Fromage de tête | E45: Pomme | G45: Menus journaliers | H45: Février | I45: 38
A46: 2017-02-08 | B46: Petits pois | D46: Saucisson | E46: Pomme | G46: Menus journaliers | H46: Février | I46: 39
A47: 2017-02-09 | B47: Petits pois | D47: Jambon | E47: Pomme | G47: Menus journaliers | H47: Février | I47: 40
A48: 2017-02-10 | B48: Carottes | D48: Saucisson | E48: Pomme | G48: Menus journaliers | H48: Février | I48: 41
A49: 2017-02-11 | B49: Pâtes à la sauce tomates | D49: Jambon | E49: Yaourts | G49: Menus journaliers | H49: Février | I49: 42
A50: 2017-02-12 | B50: Haricots verts | D50: Saucisson | E50: Yaourts | G50: Menus journaliers | H50: Février | I50: 43
A51: 2017-02-13 | B51: Riz | D51: Jambonneau | E51: Pomme | G51: Menus journaliers | H51: Février | I51: 44
A52: 2017-02-14 | B52: Riz | D52: Saucisson | E52: Pomme | G52: Menus journaliers | H52: Février | I52: 45
A53: 2017-02-15 | B53: Petits pois et jeunes carottes | D53: Jambonneau | E53: Pomme | G53: Menus journaliers | H53: Février | I53: 46
A54: 2017-02-16 | B54: Petits pois et jeunes carottes | D54: Saucisson | E54: Pomme | G54: Menus journaliers | H54: Février | I54: 47
A55: 2017-02-17 | B55: Céleri | D55: Mortadelle | E55: Pomme | G55: Menus journaliers | H55: Février | I55: 48
A56: 2017-02-18 | B56: Pâtes au beurre | D56: Saucisson | E56: Ananas | G56: Menus journaliers | H56: Février | I56: 49
A57: 2017-02-19 | B57: Chips | D57: Mortadelle | E57: Ananas | G57: Menus journaliers | H57: Février | I57: 50
A58: 2017-02-20 | B58: Cassoulet | D58: Viande cassoulet | E58: Pomme | G58: Menus journaliers | H58: Février | I58: 51
A59: 2017-02-21 | B59: Cassoulet | D59: Viande cassoulet | E59: Pomme | G59: Menus journaliers | H59: Février | I59: 52
A60: 2017-02-22 | B60: Ratatouille | D60: Saucisson | E60: Pomme | G60: Menus journaliers | H60: Février | I60: 53
A61: 2017-02-23 | B61: Ratatouille | D61: Œufs | E61: Pomme | G61: Menus journaliers | H61: Février | I61: 54
A62: 2017-02-24 | B62: Champignons | D62: Saucisson | E62: Pomme | G62: Menus journaliers | H62: Février | I62: 55
A63: 2017-02-25 | B63: Pâtes au fromage râpé | D63: Œufs | E63: Autres fruits | G63: Menus journaliers | H63: Février | I63: 56
A64: 2017-02-26 | B64: Frites | C64: Asperges | D64: Saucisson | E64: Autres fruits | G64: Menus journaliers | H64: Février | I64: 57
A65: 2017-02-27 | B65: Choucroute | D65: Viande choucroute | E65: Pomme | G65: Menus journaliers | H65: Février | I65: 58
A66: 2017-02-28 | B66: Choucroute | D66: Viande choucroute | E66: Pomme | G66: Menus journaliers | H66: Février | I66: 59
A67: Fait à Limeil-Brévannes, le lundi 02 janvier 2017.
A68: Menus journaliers du mois de mars 2017.
A69: Accueil
A70: Date du menu | B70: Légumes | C70: Légumes deux | D70: Viandes | E70: Desserts | F70: Observations | G70: Nature du menu | H70: Mois concerné | I70: Numéro du menu
A71: 2017-03-01 | B71: Raviolis | D71: Pizza | E71: Pomme | G71: Menus journaliers | H71: Mars | I71: 60
A72: 2017-03-02 | B72: Raviolis | D72: Saucisson | E72: Pomme | G72: Menus journaliers | H72: Mars | I72: 61
A73: 2017-03-03 | B73: Concombre | D73: Pizza | E73: Pomme | G73: Menus journaliers | H73: Mars | I73: 62
A74: 2017-03-04 | B74: Pâtes à la sauce tomates | D74: Saucisson | E74: Avocats | G74: Menus journaliers | H74: Mars | I74: 63
A75: 2017-03-05 | B75: Haricots verts | D75: Poisson | E75: Avocats | G75: Menus journaliers | H75: Mars | I75: 64
A76: 2017-03-06 | B76: Chou-fleur | D76: Saucisson | E76: Pomme | G76: Menus journaliers | H76: Mars | I76: 65
A77: 2017-03-07 | B77: Chou-fleur | D77: Quiche lorraine | E77: Pomme | G77: Menus journaliers | H77: Mars | I77: 66
A78: 2017-03-08 | B78: Tomates pelées | D78: Saucisson | E78: Pomme | G78: Menus journaliers | H78: Mars | I78: 67
A79: 2017-03-09 | B79: Tomates pelées | D79: Quiche lorraine | E79: Pomme | G79: Menus journaliers | H79: Mars | I79: 68
A80: 2017-03-10 | B80: Radis | D80: Saucisson | E80: Pomme | G80: Menus journaliers | H80: Mars | I80: 69
A81: 2017-03-11 | B81: Pâtes au beurre | D81: Roulade à la pistache | E81: Bananes | G81: Menus journaliers | H81: Mars | I81: 70
A82: 2017-03-12 | B82: Chips | D82: Saucisson | E82: Bananes | G82: Menus journaliers | H82: Mars | I82: 71
A83: 2017-03-13 | B83: Choux de Bruxelles | D83: Roulade à la pistache | E83: Pomme | G83: Menus journaliers | H83: Mars | I83: 72
A84: 2017-03-14 | B84: Choux de Bruxelles | D84: Saucisson | E84: Pomme | G84: Menus journaliers | H84: Mars | I84: 73
A85: 2017-03-15 | B85: Macédoine de légumes | D85: Roulé au fromage | E85: Pomme | G85: Menus journaliers | H85: Mars | I85: 74
A86: 2017-03-16 | B86: Macédoine de légumes | D86: Saucisson | E86: Pomme | G86: Menus journaliers | H86: Mars | I86: 75
A87: 2017-03-17 | B87: Salade | D87: Roulé au fromage | E87: Pomme | G87: Menus journaliers | H87: Mars | I87: 76
A88: 2017-03-18 | B88: Pâtes au fromage râpé | D88: Saucisson | E88: Clémentines | G88: Menus journaliers | H88: Mars | I88: 77
A89: 2017-03-19 | B89: Frites | C89: Asperges | D89: Salami | E89: Clémentines | G89: Menus journaliers | H89: Mars | I89: 78
A90: 2017-03-20 | B90: Couscous | D90: Saucisson | E90: Pomme | G90: Menus journaliers | H90: Mars | I90: 79
A91: 2017-03-21 | B91: Couscous | D91: Salami | E91: Pomme | G91: Menus journaliers | H91: Mars | I91: 80
A92: 2017-03-22 | B92: Petits pois | D92: Saucisson | E92: Pomme | G92: Menus journaliers | H92: Mars | I92: 81
A93: 2017-03-23 | B93: Petits pois | D93: Saucisses | E93: Pomme | G93: Menus journaliers | H93: Mars | I93: 82
A94: 2017-03-24 | B94: Salsifis | D94: Saucisson | E94: Pomme | G94: Menus journaliers | H94: Mars | I94: 83
A95: 2017-03-25 | B95: Pâtes à la sauce tomates | D95: Saucisses | E95: Crème | G95: Menus journaliers | H95: Mars | I95: 84
A96: 2017-03-26 | B96: Haricots verts | D96: Saucisson | E96: Crème | G96: Menus journaliers | H96: Mars | I96: 85
A97: 2017-03-27 | B97: Endives | D97: Tête persillée | E97: Pomme | G97: Menus journaliers | H97: Mars | I97: 86
A98: 2017-03-28 | B98: Endives | D98: Saucisson | E98: Pomme | G98: Menus journaliers | H98: Mars | I98: 87
A99: 2017-03-29 | B99: Petits pois et jeunes carottes | D99: Tête persillée | E99: Pomme | G99: Menus journaliers | H99: Mars | I99: 88
A100: 2017-03-30 | B100: Petits pois et jeunes carottes | D100: Saucisson | E100: Pomme | G100: Menus journaliers | H100: Mars | I100: 89
A101: 2017-03-31 | B101: Tomates | D101: Tête roulée | E101: Pomme | G101: Menus journaliers | H101: Mars | I101: 90
A102: Fait à Limeil-Brévannes, le lundi 02 janvier 2017.
A103: Menus journaliers du mois d'avril 2017.
A104: Accueil
A105: Date du menu | B105: Légumes | C105: Légumes deux | D105: Viandes | E105: Desserts | F105: Observations | G105: Nature du menu | H105: Mois concerné | I105: Numéro du menu
A106: 2017-04-01 | B106: Pâtes au beurre | D106: Saucisson | E106: Dattes | G106: Menus journaliers | H106: Avril | I106: 91
A107: 2017-04-02 | B107: Chips | D107: Tête roulée | E107: Dattes | G107: Menus journaliers | H107: Avril | I107: 92
A108: 2017-04-03 | B108: Haricots verts | D108: Saucisson | E108: Pomme | G108: Menus journaliers | H108: Avril | I108: 93
A109: 2017-04-04 | B109: Haricots verts | D109: Thon | E109: Pomme | G109: Menus journaliers | H109: Avril | I109: 94
A110: 2017-04-05 | B110: Ratatouille | D110: Saucisson | E110: Pomme | G110: Menus journaliers | H110: Avril | I110: 95
A111: 2017-04-06 | B111: Ratatouille | D111: Bifteck haché de bœuf | E111: Pomme | G111: Menus journaliers | H111: Avril | I111: 96
A112: 2017-04-07 | B112: Asperges | D112: Saucisson | E112: Pomme | G112: Menus journaliers | H112: Avril | I112: 97
A113: 2017-04-08 | B113: Pâtes au fromage râpé | D113: Bifteck haché de bœuf | E113: Figues | G113: Menus journaliers | H113: Avril | I113: 98
A114: 2017-04-09 | B114: Frites | C114: Asperges | D114: Saucisson | E114: Figues | G114: Menus journaliers | H114: Avril | I114: 99
A115: 2017-04-10 | B115: Maïs | D115: Bifteck haché de cheval | E115: Pomme | G115: Menus journaliers | H115: Avril | I115: 100
A116: 2017-04-11 | B116: Maïs | D116: Saucisson | E116: Pomme | G116: Menus journaliers | H116: Avril | I116: 101
A117: 2017-04-12 | B117: Raviolis | D117: Bifteck haché de veau | E117: Pomme | G117: Menus journaliers | H117: Avril | I117: 102
A118: 2017-04-13 | B118: Raviolis | D118: Saucisson | E118: Pomme | G118: Menus journaliers | H118: Avril | I118: 103
A119: 2017-04-14 | B119: Avocat | D119: Bifteck haché de veau | E119: Pomme | G119: Menus journaliers | H119: Avril | I119: 104
A120: 2017-04-15 | B120: Pâtes à la sauce tomates | D120: Saucisson | E120: Fromage blanc | G120: Menus journaliers | H120: Avril | I120: 105
A121: 2017-04-16 | B121: Haricots verts | D121: Bouchée à la reine | E121: Fromage blanc | F121: Pâques | G121: Menus journaliers | H121: Avril | I121: 106
A122: 2017-04-17 | B122: Paella | D122: Viande paella | E122: Pomme | F122: Lundi de Pâques | G122: Menus journaliers | H122: Avril | I122: 107
A123: 2017-04-18 | B123: Paella | D123: Viande paella | E123: Pomme | G123: Menus journaliers | H123: Avril | I123: 108
A124: 2017-04-19 | B124: Tomates pelées | D124: Saucisson | E124: Pomme | G124: Menus journaliers | H124: Avril | I124: 109
A125: 2017-04-20 | B125: Tomates pelées | D125: Bouchée à la reine | E125: Pomme | G125: Menus journaliers | H125: Avril | I125: 110
A126: 2017-04-21 | B126: Betterave rouge | D126: Saucisson | E126: Pomme | G126: Menus journaliers | H126: Avril | I126: 111
A127: 2017-04-22 | B127: Pâtes au beurre | D127: Boudin | E127: Fruits au sirop | G127: Menus journaliers | H127: Avril | I127: 112
A128: 2017-04-23 | B128: Chips | D128: Saucisson | E128: Fruits au sirop | G128: Menus journaliers | H128: Avril | I128: 113
A129: 2017-04-24 | B129: Poireau | D129: Boudin | E129: Pomme | G129: Menus journaliers | H129: Avril | I129: 114
A130: 2017-04-25 | B130: Poireau | D130: Saucisson | E130: Pomme | G130: Menus journaliers | H130: Avril | I130: 115
A131: 2017-04-26 | B131: Macédoine de légumes | D131: Cervelas | E131: Pomme | G131: Menus journaliers | H131: Avril | I131: 116
A132: 2017-04-27 | B132: Macédoine de légumes | D132: Saucisson | E132: Pomme | G132: Menus journaliers | H132: Avril | I132: 117
A133: 2017-04-28 | B133: Carottes | D133: Cervelas | E133: Pomme | G133: Menus journaliers | H133: Avril | I133: 118
A134: 2017-04-29 | B134: Pâtes au fromage râpé | D134: Saucisson | E134: Fruits de saison | G134: Menus journaliers | H134: Avril | I134: 119
A135: 2017-04-30 | B135: Frites | C135: Asperges | D135: Cœur | E135: Fruits de saison | G135: Menus journaliers | H135: Avril | I135: 120
A136: Fait à Limeil-Brévannes, le lundi 02 janvier 2017.
A137: Menus journaliers du mois de mai 2017.
A138: Accueil
A139: Date du menu | B139: Légumes | C139: Légumes deux | D139: Viandes | E139: Desserts | F139: Observations | G139: Nature du menu | H139: Mois concerné | I139: Numéro du menu
A140: 2017-05-01 | B140: Pomme de terre | D140: Saucisson | E140: Pomme | F140: Fête du travail | G140: Menus journaliers | H140: Mai | I140: 121
A141: 2017-05-02 | B141: Pomme de terre | D141: Cœur | E141: Pomme | G141: Menus journaliers | H141: Mai | I141: 122
A142: 2017-05-03 | B142: Petits pois | D142: Saucisson | E142: Pomme | G142: Menus journaliers | H142: Mai | I142: 123
A143: 2017-05-04 | B143: Petits pois | D143: Croque-monsieur | E143: Pomme | G143: Menus journaliers | H143: Mai | I143: 124
A144: 2017-05-05 | B144: Céleri | D144: Saucisson | E144: Pomme | G144: Menus journaliers | H144: Mai | I144: 125
A145: 2017-05-06 | B145: Pâtes à la sauce tomates | D145: Croque-monsieur | E145: Gâteau de riz | G145: Menus journaliers | H145: Mai | I145: 126
A146: 2017-05-07 | B146: Haricots verts | D146: Saucisson | E146: Gâteau de riz | G146: Menus journaliers | H146: Mai | I146: 127
A147: 2017-05-08 | B147: Purée | D147: Foie | E147: Pomme | F147: Victoire du 08 mai 1945 | G147: Menus journaliers | H147: Mai | I147: 128
A148: 2017-05-09 | B148: Purée | D148: Saucisson | E148: Pomme | G148: Menus journaliers | H148: Mai | I148: 129
A149: 2017-05-10 | B149: Petits pois et jeunes carottes | D149: Foie | E149: Pomme | G149: Menus journaliers | H149: Mai | I149: 130
A150: 2017-05-11 | B150: Petits pois et jeunes carottes | D150: Saucisson | E150: Pomme | G150: Menus journaliers | H150: Mai | I150: 131
A151: 2017-05-12 | B151: Champignons | D151: Fromage de tête | E151: Pomme | G151: Menus journaliers | H151: Mai | I151: 132
A152: 2017-05-13 | B152: Pâtes au beurre | D152: Saucisson | E152: Gâteaux samedis et dimanches | G152: Menus journaliers | H152: Mai | I152: 133
A153: 2017-05-14 | B153: Chips | D153: Fromage de tête | E153: Gâteaux samedis et dimanches | G153: Menus journaliers | H153: Mai | I153: 134
A154: 2017-05-15 | B154: Quenelles | D154: Saucisson | E154: Pomme | G154: Menus journaliers | H154: Mai | I154: 135
A155: 2017-05-16 | B155: Quenelles | D155: Jambon | E155: Pomme | G155: Menus journaliers | H155: Mai | I155: 136
A156: 2017-05-17 | B156: Ratatouille | D156: Saucisson | E156: Pomme | G156: Menus journaliers | H156: Mai | I156: 137
A157: 2017-05-18 | B157: Ratatouille | D157: Jambon | E157: Pomme | G157: Menus journaliers | H157: Mai | I157: 138
A158: 2017-05-19 | B158: Concombre | D158: Saucisson | E158: Pomme | G158: Menus journaliers | H158: Mai | I158: 139
A159: 2017-05-20 | B159: Pâtes au fromage râpé | D159: Jambonneau | E159: Mousse au chocolat | G159: Menus journaliers | H159: Mai | I159: 140
A160: 2017-05-21 | B160: Frites | C160: Asperges | D160: Saucisson | E160: Mousse au chocolat | G160: Menus journaliers | H160: Mai | I160: 141
A161: 2017-05-22 | B161: Riz | D161: Jambonneau | E161: Pomme | G161: Menus journaliers | H161: Mai | I161: 142
A162: 2017-05-23 | B162: Riz | D162: Saucisson | E162: Pomme | G162: Menus journaliers | H162: Mai | I162: 143
A163: 2017-05-24 | B163: Raviolis | D163: Mortadelle | E163: Pomme | G163: Menus journaliers | H163: Mai | I163: 144
A164: 2017-05-25 | B164: Raviolis | D164: Saucisson | E164: Pomme | F164: Ascension | G164: Menus journaliers | H164: Mai | I164: 145
A165: 2017-05-26 | B165: Radis | D165: Mortadelle | E165: Pomme | G165: Menus journaliers | H165: Mai | I165: 146
A166: 2017-05-27 | B166: Pâtes à la sauce tomates | D166: Saucisson | E166: Oranges | G166: Menus journaliers | H166: Mai | I166: 147
A167: 2017-05-28 | B167: Haricots verts | D167: Œufs | E167: Oranges | G167: Menus journaliers | H167: Mai | I167: 148
A168: 2017-05-29 | B168: Cassoulet | D168: Viande cassoulet | E168: Pomme | G168: Menus journaliers | H168: Mai | I168: 149
A169: 2017-05-30 | B169: Cassoulet | D169: Viande cassoulet | E169: Pomme | G169: Menus journaliers | H169: Mai | I169: 150
A170: 2017-05-31 | B170: Tomates pelées | D170: Saucisson | E170: Pomme | G170: Menus journaliers | H170: Mai | I170: 151
A171: Fait à Limeil-Brévannes, le mardi 03 janvier 2017.
A172: Menus journaliers du mois de juin 2017.
A173: Accueil
A174: Date du menu | B174: Légumes | C174: Légumes deux | D174: Viandes | E174: Desserts | F174: Observations | G174: Nature du menu | H174: Mois concerné | I174: Numéro du menu
A175: 2017-06-01 | B175: Tomates pelées | D175: Œufs | E175: Pomme | G175: Menus journaliers | H175: Juin | I175: 152
A176: 2017-06-02 | B176: Salade | D176: Saucisson | E176: Pomme | G176: Menus journaliers | H176: Juin | I176: 153
A177: 2017-06-03 | B177: Pâtes au beurre | D177: Pizza | E177: Petits suisses | G177: Menus journaliers | H177: Juin | I177: 154
A178: 2017-06-04 | B178: Chips | D178: Saucisson | E178: Petits suisses | F178: Pentecôte | G178: Menus journaliers | H178: Juin | I178: 155
A179: 2017-06-05 | B179: Choucroute | D179: Viande choucroute | E179: Pomme | F179: Lundi de Pentecôte | G179: Menus journaliers | H179: Juin | I179: 156
A180: 2017-06-06 | B180: Choucroute | D180: Viande choucroute | E180: Pomme | G180: Menus journaliers | H180: Juin | I180: 157
A181: 2017-06-07 | B181: Macédoine de légumes | D181: Pizza | E181: Pomme | G181: Menus journaliers | H181: Juin | I181: 158
A182: 2017-06-08 | B182: Macédoine de légumes | D182: Saucisson | E182: Pomme | G182: Menus journaliers | H182: Juin | I182: 159
A183: 2017-06-09 | B183: Salsifis | D183: Poisson | E183: Pomme | G183: Menus journaliers | H183: Juin | I183: 160
A184: 2017-06-10 | B184: Pâtes au fromage râpé | D184: Saucisson | E184: Pruneaux | G184: Menus journaliers | H184: Juin | I184: 161
A185: 2017-06-11 | B185: Frites | C185: Asperges | D185: Quiche lorraine | E185: Pruneaux | G185: Menus journaliers | H185: Juin | I185: 162
A186: 2017-06-12 | B186: Chou-fleur | D186: Saucisson | E186: Pomme | G186: Menus journaliers | H186: Juin | I186: 163
A187: 2017-06-13 | B187: Chou-fleur | D187: Quiche lorraine | E187: Pomme | G187: Menus journaliers | H187: Juin | I187: 164
A188: 2017-06-14 | B188: Petits pois | D188: Saucisson | E188: Pomme | G188: Menus journaliers | H188: Juin | I188: 165
A189: 2017-06-15 | B189: Petits pois | D189: Roulade à la pistache | E189: Pomme | G189: Menus journaliers | H189: Juin | I189: 166
A190: 2017-06-16 | B190: Tomates | D190: Saucisson | E190: Pomme | G190: Menus journaliers | H190: Juin | I190: 167
A191: 2017-06-17 | B191: Pâtes à la sauce tomates | D191: Roulade à la pistache | E191: Riz | G191: Menus journaliers | H191: Juin | I191: 168
A192: 2017-06-18 | B192: Haricots verts | D192: Saucisson | E192: Riz | G192: Menus journaliers | H192: Juin | I192: 169
A193: 2017-06-19 | B193: Choux de Bruxelles | D193: Roulé au fromage | E193: Pomme | G193: Menus journaliers | H193: Juin | I193: 170
A194: 2017-06-20 | B194: Choux de Bruxelles | D194: Saucisson | E194: Pomme | G194: Menus journaliers | H194: Juin | I194: 171
A195: 2017-06-21 | B195: Petits pois et jeunes carottes | D195: Roulé au fromage | E195: Pomme | G195: Menus journaliers | H195: Juin | I195: 172
A196: 2017-06-22 | B196: Petits pois et jeunes carottes | D196: Saucisson | E196: Pomme | G196: Menus journaliers | H196: Juin | I196: 173
A197: 2017-06-23 | B197: Asperges | D197: Salami | E197: Pomme | G197: Menus journaliers | H197: Juin | I197: 174
A198: 2017-06-24 | B198: Pâtes au beurre | D198: Saucisson | E198: Semoule de blé | G198: Menus journaliers | H198: Juin | I198: 175
A199: 2017-06-25 | B199: Chips | D199: Salami | E199: Semoule de blé | G199: Menus journaliers | H199: Juin | I199: 176
A200: 2017-06-26 | B200: Couscous | D200: Saucisson | E200: Pomme | G200: Menus journaliers | H200: Juin | I200: 177
... 213 more rows

Sheet Menus viandes week-end
A1: Viandes week-end du premier semestre de l'année 2017.
A2: Accueil
A3: Date du menu | B3: Viandes | C3: Observations | D3: Nature du menu | E3: Mois concerné | F3: Numéro du menu
A4: 2017-01-01 | B4: Dinde | C4: Jour de l'an | D4: Viande premier semestre | E4: Janvier | F4: 1
A5: 2017-01-07 | B5: Poisson | D5: Viande premier semestre | E5: Janvier | F5: 2
A6: 2017-01-08 | B6: Porc | D6: Viande premier semestre | E6: Janvier | F6: 3
A7: 2017-01-14 | B7: Veau | D7: Viande premier semestre | E7: Janvier | F7: 4
A8: 2017-01-15 | B8: Agneau | D8: Viande premier semestre | E8: Janvier | F8: 5
A9: 2017-01-21 | B9: Bœuf | D9: Viande premier semestre | E9: Janvier | F9: 6
A10: 2017-01-22 | B10: Cheval | D10: Viande premier semestre | E10: Janvier | F10: 7
A11: 2017-01-28 | B11: Dinde | D11: Viande premier semestre | E11: Janvier | F11: 8
A12: 2017-01-29 | B12: Poisson | D12: Viande premier semestre | E12: Janvier | F12: 9
A13: 2017-02-04 | B13: Porc | D13: Viande premier semestre | E13: Février | F13: 10
A14: 2017-02-05 | B14: Veau | D14: Viande premier semestre | E14: Février | F14: 11
A15: 2017-02-11 | B15: Agneau | D15: Viande premier semestre | E15: Février | F15: 12
A16: 2017-02-12 | B16: Bœuf | D16: Viande premier semestre | E16: Février | F16: 13
A17: 2017-02-18 | B17: Cheval | D17: Viande premier semestre | E17: Février | F17: 14
A18: 2017-02-19 | B18: Dinde | D18: Viande premier semestre | E18: Février | F18: 15
A19: 2017-02-19 | B19: Dinde | D19: Viande premier semestre | E19: Février | F19: 15
A20: 2017-02-25 | B20: Poisson | D20: Viande premier semestre | E20: Février | F20: 16
A21: 2017-02-26 | B21: Porc | D21: Viande premier semestre | E21: Février | F21: 17
A22: 2017-03-04 | B22: Veau | D22: Viande premier semestre | E22: Mars | F22: 18
A23: 2017-03-05 | B23: Agneau | D23: Viande premier semestre | E23: Mars | F23: 19
A24: 2017-03-11 | B24: Bœuf | D24: Viande premier semestre | E24: Mars | F24: 20
A25: 2017-03-12 | B25: Cheval | D25: Viande premier semestre | E25: Mars | F25: 21
A26: 2017-03-18 | B26: Dinde | D26: Viande premier semestre | E26: Mars | F26: 22
A27: 2017-03-19 | B27: Poisson | D27: Viande premier semestre | E27: Mars | F27: 23
A28: 2017-03-25 | B28: Porc | D28: Viande premier semestre | E28: Mars | F28: 24
A29: 2017-03-26 | B29: Veau | D29: Viande premier semestre | E29: Mars | F29: 25
A30: 2017-04-01 | B30: Agneau | D30: Viande premier semestre | E30: Avril | F30: 26
A31: 2017-04-02 | B31: Bœuf | D31: Viande premier semestre | E31: Avril | F31: 27
A32: 2017-04-08 | B32: Cheval | D32: Viande premier semestre | E32: Avril | F32: 28
A33: 2017-04-09 | B33: Dinde | D33: Viande premier semestre | E33: Avril | F33: 29
A34: 2017-04-15 | B34: Poisson | D34: Viande premier semestre | E34: Avril | F34: 30
A35: 2017-04-16 | B35: Porc | C35: Pâques | D35: Viande premier semestre | E35: Avril | F35: 31
A36: 2017-04-22 | B36: Veau | D36: Viande premier semestre | E36: Avril | F36: 32
A37: 2017-04-23 | B37: Agneau | D37: Viande premier semestre | E37: Avril | F37: 33
A38: 2017-04-29 | B38: Bœuf | D38: Viande premier semestre | E38: Avril | F38: 34
A39: 2017-04-30 | B39: Cheval | D39: Viande premier semestre | E39: Avril | F39: 35
A40: 2017-05-06 | B40: Dinde | D40: Viande premier semestre | E40: Mai | F40: 36
A41: 2017-05-07 | B41: Poisson | D41: Viande premier semestre | E41: Mai | F41: 37
A42: 2017-05-13 | B42: Porc | D42: Viande premier semestre | E42: Mai | F42: 38
A43: 2017-05-14 | B43: Veau | D43: Viande premier semestre | E43: Mai | F43: 39
A44: 2017-05-20 | B44: Agneau | D44: Viande premier semestre | E44: Mai | F44: 40
A45: 2017-05-21 | B45: Bœuf | D45: Viande premier semestre | E45: Mai | F45: 41
A46: 2017-05-27 | B46: Cheval | D46: Viande premier semestre | E46: Mai | F46: 42
A47: 2017-05-28 | B47: Dinde | D47: Viande premier semestre | E47: Mai | F47: 43
A48: 2017-06-03 | B48: Poisson | D48: Viande premier semestre | E48: Juin | F48: 44
A49: 2017-06-04 | B49: Porc | C49: Pentecôte | D49: Viande premier semestre | E49: Juin | F49: 45
A50: 2017-06-10 | B50: Veau | D50: Viande premier semestre | E50: Juin | F50: 46
A51: 2017-06-11 | B51: Agneau | D51: Viande premier semestre | E51: Juin | F51: 47
A52: 2017-06-17 | B52: Bœuf | D52: Viande premier semestre | E52: Juin | F52: 48
A53: 2017-06-18 | B53: Cheval | D53: Viande premier semestre | E53: Juin | F53: 49
A54: 2017-06-24 | B54: Dinde | D54: Viande premier semestre | E54: Juin | F54: 50
A55: 2017-06-25 | B55: Poisson | D55: Viande premier semestre | E55: Juin | F55: 51
A56: Fait à Limeil-Brévannes, le jeudi 05 janvier 2017.
A57: Viandes week-end du deuxième semestre de l'année 2017.
A58: Accueil
A59: Date du menu | B59: Viandes | C59: Observations | D59: Nature du menu | E59: Mois concerné | F59: Numéro du menu
A60: 2017-07-01 | B60: Porc | D60: Viande deuxième semestre | E60: Juillet | F60: 52
A61: 2017-07-02 | B61: Veau | D61: Viande deuxième semestre | E61: Juillet | F61: 53
A62: 2017-07-08 | B62: Agneau | D62: Viande deuxième semestre | E62: Juillet | F62: 54
A63: 2017-07-09 | B63: Bœuf | D63: Viande deuxième semestre | E63: Juillet | F63: 55
A64: 2017-07-15 | B64: Cheval | D64: Viande deuxième semestre | E64: Juillet | F64: 56
A65: 2017-07-16 | B65: Dinde | D65: Viande deuxième semestre | E65: Juillet | F65: 57
A66: 2017-07-22 | B66: Poisson | D66: Viande deuxième semestre | E66: Juillet | F66: 58
A67: 2017-07-23 | B67: Porc | D67: Viande deuxième semestre | E67: Juillet | F67: 59
A68: 2017-07-29 | B68: Veau | D68: Viande deuxième semestre | E68: Juillet | F68: 60
A69: 2017-07-30 | B69: Agneau | D69: Viande deuxième semestre | E69: Juillet | F69: 61
A70: 2017-08-05 | B70: Bœuf | D70: Viande deuxième semestre | E70: Août | F70: 62
A71: 2017-08-06 | B71: Cheval | D71: Viande deuxième semestre | E71: Août | F71: 63
A72: 2017-08-12 | B72: Dinde | D72: Viande deuxième semestre | E72: Août | F72: 64
A73: 2017-08-13 | B73: Poisson | D73: Viande deuxième semestre | E73: Août | F73: 65
A74: 2017-08-19 | B74: Porc | D74: Viande deuxième semestre | E74: Août | F74: 66
A75: 2017-08-20 | B75: Veau | D75: Viande deuxième semestre | E75: Août | F75: 67
A76: 2017-08-26 | B76: Agneau | D76: Viande deuxième semestre | E76: Août | F76: 68
A77: 2017-08-27 | B77: Bœuf | D77: Viande deuxième semestre | E77: Août | F77: 69
A78: 2017-09-02 | B78: Cheval | D78: Viande deuxième semestre | E78: Septembre | F78: 70
A79: 2017-09-03 | B79: Dinde | D79: Viande deuxième semestre | E79: Septembre | F79: 71
A80: 2017-09-09 | B80: Poisson | D80: Viande deuxième semestre | E80: Septembre | F80: 72
A81: 2017-09-10 | B81: Porc | D81: Viande deuxième semestre | E81: Septembre | F81: 73
A82: 2017-09-16 | B82: Veau | D82: Viande deuxième semestre | E82: Septembre | F82: 74
A83: 2017-09-17 | B83: Agneau | D83: Viande deuxième semestre | E83: Septembre | F83: 75
A84: 2017-09-23 | B84: Bœuf | D84: Viande deuxième semestre | E84: Septembre | F84: 76
A85: 2017-09-24 | B85: Cheval | D85: Viande deuxième semestre | E85: Septembre | F85: 77
A86: 2017-09-30 | B86: Dinde | D86: Viande deuxième semestre | E86: Septembre | F86: 78
A87: 2017-10-01 | B87: Poisson | D87: Viande deuxième semestre | E87: Octobre | F87: 79
A88: 2017-10-07 | B88: Porc | D88: Viande deuxième semestre | E88: Octobre | F88: 80
A89: 2017-10-08 | B89: Veau | D89: Viande deuxième semestre | E89: Octobre | F89: 81
A90: 2017-10-14 | B90: Agneau | D90: Viande deuxième semestre | E90: Octobre | F90: 82
A91: 2017-10-15 | B91: Bœuf | D91: Viande deuxième semestre | E91: Octobre | F91: 83
A92: 2017-10-21 | B92: Cheval | D92: Viande deuxième semestre | E92: Octobre | F92: 84
A93: 2017-10-22 | B93: Dinde | D93: Viande deuxième semestre | E93: Octobre | F93: 85
A94: 2017-10-28 | B94: Poisson | D94: Viande deuxième semestre | E94: Octobre | F94: 86
A95: 2017-10-29 | B95: Porc | D95: Viande deuxième semestre | E95: Octobre | F95: 87
A96: 2017-11-04 | B96: Veau | D96: Viande deuxième semestre | E96: Novembre | F96: 88
A97: 2017-11-05 | B97: Agneau | D97: Viande deuxième semestre | E97: Novembre | F97: 89
A98: 2017-11-11 | B98: Bœuf | D98: Viande deuxième semestre | E98: Novembre | F98: 90
A99: 2017-11-12 | B99: Cheval | D99: Viande deuxième semestre | E99: Novembre | F99: 91
A100: 2017-11-18 | B100: Dinde | D100: Viande deuxième semestre | E100: Novembre | F100: 92
A101: 2017-11-19 | B101: Poisson | D101: Viande deuxième semestre | E101: Novembre | F101: 93
A102: 2017-11-25 | B102: Porc | D102: Viande deuxième semestre | E102: Novembre | F102: 94
A103: 2017-11-26 | B103: Veau | D103: Viande deuxième semestre | E103: Novembre | F103: 95
A104: 2017-12-02 | B104: Agneau | D104: Viande deuxième semestre | E104: Décembre | F104: 96
A105: 2017-12-03 | B105: Bœuf | D105: Viande deuxième semestre | E105: Décembre | F105: 97
A106: 2017-12-09 | B106: Cheval | D106: Viande deuxième semestre | E106: Décembre | F106: 98
A107: 2017-12-10 | B107: Dinde | D107: Viande deuxième semestre | E107: Décembre | F107: 99
A108: 2017-12-16 | B108: Poisson | D108: Viande deuxième semestre | E108: Décembre | F108: 100
A109: 2017-12-17 | B109: Porc | D109: Viande deuxième semestre | E109: Décembre | F109: 101
A110: 2017-12-23 | B110: Veau | D110: Viande deuxième semestre | E110: Décembre | F110: 102
A111: 2017-12-24 | B111: Agneau | D111: Viande deuxième semestre | E111: Décembre | F111: 103
A112: 2017-12-30 | B112: Bœuf | D112: Viande deuxième semestre | E112: Décembre | F112: 104
A113: 2017-12-31 | B113: Cheval | D113: Viande deuxième semestre | E113: Décembre | F113: 105
A114: Fait à Limeil-Brévannes, le jeudi 05 janvier 2017.

Sheet Quantités légumes
A1: Récapitulatif des quantités légumes de l'année 2017.
A2: Accueil
A3: Code légumes | B3: Légumes | C3: Janvier | D3: Février | E3: Mars | F3: Avril | G3: Mai | H3: Juin | I3: Juillet | J3: Août | K3: Septembre | L3: Octobre | M3: Novembre | N3: Décembre | O3: Total
A4: LLM01 | B4: Cassoulet | C4: =IF($B4<>"",SUMIF(Janvier!$E$4:$F$65,'Quantités légumes'!$B4,Janvier!$K$4:$L$65),"") -> 0 | D4: =IF($B4<>"",SUMIF(Février!$E$4:$F$65,'Quantités légumes'!$B4,Février!$K$4:$L$65),"") -> 1 | E4: =IF($B4<>"",SUMIF(Mars!$E$4:$F$65,'Quantités légumes'!$B4,Mars!$K$4:$L$65),"") -> 0 | F4: =IF($B4<>"",SUMIF(Avril!$E$4:$F$64,'Quantités légumes'!$B4,Avril!$K$4:$L$64),"") -> 0 | G4: =IF($B4<>"",SUMIF(Mai!$E$4:$F$64,'Quantités légumes'!$B4,Mai!$K$4:$L$64),"") -> 1 | H4: =IF($B4<>"",SUMIF(Juin!$E$4:$F$62,'Quantités légumes'!$B4,Juin!$K$4:$L$62),"") -> 0 | I4: =IF($B4<>"",SUMIF(Juillet!$E$4:$F$54,'Quantités légumes'!$B4,Juillet!$K$4:$L$54),"") -> 0 | J4: =IF($B4<>"",SUMIF(Août!$E$4:$F$62,'Quantités légumes'!$B4,Août!$K$4:$L$62),"") -> 0 | K4: =IF($B4<>"",SUMIF(Septembre!$E$4:$F$65,'Quantités légumes'!$B4,Septembre!$K$4:$L$65),"") -> 1 | L4: =IF($B4<>"",SUMIF(Octobre!$E$4:$F$64,'Quantités légumes'!$B4,Octobre!$K$4:$L$64),"") -> 0 | M4: =IF($B4<>"",SUMIF(Novembre!$E$4:$F$65,'Quantités légumes'!$B4,Novembre!$K$4:$L$65),"") -> 0 | N4: =IF($B4<>"",SUMIF(Décembre!$E$4:$F$64,'Quantités légumes'!$B4,Décembre!$K$4:$L$64),"") -> 1 | O4: =SUM($C4:$N4) -> 4
A5: LLM02 | B5: Choucroute | C5: =IF($B5<>"",SUMIF(Janvier!$E$4:$F$65,'Quantités légumes'!$B5,Janvier!$K$4:$L$65),"") -> 0 | D5: =IF($B5<>"",SUMIF(Février!$E$4:$F$65,'Quantités légumes'!$B5,Février!$K$4:$L$65),"") -> 1 | E5: =IF($B5<>"",SUMIF(Mars!$E$4:$F$65,'Quantités légumes'!$B5,Mars!$K$4:$L$65),"") -> 0 | F5: =IF($B5<>"",SUMIF(Avril!$E$4:$F$64,'Quantités légumes'!$B5,Avril!$K$4:$L$64),"") -> 0 | G5: =IF($B5<>"",SUMIF(Mai!$E$4:$F$64,'Quantités légumes'!$B5,Mai!$K$4:$L$64),"") -> 0 | H5: =IF($B5<>"",SUMIF(Juin!$E$4:$F$62,'Quantités légumes'!$B5,Juin!$K$4:$L$62),"") -> 1 | I5: =IF($B5<>"",SUMIF(Juillet!$E$4:$F$54,'Quantités légumes'!$B5,Juillet!$K$4:$L$54),"") -> 0 | J5: =IF($B5<>"",SUMIF(Août!$E$4:$F$62,'Quantités légumes'!$B5,Août!$K$4:$L$62),"") -> 0 | K5: =IF($B5<>"",SUMIF(Septembre!$E$4:$F$65,'Quantités légumes'!$B5,Septembre!$K$4:$L$65),"") -> 1 | L5: =IF($B5<>"",SUMIF(Octobre!$E$4:$F$64,'Quantités légumes'!$B5,Octobre!$K$4:$L$64),"") -> 0 | M5: =IF($B5<>"",SUMIF(Novembre!$E$4:$F$65,'Quantités légumes'!$B5,Novembre!$K$4:$L$65),"") -> 0 | N5: =IF($B5<>"",SUMIF(Décembre!$E$4:$F$64,'Quantités légumes'!$B5,Décembre!$K$4:$L$64),"") -> 1 | O5: =SUM($C5:$N5) -> 4
A6: LLM03 | B6: Chou-fleur | C6: =IF($B6<>"",SUMIF(Janvier!$E$4:$F$65,'Quantités légumes'!$B6,Janvier!$K$4:$L$65),"") -> 0 | D6: =IF($B6<>"",SUMIF(Février!$E$4:$F$65,'Quantités légumes'!$B6,Février!$K$4:$L$65),"") -> 0 | E6: =IF($B6<>"",SUMIF(Mars!$E$4:$F$65,'Quantités légumes'!$B6,Mars!$K$4:$L$65),"") -> 1 | F6: =IF($B6<>"",SUMIF(Avril!$E$4:$F$64,'Quantités légumes'!$B6,Avril!$K$4:$L$64),"") -> 0 | G6: =IF($B6<>"",SUMIF(Mai!$E$4:$F$64,'Quantités légumes'!$B6,Mai!$K$4:$L$64),"") -> 0 | H6: =IF($B6<>"",SUMIF(Juin!$E$4:$F$62,'Quantités légumes'!$B6,Juin!$K$4:$L$62),"") -> 1 | I6: =IF($B6<>"",SUMIF(Juillet!$E$4:$F$54,'Quantités légumes'!$B6,Juillet!$K$4:$L$54),"") -> 0 | J6: =IF($B6<>"",SUMIF(Août!$E$4:$F$62,'Quantités légumes'!$B6,Août!$K$4:$L$62),"") -> 0 | K6: =IF($B6<>"",SUMIF(Septembre!$E$4:$F$65,'Quantités légumes'!$B6,Septembre!$K$4:$L$65),"") -> 1 | L6: =IF($B6<>"",SUMIF(Octobre!$E$4:$F$64,'Quantités légumes'!$B6,Octobre!$K$4:$L$64),"") -> 0 | M6: =IF($B6<>"",SUMIF(Novembre!$E$4:$F$65,'Quantités légumes'!$B6,Novembre!$K$4:$L$65),"") -> 0 | N6: =IF($B6<>"",SUMIF(Décembre!$E$4:$F$64,'Quantités légumes'!$B6,Décembre!$K$4:$L$64),"") -> 1 | O6: 4
A7: LLM04 | B7: Choux de Bruxelles | C7: =IF($B7<>"",SUMIF(Janvier!$E$4:$F$65,'Quantités légumes'!$B7,Janvier!$K$4:$L$65),"") -> 0 | D7: =IF($B7<>"",SUMIF(Février!$E$4:$F$65,'Quantités légumes'!$B7,Février!$K$4:$L$65),"") -> 0 | E7: =IF($B7<>"",SUMIF(Mars!$E$4:$F$65,'Quantités légumes'!$B7,Mars!$K$4:$L$65),"") -> 1 | F7: =IF($B7<>"",SUMIF(Avril!$E$4:$F$64,'Quantités légumes'!$B7,Avril!$K$4:$L$64),"") -> 0 | G7: =IF($B7<>"",SUMIF(Mai!$E$4:$F$64,'Quantités légumes'!$B7,Mai!$K$4:$L$64),"") -> 0 | H7: =IF($B7<>"",SUMIF(Juin!$E$4:$F$62,'Quantités légumes'!$B7,Juin!$K$4:$L$62),"") -> 1 | I7: =IF($B7<>"",SUMIF(Juillet!$E$4:$F$54,'Quantités légumes'!$B7,Juillet!$K$4:$L$54),"") -> 0 | J7: =IF($B7<>"",SUMIF(Août!$E$4:$F$62,'Quantités légumes'!$B7,Août!$K$4:$L$62),"") -> 0 | K7: =IF($B7<>"",SUMIF(Septembre!$E$4:$F$65,'Quantités légumes'!$B7,Septembre!$K$4:$L$65),"") -> 1 | L7: =IF($B7<>"",SUMIF(Octobre!$E$4:$F$64,'Quantités légumes'!$B7,Octobre!$K$4:$L$64),"") -> 0 | M7: =IF($B7<>"",SUMIF(Novembre!$E$4:$F$65,'Quantités légumes'!$B7,Novembre!$K$4:$L$65),"") -> 0 | N7: =IF($B7<>"",SUMIF(Décembre!$E$4:$F$64,'Quantités légumes'!$B7,Décembre!$K$4:$L$64),"") -> 0 | O7: 3
A8: LLM05 | B8: Couscous | C8: =IF($B8<>"",SUMIF(Janvier!$E$4:$F$65,'Quantités légumes'!$B8,Janvier!$K$4:$L$65),"") -> 25 | D8: =IF($B8<>"",SUMIF(Février!$E$4:$F$65,'Quantités légumes'!$B8,Février!$K$4:$L$65),"") -> 25 | E8: =IF($B8<>"",SUMIF(Mars!$E$4:$F$65,'Quantités légumes'!$B8,Mars!$K$4:$L$65),"") -> 75 | F8: =IF($B8<>"",SUMIF(Avril!$E$4:$F$64,'Quantités légumes'!$B8,Avril!$K$4:$L$64),"") -> 25 | G8: =IF($B8<>"",SUMIF(Mai!$E$4:$F$64,'Quantités légumes'!$B8,Mai!$K$4:$L$64),"") -> 25 | H8: =IF($B8<>"",SUMIF(Juin!$E$4:$F$62,'Quantités légumes'!$B8,Juin!$K$4:$L$62),"") -> 27 | I8: =IF($B8<>"",SUMIF(Juillet!$E$4:$F$54,'Quantités légumes'!$B8,Juillet!$K$4:$L$54),"") -> 25 | J8: =IF($B8<>"",SUMIF(Août!$E$4:$F$62,'Quantités légumes'!$B8,Août!$K$4:$L$62),"") -> 25 | K8: =IF($B8<>"",SUMIF(Septembre!$E$4:$F$65,'Quantités légumes'!$B8,Septembre!$K$4:$L$65),"") -> 25 | L8: =IF($B8<>"",SUMIF(Octobre!$E$4:$F$64,'Quantités légumes'!$B8,Octobre!$K$4:$L$64),"") -> 75 | M8: =IF($B8<>"",SUMIF(Novembre!$E$4:$F$65,'Quantités légumes'!$B8,Novembre!$K$4:$L$65),"") -> 25 | N8: =IF($B8<>"",SUMIF(Décembre!$E$4:$F$64,'Quantités légumes'!$B8,Décembre!$K$4:$L$64),"") -> 25 | O8: 402
A9: LLM06 | B9: Endives | C9: =IF($B9<>"",SUMIF(Janvier!$E$4:$F$65,'Quantités légumes'!$B9,Janvier!$K$4:$L$65),"") -> 0 | D9: =IF($B9<>"",SUMIF(Février!$E$4:$F$65,'Quantités légumes'!$B9,Février!$K$4:$L$65),"") -> 0 | E9: =IF($B9<>"",SUMIF(Mars!$E$4:$F$65,'Quantités légumes'!$B9,Mars!$K$4:$L$65),"") -> 1 | F9: =IF($B9<>"",SUMIF(Avril!$E$4:$F$64,'Quantités légumes'!$B9,Avril!$K$4:$L$64),"") -> 0 | G9: =IF($B9<>"",SUMIF(Mai!$E$4:$F$64,'Quantités légumes'!$B9,Mai!$K$4:$L$64),"") -> 0 | H9: =IF($B9<>"",SUMIF(Juin!$E$4:$F$62,'Quantités légumes'!$B9,Juin!$K$4:$L$62),"") -> 0 | I9: =IF($B9<>"",SUMIF(Juillet!$E$4:$F$54,'Quantités légumes'!$B9,Juillet!$K$4:$L$54),"") -> 1 | J9: =IF($B9<>"",SUMIF(Août!$E$4:$F$62,'Quantités légumes'!$B9,Août!$K$4:$L$62),"") -> 0 | K9: =IF($B9<>"",SUMIF(Septembre!$E$4:$F$65,'Quantités légumes'!$B9,Septembre!$K$4:$L$65),"") -> 0 | L9: =IF($B9<>"",SUMIF(Octobre!$E$4:$F$64,'Quantités légumes'!$B9,Octobre!$K$4:$L$64),"") -> 1 | M9: =IF($B9<>"",SUMIF(Novembre!$E$4:$F$65,'Quantités légumes'!$B9,Novembre!$K$4:$L$65),"") -> 0 | N9: =IF($B9<>"",SUMIF(Décembre!$E$4:$F$64,'Quantités légumes'!$B9,Décembre!$K$4:$L$64),"") -> 0 | O9: 3
A10: LLM07 | B10: Haricots verts | C10: =IF($B10<>"",SUMIF(Janvier!$E$4:$F$65,'Quantités légumes'!$B10,Janvier!$K$4:$L$65),"") -> 2 | D10: =IF($B10<>"",SUMIF(Février!$E$4:$F$65,'Quantités légumes'!$B10,Février!$K$4:$L$65),"") -> 1 | E10: =IF($B10<>"",SUMIF(Mars!$E$4:$F$65,'Quantités légumes'!$B10,Mars!$K$4:$L$65),"") -> 2 | F10: =IF($B10<>"",SUMIF(Avril!$E$4:$F$64,'Quantités légumes'!$B10,Avril!$K$4:$L$64),"") -> 2 | G10: =IF($B10<>"",SUMIF(Mai!$E$4:$F$64,'Quantités légumes'!$B10,Mai!$K$4:$L$64),"") -> 2 | H10: =IF($B10<>"",SUMIF(Juin!$E$4:$F$62,'Quantités légumes'!$B10,Juin!$K$4:$L$62),"") -> 1 | I10: =IF($B10<>"",SUMIF(Juillet!$E$4:$F$54,'Quantités légumes'!$B10,Juillet!$K$4:$L$54),"") -> 3 | J10: =IF($B10<>"",SUMIF(Août!$E$4:$F$62,'Quantités légumes'!$B10,Août!$K$4:$L$62),"") -> 1 | K10: =IF($B10<>"",SUMIF(Septembre!$E$4:$F$65,'Quantités légumes'!$B10,Septembre!$K$4:$L$65),"") -> 1 | L10: =IF($B10<>"",SUMIF(Octobre!$E$4:$F$64,'Quantités légumes'!$B10,Octobre!$K$4:$L$64),"") -> 3 | M10: =IF($B10<>"",SUMIF(Novembre!$E$4:$F$65,'Quantités légumes'!$B10,Novembre!$K$4:$L$65),"") -> 1 | N10: =IF($B10<>"",SUMIF(Décembre!$E$4:$F$64,'Quantités légumes'!$B10,Décembre!$K$4:$L$64),"") -> 2 | O10: 21
A11: LLM08 | B11: Maïs | C11: =IF($B11<>"",SUMIF(Janvier!$E$4:$F$65,'Quantités légumes'!$B11,Janvier!$K$4:$L$65),"") -> 2 | D11: =IF($B11<>"",SUMIF(Février!$E$4:$F$65,'Quantités légumes'!$B11,Février!$K$4:$L$65),"") -> 1 | E11: =IF($B11<>"",SUMIF(Mars!$E$4:$F$65,'Quantités légumes'!$B11,Mars!$K$4:$L$65),"") -> 1 | F11: =IF($B11<>"",SUMIF(Avril!$E$4:$F$64,'Quantités légumes'!$B11,Avril!$K$4:$L$64),"") -> 2 | G11: =IF($B11<>"",SUMIF(Mai!$E$4:$F$64,'Quantités légumes'!$B11,Mai!$K$4:$L$64),"") -> 1 | H11: =IF($B11<>"",SUMIF(Juin!$E$4:$F$62,'Quantités légumes'!$B11,Juin!$K$4:$L$62),"") -> 1 | I11: =IF($B11<>"",SUMIF(Juillet!$E$4:$F$54,'Quantités légumes'!$B11,Juillet!$K$4:$L$54),"") -> 3.5 | J11: =IF($B11<>"",SUMIF(Août!$E$4:$F$62,'Quantités légumes'!$B11,Août!$K$4:$L$62),"") -> 1.5 | K11: =IF($B11<>"",SUMIF(Septembre!$E$4:$F$65,'Quantités légumes'!$B11,Septembre!$K$4:$L$65),"") -> 1.5 | L11: =IF($B11<>"",SUMIF(Octobre!$E$4:$F$64,'Quantités légumes'!$B11,Octobre!$K$4:$L$64),"") -> 2 | M11: =IF($B11<>"",SUMIF(Novembre!$E$4:$F$65,'Quantités légumes'!$B11,Novembre!$K$4:$L$65),"") -> 50 | N11: =IF($B11<>"",SUMIF(Décembre!$E$4:$F$64,'Quantités légumes'!$B11,Décembre!$K$4:$L$64),"") -> 1 | O11: 67.5
A12: LLM09 | B12: Paella | C12: =IF($B12<>"",SUMIF(Janvier!$E$4:$F$65,'Quantités légumes'!$B12,Janvier!$K$4:$L$65),"") -> 1 | D12: =IF($B12<>"",SUMIF(Février!$E$4:$F$65,'Quantités légumes'!$B12,Février!$K$4:$L$65),"") -> 0 | E12: =IF($B12<>"",SUMIF(Mars!$E$4:$F$65,'Quantités légumes'!$B12,Mars!$K$4:$L$65),"") -> 0 | F12: =IF($B12<>"",SUMIF(Avril!$E$4:$F$64,'Quantités légumes'!$B12,Avril!$K$4:$L$64),"") -> 1 | G12: =IF($B12<>"",SUMIF(Mai!$E$4:$F$64,'Quantités légumes'!$B12,Mai!$K$4:$L$64),"") -> 0 | H12: =IF($B12<>"",SUMIF(Juin!$E$4:$F$62,'Quantités légumes'!$B12,Juin!$K$4:$L$62),"") -> 0 | I12: =IF($B12<>"",SUMIF(Juillet!$E$4:$F$54,'Quantités légumes'!$B12,Juillet!$K$4:$L$54),"") -> 1 | J12: =IF($B12<>"",SUMIF(Août!$E$4:$F$62,'Quantités légumes'!$B12,Août!$K$4:$L$62),"") -> 0 | K12: =IF($B12<>"",SUMIF(Septembre!$E$4:$F$65,'Quantités légumes'!$B12,Septembre!$K$4:$L$65),"") -> 0 | L12: =IF($B12<>"",SUMIF(Octobre!$E$4:$F$64,'Quantités légumes'!$B12,Octobre!$K$4:$L$64),"") -> 1 | M12: =IF($B12<>"",SUMIF(Novembre!$E$4:$F$65,'Quantités légumes'!$B12,Novembre!$K$4:$L$65),"") -> 0 | N12: =IF($B12<>"",SUMIF(Décembre!$E$4:$F$64,'Quantités légumes'!$B12,Décembre!$K$4:$L$64),"") -> 0 | O12: 4
A13: LLM10 | B13: Poireau | C13: =IF($B13<>"",SUMIF(Janvier!$E$4:$F$65,'Quantités légumes'!$B13,Janvier!$K$4:$L$65),"") -> 4 | D13: =IF($B13<>"",SUMIF(Février!$E$4:$F$65,'Quantités légumes'!$B13,Février!$K$4:$L$65),"") -> 1 | E13: =IF($B13<>"",SUMIF(Mars!$E$4:$F$65,'Quantités légumes'!$B13,Mars!$K$4:$L$65),"") -> 1 | F13: =IF($B13<>"",SUMIF(Avril!$E$4:$F$64,'Quantités légumes'!$B13,Avril!$K$4:$L$64),"") -> 3 | G13: =IF($B13<>"",SUMIF(Mai!$E$4:$F$64,'Quantités légumes'!$B13,Mai!$K$4:$L$64),"") -> 1 | H13: =IF($B13<>"",SUMIF(Juin!$E$4:$F$62,'Quantités légumes'!$B13,Juin!$K$4:$L$62),"") -> 1 | I13: =IF($B13<>"",SUMIF(Juillet!$E$4:$F$54,'Quantités légumes'!$B13,Juillet!$K$4:$L$54),"") -> 2 | J13: =IF($B13<>"",SUMIF(Août!$E$4:$F$62,'Quantités légumes'!$B13,Août!$K$4:$L$62),"") -> 3 | K13: =IF($B13<>"",SUMIF(Septembre!$E$4:$F$65,'Quantités légumes'!$B13,Septembre!$K$4:$L$65),"") -> 1 | L13: =IF($B13<>"",SUMIF(Octobre!$E$4:$F$64,'Quantités légumes'!$B13,Octobre!$K$4:$L$64),"") -> 1 | M13: =IF($B13<>"",SUMIF(Novembre!$E$4:$F$65,'Quantités légumes'!$B13,Novembre!$K$4:$L$65),"") -> 3 | N13: =IF($B13<>"",SUMIF(Décembre!$E$4:$F$64,'Quantités légumes'!$B13,Décembre!$K$4:$L$64),"") -> 1 | O13: 22
A14: LLM11 | B14: Pomme de terre | C14: =IF($B14<>"",SUMIF(Janvier!$E$4:$F$65,'Quantités légumes'!$B14,Janvier!$K$4:$L$65),"") -> 3 | D14: =IF($B14<>"",SUMIF(Février!$E$4:$F$65,'Quantités légumes'!$B14,Février!$K$4:$L$65),"") -> 2 | E14: =IF($B14<>"",SUMIF(Mars!$E$4:$F$65,'Quantités légumes'!$B14,Mars!$K$4:$L$65),"") -> 1 | F14: =IF($B14<>"",SUMIF(Avril!$E$4:$F$64,'Quantités légumes'!$B14,Avril!$K$4:$L$64),"") -> 1 | G14: =IF($B14<>"",SUMIF(Mai!$E$4:$F$64,'Quantités légumes'!$B14,Mai!$K$4:$L$64),"") -> 3 | H14: =IF($B14<>"",SUMIF(Juin!$E$4:$F$62,'Quantités légumes'!$B14,Juin!$K$4:$L$62),"") -> 1 | I14: =IF($B14<>"",SUMIF(Juillet!$E$4:$F$54,'Quantités légumes'!$B14,Juillet!$K$4:$L$54),"") -> 1 | J14: =IF($B14<>"",SUMIF(Août!$E$4:$F$62,'Quantités légumes'!$B14,Août!$K$4:$L$62),"") -> 3 | K14: =IF($B14<>"",SUMIF(Septembre!$E$4:$F$65,'Quantités légumes'!$B14,Septembre!$K$4:$L$65),"") -> 2 | L14: =IF($B14<>"",SUMIF(Octobre!$E$4:$F$64,'Quantités légumes'!$B14,Octobre!$K$4:$L$64),"") -> 1 | M14: =IF($B14<>"",SUMIF(Novembre!$E$4:$F$65,'Quantités légumes'!$B14,Novembre!$K$4:$L$65),"") -> 3 | N14: =IF($B14<>"",SUMIF(Décembre!$E$4:$F$64,'Quantités légumes'!$B14,Décembre!$K$4:$L$64),"") -> 1 | O14: 22
A15: LLM12 | B15: Purée | C15: =IF($B15<>"",SUMIF(Janvier!$E$4:$F$65,'Quantités légumes'!$B15,Janvier!$K$4:$L$65),"") -> 75 | D15: =IF($B15<>"",SUMIF(Février!$E$4:$F$65,'Quantités légumes'!$B15,Février!$K$4:$L$65),"") -> 25 | E15: =IF($B15<>"",SUMIF(Mars!$E$4:$F$65,'Quantités légumes'!$B15,Mars!$K$4:$L$65),"") -> 50 | F15: =IF($B15<>"",SUMIF(Avril!$E$4:$F$64,'Quantités légumes'!$B15,Avril!$K$4:$L$64),"") -> 25 | G15: =IF($B15<>"",SUMIF(Mai!$E$4:$F$64,'Quantités légumes'!$B15,Mai!$K$4:$L$64),"") -> 75 | H15: =IF($B15<>"",SUMIF(Juin!$E$4:$F$62,'Quantités légumes'!$B15,Juin!$K$4:$L$62),"") -> 25 | I15: =IF($B15<>"",SUMIF(Juillet!$E$4:$F$54,'Quantités légumes'!$B15,Juillet!$K$4:$L$54),"") -> 25 | J15: =IF($B15<>"",SUMIF(Août!$E$4:$F$62,'Quantités légumes'!$B15,Août!$K$4:$L$62),"") -> 75 | K15: =IF($B15<>"",SUMIF(Septembre!$E$4:$F$65,'Quantités légumes'!$B15,Septembre!$K$4:$L$65),"") -> 50 | L15: =IF($B15<>"",SUMIF(Octobre!$E$4:$F$64,'Quantités légumes'!$B15,Octobre!$K$4:$L$64),"") -> 25 | M15: =IF($B15<>"",SUMIF(Novembre!$E$4:$F$65,'Quantités légumes'!$B15,Novembre!$K$4:$L$65),"") -> 75 | N15: =IF($B15<>"",SUMIF(Décembre!$E$4:$F$64,'Quantités légumes'!$B15,Décembre!$K$4:$L$64),"") -> 25 | O15: 550
A16: LLM13 | B16: Quenelles | C16: =IF($B16<>"",SUMIF(Janvier!$E$4:$F$65,'Quantités légumes'!$B16,Janvier!$K$4:$L$65),"") -> 0 | D16: =IF($B16<>"",SUMIF(Février!$E$4:$F$65,'Quantités légumes'!$B16,Février!$K$4:$L$65),"") -> 1 | E16: =IF($B16<>"",SUMIF(Mars!$E$4:$F$65,'Quantités légumes'!$B16,Mars!$K$4:$L$65),"") -> 0 | F16: =IF($B16<>"",SUMIF(Avril!$E$4:$F$64,'Quantités légumes'!$B16,Avril!$K$4:$L$64),"") -> 0 | G16: =IF($B16<>"",SUMIF(Mai!$E$4:$F$64,'Quantités légumes'!$B16,Mai!$K$4:$L$64),"") -> 1 | H16: =IF($B16<>"",SUMIF(Juin!$E$4:$F$62,'Quantités légumes'!$B16,Juin!$K$4:$L$62),"") -> 0 | I16: =IF($B16<>"",SUMIF(Juillet!$E$4:$F$54,'Quantités légumes'!$B16,Juillet!$K$4:$L$54),"") -> 0 | J16: =IF($B16<>"",SUMIF(Août!$E$4:$F$62,'Quantités légumes'!$B16,Août!$K$4:$L$62),"") -> 1 | K16: =IF($B16<>"",SUMIF(Septembre!$E$4:$F$65,'Quantités légumes'!$B16,Septembre!$K$4:$L$65),"") -> 0 | L16: =IF($B16<>"",SUMIF(Octobre!$E$4:$F$64,'Quantités légumes'!$B16,Octobre!$K$4:$L$64),"") -> 0 | M16: =IF($B16<>"",SUMIF(Novembre!$E$4:$F$65,'Quantités légumes'!$B16,Novembre!$K$4:$L$65),"") -> 1 | N16: =IF($B16<>"",SUMIF(Décembre!$E$4:$F$64,'Quantités légumes'!$B16,Décembre!$K$4:$L$64),"") -> 0 | O16: 4
A17: LLM14 | B17: Riz | C17: =IF($B17<>"",SUMIF(Janvier!$E$4:$F$65,'Quantités légumes'!$B17,Janvier!$K$4:$L$65),"") -> 25 | D17: =IF($B17<>"",SUMIF(Février!$E$4:$F$65,'Quantités légumes'!$B17,Février!$K$4:$L$65),"") -> 75 | E17: =IF($B17<>"",SUMIF(Mars!$E$4:$F$65,'Quantités légumes'!$B17,Mars!$K$4:$L$65),"") -> 25 | F17: =IF($B17<>"",SUMIF(Avril!$E$4:$F$64,'Quantités légumes'!$B17,Avril!$K$4:$L$64),"") -> 25 | G17: =IF($B17<>"",SUMIF(Mai!$E$4:$F$64,'Quantités légumes'!$B17,Mai!$K$4:$L$64),"") -> 75 | H17: =IF($B17<>"",SUMIF(Juin!$E$4:$F$62,'Quantités légumes'!$B17,Juin!$K$4:$L$62),"") -> 25 | I17: =IF($B17<>"",SUMIF(Juillet!$E$4:$F$54,'Quantités légumes'!$B17,Juillet!$K$4:$L$54),"") -> 25 | J17: =IF($B17<>"",SUMIF(Août!$E$4:$F$62,'Quantités légumes'!$B17,Août!$K$4:$L$62),"") -> 75 | K17: =IF($B17<>"",SUMIF(Septembre!$E$4:$F$65,'Quantités légumes'!$B17,Septembre!$K$4:$L$65),"") -> 25 | L17: =IF($B17<>"",SUMIF(Octobre!$E$4:$F$64,'Quantités légumes'!$B17,Octobre!$K$4:$L$64),"") -> 50 | M17: =IF($B17<>"",SUMIF(Novembre!$E$4:$F$65,'Quantités légumes'!$B17,Novembre!$K$4:$L$65),"") -> 0.5 | N17: =IF($B17<>"",SUMIF(Décembre!$E$4:$F$64,'Quantités légumes'!$B17,Décembre!$K$4:$L$64),"") -> 75 | O17: 500.5
A18: LMJ01 | B18: Macédoine de légumes | C18: =IF($B18<>"",SUMIF(Janvier!$E$4:$F$65,'Quantités légumes'!$B18,Janvier!$K$4:$L$65),"") -> 0 | D18: =IF($B18<>"",SUMIF(Février!$E$4:$F$65,'Quantités légumes'!$B18,Février!$K$4:$L$65),"") -> 1 | E18: =IF($B18<>"",SUMIF(Mars!$E$4:$F$65,'Quantités légumes'!$B18,Mars!$K$4:$L$65),"") -> 1 | F18: =IF($B18<>"",SUMIF(Avril!$E$4:$F$64,'Quantités légumes'!$B18,Avril!$K$4:$L$64),"") -> 1 | G18: =IF($B18<>"",SUMIF(Mai!$E$4:$F$64,'Quantités légumes'!$B18,Mai!$K$4:$L$64),"") -> 0 | H18: =IF($B18<>"",SUMIF(Juin!$E$4:$F$62,'Quantités légumes'!$B18,Juin!$K$4:$L$62),"") -> 1 | I18: =IF($B18<>"",SUMIF(Juillet!$E$4:$F$54,'Quantités légumes'!$B18,Juillet!$K$4:$L$54),"") -> 1 | J18: =IF($B18<>"",SUMIF(Août!$E$4:$F$62,'Quantités légumes'!$B18,Août!$K$4:$L$62),"") -> 1 | K18: =IF($B18<>"",SUMIF(Septembre!$E$4:$F$65,'Quantités légumes'!$B18,Septembre!$K$4:$L$65),"") -> 0 | L18: =IF($B18<>"",SUMIF(Octobre!$E$4:$F$64,'Quantités légumes'!$B18,Octobre!$K$4:$L$64),"") -> 1 | M18: =IF($B18<>"",SUMIF(Novembre!$E$4:$F$65,'Quantités légumes'!$B18,Novembre!$K$4:$L$65),"") -> 1 | N18: =IF($B18<>"",SUMIF(Décembre!$E$4:$F$64,'Quantités légumes'!$B18,Décembre!$K$4:$L$64),"") -> 0 | O18: 8
A19: LMJ02 | B19: Petits pois | C19: =IF($B19<>"",SUMIF(Janvier!$E$4:$F$65,'Quantités légumes'!$B19,Janvier!$K$4:$L$65),"") -> 0 | D19: =IF($B19<>"",SUMIF(Février!$E$4:$F$65,'Quantités légumes'!$B19,Février!$K$4:$L$65),"") -> 1 | E19: =IF($B19<>"",SUMIF(Mars!$E$4:$F$65,'Quantités légumes'!$B19,Mars!$K$4:$L$65),"") -> 1 | F19: =IF($B19<>"",SUMIF(Avril!$E$4:$F$64,'Quantités légumes'!$B19,Avril!$K$4:$L$64),"") -> 0 | G19: =IF($B19<>"",SUMIF(Mai!$E$4:$F$64,'Quantités légumes'!$B19,Mai!$K$4:$L$64),"") -> 2 | H19: =IF($B19<>"",SUMIF(Juin!$E$4:$F$62,'Quantités légumes'!$B19,Juin!$K$4:$L$62),"") -> 1 | I19: =IF($B19<>"",SUMIF(Juillet!$E$4:$F$54,'Quantités légumes'!$B19,Juillet!$K$4:$L$54),"") -> 1 | J19: =IF($B19<>"",SUMIF(Août!$E$4:$F$62,'Quantités légumes'!$B19,Août!$K$4:$L$62),"") -> 0 | K19: =IF($B19<>"",SUMIF(Septembre!$E$4:$F$65,'Quantités légumes'!$B19,Septembre!$K$4:$L$65),"") -> 1 | L19: =IF($B19<>"",SUMIF(Octobre!$E$4:$F$64,'Quantités légumes'!$B19,Octobre!$K$4:$L$64),"") -> 1 | M19: =IF($B19<>"",SUMIF(Novembre!$E$4:$F$65,'Quantités légumes'!$B19,Novembre!$K$4:$L$65),"") -> 1 | N19: =IF($B19<>"",SUMIF(Décembre!$E$4:$F$64,'Quantités légumes'!$B19,Décembre!$K$4:$L$64),"") -> 0 | O19: 9
A20: LMJ03 | B20: Petits pois et jeunes carottes | C20: =IF($B20<>"",SUMIF(Janvier!$E$4:$F$65,'Quantités légumes'!$B20,Janvier!$K$4:$L$65),"") -> 1 | D20: =IF($B20<>"",SUMIF(Février!$E$4:$F$65,'Quantités légumes'!$B20,Février!$K$4:$L$65),"") -> 1 | E20: =IF($B20<>"",SUMIF(Mars!$E$4:$F$65,'Quantités légumes'!$B20,Mars!$K$4:$L$65),"") -> 1 | F20: =IF($B20<>"",SUMIF(Avril!$E$4:$F$64,'Quantités légumes'!$B20,Avril!$K$4:$L$64),"") -> 0 | G20: =IF($B20<>"",SUMIF(Mai!$E$4:$F$64,'Quantités légumes'!$B20,Mai!$K$4:$L$64),"") -> 1 | H20: =IF($B20<>"",SUMIF(Juin!$E$4:$F$62,'Quantités légumes'!$B20,Juin!$K$4:$L$62),"") -> 1 | I20: =IF($B20<>"",SUMIF(Juillet!$E$4:$F$54,'Quantités légumes'!$B20,Juillet!$K$4:$L$54),"") -> 0 | J20: =IF($B20<>"",SUMIF(Août!$E$4:$F$62,'Quantités légumes'!$B20,Août!$K$4:$L$62),"") -> 1 | K20: =IF($B20<>"",SUMIF(Septembre!$E$4:$F$65,'Quantités légumes'!$B20,Septembre!$K$4:$L$65),"") -> 1 | L20: =IF($B20<>"",SUMIF(Octobre!$E$4:$F$64,'Quantités légumes'!$B20,Octobre!$K$4:$L$64),"") -> 1 | M20: =IF($B20<>"",SUMIF(Novembre!$E$4:$F$65,'Quantités légumes'!$B20,Novembre!$K$4:$L$65),"") -> 0 | N20: =IF($B20<>"",SUMIF(Décembre!$E$4:$F$64,'Quantités légumes'!$B20,Décembre!$K$4:$L$64),"") -> 1 | O20: 9
A21: LMJ04 | B21: Ratatouille | C21: =IF($B21<>"",SUMIF(Janvier!$E$4:$F$65,'Quantités légumes'!$B21,Janvier!$K$4:$L$65),"") -> 1 | D21: =IF($B21<>"",SUMIF(Février!$E$4:$F$65,'Quantités légumes'!$B21,Février!$K$4:$L$65),"") -> 1 | E21: =IF($B21<>"",SUMIF(Mars!$E$4:$F$65,'Quantités légumes'!$B21,Mars!$K$4:$L$65),"") -> 0 | F21: =IF($B21<>"",SUMIF(Avril!$E$4:$F$64,'Quantités légumes'!$B21,Avril!$K$4:$L$64),"") -> 1 | G21: =IF($B21<>"",SUMIF(Mai!$E$4:$F$64,'Quantités légumes'!$B21,Mai!$K$4:$L$64),"") -> 1 | H21: =IF($B21<>"",SUMIF(Juin!$E$4:$F$62,'Quantités légumes'!$B21,Juin!$K$4:$L$62),"") -> 1 | I21: =IF($B21<>"",SUMIF(Juillet!$E$4:$F$54,'Quantités légumes'!$B21,Juillet!$K$4:$L$54),"") -> 0 | J21: =IF($B21<>"",SUMIF(Août!$E$4:$F$62,'Quantités légumes'!$B21,Août!$K$4:$L$62),"") -> 1 | K21: =IF($B21<>"",SUMIF(Septembre!$E$4:$F$65,'Quantités légumes'!$B21,Septembre!$K$4:$L$65),"") -> 1 | L21: =IF($B21<>"",SUMIF(Octobre!$E$4:$F$64,'Quantités légumes'!$B21,Octobre!$K$4:$L$64),"") -> 0 | M21: =IF($B21<>"",SUMIF(Novembre!$E$4:$F$65,'Quantités légumes'!$B21,Novembre!$K$4:$L$65),"") -> 1 | N21: =IF($B21<>"",SUMIF(Décembre!$E$4:$F$64,'Quantités légumes'!$B21,Décembre!$K$4:$L$64),"") -> 1 | O21: 9
A22: LMJ05 | B22: Raviolis | C22: =IF($B22<>"",SUMIF(Janvier!$E$4:$F$65,'Quantités légumes'!$B22,Janvier!$K$4:$L$65),"") -> 1 | D22: =IF($B22<>"",SUMIF(Février!$E$4:$F$65,'Quantités légumes'!$B22,Février!$K$4:$L$65),"") -> 0 | E22: =IF($B22<>"",SUMIF(Mars!$E$4:$F$65,'Quantités légumes'!$B22,Mars!$K$4:$L$65),"") -> 1 | F22: =IF($B22<>"",SUMIF(Avril!$E$4:$F$64,'Quantités légumes'!$B22,Avril!$K$4:$L$64),"") -> 1 | G22: =IF($B22<>"",SUMIF(Mai!$E$4:$F$64,'Quantités légumes'!$B22,Mai!$K$4:$L$64),"") -> 1 | H22: =IF($B22<>"",SUMIF(Juin!$E$4:$F$62,'Quantités légumes'!$B22,Juin!$K$4:$L$62),"") -> 0 | I22: =IF($B22<>"",SUMIF(Juillet!$E$4:$F$54,'Quantités légumes'!$B22,Juillet!$K$4:$L$54),"") -> 1 | J22: =IF($B22<>"",SUMIF(Août!$E$4:$F$62,'Quantités légumes'!$B22,Août!$K$4:$L$62),"") -> 1 | K22: =IF($B22<>"",SUMIF(Septembre!$E$4:$F$65,'Quantités légumes'!$B22,Septembre!$K$4:$L$65),"") -> 1 | L22: =IF($B22<>"",SUMIF(Octobre!$E$4:$F$64,'Quantités légumes'!$B22,Octobre!$K$4:$L$64),"") -> 0 | M22: =IF($B22<>"",SUMIF(Novembre!$E$4:$F$65,'Quantités légumes'!$B22,Novembre!$K$4:$L$65),"") -> 1 | N22: =IF($B22<>"",SUMIF(Décembre!$E$4:$F$64,'Quantités légumes'!$B22,Décembre!$K$4:$L$64),"") -> 1 | O22: 9
A23: LMJ06 | B23: Tomates pelées | C23: =IF($B23<>"",SUMIF(Janvier!$E$4:$F$65,'Quantités légumes'!$B23,Janvier!$K$4:$L$65),"") -> 1 | D23: =IF($B23<>"",SUMIF(Février!$E$4:$F$65,'Quantités légumes'!$B23,Février!$K$4:$L$65),"") -> 0 | E23: =IF($B23<>"",SUMIF(Mars!$E$4:$F$65,'Quantités légumes'!$B23,Mars!$K$4:$L$65),"") -> 1 | F23: =IF($B23<>"",SUMIF(Avril!$E$4:$F$64,'Quantités légumes'!$B23,Avril!$K$4:$L$64),"") -> 1 | G23: =IF($B23<>"",SUMIF(Mai!$E$4:$F$64,'Quantités légumes'!$B23,Mai!$K$4:$L$64),"") -> 0.5 | H23: =IF($B23<>"",SUMIF(Juin!$E$4:$F$62,'Quantités légumes'!$B23,Juin!$K$4:$L$62),"") -> 0.5 | I23: =IF($B23<>"",SUMIF(Juillet!$E$4:$F$54,'Quantités légumes'!$B23,Juillet!$K$4:$L$54),"") -> 1 | J23: =IF($B23<>"",SUMIF(Août!$E$4:$F$62,'Quantités légumes'!$B23,Août!$K$4:$L$62),"") -> 1 | K23: =IF($B23<>"",SUMIF(Septembre!$E$4:$F$65,'Quantités légumes'!$B23,Septembre!$K$4:$L$65),"") -> 0 | L23: =IF($B23<>"",SUMIF(Octobre!$E$4:$F$64,'Quantités légumes'!$B23,Octobre!$K$4:$L$64),"") -> 1 | M23: =IF($B23<>"",SUMIF(Novembre!$E$4:$F$65,'Quantités légumes'!$B23,Novembre!$K$4:$L$65),"") -> 1 | N23: =IF($B23<>"",SUMIF(Décembre!$E$4:$F$64,'Quantités légumes'!$B23,Décembre!$K$4:$L$64),"") -> 1 | O23: 9
A24: LV01 | B24: Asperges | C24: =IF($B24<>"",SUMIF(Janvier!$E$4:$F$65,'Quantités légumes'!$B24,Janvier!$K$4:$K$65),"") -> 4 | D24: =IF($B24<>"",SUMIF(Février!$E$4:$F$65,'Quantités légumes'!$B24,Février!$K$4:$L$64),"") -> 3 | E24: =IF($B24<>"",SUMIF(Mars!$E$4:$F$64,'Quantités légumes'!$B24,Mars!$K$4:$L$64),"") -> 2 | F24: =IF($B24<>"",SUMIF(Avril!$E$4:$F$64,'Quantités légumes'!$B24,Avril!$K$4:$K$64),"") -> 4 | G24: =IF($B24<>"",SUMIF(Mai!$E$4:$F$63,'Quantités légumes'!$B24,Mai!$K$4:$L$63),"") -> 3 | H24: =IF($B24<>"",SUMIF(Juin!$E$4:$F$61,'Quantités légumes'!$B24,Juin!$K$4:$L$61),"") -> 3 | I24: =IF($B24<>"",SUMIF(Juillet!$E$4:$F$54,'Quantités légumes'!$B24,Juillet!$K$4:$L$54),"") -> 3 | J24: =IF($B24<>"",SUMIF(Août!$E$4:$F$62,'Quantités légumes'!$B24,Août!$K$4:$L$62),"") -> 2 | K24: =IF($B24<>"",SUMIF(Septembre!$E$4:$F$64,'Quantités légumes'!$B24,Septembre!$K$4:$L$64),"") -> 4 | L24: =IF($B24<>"",SUMIF(Octobre!$E$4:$F$64,'Quantités légumes'!$B24,Octobre!$K$4:$K$64),"") -> 2 | M24: =IF($B24<>"",SUMIF(Novembre!$E$4:$F$64,'Quantités légumes'!$B24,Novembre!$K$4:$L$64),"") -> 6 | N24: =IF($B24<>"",SUMIF(Décembre!$E$4:$F$63,'Quantités légumes'!$B24,Décembre!$K$4:$L$63),"") -> 2 | O24: 38
A25: LV02 | B25: Avocat | C25: =IF($B25<>"",SUMIF(Janvier!$E$4:$F$65,'Quantités légumes'!$B25,Janvier!$K$4:$L$65),"") -> 2 | D25: =IF($B25<>"",SUMIF(Février!$E$4:$F$65,'Quantités légumes'!$B25,Février!$K$4:$L$65),"") -> 1 | E25: =IF($B25<>"",SUMIF(Mars!$E$4:$F$65,'Quantités légumes'!$B25,Mars!$K$4:$L$65),"") -> 1 | F25: =IF($B25<>"",SUMIF(Avril!$E$4:$F$64,'Quantités légumes'!$B25,Avril!$K$4:$L$64),"") -> 2 | G25: =IF($B25<>"",SUMIF(Mai!$E$4:$F$64,'Quantités légumes'!$B25,Mai!$K$4:$L$64),"") -> 2 | H25: =IF($B25<>"",SUMIF(Juin!$E$4:$F$62,'Quantités légumes'!$B25,Juin!$K$4:$L$62),"") -> 2 | I25: =IF($B25<>"",SUMIF(Juillet!$E$4:$F$54,'Quantités légumes'!$B25,Juillet!$K$4:$L$54),"") -> 1 | J25: =IF($B25<>"",SUMIF(Août!$E$4:$F$62,'Quantités légumes'!$B25,Août!$K$4:$L$62),"") -> 1 | K25: =IF($B25<>"",SUMIF(Septembre!$E$4:$F$65,'Quantités légumes'!$B25,Septembre!$K$4:$L$65),"") -> 2 | L25: =IF($B25<>"",SUMIF(Octobre!$E$4:$F$64,'Quantités légumes'!$B25,Octobre!$K$4:$L$64),"") -> 1 | M25: =IF($B25<>"",SUMIF(Novembre!$E$4:$F$65,'Quantités légumes'!$B25,Novembre!$K$4:$L$65),"") -> 1 | N25: =IF($B25<>"",SUMIF(Décembre!$E$4:$F$64,'Quantités légumes'!$B25,Décembre!$K$4:$L$64),"") -> 3 | O25: 19
A26: LV03 | B26: Betterave rouge | C26: =IF($B26<>"",SUMIF(Janvier!$E$4:$F$65,'Quantités légumes'!$B26,Janvier!$K$4:$L$65),"") -> 0 | D26: =IF($B26<>"",SUMIF(Février!$E$4:$F$65,'Quantités légumes'!$B26,Février!$K$4:$L$65),"") -> 1 | E26: =IF($B26<>"",SUMIF(Mars!$E$4:$F$65,'Quantités légumes'!$B26,Mars!$K$4:$L$65),"") -> 0 | F26: =IF($B26<>"",SUMIF(Avril!$E$4:$F$64,'Quantités légumes'!$B26,Avril!$K$4:$L$64),"") -> 1 | G26: =IF($B26<>"",SUMIF(Mai!$E$4:$F$64,'Quantités légumes'!$B26,Mai!$K$4:$L$64),"") -> 0 | H26: =IF($B26<>"",SUMIF(Juin!$E$4:$F$62,'Quantités légumes'!$B26,Juin!$K$4:$L$62),"") -> 0 | I26: =IF($B26<>"",SUMIF(Juillet!$E$4:$F$54,'Quantités légumes'!$B26,Juillet!$K$4:$L$54),"") -> 1 | J26: =IF($B26<>"",SUMIF(Août!$E$4:$F$62,'Quantités légumes'!$B26,Août!$K$4:$L$62),"") -> 0 | K26: =IF($B26<>"",SUMIF(Septembre!$E$4:$F$65,'Quantités légumes'!$B26,Septembre!$K$4:$L$65),"") -> 1 | L26: =IF($B26<>"",SUMIF(Octobre!$E$4:$F$64,'Quantités légumes'!$B26,Octobre!$K$4:$L$64),"") -> 0 | M26: =IF($B26<>"",SUMIF(Novembre!$E$4:$F$65,'Quantités légumes'!$B26,Novembre!$K$4:$L$65),"") -> 0 | N26: =IF($B26<>"",SUMIF(Décembre!$E$4:$F$64,'Quantités légumes'!$B26,Décembre!$K$4:$L$64),"") -> 1 | O26: 5
A27: LV04 | B27: Carottes | C27: =IF($B27<>"",SUMIF(Janvier!$E$4:$F$65,'Quantités légumes'!$B27,Janvier!$K$4:$L$65),"") -> 2 | D27: =IF($B27<>"",SUMIF(Février!$E$4:$F$65,'Quantités légumes'!$B27,Février!$K$4:$L$65),"") -> 4 | E27: =IF($B27<>"",SUMIF(Mars!$E$4:$F$65,'Quantités légumes'!$B27,Mars!$K$4:$L$65),"") -> 1 | F27: =IF($B27<>"",SUMIF(Avril!$E$4:$F$64,'Quantités légumes'!$B27,Avril!$K$4:$L$64),"") -> 4 | G27: =IF($B27<>"",SUMIF(Mai!$E$4:$F$64,'Quantités légumes'!$B27,Mai!$K$4:$L$64),"") -> 6 | H27: =IF($B27<>"",SUMIF(Juin!$E$4:$F$62,'Quantités légumes'!$B27,Juin!$K$4:$L$62),"") -> 2 | I27: =IF($B27<>"",SUMIF(Juillet!$E$4:$F$54,'Quantités légumes'!$B27,Juillet!$K$4:$L$54),"") -> 4 | J27: =IF($B27<>"",SUMIF(Août!$E$4:$F$62,'Quantités légumes'!$B27,Août!$K$4:$L$62),"") -> 2 | K27: =IF($B27<>"",SUMIF(Septembre!$E$4:$F$65,'Quantités légumes'!$B27,Septembre!$K$4:$L$65),"") -> 4 | L27: =IF($B27<>"",SUMIF(Octobre!$E$4:$F$64,'Quantités légumes'!$B27,Octobre!$K$4:$L$64),"") -> 2 | M27: =IF($B27<>"",SUMIF(Novembre!$E$4:$F$65,'Quantités légumes'!$B27,Novembre!$K$4:$L$65),"") -> 2 | N27: =IF($B27<>"",SUMIF(Décembre!$E$4:$F$64,'Quantités légumes'!$B27,Décembre!$K$4:$L$64),"") -> 6 | O27: 39
A28: LV05 | B28: Céleri | C28: =IF($B28<>"",SUMIF(Janvier!$E$4:$F$65,'Quantités légumes'!$B28,Janvier!$K$4:$L$65),"") -> 1 | D28: =IF($B28<>"",SUMIF(Février!$E$4:$F$65,'Quantités légumes'!$B28,Février!$K$4:$L$65),"") -> 2 | E28: =IF($B28<>"",SUMIF(Mars!$E$4:$F$65,'Quantités légumes'!$B28,Mars!$K$4:$L$65),"") -> 1 | F28: =IF($B28<>"",SUMIF(Avril!$E$4:$F$64,'Quantités légumes'!$B28,Avril!$K$4:$L$64),"") -> 1 | G28: =IF($B28<>"",SUMIF(Mai!$E$4:$F$64,'Quantités légumes'!$B28,Mai!$K$4:$L$64),"") -> 2 | H28: =IF($B28<>"",SUMIF(Juin!$E$4:$F$62,'Quantités légumes'!$B28,Juin!$K$4:$L$62),"") -> 2 | I28: =IF($B28<>"",SUMIF(Juillet!$E$4:$F$54,'Quantités légumes'!$B28,Juillet!$K$4:$L$54),"") -> 2 | J28: =IF($B28<>"",SUMIF(Août!$E$4:$F$62,'Quantités légumes'!$B28,Août!$K$4:$L$62),"") -> 1 | K28: =IF($B28<>"",SUMIF(Septembre!$E$4:$F$65,'Quantités légumes'!$B28,Septembre!$K$4:$L$65),"") -> 1 | L28: =IF($B28<>"",SUMIF(Octobre!$E$4:$F$64,'Quantités légumes'!$B28,Octobre!$K$4:$L$64),"") -> 2 | M28: =IF($B28<>"",SUMIF(Novembre!$E$4:$F$65,'Quantités légumes'!$B28,Novembre!$K$4:$L$65),"") -> 1 | N28: =IF($B28<>"",SUMIF(Décembre!$E$4:$F$64,'Quantités légumes'!$B28,Décembre!$K$4:$L$64),"") -> 2 | O28: 18
A29: LV06 | B29: Champignons | C29: =IF($B29<>"",SUMIF(Janvier!$E$4:$F$65,'Quantités légumes'!$B29,Janvier!$K$4:$L$65),"") -> 1 | D29: =IF($B29<>"",SUMIF(Février!$E$4:$F$65,'Quantités légumes'!$B29,Février!$K$4:$L$65),"") -> 2 | E29: =IF($B29<>"",SUMIF(Mars!$E$4:$F$65,'Quantités légumes'!$B29,Mars!$K$4:$L$65),"") -> 1 | F29: =IF($B29<>"",SUMIF(Avril!$E$4:$F$64,'Quantités légumes'!$B29,Avril!$K$4:$L$64),"") -> 1 | G29: =IF($B29<>"",SUMIF(Mai!$E$4:$F$64,'Quantités légumes'!$B29,Mai!$K$4:$L$64),"") -> 2 | H29: =IF($B29<>"",SUMIF(Juin!$E$4:$F$62,'Quantités légumes'!$B29,Juin!$K$4:$L$62),"") -> 2 | I29: =IF($B29<>"",SUMIF(Juillet!$E$4:$F$54,'Quantités légumes'!$B29,Juillet!$K$4:$L$54),"") -> 2 | J29: =IF($B29<>"",SUMIF(Août!$E$4:$F$62,'Quantités légumes'!$B29,Août!$K$4:$L$62),"") -> 1 | K29: =IF($B29<>"",SUMIF(Septembre!$E$4:$F$65,'Quantités légumes'!$B29,Septembre!$K$4:$L$65),"") -> 1 | L29: =IF($B29<>"",SUMIF(Octobre!$E$4:$F$64,'Quantités légumes'!$B29,Octobre!$K$4:$L$64),"") -> 2 | M29: =IF($B29<>"",SUMIF(Novembre!$E$4:$F$65,'Quantités légumes'!$B29,Novembre!$K$4:$L$65),"") -> 1 | N29: =IF($B29<>"",SUMIF(Décembre!$E$4:$F$64,'Quantités légumes'!$B29,Décembre!$K$4:$L$64),"") -> 2 | O29: 18
A30: LV07 | B30: Concombre | C30: =IF($B30<>"",SUMIF(Janvier!$E$4:$F$65,'Quantités légumes'!$B30,Janvier!$K$4:$L$65),"") -> 1 | D30: =IF($B30<>"",SUMIF(Février!$E$4:$F$65,'Quantités légumes'!$B30,Février!$K$4:$L$65),"") -> 1 | E30: =IF($B30<>"",SUMIF(Mars!$E$4:$F$65,'Quantités légumes'!$B30,Mars!$K$4:$L$65),"") -> 2 | F30: =IF($B30<>"",SUMIF(Avril!$E$4:$F$64,'Quantités légumes'!$B30,Avril!$K$4:$L$64),"") -> 1 | G30: =IF($B30<>"",SUMIF(Mai!$E$4:$F$64,'Quantités légumes'!$B30,Mai!$K$4:$L$64),"") -> 2 | H30: =IF($B30<>"",SUMIF(Juin!$E$4:$F$62,'Quantités légumes'!$B30,Juin!$K$4:$L$62),"") -> 2 | I30: =IF($B30<>"",SUMIF(Juillet!$E$4:$F$54,'Quantités légumes'!$B30,Juillet!$K$4:$L$54),"") -> 1 | J30: =IF($B30<>"",SUMIF(Août!$E$4:$F$62,'Quantités légumes'!$B30,Août!$K$4:$L$62),"") -> 2 | K30: =IF($B30<>"",SUMIF(Septembre!$E$4:$F$65,'Quantités légumes'!$B30,Septembre!$K$4:$L$65),"") -> 1 | L30: =IF($B30<>"",SUMIF(Octobre!$E$4:$F$64,'Quantités légumes'!$B30,Octobre!$K$4:$L$64),"") -> 2 | M30: =IF($B30<>"",SUMIF(Novembre!$E$4:$F$65,'Quantités légumes'!$B30,Novembre!$K$4:$L$65),"") -> 1 | N30: =IF($B30<>"",SUMIF(Décembre!$E$4:$F$64,'Quantités légumes'!$B30,Décembre!$K$4:$L$64),"") -> 1 | O30: 17
A31: LV08 | B31: Radis | C31: =IF($B31<>"",SUMIF(Janvier!$E$4:$F$65,'Quantités légumes'!$B31,Janvier!$K$4:$L$65),"") -> 1 | D31: =IF($B31<>"",SUMIF(Février!$E$4:$F$65,'Quantités légumes'!$B31,Février!$K$4:$L$65),"") -> 1 | E31: =IF($B31<>"",SUMIF(Mars!$E$4:$F$65,'Quantités légumes'!$B31,Mars!$K$4:$L$65),"") -> 3.5 | F31: =IF($B31<>"",SUMIF(Avril!$E$4:$F$64,'Quantités légumes'!$B31,Avril!$K$4:$L$64),"") -> 1 | G31: =IF($B31<>"",SUMIF(Mai!$E$4:$F$64,'Quantités légumes'!$B31,Mai!$K$4:$L$64),"") -> 2 | H31: =IF($B31<>"",SUMIF(Juin!$E$4:$F$62,'Quantités légumes'!$B31,Juin!$K$4:$L$62),"") -> 1 | I31: =IF($B31<>"",SUMIF(Juillet!$E$4:$F$54,'Quantités légumes'!$B31,Juillet!$K$4:$L$54),"") -> 1 | J31: =IF($B31<>"",SUMIF(Août!$E$4:$F$62,'Quantités légumes'!$B31,Août!$K$4:$L$62),"") -> 2 | K31: =IF($B31<>"",SUMIF(Septembre!$E$4:$F$65,'Quantités légumes'!$B31,Septembre!$K$4:$L$65),"") -> 1 | L31: =IF($B31<>"",SUMIF(Octobre!$E$4:$F$64,'Quantités légumes'!$B31,Octobre!$K$4:$L$64),"") -> 3 | M31: =IF($B31<>"",SUMIF(Novembre!$E$4:$F$65,'Quantités légumes'!$B31,Novembre!$K$4:$L$65),"") -> 1 | N31: =IF($B31<>"",SUMIF(Décembre!$E$4:$F$64,'Quantités légumes'!$B31,Décembre!$K$4:$L$64),"") -> 1 | O31: 18.5
A32: LV09 | B32: Salade | C32: =IF($B32<>"",SUMIF(Janvier!$E$4:$F$65,'Quantités légumes'!$B32,Janvier!$K$4:$L$65),"") -> 1 | D32: =IF($B32<>"",SUMIF(Février!$E$4:$F$65,'Quantités légumes'!$B32,Février!$K$4:$L$65),"") -> 1 | E32: =IF($B32<>"",SUMIF(Mars!$E$4:$F$65,'Quantités légumes'!$B32,Mars!$K$4:$L$65),"") -> 2 | F32: =IF($B32<>"",SUMIF(Avril!$E$4:$F$64,'Quantités légumes'!$B32,Avril!$K$4:$L$64),"") -> 2 | G32: =IF($B32<>"",SUMIF(Mai!$E$4:$F$64,'Quantités légumes'!$B32,Mai!$K$4:$L$64),"") -> 1 | H32: =IF($B32<>"",SUMIF(Juin!$E$4:$F$62,'Quantités légumes'!$B32,Juin!$K$4:$L$62),"") -> 2 | I32: =IF($B32<>"",SUMIF(Juillet!$E$4:$F$54,'Quantités légumes'!$B32,Juillet!$K$4:$L$54),"") -> 1 | J32: =IF($B32<>"",SUMIF(Août!$E$4:$F$62,'Quantités légumes'!$B32,Août!$K$4:$L$62),"") -> 2 | K32: =IF($B32<>"",SUMIF(Septembre!$E$4:$F$65,'Quantités légumes'!$B32,Septembre!$K$4:$L$65),"") -> 1 | L32: =IF($B32<>"",SUMIF(Octobre!$E$4:$F$64,'Quantités légumes'!$B32,Octobre!$K$4:$L$64),"") -> 1 | M32: =IF($B32<>"",SUMIF(Novembre!$E$4:$F$65,'Quantités légumes'!$B32,Novembre!$K$4:$L$65),"") -> 3 | N32: =IF($B32<>"",SUMIF(Décembre!$E$4:$F$64,'Quantités légumes'!$B32,Décembre!$K$4:$L$64),"") -> 1 | O32: 18
A33: LV10 | B33: Salsifis | C33: =IF($B33<>"",SUMIF(Janvier!$E$4:$F$65,'Quantités légumes'!$B33,Janvier!$K$4:$L$65),"") -> 1 | D33: =IF($B33<>"",SUMIF(Février!$E$4:$F$65,'Quantités légumes'!$B33,Février!$K$4:$L$65),"") -> 0 | E33: =IF($B33<>"",SUMIF(Mars!$E$4:$F$65,'Quantités légumes'!$B33,Mars!$K$4:$L$65),"") -> 1 | F33: =IF($B33<>"",SUMIF(Avril!$E$4:$F$64,'Quantités légumes'!$B33,Avril!$K$4:$L$64),"") -> 0 | G33: =IF($B33<>"",SUMIF(Mai!$E$4:$F$64,'Quantités légumes'!$B33,Mai!$K$4:$L$64),"") -> 0 | H33: =IF($B33<>"",SUMIF(Juin!$E$4:$F$62,'Quantités légumes'!$B33,Juin!$K$4:$L$62),"") -> 1 | I33: =IF($B33<>"",SUMIF(Juillet!$E$4:$F$54,'Quantités légumes'!$B33,Juillet!$K$4:$L$54),"") -> 0 | J33: =IF($B33<>"",SUMIF(Août!$E$4:$F$62,'Quantités légumes'!$B33,Août!$K$4:$L$62),"") -> 1 | K33: =IF($B33<>"",SUMIF(Septembre!$E$4:$F$65,'Quantités légumes'!$B33,Septembre!$K$4:$L$65),"") -> 0 | L33: =IF($B33<>"",SUMIF(Octobre!$E$4:$F$64,'Quantités légumes'!$B33,Octobre!$K$4:$L$64),"") -> 0 | M33: =IF($B33<>"",SUMIF(Novembre!$E$4:$F$65,'Quantités légumes'!$B33,Novembre!$K$4:$L$65),"") -> 1 | N33: =IF($B33<>"",SUMIF(Décembre!$E$4:$F$64,'Quantités légumes'!$B33,Décembre!$K$4:$L$64),"") -> 0 | O33: 5
A34: LV11 | B34: Tomates | C34: =IF($B34<>"",SUMIF(Janvier!$E$4:$F$65,'Quantités légumes'!$B34,Janvier!$K$4:$L$65),"") -> 4 | D34: =IF($B34<>"",SUMIF(Février!$E$4:$F$65,'Quantités légumes'!$B34,Février!$K$4:$L$65),"") -> 2 | E34: =IF($B34<>"",SUMIF(Mars!$E$4:$F$65,'Quantités légumes'!$B34,Mars!$K$4:$L$65),"") -> 4 | F34: =IF($B34<>"",SUMIF(Avril!$E$4:$F$64,'Quantités légumes'!$B34,Avril!$K$4:$L$64),"") -> 2 | G34: =IF($B34<>"",SUMIF(Mai!$E$4:$F$64,'Quantités légumes'!$B34,Mai!$K$4:$L$64),"") -> 4 | H34: =IF($B34<>"",SUMIF(Juin!$E$4:$F$62,'Quantités légumes'!$B34,Juin!$K$4:$L$62),"") -> 4 | I34: =IF($B34<>"",SUMIF(Juillet!$E$4:$F$54,'Quantités légumes'!$B34,Juillet!$K$4:$L$54),"") -> 2 | J34: =IF($B34<>"",SUMIF(Août!$E$4:$F$62,'Quantités légumes'!$B34,Août!$K$4:$L$62),"") -> 2 | K34: =IF($B34<>"",SUMIF(Septembre!$E$4:$F$65,'Quantités légumes'!$B34,Septembre!$K$4:$L$65),"") -> 4 | L34: =IF($B34<>"",SUMIF(Octobre!$E$4:$F$64,'Quantités légumes'!$B34,Octobre!$K$4:$L$64),"") -> 2 | M34: =IF($B34<>"",SUMIF(Novembre!$E$4:$F$65,'Quantités légumes'!$B34,Novembre!$K$4:$L$65),"") -> 6 | N34: =IF($B34<>"",SUMIF(Décembre!$E$4:$F$64,'Quantités légumes'!$B34,Décembre!$K$4:$L$64),"") -> 2 | O34: 38
A35: LS01 | B35: Pâtes à la sauce tomates | C35: =IF($B35<>"",SUMIF(Janvier!$E$4:$F$65,'Quantités légumes'!$B35,Janvier!$K$4:$L$65),"") -> 20 | D35: =IF($B35<>"",SUMIF(Février!$E$4:$F$65,'Quantités légumes'!$B35,Février!$K$4:$L$65),"") -> 15 | E35: =IF($B35<>"",SUMIF(Mars!$E$4:$F$65,'Quantités légumes'!$B35,Mars!$K$4:$L$65),"") -> 25 | F35: =IF($B35<>"",SUMIF(Avril!$E$4:$F$64,'Quantités légumes'!$B35,Avril!$K$4:$L$64),"") -> 15 | G35: =IF($B35<>"",SUMIF(Mai!$E$4:$F$64,'Quantités légumes'!$B35,Mai!$K$4:$L$64),"") -> 25 | H35: =IF($B35<>"",SUMIF(Juin!$E$4:$F$62,'Quantités légumes'!$B35,Juin!$K$4:$L$62),"") -> 15 | I35: =IF($B35<>"",SUMIF(Juillet!$E$4:$F$54,'Quantités légumes'!$B35,Juillet!$K$4:$L$54),"") -> 25 | J35: =IF($B35<>"",SUMIF(Août!$E$4:$F$62,'Quantités légumes'!$B35,Août!$K$4:$L$62),"") -> 20 | K35: =IF($B35<>"",SUMIF(Septembre!$E$4:$F$65,'Quantités légumes'!$B35,Septembre!$K$4:$L$65),"") -> 15 | L35: =IF($B35<>"",SUMIF(Octobre!$E$4:$F$64,'Quantités légumes'!$B35,Octobre!$K$4:$L$64),"") -> 15 | M35: =IF($B35<>"",SUMIF(Novembre!$E$4:$F$65,'Quantités légumes'!$B35,Novembre!$K$4:$L$65),"") -> 15 | N35: =IF($B35<>"",SUMIF(Décembre!$E$4:$F$64,'Quantités légumes'!$B35,Décembre!$K$4:$L$64),"") -> 25 | O35: 230
A36: LS02 | B36: Pâtes au beurre | C36: =IF($B36<>"",SUMIF(Janvier!$E$4:$F$65,'Quantités légumes'!$B36,Janvier!$K$4:$L$65),"") -> 30 | D36: =IF($B36<>"",SUMIF(Février!$E$4:$F$65,'Quantités légumes'!$B36,Février!$K$4:$L$65),"") -> 15 | E36: =IF($B36<>"",SUMIF(Mars!$E$4:$F$65,'Quantités légumes'!$B36,Mars!$K$4:$L$65),"") -> 15 | F36: =IF($B36<>"",SUMIF(Avril!$E$4:$F$64,'Quantités légumes'!$B36,Avril!$K$4:$L$64),"") -> 25 | G36: =IF($B36<>"",SUMIF(Mai!$E$4:$F$64,'Quantités légumes'!$B36,Mai!$K$4:$L$64),"") -> 15 | H36: =IF($B36<>"",SUMIF(Juin!$E$4:$F$62,'Quantités légumes'!$B36,Juin!$K$4:$L$62),"") -> 25 | I36: =IF($B36<>"",SUMIF(Juillet!$E$4:$F$54,'Quantités légumes'!$B36,Juillet!$K$4:$L$54),"") -> 15 | J36: =IF($B36<>"",SUMIF(Août!$E$4:$F$62,'Quantités légumes'!$B36,Août!$K$4:$L$62),"") -> 30 | K36: =IF($B36<>"",SUMIF(Septembre!$E$4:$F$65,'Quantités légumes'!$B36,Septembre!$K$4:$L$65),"") -> 25 | L36: =IF($B36<>"",SUMIF(Octobre!$E$4:$F$64,'Quantités légumes'!$B36,Octobre!$K$4:$L$64),"") -> 25 | M36: =IF($B36<>"",SUMIF(Novembre!$E$4:$F$65,'Quantités légumes'!$B36,Novembre!$K$4:$L$65),"") -> 15 | N36: =IF($B36<>"",SUMIF(Décembre!$E$4:$F$64,'Quantités légumes'!$B36,Décembre!$K$4:$L$64),"") -> 25 | O36: 260
A37: LS03 | B37: Pâtes au fromage râpé | C37: =IF($B37<>"",SUMIF(Janvier!$E$4:$F$65,'Quantités légumes'!$B37,Janvier!$K$4:$L$65),"") -> 10 | D37: =IF($B37<>"",SUMIF(Février!$E$4:$F$65,'Quantités légumes'!$B37,Février!$K$4:$L$65),"") -> 20 | E37: =IF($B37<>"",SUMIF(Mars!$E$4:$F$65,'Quantités légumes'!$B37,Mars!$K$4:$L$65),"") -> 10 | F37: =IF($B37<>"",SUMIF(Avril!$E$4:$F$64,'Quantités légumes'!$B37,Avril!$K$4:$L$64),"") -> 20 | G37: =IF($B37<>"",SUMIF(Mai!$E$4:$F$64,'Quantités légumes'!$B37,Mai!$K$4:$L$64),"") -> 10 | H37: =IF($B37<>"",SUMIF(Juin!$E$4:$F$62,'Quantités légumes'!$B37,Juin!$K$4:$L$62),"") -> 10 | I37: =IF($B37<>"",SUMIF(Juillet!$E$4:$F$54,'Quantités légumes'!$B37,Juillet!$K$4:$L$54),"") -> 20 | J37: =IF($B37<>"",SUMIF(Août!$E$4:$F$62,'Quantités légumes'!$B37,Août!$K$4:$L$62),"") -> 10 | K37: =IF($B37<>"",SUMIF(Septembre!$E$4:$F$65,'Quantités légumes'!$B37,Septembre!$K$4:$L$65),"") -> 20 | L37: =IF($B37<>"",SUMIF(Octobre!$E$4:$F$64,'Quantités légumes'!$B37,Octobre!$K$4:$L$64),"") -> 10 | M37: =IF($B37<>"",SUMIF(Novembre!$E$4:$F$65,'Quantités légumes'!$B37,Novembre!$K$4:$L$65),"") -> 20 | N37: =IF($B37<>"",SUMIF(Décembre!$E$4:$F$64,'Quantités légumes'!$B37,Décembre!$K$4:$L$64),"") -> 10 | O37: 170
A38: LD01 | B38: Asperges | C38: =IF($B38<>"",SUMIF(Janvier!$F$4:$F$65,'Quantités légumes'!$B38,Janvier!$L$4:$L$65),"") -> 1 | D38: =IF($B38<>"",SUMIF(Février!$F$4:$F$65,'Quantités légumes'!$B38,Février!$L$4:$L$65),"") -> 2 | E38: =IF($B38<>"",SUMIF(Mars!$F$4:$F$65,'Quantités légumes'!$B38,Mars!$L$4:$L$65),"") -> 1 | F38: =IF($B38<>"",SUMIF(Avril!$F$4:$F$64,'Quantités légumes'!$B38,Avril!$L$4:$L$64),"") -> 2 | G38: =IF($B38<>"",SUMIF(Mai!$F$4:$F$64,'Quantités légumes'!$B38,Mai!$L$4:$L$64),"") -> 1 | H38: =IF($B38<>"",SUMIF(Juin!$F$4:$F$62,'Quantités légumes'!$B38,Juin!$L$4:$L$62),"") -> 1 | I38: =IF($B38<>"",SUMIF(Juillet!$F$4:$F$54,'Quantités légumes'!$B38,Juillet!$L$4:$L$54),"") -> 2 | J38: =IF($B38<>"",SUMIF(Août!$F$4:$F$62,'Quantités légumes'!$B38,Août!$L$4:$L$62),"") -> 1 | K38: =IF($B38<>"",SUMIF(Septembre!$F$4:$F$65,'Quantités légumes'!$B38,Septembre!$L$4:$L$65),"") -> 2 | L38: =IF($B38<>"",SUMIF(Octobre!$F$4:$F$64,'Quantités légumes'!$B38,Octobre!$L$4:$L$64),"") -> 1 | M38: =IF($B38<>"",SUMIF(Novembre!$F$4:$F$65,'Quantités légumes'!$B38,Novembre!$L$4:$L$65),"") -> 2 | N38: =IF($B38<>"",SUMIF(Décembre!$F$4:$F$64,'Quantités légumes'!$B38,Décembre!$L$4:$L$64),"") -> 1 | O38: 17
A39: LD02 | B39: Chips | C39: =IF($B39<>"",SUMIF(Janvier!$E$4:$F$65,'Quantités légumes'!$B39,Janvier!$K$4:$L$65),"") -> 2 | D39: =IF($B39<>"",SUMIF(Février!$E$4:$F$65,'Quantités légumes'!$B39,Février!$K$4:$L$65),"") -> 1 | E39: =IF($B39<>"",SUMIF(Mars!$E$4:$F$65,'Quantités légumes'!$B39,Mars!$K$4:$L$65),"") -> 1 | F39: =IF($B39<>"",SUMIF(Avril!$E$4:$F$64,'Quantités légumes'!$B39,Avril!$K$4:$L$64),"") -> 2 | G39: =IF($B39<>"",SUMIF(Mai!$E$4:$F$64,'Quantités légumes'!$B39,Mai!$K$4:$L$64),"") -> 1 | H39: =IF($B39<>"",SUMIF(Juin!$E$4:$F$62,'Quantités légumes'!$B39,Juin!$K$4:$L$62),"") -> 2 | I39: =IF($B39<>"",SUMIF(Juillet!$E$4:$F$54,'Quantités légumes'!$B39,Juillet!$K$4:$L$54),"") -> 1 | J39: =IF($B39<>"",SUMIF(Août!$E$4:$F$62,'Quantités légumes'!$B39,Août!$K$4:$L$62),"") -> 2 | K39: =IF($B39<>"",SUMIF(Septembre!$E$4:$F$65,'Quantités légumes'!$B39,Septembre!$K$4:$L$65),"") -> 1 | L39: =IF($B39<>"",SUMIF(Octobre!$E$4:$F$64,'Quantités légumes'!$B39,Octobre!$K$4:$L$64),"") -> 2 | M39: =IF($B39<>"",SUMIF(Novembre!$E$4:$F$65,'Quantités légumes'!$B39,Novembre!$K$4:$L$65),"") -> 1 | N39: =IF($B39<>"",SUMIF(Décembre!$E$4:$F$64,'Quantités légumes'!$B39,Décembre!$K$4:$L$64),"") -> 2 | O39: 18
A40: LD03 | B40: Frites | C40: =IF($B40<>"",SUMIF(Janvier!$E$4:$F$65,'Quantités légumes'!$B40,Janvier!$K$4:$L$65),"") -> 20 | D40: =IF($B40<>"",SUMIF(Février!$E$4:$F$65,'Quantités légumes'!$B40,Février!$K$4:$L$65),"") -> 40 | E40: =IF($B40<>"",SUMIF(Mars!$E$4:$F$65,'Quantités légumes'!$B40,Mars!$K$4:$L$65),"") -> 20 | F40: =IF($B40<>"",SUMIF(Avril!$E$4:$F$64,'Quantités légumes'!$B40,Avril!$K$4:$L$64),"") -> 40 | G40: =IF($B40<>"",SUMIF(Mai!$E$4:$F$64,'Quantités légumes'!$B40,Mai!$K$4:$L$64),"") -> 20 | H40: =IF($B40<>"",SUMIF(Juin!$E$4:$F$62,'Quantités légumes'!$B40,Juin!$K$4:$L$62),"") -> 20 | I40: =IF($B40<>"",SUMIF(Juillet!$E$4:$F$54,'Quantités légumes'!$B40,Juillet!$K$4:$L$54),"") -> 40 | J40: =IF($B40<>"",SUMIF(Août!$E$4:$F$62,'Quantités légumes'!$B40,Août!$K$4:$L$62),"") -> 20 | K40: =IF($B40<>"",SUMIF(Septembre!$E$4:$F$65,'Quantités légumes'!$B40,Septembre!$K$4:$L$65),"") -> 40 | L40: =IF($B40<>"",SUMIF(Octobre!$E$4:$F$64,'Quantités légumes'!$B40,Octobre!$K$4:$L$64),"") -> 20 | M40: =IF($B40<>"",SUMIF(Novembre!$E$4:$F$65,'Quantités légumes'!$B40,Novembre!$K$4:$L$65),"") -> 40 | N40: =IF($B40<>"",SUMIF(Décembre!$E$4:$F$64,'Quantités légumes'!$B40,Décembre!$K$4:$L$64),"") -> 20 | O40: 340
A42: Fait à Limeil-Brévannes, le jeudi 05 janvier 2017.

Sheet Quantités viandes
A1: Récapitulatif des quantités viandes de l'année 2017.
A2: Accueil
A3: Code viandes | B3: Viandes | C3: Janvier | D3: Février | E3: Mars | F3: Avril | G3: Mai | H3: Juin | I3: Juillet | J3: Août | K3: Septembre | L3: Octobre | M3: Novembre | N3: Décembre | O3: Total
A4: V01 | B4: Bifteck haché de bœuf | C4: =IF($B4<>"",SUMIF(Janvier!$N$4:$N$65,'Quantités viandes'!$B4,Janvier!$Q$4:$Q$65),"") -> 1 | D4: =IF($B4<>"",SUMIF(Février!$N$4:$N$65,'Quantités viandes'!$B4,Février!$Q$4:$Q$65),"") -> 0 | E4: =IF($B4<>"",SUMIF(Mars!$N$4:$N$65,'Quantités viandes'!$B4,Mars!$Q$4:$Q$65),"") -> 0 | F4: =IF($B4<>"",SUMIF(Avril!$N$4:$N$64,'Quantités viandes'!$B4,Avril!$Q$4:$Q$64),"") -> 2 | G4: =IF($B4<>"",SUMIF(Mai!$N$4:$N$64,'Quantités viandes'!$B4,Mai!$Q$4:$Q$64),"") -> 0 | H4: =IF($B4<>"",SUMIF(Juin!$N$4:$N$62,'Quantités viandes'!$B4,Juin!$Q$4:$Q$62),"") -> 0 | I4: =IF($B4<>"",SUMIF(Juillet!$N$4:$N$54,'Quantités viandes'!$B4,Juillet!$Q$4:$Q$54),"") -> 2 | J4: =IF($B4<>"",SUMIF(Août!$N$4:$N$62,'Quantités viandes'!$B4,Août!$Q$4:$Q$62),"") -> 0 | K4: =IF($B4<>"",SUMIF(Septembre!$N$4:$N$65,'Quantités viandes'!$B4,Septembre!$Q$4:$Q$65),"") -> 0 | L4: =IF($B4<>"",SUMIF(Octobre!$N$4:$N$64,'Quantités viandes'!$B4,Octobre!$Q$4:$Q$64),"") -> 2 | M4: =IF($B4<>"",SUMIF(Novembre!$N$4:$N$65,'Quantités viandes'!$B4,Novembre!$Q$4:$Q$65),"") -> 0 | N4: =IF($B4<>"",SUMIF(Décembre!$N$4:$N$64,'Quantités viandes'!$B4,Décembre!$Q$4:$Q$64),"") -> 0 | O4: =SUM($C4:$N4) -> 7
A5: V02 | B5: Bifteck haché de cheval | C5: =IF($B5<>"",SUMIF(Janvier!$N$4:$N$65,'Quantités viandes'!$B5,Janvier!$Q$4:$Q$65),"") -> 125 | D5: =IF($B5<>"",SUMIF(Février!$N$4:$N$65,'Quantités viandes'!$B5,Février!$Q$4:$Q$65),"") -> 0 | E5: =IF($B5<>"",SUMIF(Mars!$N$4:$N$65,'Quantités viandes'!$B5,Mars!$Q$4:$Q$65),"") -> 0 | F5: =IF($B5<>"",SUMIF(Avril!$N$4:$N$64,'Quantités viandes'!$B5,Avril!$Q$4:$Q$64),"") -> 125 | G5: =IF($B5<>"",SUMIF(Mai!$N$4:$N$64,'Quantités viandes'!$B5,Mai!$Q$4:$Q$64),"") -> 0 | H5: =IF($B5<>"",SUMIF(Juin!$N$4:$N$62,'Quantités viandes'!$B5,Juin!$Q$4:$Q$62),"") -> 0 | I5: =IF($B5<>"",SUMIF(Juillet!$N$4:$N$54,'Quantités viandes'!$B5,Juillet!$Q$4:$Q$54),"") -> 125 | J5: =IF($B5<>"",SUMIF(Août!$N$4:$N$62,'Quantités viandes'!$B5,Août!$Q$4:$Q$62),"") -> 0 | K5: =IF($B5<>"",SUMIF(Septembre!$N$4:$N$65,'Quantités viandes'!$B5,Septembre!$Q$4:$Q$65),"") -> 0 | L5: =IF($B5<>"",SUMIF(Octobre!$N$4:$N$64,'Quantités viandes'!$B5,Octobre!$Q$4:$Q$64),"") -> 125 | M5: =IF($B5<>"",SUMIF(Novembre!$N$4:$N$65,'Quantités viandes'!$B5,Novembre!$Q$4:$Q$65),"") -> 0 | N5: =IF($B5<>"",SUMIF(Décembre!$N$4:$N$64,'Quantités viandes'!$B5,Décembre!$Q$4:$Q$64),"") -> 0 | O5: =SUM($C5:$N5) -> 500
A6: V03 | B6: Bifteck haché de veau | C6: =IF($B6<>"",SUMIF(Janvier!$N$4:$N$65,'Quantités viandes'!$B6,Janvier!$Q$4:$Q$65),"") -> 2 | D6: =IF($B6<>"",SUMIF(Février!$N$4:$N$65,'Quantités viandes'!$B6,Février!$Q$4:$Q$65),"") -> 0 | E6: =IF($B6<>"",SUMIF(Mars!$N$4:$N$65,'Quantités viandes'!$B6,Mars!$Q$4:$Q$65),"") -> 0 | F6: =IF($B6<>"",SUMIF(Avril!$N$4:$N$64,'Quantités viandes'!$B6,Avril!$Q$4:$Q$64),"") -> 2 | G6: =IF($B6<>"",SUMIF(Mai!$N$4:$N$64,'Quantités viandes'!$B6,Mai!$Q$4:$Q$64),"") -> 0 | H6: =IF($B6<>"",SUMIF(Juin!$N$4:$N$62,'Quantités viandes'!$B6,Juin!$Q$4:$Q$62),"") -> 0 | I6: =IF($B6<>"",SUMIF(Juillet!$N$4:$N$54,'Quantités viandes'!$B6,Juillet!$Q$4:$Q$54),"") -> 2 | J6: =IF($B6<>"",SUMIF(Août!$N$4:$N$62,'Quantités viandes'!$B6,Août!$Q$4:$Q$62),"") -> 0 | K6: =IF($B6<>"",SUMIF(Septembre!$N$4:$N$65,'Quantités viandes'!$B6,Septembre!$Q$4:$Q$65),"") -> 0 | L6: =IF($B6<>"",SUMIF(Octobre!$N$4:$N$64,'Quantités viandes'!$B6,Octobre!$Q$4:$Q$64),"") -> 2 | M6: =IF($B6<>"",SUMIF(Novembre!$N$4:$N$65,'Quantités viandes'!$B6,Novembre!$Q$4:$Q$65),"") -> 0 | N6: =IF($B6<>"",SUMIF(Décembre!$N$4:$N$64,'Quantités viandes'!$B6,Décembre!$Q$4:$Q$64),"") -> 0 | O6: 8
A7: V04 | B7: Bouchée à la reine | C7: =IF($B7<>"",SUMIF(Janvier!$N$4:$N$65,'Quantités viandes'!$B7,Janvier!$Q$4:$Q$65),"") -> 2 | D7: =IF($B7<>"",SUMIF(Février!$N$4:$N$65,'Quantités viandes'!$B7,Février!$Q$4:$Q$65),"") -> 0 | E7: =IF($B7<>"",SUMIF(Mars!$N$4:$N$65,'Quantités viandes'!$B7,Mars!$Q$4:$Q$65),"") -> 0 | F7: =IF($B7<>"",SUMIF(Avril!$N$4:$N$64,'Quantités viandes'!$B7,Avril!$Q$4:$Q$64),"") -> 2 | G7: =IF($B7<>"",SUMIF(Mai!$N$4:$N$64,'Quantités viandes'!$B7,Mai!$Q$4:$Q$64),"") -> 0 | H7: =IF($B7<>"",SUMIF(Juin!$N$4:$N$62,'Quantités viandes'!$B7,Juin!$Q$4:$Q$62),"") -> 0 | I7: =IF($B7<>"",SUMIF(Juillet!$N$4:$N$54,'Quantités viandes'!$B7,Juillet!$Q$4:$Q$54),"") -> 2 | J7: =IF($B7<>"",SUMIF(Août!$N$4:$N$62,'Quantités viandes'!$B7,Août!$Q$4:$Q$62),"") -> 0 | K7: =IF($B7<>"",SUMIF(Septembre!$N$4:$N$65,'Quantités viandes'!$B7,Septembre!$Q$4:$Q$65),"") -> 0 | L7: =IF($B7<>"",SUMIF(Octobre!$N$4:$N$64,'Quantités viandes'!$B7,Octobre!$Q$4:$Q$64),"") -> 2 | M7: =IF($B7<>"",SUMIF(Novembre!$N$4:$N$65,'Quantités viandes'!$B7,Novembre!$Q$4:$Q$65),"") -> 0 | N7: =IF($B7<>"",SUMIF(Décembre!$N$4:$N$64,'Quantités viandes'!$B7,Décembre!$Q$4:$Q$64),"") -> 0 | O7: 8
A8: V05 | B8: Boudin | C8: =IF($B8<>"",SUMIF(Janvier!$N$4:$N$65,'Quantités viandes'!$B8,Janvier!$Q$4:$Q$65),"") -> 1 | D8: =IF($B8<>"",SUMIF(Février!$N$4:$N$65,'Quantités viandes'!$B8,Février!$Q$4:$Q$65),"") -> 0 | E8: =IF($B8<>"",SUMIF(Mars!$N$4:$N$65,'Quantités viandes'!$B8,Mars!$Q$4:$Q$65),"") -> 0 | F8: =IF($B8<>"",SUMIF(Avril!$N$4:$N$64,'Quantités viandes'!$B8,Avril!$Q$4:$Q$64),"") -> 1 | G8: =IF($B8<>"",SUMIF(Mai!$N$4:$N$64,'Quantités viandes'!$B8,Mai!$Q$4:$Q$64),"") -> 0 | H8: =IF($B8<>"",SUMIF(Juin!$N$4:$N$62,'Quantités viandes'!$B8,Juin!$Q$4:$Q$62),"") -> 0 | I8: =IF($B8<>"",SUMIF(Juillet!$N$4:$N$54,'Quantités viandes'!$B8,Juillet!$Q$4:$Q$54),"") -> 1 | J8: =IF($B8<>"",SUMIF(Août!$N$4:$N$62,'Quantités viandes'!$B8,Août!$Q$4:$Q$62),"") -> 0 | K8: =IF($B8<>"",SUMIF(Septembre!$N$4:$N$65,'Quantités viandes'!$B8,Septembre!$Q$4:$Q$65),"") -> 0 | L8: =IF($B8<>"",SUMIF(Octobre!$N$4:$N$64,'Quantités viandes'!$B8,Octobre!$Q$4:$Q$64),"") -> 0.5 | M8: =IF($B8<>"",SUMIF(Novembre!$N$4:$N$65,'Quantités viandes'!$B8,Novembre!$Q$4:$Q$65),"") -> 0.5 | N8: =IF($B8<>"",SUMIF(Décembre!$N$4:$N$64,'Quantités viandes'!$B8,Décembre!$Q$4:$Q$64),"") -> 0 | O8: 4
A9: V06 | B9: Cervelas | C9: =IF($B9<>"",SUMIF(Janvier!$N$4:$N$65,'Quantités viandes'!$B9,Janvier!$Q$4:$Q$65),"") -> 1 | D9: =IF($B9<>"",SUMIF(Février!$N$4:$N$65,'Quantités viandes'!$B9,Février!$Q$4:$Q$65),"") -> 0 | E9: =IF($B9<>"",SUMIF(Mars!$N$4:$N$65,'Quantités viandes'!$B9,Mars!$Q$4:$Q$65),"") -> 0 | F9: =IF($B9<>"",SUMIF(Avril!$N$4:$N$64,'Quantités viandes'!$B9,Avril!$Q$4:$Q$64),"") -> 1 | G9: =IF($B9<>"",SUMIF(Mai!$N$4:$N$64,'Quantités viandes'!$B9,Mai!$Q$4:$Q$64),"") -> 0 | H9: =IF($B9<>"",SUMIF(Juin!$N$4:$N$62,'Quantités viandes'!$B9,Juin!$Q$4:$Q$62),"") -> 0 | I9: =IF($B9<>"",SUMIF(Juillet!$N$4:$N$54,'Quantités viandes'!$B9,Juillet!$Q$4:$Q$54),"") -> 0.5 | J9: =IF($B9<>"",SUMIF(Août!$N$4:$N$62,'Quantités viandes'!$B9,Août!$Q$4:$Q$62),"") -> 0.5 | K9: =IF($B9<>"",SUMIF(Septembre!$N$4:$N$65,'Quantités viandes'!$B9,Septembre!$Q$4:$Q$65),"") -> 0 | L9: =IF($B9<>"",SUMIF(Octobre!$N$4:$N$64,'Quantités viandes'!$B9,Octobre!$Q$4:$Q$64),"") -> 0 | M9: =IF($B9<>"",SUMIF(Novembre!$N$4:$N$65,'Quantités viandes'!$B9,Novembre!$Q$4:$Q$65),"") -> 1 | N9: =IF($B9<>"",SUMIF(Décembre!$N$4:$N$64,'Quantités viandes'!$B9,Décembre!$Q$4:$Q$64),"") -> 0 | O9: 4
A10: V07 | B10: Cœur | C10: =IF($B10<>"",SUMIF(Janvier!$N$4:$N$65,'Quantités viandes'!$B10,Janvier!$Q$4:$Q$65),"") -> 2 | D10: =IF($B10<>"",SUMIF(Février!$N$4:$N$65,'Quantités viandes'!$B10,Février!$Q$4:$Q$65),"") -> 0 | E10: =IF($B10<>"",SUMIF(Mars!$N$4:$N$65,'Quantités viandes'!$B10,Mars!$Q$4:$Q$65),"") -> 0 | F10: =IF($B10<>"",SUMIF(Avril!$N$4:$N$64,'Quantités viandes'!$B10,Avril!$Q$4:$Q$64),"") -> 1 | G10: =IF($B10<>"",SUMIF(Mai!$N$4:$N$64,'Quantités viandes'!$B10,Mai!$Q$4:$Q$64),"") -> 1 | H10: =IF($B10<>"",SUMIF(Juin!$N$4:$N$62,'Quantités viandes'!$B10,Juin!$Q$4:$Q$62),"") -> 0 | I10: =IF($B10<>"",SUMIF(Juillet!$N$4:$N$54,'Quantités viandes'!$B10,Juillet!$Q$4:$Q$54),"") -> 0 | J10: =IF($B10<>"",SUMIF(Août!$N$4:$N$62,'Quantités viandes'!$B10,Août!$Q$4:$Q$62),"") -> 2 | K10: =IF($B10<>"",SUMIF(Septembre!$N$4:$N$65,'Quantités viandes'!$B10,Septembre!$Q$4:$Q$65),"") -> 0 | L10: =IF($B10<>"",SUMIF(Octobre!$N$4:$N$64,'Quantités viandes'!$B10,Octobre!$Q$4:$Q$64),"") -> 0 | M10: =IF($B10<>"",SUMIF(Novembre!$N$4:$N$65,'Quantités viandes'!$B10,Novembre!$Q$4:$Q$65),"") -> 2 | N10: =IF($B10<>"",SUMIF(Décembre!$N$4:$N$64,'Quantités viandes'!$B10,Décembre!$Q$4:$Q$64),"") -> 0 | O10: 8
A11: V08 | B11: Croque-monsieur | C11: =IF($B11<>"",SUMIF(Janvier!$N$4:$N$65,'Quantités viandes'!$B11,Janvier!$Q$4:$Q$65),"") -> 2 | D11: =IF($B11<>"",SUMIF(Février!$N$4:$N$65,'Quantités viandes'!$B11,Février!$Q$4:$Q$65),"") -> 0 | E11: =IF($B11<>"",SUMIF(Mars!$N$4:$N$65,'Quantités viandes'!$B11,Mars!$Q$4:$Q$65),"") -> 0 | F11: =IF($B11<>"",SUMIF(Avril!$N$4:$N$64,'Quantités viandes'!$B11,Avril!$Q$4:$Q$64),"") -> 0 | G11: =IF($B11<>"",SUMIF(Mai!$N$4:$N$64,'Quantités viandes'!$B11,Mai!$Q$4:$Q$64),"") -> 2 | H11: =IF($B11<>"",SUMIF(Juin!$N$4:$N$62,'Quantités viandes'!$B11,Juin!$Q$4:$Q$62),"") -> 0 | I11: =IF($B11<>"",SUMIF(Juillet!$N$4:$N$54,'Quantités viandes'!$B11,Juillet!$Q$4:$Q$54),"") -> 0 | J11: =IF($B11<>"",SUMIF(Août!$N$4:$N$62,'Quantités viandes'!$B11,Août!$Q$4:$Q$62),"") -> 2 | K11: =IF($B11<>"",SUMIF(Septembre!$N$4:$N$65,'Quantités viandes'!$B11,Septembre!$Q$4:$Q$65),"") -> 0 | L11: =IF($B11<>"",SUMIF(Octobre!$N$4:$N$64,'Quantités viandes'!$B11,Octobre!$Q$4:$Q$64),"") -> 0 | M11: =IF($B11<>"",SUMIF(Novembre!$N$4:$N$65,'Quantités viandes'!$B11,Novembre!$Q$4:$Q$65),"") -> 2 | N11: =IF($B11<>"",SUMIF(Décembre!$N$4:$N$64,'Quantités viandes'!$B11,Décembre!$Q$4:$Q$64),"") -> 0 | O11: 8
A12: V09 | B12: Foie | C12: =IF($B12<>"",SUMIF(Janvier!$N$4:$N$65,'Quantités viandes'!$B12,Janvier!$Q$4:$Q$65),"") -> 0 | D12: =IF($B12<>"",SUMIF(Février!$N$4:$N$65,'Quantités viandes'!$B12,Février!$Q$4:$Q$65),"") -> 2 | E12: =IF($B12<>"",SUMIF(Mars!$N$4:$N$65,'Quantités viandes'!$B12,Mars!$Q$4:$Q$65),"") -> 0 | F12: =IF($B12<>"",SUMIF(Avril!$N$4:$N$64,'Quantités viandes'!$B12,Avril!$Q$4:$Q$64),"") -> 0 | G12: =IF($B12<>"",SUMIF(Mai!$N$4:$N$64,'Quantités viandes'!$B12,Mai!$Q$4:$Q$64),"") -> 2 | H12: =IF($B12<>"",SUMIF(Juin!$N$4:$N$62,'Quantités viandes'!$B12,Juin!$Q$4:$Q$62),"") -> 0 | I12: =IF($B12<>"",SUMIF(Juillet!$N$4:$N$54,'Quantités viandes'!$B12,Juillet!$Q$4:$Q$54),"") -> 0 | J12: =IF($B12<>"",SUMIF(Août!$N$4:$N$62,'Quantités viandes'!$B12,Août!$Q$4:$Q$62),"") -> 2 | K12: =IF($B12<>"",SUMIF(Septembre!$N$4:$N$65,'Quantités viandes'!$B12,Septembre!$Q$4:$Q$65),"") -> 0 | L12: =IF($B12<>"",SUMIF(Octobre!$N$4:$N$64,'Quantités viandes'!$B12,Octobre!$Q$4:$Q$64),"") -> 0 | M12: =IF($B12<>"",SUMIF(Novembre!$N$4:$N$65,'Quantités viandes'!$B12,Novembre!$Q$4:$Q$65),"") -> 2 | N12: =IF($B12<>"",SUMIF(Décembre!$N$4:$N$64,'Quantités viandes'!$B12,Décembre!$Q$4:$Q$64),"") -> 0 | O12: 8
A13: V10 | B13: Fromage de tête | C13: =IF($B13<>"",SUMIF(Janvier!$N$4:$N$65,'Quantités viandes'!$B13,Janvier!$Q$4:$Q$65),"") -> 0 | D13: =IF($B13<>"",SUMIF(Février!$N$4:$N$65,'Quantités viandes'!$B13,Février!$Q$4:$Q$65),"") -> 1 | E13: =IF($B13<>"",SUMIF(Mars!$N$4:$N$65,'Quantités viandes'!$B13,Mars!$Q$4:$Q$65),"") -> 0 | F13: =IF($B13<>"",SUMIF(Avril!$N$4:$N$64,'Quantités viandes'!$B13,Avril!$Q$4:$Q$64),"") -> 0 | G13: =IF($B13<>"",SUMIF(Mai!$N$4:$N$64,'Quantités viandes'!$B13,Mai!$Q$4:$Q$64),"") -> 1 | H13: =IF($B13<>"",SUMIF(Juin!$N$4:$N$62,'Quantités viandes'!$B13,Juin!$Q$4:$Q$62),"") -> 0 | I13: =IF($B13<>"",SUMIF(Juillet!$N$4:$N$54,'Quantités viandes'!$B13,Juillet!$Q$4:$Q$54),"") -> 0 | J13: =IF($B13<>"",SUMIF(Août!$N$4:$N$62,'Quantités viandes'!$B13,Août!$Q$4:$Q$62),"") -> 1 | K13: =IF($B13<>"",SUMIF(Septembre!$N$4:$N$65,'Quantités viandes'!$B13,Septembre!$Q$4:$Q$65),"") -> 0 | L13: =IF($B13<>"",SUMIF(Octobre!$N$4:$N$64,'Quantités viandes'!$B13,Octobre!$Q$4:$Q$64),"") -> 0 | M13: =IF($B13<>"",SUMIF(Novembre!$N$4:$N$65,'Quantités viandes'!$B13,Novembre!$Q$4:$Q$65),"") -> 1 | N13: =IF($B13<>"",SUMIF(Décembre!$N$4:$N$64,'Quantités viandes'!$B13,Décembre!$Q$4:$Q$64),"") -> 0 | O13: 4
A14: V11 | B14: Jambon | C14: =IF($B14<>"",SUMIF(Janvier!$N$4:$N$65,'Quantités viandes'!$B14,Janvier!$Q$4:$Q$65),"") -> 0 | D14: =IF($B14<>"",SUMIF(Février!$N$4:$N$65,'Quantités viandes'!$B14,Février!$Q$4:$Q$65),"") -> 1 | E14: =IF($B14<>"",SUMIF(Mars!$N$4:$N$65,'Quantités viandes'!$B14,Mars!$Q$4:$Q$65),"") -> 0 | F14: =IF($B14<>"",SUMIF(Avril!$N$4:$N$64,'Quantités viandes'!$B14,Avril!$Q$4:$Q$64),"") -> 0 | G14: =IF($B14<>"",SUMIF(Mai!$N$4:$N$64,'Quantités viandes'!$B14,Mai!$Q$4:$Q$64),"") -> 1 | H14: =IF($B14<>"",SUMIF(Juin!$N$4:$N$62,'Quantités viandes'!$B14,Juin!$Q$4:$Q$62),"") -> 0 | I14: =IF($B14<>"",SUMIF(Juillet!$N$4:$N$54,'Quantités viandes'!$B14,Juillet!$Q$4:$Q$54),"") -> 0 | J14: =IF($B14<>"",SUMIF(Août!$N$4:$N$62,'Quantités viandes'!$B14,Août!$Q$4:$Q$62),"") -> 1 | K14: =IF($B14<>"",SUMIF(Septembre!$N$4:$N$65,'Quantités viandes'!$B14,Septembre!$Q$4:$Q$65),"") -> 0 | L14: =IF($B14<>"",SUMIF(Octobre!$N$4:$N$64,'Quantités viandes'!$B14,Octobre!$Q$4:$Q$64),"") -> 0 | M14: =IF($B14<>"",SUMIF(Novembre!$N$4:$N$65,'Quantités viandes'!$B14,Novembre!$Q$4:$Q$65),"") -> 1 | N14: =IF($B14<>"",SUMIF(Décembre!$N$4:$N$64,'Quantités viandes'!$B14,Décembre!$Q$4:$Q$64),"") -> 0 | O14: 4
A15: V12 | B15: Jambonneau | C15: =IF($B15<>"",SUMIF(Janvier!$N$4:$N$65,'Quantités viandes'!$B15,Janvier!$Q$4:$Q$65),"") -> 0 | D15: =IF($B15<>"",SUMIF(Février!$N$4:$N$65,'Quantités viandes'!$B15,Février!$Q$4:$Q$65),"") -> 1 | E15: =IF($B15<>"",SUMIF(Mars!$N$4:$N$65,'Quantités viandes'!$B15,Mars!$Q$4:$Q$65),"") -> 0 | F15: =IF($B15<>"",SUMIF(Avril!$N$4:$N$64,'Quantités viandes'!$B15,Avril!$Q$4:$Q$64),"") -> 0 | G15: =IF($B15<>"",SUMIF(Mai!$N$4:$N$64,'Quantités viandes'!$B15,Mai!$Q$4:$Q$64),"") -> 1 | H15: =IF($B15<>"",SUMIF(Juin!$N$4:$N$62,'Quantités viandes'!$B15,Juin!$Q$4:$Q$62),"") -> 0 | I15: =IF($B15<>"",SUMIF(Juillet!$N$4:$N$54,'Quantités viandes'!$B15,Juillet!$Q$4:$Q$54),"") -> 0 | J15: =IF($B15<>"",SUMIF(Août!$N$4:$N$62,'Quantités viandes'!$B15,Août!$Q$4:$Q$62),"") -> 1 | K15: =IF($B15<>"",SUMIF(Septembre!$N$4:$N$65,'Quantités viandes'!$B15,Septembre!$Q$4:$Q$65),"") -> 0 | L15: =IF($B15<>"",SUMIF(Octobre!$N$4:$N$64,'Quantités viandes'!$B15,Octobre!$Q$4:$Q$64),"") -> 0 | M15: =IF($B15<>"",SUMIF(Novembre!$N$4:$N$65,'Quantités viandes'!$B15,Novembre!$Q$4:$Q$65),"") -> 1 | N15: =IF($B15<>"",SUMIF(Décembre!$N$4:$N$64,'Quantités viandes'!$B15,Décembre!$Q$4:$Q$64),"") -> 0 | O15: 4
A16: V13 | B16: Mortadelle | C16: =IF($B16<>"",SUMIF(Janvier!$N$4:$N$65,'Quantités viandes'!$B16,Janvier!$Q$4:$Q$65),"") -> 0 | D16: =IF($B16<>"",SUMIF(Février!$N$4:$N$65,'Quantités viandes'!$B16,Février!$Q$4:$Q$65),"") -> 1 | E16: =IF($B16<>"",SUMIF(Mars!$N$4:$N$65,'Quantités viandes'!$B16,Mars!$Q$4:$Q$65),"") -> 0 | F16: =IF($B16<>"",SUMIF(Avril!$N$4:$N$64,'Quantités viandes'!$B16,Avril!$Q$4:$Q$64),"") -> 0 | G16: =IF($B16<>"",SUMIF(Mai!$N$4:$N$64,'Quantités viandes'!$B16,Mai!$Q$4:$Q$64),"") -> 1 | H16: =IF($B16<>"",SUMIF(Juin!$N$4:$N$62,'Quantités viandes'!$B16,Juin!$Q$4:$Q$62),"") -> 0 | I16: =IF($B16<>"",SUMIF(Juillet!$N$4:$N$54,'Quantités viandes'!$B16,Juillet!$Q$4:$Q$54),"") -> 0 | J16: =IF($B16<>"",SUMIF(Août!$N$4:$N$62,'Quantités viandes'!$B16,Août!$Q$4:$Q$62),"") -> 1 | K16: =IF($B16<>"",SUMIF(Septembre!$N$4:$N$65,'Quantités viandes'!$B16,Septembre!$Q$4:$Q$65),"") -> 0 | L16: =IF($B16<>"",SUMIF(Octobre!$N$4:$N$64,'Quantités viandes'!$B16,Octobre!$Q$4:$Q$64),"") -> 0 | M16: =IF($B16<>"",SUMIF(Novembre!$N$4:$N$65,'Quantités viandes'!$B16,Novembre!$Q$4:$Q$65),"") -> 0 | N16: =IF($B16<>"",SUMIF(Décembre!$N$4:$N$64,'Quantités viandes'!$B16,Décembre!$Q$4:$Q$64),"") -> 1 | O16: 4
A17: V14 | B17: Œufs | C17: =IF($B17<>"",SUMIF(Janvier!$N$4:$N$65,'Quantités viandes'!$B17,Janvier!$Q$4:$Q$65),"") -> 0 | D17: =IF($B17<>"",SUMIF(Février!$N$4:$N$65,'Quantités viandes'!$B17,Février!$Q$4:$Q$65),"") -> 6 | E17: =IF($B17<>"",SUMIF(Mars!$N$4:$N$65,'Quantités viandes'!$B17,Mars!$Q$4:$Q$65),"") -> 0 | F17: =IF($B17<>"",SUMIF(Avril!$N$4:$N$64,'Quantités viandes'!$B17,Avril!$Q$4:$Q$64),"") -> 0 | G17: =IF($B17<>"",SUMIF(Mai!$N$4:$N$64,'Quantités viandes'!$B17,Mai!$Q$4:$Q$64),"") -> 3 | H17: =IF($B17<>"",SUMIF(Juin!$N$4:$N$62,'Quantités viandes'!$B17,Juin!$Q$4:$Q$62),"") -> 3 | I17: =IF($B17<>"",SUMIF(Juillet!$N$4:$N$54,'Quantités viandes'!$B17,Juillet!$Q$4:$Q$54),"") -> 0 | J17: =IF($B17<>"",SUMIF(Août!$N$4:$N$62,'Quantités viandes'!$B17,Août!$Q$4:$Q$62),"") -> 0 | K17: =IF($B17<>"",SUMIF(Septembre!$N$4:$N$65,'Quantités viandes'!$B17,Septembre!$Q$4:$Q$65),"") -> 6 | L17: =IF($B17<>"",SUMIF(Octobre!$N$4:$N$64,'Quantités viandes'!$B17,Octobre!$Q$4:$Q$64),"") -> 0 | M17: =IF($B17<>"",SUMIF(Novembre!$N$4:$N$65,'Quantités viandes'!$B17,Novembre!$Q$4:$Q$65),"") -> 0 | N17: =IF($B17<>"",SUMIF(Décembre!$N$4:$N$64,'Quantités viandes'!$B17,Décembre!$Q$4:$Q$64),"") -> 6 | O17: 24
A18: V15 | B18: Pizza | C18: =IF($B18<>"",SUMIF(Janvier!$N$4:$N$65,'Quantités viandes'!$B18,Janvier!$Q$4:$Q$65),"") -> 0 | D18: =IF($B18<>"",SUMIF(Février!$N$4:$N$65,'Quantités viandes'!$B18,Février!$Q$4:$Q$65),"") -> 0 | E18: =IF($B18<>"",SUMIF(Mars!$N$4:$N$65,'Quantités viandes'!$B18,Mars!$Q$4:$Q$65),"") -> 1 | F18: =IF($B18<>"",SUMIF(Avril!$N$4:$N$64,'Quantités viandes'!$B18,Avril!$Q$4:$Q$64),"") -> 0 | G18: =IF($B18<>"",SUMIF(Mai!$N$4:$N$64,'Quantités viandes'!$B18,Mai!$Q$4:$Q$64),"") -> 0 | H18: =IF($B18<>"",SUMIF(Juin!$N$4:$N$62,'Quantités viandes'!$B18,Juin!$Q$4:$Q$62),"") -> 1 | I18: =IF($B18<>"",SUMIF(Juillet!$N$4:$N$54,'Quantités viandes'!$B18,Juillet!$Q$4:$Q$54),"") -> 0 | J18: =IF($B18<>"",SUMIF(Août!$N$4:$N$62,'Quantités viandes'!$B18,Août!$Q$4:$Q$62),"") -> 0 | K18: =IF($B18<>"",SUMIF(Septembre!$N$4:$N$65,'Quantités viandes'!$B18,Septembre!$Q$4:$Q$65),"") -> 1 | L18: =IF($B18<>"",SUMIF(Octobre!$N$4:$N$64,'Quantités viandes'!$B18,Octobre!$Q$4:$Q$64),"") -> 0 | M18: =IF($B18<>"",SUMIF(Novembre!$N$4:$N$65,'Quantités viandes'!$B18,Novembre!$Q$4:$Q$65),"") -> 0 | N18: =IF($B18<>"",SUMIF(Décembre!$N$4:$N$64,'Quantités viandes'!$B18,Décembre!$Q$4:$Q$64),"") -> 1 | O18: 4
A19: V16 | B19: Poisson | C19: =IF($B19<>"",SUMIF(Janvier!$N$4:$N$65,'Quantités viandes'!$B19,Janvier!$Q$4:$Q$65),"") -> 2 | D19: =IF($B19<>"",SUMIF(Février!$N$4:$N$65,'Quantités viandes'!$B19,Février!$Q$4:$Q$65),"") -> 1 | E19: =IF($B19<>"",SUMIF(Mars!$N$4:$N$65,'Quantités viandes'!$B19,Mars!$Q$4:$Q$65),"") -> 2 | F19: =IF($B19<>"",SUMIF(Avril!$N$4:$N$64,'Quantités viandes'!$B19,Avril!$Q$4:$Q$64),"") -> 1 | G19: =IF($B19<>"",SUMIF(Mai!$N$4:$N$64,'Quantités viandes'!$B19,Mai!$Q$4:$Q$64),"") -> 1 | H19: =IF($B19<>"",SUMIF(Juin!$N$4:$N$62,'Quantités viandes'!$B19,Juin!$Q$4:$Q$62),"") -> 2 | I19: =IF($B19<>"",SUMIF(Juillet!$N$4:$N$54,'Quantités viandes'!$B19,Juillet!$Q$4:$Q$54),"") -> 0 | J19: =IF($B19<>"",SUMIF(Août!$N$4:$N$62,'Quantités viandes'!$B19,Août!$Q$4:$Q$62),"") -> 1 | K19: =IF($B19<>"",SUMIF(Septembre!$N$4:$N$65,'Quantités viandes'!$B19,Septembre!$Q$4:$Q$65),"") -> 2 | L19: =IF($B19<>"",SUMIF(Octobre!$N$4:$N$64,'Quantités viandes'!$B19,Octobre!$Q$4:$Q$64),"") -> 2 | M19: =IF($B19<>"",SUMIF(Novembre!$N$4:$N$65,'Quantités viandes'!$B19,Novembre!$Q$4:$Q$65),"") -> 1 | N19: =IF($B19<>"",SUMIF(Décembre!$N$4:$N$64,'Quantités viandes'!$B19,Décembre!$Q$4:$Q$64),"") -> 2 | O19: 17
A20: V17 | B20: Quiche lorraine | C20: =IF($B20<>"",SUMIF(Janvier!$N$4:$N$65,'Quantités viandes'!$B20,Janvier!$Q$4:$Q$65),"") -> 0 | D20: =IF($B20<>"",SUMIF(Février!$N$4:$N$65,'Quantités viandes'!$B20,Février!$Q$4:$Q$65),"") -> 0 | E20: =IF($B20<>"",SUMIF(Mars!$N$4:$N$65,'Quantités viandes'!$B20,Mars!$Q$4:$Q$65),"") -> 1 | F20: =IF($B20<>"",SUMIF(Avril!$N$4:$N$64,'Quantités viandes'!$B20,Avril!$Q$4:$Q$64),"") -> 0 | G20: =IF($B20<>"",SUMIF(Mai!$N$4:$N$64,'Quantités viandes'!$B20,Mai!$Q$4:$Q$64),"") -> 0 | H20: =IF($B20<>"",SUMIF(Juin!$N$4:$N$62,'Quantités viandes'!$B20,Juin!$Q$4:$Q$62),"") -> 1 | I20: =IF($B20<>"",SUMIF(Juillet!$N$4:$N$54,'Quantités viandes'!$B20,Juillet!$Q$4:$Q$54),"") -> 0 | J20: =IF($B20<>"",SUMIF(Août!$N$4:$N$62,'Quantités viandes'!$B20,Août!$Q$4:$Q$62),"") -> 0 | K20: =IF($B20<>"",SUMIF(Septembre!$N$4:$N$65,'Quantités viandes'!$B20,Septembre!$Q$4:$Q$65),"") -> 1 | L20: =IF($B20<>"",SUMIF(Octobre!$N$4:$N$64,'Quantités viandes'!$B20,Octobre!$Q$4:$Q$64),"") -> 0 | M20: =IF($B20<>"",SUMIF(Novembre!$N$4:$N$65,'Quantités viandes'!$B20,Novembre!$Q$4:$Q$65),"") -> 0 | N20: =IF($B20<>"",SUMIF(Décembre!$N$4:$N$64,'Quantités viandes'!$B20,Décembre!$Q$4:$Q$64),"") -> 1 | O20: 4
A21: V18 | B21: Roulade à la pistache | C21: =IF($B21<>"",SUMIF(Janvier!$N$4:$N$65,'Quantités viandes'!$B21,Janvier!$Q$4:$Q$65),"") -> 0 | D21: =IF($B21<>"",SUMIF(Février!$N$4:$N$65,'Quantités viandes'!$B21,Février!$Q$4:$Q$65),"") -> 0 | E21: =IF($B21<>"",SUMIF(Mars!$N$4:$N$65,'Quantités viandes'!$B21,Mars!$Q$4:$Q$65),"") -> 6 | F21: =IF($B21<>"",SUMIF(Avril!$N$4:$N$64,'Quantités viandes'!$B21,Avril!$Q$4:$Q$64),"") -> 0 | G21: =IF($B21<>"",SUMIF(Mai!$N$4:$N$64,'Quantités viandes'!$B21,Mai!$Q$4:$Q$64),"") -> 0 | H21: =IF($B21<>"",SUMIF(Juin!$N$4:$N$62,'Quantités viandes'!$B21,Juin!$Q$4:$Q$62),"") -> 6 | I21: =IF($B21<>"",SUMIF(Juillet!$N$4:$N$54,'Quantités viandes'!$B21,Juillet!$Q$4:$Q$54),"") -> 0 | J21: =IF($B21<>"",SUMIF(Août!$N$4:$N$62,'Quantités viandes'!$B21,Août!$Q$4:$Q$62),"") -> 0 | K21: =IF($B21<>"",SUMIF(Septembre!$N$4:$N$65,'Quantités viandes'!$B21,Septembre!$Q$4:$Q$65),"") -> 6 | L21: =IF($B21<>"",SUMIF(Octobre!$N$4:$N$64,'Quantités viandes'!$B21,Octobre!$Q$4:$Q$64),"") -> 0 | M21: =IF($B21<>"",SUMIF(Novembre!$N$4:$N$65,'Quantités viandes'!$B21,Novembre!$Q$4:$Q$65),"") -> 0 | N21: =IF($B21<>"",SUMIF(Décembre!$N$4:$N$64,'Quantités viandes'!$B21,Décembre!$Q$4:$Q$64),"") -> 6 | O21: 24
A22: V19 | B22: Roulé au fromage | C22: =IF($B22<>"",SUMIF(Janvier!$N$4:$N$65,'Quantités viandes'!$B22,Janvier!$Q$4:$Q$65),"") -> 0 | D22: =IF($B22<>"",SUMIF(Février!$N$4:$N$65,'Quantités viandes'!$B22,Février!$Q$4:$Q$65),"") -> 0 | E22: =IF($B22<>"",SUMIF(Mars!$N$4:$N$65,'Quantités viandes'!$B22,Mars!$Q$4:$Q$65),"") -> 2 | F22: =IF($B22<>"",SUMIF(Avril!$N$4:$N$64,'Quantités viandes'!$B22,Avril!$Q$4:$Q$64),"") -> 0 | G22: =IF($B22<>"",SUMIF(Mai!$N$4:$N$64,'Quantités viandes'!$B22,Mai!$Q$4:$Q$64),"") -> 0 | H22: =IF($B22<>"",SUMIF(Juin!$N$4:$N$62,'Quantités viandes'!$B22,Juin!$Q$4:$Q$62),"") -> 2 | I22: =IF($B22<>"",SUMIF(Juillet!$N$4:$N$54,'Quantités viandes'!$B22,Juillet!$Q$4:$Q$54),"") -> 0 | J22: =IF($B22<>"",SUMIF(Août!$N$4:$N$62,'Quantités viandes'!$B22,Août!$Q$4:$Q$62),"") -> 0 | K22: =IF($B22<>"",SUMIF(Septembre!$N$4:$N$65,'Quantités viandes'!$B22,Septembre!$Q$4:$Q$65),"") -> 2 | L22: =IF($B22<>"",SUMIF(Octobre!$N$4:$N$64,'Quantités viandes'!$B22,Octobre!$Q$4:$Q$64),"") -> 0 | M22: =IF($B22<>"",SUMIF(Novembre!$N$4:$N$65,'Quantités viandes'!$B22,Novembre!$Q$4:$Q$65),"") -> 0 | N22: =IF($B22<>"",SUMIF(Décembre!$N$4:$N$64,'Quantités viandes'!$B22,Décembre!$Q$4:$Q$64),"") -> 2 | O22: 8
A23: V20 | B23: Salami | C23: =IF($B23<>"",SUMIF(Janvier!$N$4:$N$65,'Quantités viandes'!$B23,Janvier!$Q$4:$Q$65),"") -> 0 | D23: =IF($B23<>"",SUMIF(Février!$N$4:$N$65,'Quantités viandes'!$B23,Février!$Q$4:$Q$65),"") -> 0 | E23: =IF($B23<>"",SUMIF(Mars!$N$4:$N$65,'Quantités viandes'!$B23,Mars!$Q$4:$Q$65),"") -> 20 | F23: =IF($B23<>"",SUMIF(Avril!$N$4:$N$64,'Quantités viandes'!$B23,Avril!$Q$4:$Q$64),"") -> 0 | G23: =IF($B23<>"",SUMIF(Mai!$N$4:$N$64,'Quantités viandes'!$B23,Mai!$Q$4:$Q$64),"") -> 0 | H23: =IF($B23<>"",SUMIF(Juin!$N$4:$N$62,'Quantités viandes'!$B23,Juin!$Q$4:$Q$62),"") -> 20 | I23: =IF($B23<>"",SUMIF(Juillet!$N$4:$N$54,'Quantités viandes'!$B23,Juillet!$Q$4:$Q$54),"") -> 0 | J23: =IF($B23<>"",SUMIF(Août!$N$4:$N$62,'Quantités viandes'!$B23,Août!$Q$4:$Q$62),"") -> 0 | K23: =IF($B23<>"",SUMIF(Septembre!$N$4:$N$65,'Quantités viandes'!$B23,Septembre!$Q$4:$Q$65),"") -> 20 | L23: =IF($B23<>"",SUMIF(Octobre!$N$4:$N$64,'Quantités viandes'!$B23,Octobre!$Q$4:$Q$64),"") -> 0 | M23: =IF($B23<>"",SUMIF(Novembre!$N$4:$N$65,'Quantités viandes'!$B23,Novembre!$Q$4:$Q$65),"") -> 0 | N23: =IF($B23<>"",SUMIF(Décembre!$N$4:$N$64,'Quantités viandes'!$B23,Décembre!$Q$4:$Q$64),"") -> 0 | O23: 60
A24: V21 | B24: Saucisses | C24: =IF($B24<>"",SUMIF(Janvier!$N$4:$N$65,'Quantités viandes'!$B24,Janvier!$Q$4:$Q$65),"") -> 0 | D24: =IF($B24<>"",SUMIF(Février!$N$4:$N$65,'Quantités viandes'!$B24,Février!$Q$4:$Q$65),"") -> 0 | E24: =IF($B24<>"",SUMIF(Mars!$N$4:$N$65,'Quantités viandes'!$B24,Mars!$Q$4:$Q$65),"") -> 4 | F24: =IF($B24<>"",SUMIF(Avril!$N$4:$N$64,'Quantités viandes'!$B24,Avril!$Q$4:$Q$64),"") -> 0 | G24: =IF($B24<>"",SUMIF(Mai!$N$4:$N$64,'Quantités viandes'!$B24,Mai!$Q$4:$Q$64),"") -> 0 | H24: =IF($B24<>"",SUMIF(Juin!$N$4:$N$62,'Quantités viandes'!$B24,Juin!$Q$4:$Q$62),"") -> 4 | I24: =IF($B24<>"",SUMIF(Juillet!$N$4:$N$54,'Quantités viandes'!$B24,Juillet!$Q$4:$Q$54),"") -> 0 | J24: =IF($B24<>"",SUMIF(Août!$N$4:$N$62,'Quantités viandes'!$B24,Août!$Q$4:$Q$62),"") -> 0 | K24: =IF($B24<>"",SUMIF(Septembre!$N$4:$N$65,'Quantités viandes'!$B24,Septembre!$Q$4:$Q$65),"") -> 0 | L24: =IF($B24<>"",SUMIF(Octobre!$N$4:$N$64,'Quantités viandes'!$B24,Octobre!$Q$4:$Q$64),"") -> 4 | M24: =IF($B24<>"",SUMIF(Novembre!$N$4:$N$65,'Quantités viandes'!$B24,Novembre!$Q$4:$Q$65),"") -> 0 | N24: =IF($B24<>"",SUMIF(Décembre!$N$4:$N$64,'Quantités viandes'!$B24,Décembre!$Q$4:$Q$64),"") -> 0 | O24: 12
A25: V22 | B25: Saucisson | C25: =IF($B25<>"",SUMIF(Janvier!$N$4:$N$65,'Quantités viandes'!$B25,Janvier!$Q$4:$Q$65),"") -> 2000 | D25: =IF($B25<>"",SUMIF(Février!$N$4:$N$65,'Quantités viandes'!$B25,Février!$Q$4:$Q$65),"") -> 1600 | E25: =IF($B25<>"",SUMIF(Mars!$N$4:$N$65,'Quantités viandes'!$B25,Mars!$Q$4:$Q$65),"") -> 2000 | F25: =IF($B25<>"",SUMIF(Avril!$N$4:$N$64,'Quantités viandes'!$B25,Avril!$Q$4:$Q$64),"") -> 1867 | G25: =IF($B25<>"",SUMIF(Mai!$N$4:$N$64,'Quantités viandes'!$B25,Mai!$Q$4:$Q$64),"") -> 2000 | H25: =IF($B25<>"",SUMIF(Juin!$N$4:$N$62,'Quantités viandes'!$B25,Juin!$Q$4:$Q$62),"") -> 1867 | I25: =IF($B25<>"",SUMIF(Juillet!$N$4:$N$54,'Quantités viandes'!$B25,Juillet!$Q$4:$Q$54),"") -> 1867 | J25: =IF($B25<>"",SUMIF(Août!$N$4:$N$62,'Quantités viandes'!$B25,Août!$Q$4:$Q$62),"") -> 2133 | K25: =IF($B25<>"",SUMIF(Septembre!$N$4:$N$65,'Quantités viandes'!$B25,Septembre!$Q$4:$Q$65),"") -> 1733 | L25: =IF($B25<>"",SUMIF(Octobre!$N$4:$N$64,'Quantités viandes'!$B25,Octobre!$Q$4:$Q$64),"") -> 1867 | M25: =IF($B25<>"",SUMIF(Novembre!$N$4:$N$65,'Quantités viandes'!$B25,Novembre!$Q$4:$Q$65),"") -> 2000 | N25: =IF($B25<>"",SUMIF(Décembre!$N$4:$N$64,'Quantités viandes'!$B25,Décembre!$Q$4:$Q$64),"") -> 1867 | O25: 22801
A26: V23 | B26: Tête persillée | C26: =IF($B26<>"",SUMIF(Janvier!$N$4:$N$65,'Quantités viandes'!$B26,Janvier!$Q$4:$Q$65),"") -> 0 | D26: =IF($B26<>"",SUMIF(Février!$N$4:$N$65,'Quantités viandes'!$B26,Février!$Q$4:$Q$65),"") -> 0 | E26: =IF($B26<>"",SUMIF(Mars!$N$4:$N$65,'Quantités viandes'!$B26,Mars!$Q$4:$Q$65),"") -> 1 | F26: =IF($B26<>"",SUMIF(Avril!$N$4:$N$64,'Quantités viandes'!$B26,Avril!$Q$4:$Q$64),"") -> 0 | G26: =IF($B26<>"",SUMIF(Mai!$N$4:$N$64,'Quantités viandes'!$B26,Mai!$Q$4:$Q$64),"") -> 0 | H26: =IF($B26<>"",SUMIF(Juin!$N$4:$N$62,'Quantités viandes'!$B26,Juin!$Q$4:$Q$62),"") -> 0 | I26: =IF($B26<>"",SUMIF(Juillet!$N$4:$N$54,'Quantités viandes'!$B26,Juillet!$Q$4:$Q$54),"") -> 1 | J26: =IF($B26<>"",SUMIF(Août!$N$4:$N$62,'Quantités viandes'!$B26,Août!$Q$4:$Q$62),"") -> 0 | K26: =IF($B26<>"",SUMIF(Septembre!$N$4:$N$65,'Quantités viandes'!$B26,Septembre!$Q$4:$Q$65),"") -> 0 | L26: =IF($B26<>"",SUMIF(Octobre!$N$4:$N$64,'Quantités viandes'!$B26,Octobre!$Q$4:$Q$64),"") -> 1 | M26: =IF($B26<>"",SUMIF(Novembre!$N$4:$N$65,'Quantités viandes'!$B26,Novembre!$Q$4:$Q$65),"") -> 0 | N26: =IF($B26<>"",SUMIF(Décembre!$N$4:$N$64,'Quantités viandes'!$B26,Décembre!$Q$4:$Q$64),"") -> 0 | O26: 3
A27: V24 | B27: Tête roulée | C27: =IF($B27<>"",SUMIF(Janvier!$N$4:$N$65,'Quantités viandes'!$B27,Janvier!$Q$4:$Q$65),"") -> 0 | D27: =IF($B27<>"",SUMIF(Février!$N$4:$N$65,'Quantités viandes'!$B27,Février!$Q$4:$Q$65),"") -> 0 | E27: =IF($B27<>"",SUMIF(Mars!$N$4:$N$65,'Quantités viandes'!$B27,Mars!$Q$4:$Q$65),"") -> 0.5 | F27: =IF($B27<>"",SUMIF(Avril!$N$4:$N$64,'Quantités viandes'!$B27,Avril!$Q$4:$Q$64),"") -> 0.5 | G27: =IF($B27<>"",SUMIF(Mai!$N$4:$N$64,'Quantités viandes'!$B27,Mai!$Q$4:$Q$64),"") -> 0 | H27: =IF($B27<>"",SUMIF(Juin!$N$4:$N$62,'Quantités viandes'!$B27,Juin!$Q$4:$Q$62),"") -> 0 | I27: =IF($B27<>"",SUMIF(Juillet!$N$4:$N$54,'Quantités viandes'!$B27,Juillet!$Q$4:$Q$54),"") -> 1 | J27: =IF($B27<>"",SUMIF(Août!$N$4:$N$62,'Quantités viandes'!$B27,Août!$Q$4:$Q$62),"") -> 0 | K27: =IF($B27<>"",SUMIF(Septembre!$N$4:$N$65,'Quantités viandes'!$B27,Septembre!$Q$4:$Q$65),"") -> 0 | L27: =IF($B27<>"",SUMIF(Octobre!$N$4:$N$64,'Quantités viandes'!$B27,Octobre!$Q$4:$Q$64),"") -> 1 | M27: =IF($B27<>"",SUMIF(Novembre!$N$4:$N$65,'Quantités viandes'!$B27,Novembre!$Q$4:$Q$65),"") -> 0 | N27: =IF($B27<>"",SUMIF(Décembre!$N$4:$N$64,'Quantités viandes'!$B27,Décembre!$Q$4:$Q$64),"") -> 0 | O27: 3
A28: V25 | B28: Thon | C28: =IF($B28<>"",SUMIF(Janvier!$N$4:$N$65,'Quantités viandes'!$B28,Janvier!$Q$4:$Q$65),"") -> 0 | D28: =IF($B28<>"",SUMIF(Février!$N$4:$N$65,'Quantités viandes'!$B28,Février!$Q$4:$Q$65),"") -> 0 | E28: =IF($B28<>"",SUMIF(Mars!$N$4:$N$65,'Quantités viandes'!$B28,Mars!$Q$4:$Q$65),"") -> 0 | F28: =IF($B28<>"",SUMIF(Avril!$N$4:$N$64,'Quantités viandes'!$B28,Avril!$Q$4:$Q$64),"") -> 1 | G28: =IF($B28<>"",SUMIF(Mai!$N$4:$N$64,'Quantités viandes'!$B28,Mai!$Q$4:$Q$64),"") -> 0 | H28: =IF($B28<>"",SUMIF(Juin!$N$4:$N$62,'Quantités viandes'!$B28,Juin!$Q$4:$Q$62),"") -> 0 | I28: =IF($B28<>"",SUMIF(Juillet!$N$4:$N$54,'Quantités viandes'!$B28,Juillet!$Q$4:$Q$54),"") -> 1 | J28: =IF($B28<>"",SUMIF(Août!$N$4:$N$62,'Quantités viandes'!$B28,Août!$Q$4:$Q$62),"") -> 0 | K28: =IF($B28<>"",SUMIF(Septembre!$N$4:$N$65,'Quantités viandes'!$B28,Septembre!$Q$4:$Q$65),"") -> 0 | L28: =IF($B28<>"",SUMIF(Octobre!$N$4:$N$64,'Quantités viandes'!$B28,Octobre!$Q$4:$Q$64),"") -> 1 | M28: =IF($B28<>"",SUMIF(Novembre!$N$4:$N$65,'Quantités viandes'!$B28,Novembre!$Q$4:$Q$65),"") -> 0 | N28: =IF($B28<>"",SUMIF(Décembre!$N$4:$N$64,'Quantités viandes'!$B28,Décembre!$Q$4:$Q$64),"") -> 0 | O28: 3
A29: V26 | B29: Viande cassoulet | C29: =IF($B29<>"",SUMIF(Janvier!$N$4:$N$65,'Quantités viandes'!$B29,Janvier!$Q$4:$Q$65),"") -> 0 | D29: =IF($B29<>"",SUMIF(Février!$N$4:$N$65,'Quantités viandes'!$B29,Février!$Q$4:$Q$65),"") -> 1 | E29: =IF($B29<>"",SUMIF(Mars!$N$4:$N$65,'Quantités viandes'!$B29,Mars!$Q$4:$Q$65),"") -> 0 | F29: =IF($B29<>"",SUMIF(Avril!$N$4:$N$64,'Quantités viandes'!$B29,Avril!$Q$4:$Q$64),"") -> 0 | G29: =IF($B29<>"",SUMIF(Mai!$N$4:$N$64,'Quantités viandes'!$B29,Mai!$Q$4:$Q$64),"") -> 1 | H29: =IF($B29<>"",SUMIF(Juin!$N$4:$N$62,'Quantités viandes'!$B29,Juin!$Q$4:$Q$62),"") -> 0 | I29: =IF($B29<>"",SUMIF(Juillet!$N$4:$N$54,'Quantités viandes'!$B29,Juillet!$Q$4:$Q$54),"") -> 0 | J29: =IF($B29<>"",SUMIF(Août!$N$4:$N$62,'Quantités viandes'!$B29,Août!$Q$4:$Q$62),"") -> 0 | K29: =IF($B29<>"",SUMIF(Septembre!$N$4:$N$65,'Quantités viandes'!$B29,Septembre!$Q$4:$Q$65),"") -> 1 | L29: =IF($B29<>"",SUMIF(Octobre!$N$4:$N$64,'Quantités viandes'!$B29,Octobre!$Q$4:$Q$64),"") -> 0 | M29: =IF($B29<>"",SUMIF(Novembre!$N$4:$N$65,'Quantités viandes'!$B29,Novembre!$Q$4:$Q$65),"") -> 0 | N29: =IF($B29<>"",SUMIF(Décembre!$N$4:$N$64,'Quantités viandes'!$B29,Décembre!$Q$4:$Q$64),"") -> 1 | O29: 4
A30: V27 | B30: Viande choucroute | C30: =IF($B30<>"",SUMIF(Janvier!$N$4:$N$65,'Quantités viandes'!$B30,Janvier!$Q$4:$Q$65),"") -> 0 | D30: =IF($B30<>"",SUMIF(Février!$N$4:$N$65,'Quantités viandes'!$B30,Février!$Q$4:$Q$65),"") -> 1 | E30: =IF($B30<>"",SUMIF(Mars!$N$4:$N$65,'Quantités viandes'!$B30,Mars!$Q$4:$Q$65),"") -> 0 | F30: =IF($B30<>"",SUMIF(Avril!$N$4:$N$64,'Quantités viandes'!$B30,Avril!$Q$4:$Q$64),"") -> 0 | G30: =IF($B30<>"",SUMIF(Mai!$N$4:$N$64,'Quantités viandes'!$B30,Mai!$Q$4:$Q$64),"") -> 0 | H30: =IF($B30<>"",SUMIF(Juin!$N$4:$N$62,'Quantités viandes'!$B30,Juin!$Q$4:$Q$62),"") -> 1 | I30: =IF($B30<>"",SUMIF(Juillet!$N$4:$N$54,'Quantités viandes'!$B30,Juillet!$Q$4:$Q$54),"") -> 0 | J30: =IF($B30<>"",SUMIF(Août!$N$4:$N$62,'Quantités viandes'!$B30,Août!$Q$4:$Q$62),"") -> 0 | K30: =IF($B30<>"",SUMIF(Septembre!$N$4:$N$65,'Quantités viandes'!$B30,Septembre!$Q$4:$Q$65),"") -> 1 | L30: =IF($B30<>"",SUMIF(Octobre!$N$4:$N$64,'Quantités viandes'!$B30,Octobre!$Q$4:$Q$64),"") -> 0 | M30: =IF($B30<>"",SUMIF(Novembre!$N$4:$N$65,'Quantités viandes'!$B30,Novembre!$Q$4:$Q$65),"") -> 0 | N30: =IF($B30<>"",SUMIF(Décembre!$N$4:$N$64,'Quantités viandes'!$B30,Décembre!$Q$4:$Q$64),"") -> 1 | O30: 4
A31: V28 | B31: Viande paella | C31: =IF($B31<>"",SUMIF(Janvier!$N$4:$N$65,'Quantités viandes'!$B31,Janvier!$Q$4:$Q$65),"") -> 1 | D31: =IF($B31<>"",SUMIF(Février!$N$4:$N$65,'Quantités viandes'!$B31,Février!$Q$4:$Q$65),"") -> 0 | E31: =IF($B31<>"",SUMIF(Mars!$N$4:$N$65,'Quantités viandes'!$B31,Mars!$Q$4:$Q$65),"") -> 0 | F31: =IF($B31<>"",SUMIF(Avril!$N$4:$N$64,'Quantités viandes'!$B31,Avril!$Q$4:$Q$64),"") -> 1 | G31: =IF($B31<>"",SUMIF(Mai!$N$4:$N$64,'Quantités viandes'!$B31,Mai!$Q$4:$Q$64),"") -> 0 | H31: =IF($B31<>"",SUMIF(Juin!$N$4:$N$62,'Quantités viandes'!$B31,Juin!$Q$4:$Q$62),"") -> 0 | I31: =IF($B31<>"",SUMIF(Juillet!$N$4:$N$54,'Quantités viandes'!$B31,Juillet!$Q$4:$Q$54),"") -> 1 | J31: =IF($B31<>"",SUMIF(Août!$N$4:$N$62,'Quantités viandes'!$B31,Août!$Q$4:$Q$62),"") -> 0 | K31: =IF($B31<>"",SUMIF(Septembre!$N$4:$N$65,'Quantités viandes'!$B31,Septembre!$Q$4:$Q$65),"") -> 0 | L31: =IF($B31<>"",SUMIF(Octobre!$N$4:$N$64,'Quantités viandes'!$B31,Octobre!$Q$4:$Q$64),"") -> 1 | M31: =IF($B31<>"",SUMIF(Novembre!$N$4:$N$65,'Quantités viandes'!$B31,Novembre!$Q$4:$Q$65),"") -> 0 | N31: =IF($B31<>"",SUMIF(Décembre!$N$4:$N$64,'Quantités viandes'!$B31,Décembre!$Q$4:$Q$64),"") -> 0 | O31: 4
A32: V29 | B32: Agneau | C32: =IF($B32<>"",SUMIF(Janvier!$N$4:$N$65,'Quantités viandes'!$B32,Janvier!$Q$4:$Q$65),"") -> 1 | D32: =IF($B32<>"",SUMIF(Février!$N$4:$N$65,'Quantités viandes'!$B32,Février!$Q$4:$Q$65),"") -> 1 | E32: =IF($B32<>"",SUMIF(Mars!$N$4:$N$65,'Quantités viandes'!$B32,Mars!$Q$4:$Q$65),"") -> 1 | F32: =IF($B32<>"",SUMIF(Avril!$N$4:$N$64,'Quantités viandes'!$B32,Avril!$Q$4:$Q$64),"") -> 2 | G32: =IF($B32<>"",SUMIF(Mai!$N$4:$N$64,'Quantités viandes'!$B32,Mai!$Q$4:$Q$64),"") -> 1 | H32: =IF($B32<>"",SUMIF(Juin!$N$4:$N$62,'Quantités viandes'!$B32,Juin!$Q$4:$Q$62),"") -> 1 | I32: =IF($B32<>"",SUMIF(Juillet!$N$4:$N$54,'Quantités viandes'!$B32,Juillet!$Q$4:$Q$54),"") -> 0 | J32: =IF($B32<>"",SUMIF(Août!$N$4:$N$62,'Quantités viandes'!$B32,Août!$Q$4:$Q$62),"") -> 0 | K32: =IF($B32<>"",SUMIF(Septembre!$N$4:$N$65,'Quantités viandes'!$B32,Septembre!$Q$4:$Q$65),"") -> 1 | L32: =IF($B32<>"",SUMIF(Octobre!$N$4:$N$64,'Quantités viandes'!$B32,Octobre!$Q$4:$Q$64),"") -> 1 | M32: =IF($B32<>"",SUMIF(Novembre!$N$4:$N$65,'Quantités viandes'!$B32,Novembre!$Q$4:$Q$65),"") -> 1 | N32: =IF($B32<>"",SUMIF(Décembre!$N$4:$N$64,'Quantités viandes'!$B32,Décembre!$Q$4:$Q$64),"") -> 2 | O32: 12
A33: V30 | B33: Bœuf | C33: =IF($B33<>"",SUMIF(Janvier!$N$4:$N$65,'Quantités viandes'!$B33,Janvier!$Q$4:$Q$65),"") -> 1 | D33: =IF($B33<>"",SUMIF(Février!$N$4:$N$65,'Quantités viandes'!$B33,Février!$Q$4:$Q$65),"") -> 1 | E33: =IF($B33<>"",SUMIF(Mars!$N$4:$N$65,'Quantités viandes'!$B33,Mars!$Q$4:$Q$65),"") -> 1 | F33: =IF($B33<>"",SUMIF(Avril!$N$4:$N$64,'Quantités viandes'!$B33,Avril!$Q$4:$Q$64),"") -> 2 | G33: =IF($B33<>"",SUMIF(Mai!$N$4:$N$64,'Quantités viandes'!$B33,Mai!$Q$4:$Q$64),"") -> 1 | H33: =IF($B33<>"",SUMIF(Juin!$N$4:$N$62,'Quantités viandes'!$B33,Juin!$Q$4:$Q$62),"") -> 1 | I33: =IF($B33<>"",SUMIF(Juillet!$N$4:$N$54,'Quantités viandes'!$B33,Juillet!$Q$4:$Q$54),"") -> 0 | J33: =IF($B33<>"",SUMIF(Août!$N$4:$N$62,'Quantités viandes'!$B33,Août!$Q$4:$Q$62),"") -> 2 | K33: =IF($B33<>"",SUMIF(Septembre!$N$4:$N$65,'Quantités viandes'!$B33,Septembre!$Q$4:$Q$65),"") -> 1 | L33: =IF($B33<>"",SUMIF(Octobre!$N$4:$N$64,'Quantités viandes'!$B33,Octobre!$Q$4:$Q$64),"") -> 1 | M33: =IF($B33<>"",SUMIF(Novembre!$N$4:$N$65,'Quantités viandes'!$B33,Novembre!$Q$4:$Q$65),"") -> 1 | N33: =IF($B33<>"",SUMIF(Décembre!$N$4:$N$64,'Quantités viandes'!$B33,Décembre!$Q$4:$Q$64),"") -> 2 | O33: 14
A34: V31 | B34: cheval | C34: =IF($B34<>"",SUMIF(Janvier!$N$4:$N$65,'Quantités viandes'!$B34,Janvier!$Q$4:$Q$65),"") -> 1 | D34: =IF($B34<>"",SUMIF(Février!$N$4:$N$65,'Quantités viandes'!$B34,Février!$Q$4:$Q$65),"") -> 1 | E34: =IF($B34<>"",SUMIF(Mars!$N$4:$N$65,'Quantités viandes'!$B34,Mars!$Q$4:$Q$65),"") -> 1 | F34: =IF($B34<>"",SUMIF(Avril!$N$4:$N$64,'Quantités viandes'!$B34,Avril!$Q$4:$Q$64),"") -> 2 | G34: =IF($B34<>"",SUMIF(Mai!$N$4:$N$64,'Quantités viandes'!$B34,Mai!$Q$4:$Q$64),"") -> 0 | H34: =IF($B34<>"",SUMIF(Juin!$N$4:$N$62,'Quantités viandes'!$B34,Juin!$Q$4:$Q$62),"") -> 1 | I34: =IF($B34<>"",SUMIF(Juillet!$N$4:$N$54,'Quantités viandes'!$B34,Juillet!$Q$4:$Q$54),"") -> 0 | J34: =IF($B34<>"",SUMIF(Août!$N$4:$N$62,'Quantités viandes'!$B34,Août!$Q$4:$Q$62),"") -> 1 | K34: =IF($B34<>"",SUMIF(Septembre!$N$4:$N$65,'Quantités viandes'!$B34,Septembre!$Q$4:$Q$65),"") -> 2 | L34: =IF($B34<>"",SUMIF(Octobre!$N$4:$N$64,'Quantités viandes'!$B34,Octobre!$Q$4:$Q$64),"") -> 1 | M34: =IF($B34<>"",SUMIF(Novembre!$N$4:$N$65,'Quantités viandes'!$B34,Novembre!$Q$4:$Q$65),"") -> 1 | N34: =IF($B34<>"",SUMIF(Décembre!$N$4:$N$64,'Quantités viandes'!$B34,Décembre!$Q$4:$Q$64),"") -> 1 | O34: 12
A35: V32 | B35: Dinde | C35: =IF($B35<>"",SUMIF(Janvier!$N$4:$N$65,'Quantités viandes'!$B35,Janvier!$Q$4:$Q$65),"") -> 2 | D35: =IF($B35<>"",SUMIF(Février!$N$4:$N$65,'Quantités viandes'!$B35,Février!$Q$4:$Q$65),"") -> 2 | E35: =IF($B35<>"",SUMIF(Mars!$N$4:$N$65,'Quantités viandes'!$B35,Mars!$Q$4:$Q$65),"") -> 1 | F35: =IF($B35<>"",SUMIF(Avril!$N$4:$N$64,'Quantités viandes'!$B35,Avril!$Q$4:$Q$64),"") -> 1 | G35: =IF($B35<>"",SUMIF(Mai!$N$4:$N$64,'Quantités viandes'!$B35,Mai!$Q$4:$Q$64),"") -> 1 | H35: =IF($B35<>"",SUMIF(Juin!$N$4:$N$62,'Quantités viandes'!$B35,Juin!$Q$4:$Q$62),"") -> 1 | I35: =IF($B35<>"",SUMIF(Juillet!$N$4:$N$54,'Quantités viandes'!$B35,Juillet!$Q$4:$Q$54),"") -> 0 | J35: =IF($B35<>"",SUMIF(Août!$N$4:$N$62,'Quantités viandes'!$B35,Août!$Q$4:$Q$62),"") -> 1 | K35: =IF($B35<>"",SUMIF(Septembre!$N$4:$N$65,'Quantités viandes'!$B35,Septembre!$Q$4:$Q$65),"") -> 2 | L35: =IF($B35<>"",SUMIF(Octobre!$N$4:$N$64,'Quantités viandes'!$B35,Octobre!$Q$4:$Q$64),"") -> 1 | M35: =IF($B35<>"",SUMIF(Novembre!$N$4:$N$65,'Quantités viandes'!$B35,Novembre!$Q$4:$Q$65),"") -> 1 | N35: =IF($B35<>"",SUMIF(Décembre!$N$4:$N$64,'Quantités viandes'!$B35,Décembre!$Q$4:$Q$64),"") -> 1 | O35: 14
A36: V34 | B36: Porc | C36: =IF($B36<>"",SUMIF(Janvier!$N$4:$N$65,'Quantités viandes'!$B36,Janvier!$Q$4:$Q$65),"") -> 1 | D36: =IF($B36<>"",SUMIF(Février!$N$4:$N$65,'Quantités viandes'!$B36,Février!$Q$4:$Q$65),"") -> 2 | E36: =IF($B36<>"",SUMIF(Mars!$N$4:$N$65,'Quantités viandes'!$B36,Mars!$Q$4:$Q$65),"") -> 1 | F36: =IF($B36<>"",SUMIF(Avril!$N$4:$N$64,'Quantités viandes'!$B36,Avril!$Q$4:$Q$64),"") -> 1 | G36: =IF($B36<>"",SUMIF(Mai!$N$4:$N$64,'Quantités viandes'!$B36,Mai!$Q$4:$Q$64),"") -> 1 | H36: =IF($B36<>"",SUMIF(Juin!$N$4:$N$62,'Quantités viandes'!$B36,Juin!$Q$4:$Q$62),"") -> 1 | I36: =IF($B36<>"",SUMIF(Juillet!$N$4:$N$54,'Quantités viandes'!$B36,Juillet!$Q$4:$Q$54),"") -> 0 | J36: =IF($B36<>"",SUMIF(Août!$N$4:$N$62,'Quantités viandes'!$B36,Août!$Q$4:$Q$62),"") -> 0 | K36: =IF($B36<>"",SUMIF(Septembre!$N$4:$N$65,'Quantités viandes'!$B36,Septembre!$Q$4:$Q$65),"") -> 1 | L36: =IF($B36<>"",SUMIF(Octobre!$N$4:$N$64,'Quantités viandes'!$B36,Octobre!$Q$4:$Q$64),"") -> 1 | M36: =IF($B36<>"",SUMIF(Novembre!$N$4:$N$65,'Quantités viandes'!$B36,Novembre!$Q$4:$Q$65),"") -> 1 | N36: =IF($B36<>"",SUMIF(Décembre!$N$4:$N$64,'Quantités viandes'!$B36,Décembre!$Q$4:$Q$64),"") -> 1 | O36: 11
A37: V35 | B37: Veau | C37: =IF($B37<>"",SUMIF(Janvier!$N$4:$N$65,'Quantités viandes'!$B37,Janvier!$Q$4:$Q$65),"") -> 1 | D37: =IF($B37<>"",SUMIF(Février!$N$4:$N$65,'Quantités viandes'!$B37,Février!$Q$4:$Q$65),"") -> 1 | E37: =IF($B37<>"",SUMIF(Mars!$N$4:$N$65,'Quantités viandes'!$B37,Mars!$Q$4:$Q$65),"") -> 2 | F37: =IF($B37<>"",SUMIF(Avril!$N$4:$N$64,'Quantités viandes'!$B37,Avril!$Q$4:$Q$64),"") -> 1 | G37: =IF($B37<>"",SUMIF(Mai!$N$4:$N$64,'Quantités viandes'!$B37,Mai!$Q$4:$Q$64),"") -> 1 | H37: =IF($B37<>"",SUMIF(Juin!$N$4:$N$62,'Quantités viandes'!$B37,Juin!$Q$4:$Q$62),"") -> 1 | I37: =IF($B37<>"",SUMIF(Juillet!$N$4:$N$54,'Quantités viandes'!$B37,Juillet!$Q$4:$Q$54),"") -> 0 | J37: =IF($B37<>"",SUMIF(Août!$N$4:$N$62,'Quantités viandes'!$B37,Août!$Q$4:$Q$62),"") -> 0 | K37: =IF($B37<>"",SUMIF(Septembre!$N$4:$N$65,'Quantités viandes'!$B37,Septembre!$Q$4:$Q$65),"") -> 1 | L37: =IF($B37<>"",SUMIF(Octobre!$N$4:$N$64,'Quantités viandes'!$B37,Octobre!$Q$4:$Q$64),"") -> 1 | M37: =IF($B37<>"",SUMIF(Novembre!$N$4:$N$65,'Quantités viandes'!$B37,Novembre!$Q$4:$Q$65),"") -> 2 | N37: =IF($B37<>"",SUMIF(Décembre!$N$4:$N$64,'Quantités viandes'!$B37,Décembre!$Q$4:$Q$64),"") -> 1 | O37: 12
A38: VMR01 | B38: Rôti d'agneau | C38: =IF($B38<>"",SUMIF(Janvier!$N$4:$N$65,'Quantités viandes'!$B38,Janvier!$Q$4:$Q$65),"") -> 500 | D38: =IF($B38<>"",SUMIF(Février!$N$4:$N$65,'Quantités viandes'!$B38,Février!$Q$4:$Q$65),"") -> 500 | E38: =IF($B38<>"",SUMIF(Mars!$N$4:$N$65,'Quantités viandes'!$B38,Mars!$Q$4:$Q$65),"") -> 500 | F38: =IF($B38<>"",SUMIF(Avril!$N$4:$N$64,'Quantités viandes'!$B38,Avril!$Q$4:$Q$64),"") -> 0 | G38: =IF($B38<>"",SUMIF(Mai!$N$4:$N$64,'Quantités viandes'!$B38,Mai!$Q$4:$Q$64),"") -> 500 | H38: =IF($B38<>"",SUMIF(Juin!$N$4:$N$62,'Quantités viandes'!$B38,Juin!$Q$4:$Q$62),"") -> 500 | I38: =IF($B38<>"",SUMIF(Juillet!$N$4:$N$54,'Quantités viandes'!$B38,Juillet!$Q$4:$Q$54),"") -> 500 | J38: =IF($B38<>"",SUMIF(Août!$N$4:$N$62,'Quantités viandes'!$B38,Août!$Q$4:$Q$62),"") -> 500 | K38: =IF($B38<>"",SUMIF(Septembre!$N$4:$N$65,'Quantités viandes'!$B38,Septembre!$Q$4:$Q$65),"") -> 600 | L38: =IF($B38<>"",SUMIF(Octobre!$N$4:$N$64,'Quantités viandes'!$B38,Octobre!$Q$4:$Q$64),"") -> 500 | M38: =IF($B38<>"",SUMIF(Novembre!$N$4:$N$65,'Quantités viandes'!$B38,Novembre!$Q$4:$Q$65),"") -> 400 | N38: =IF($B38<>"",SUMIF(Décembre!$N$4:$N$64,'Quantités viandes'!$B38,Décembre!$Q$4:$Q$64),"") -> 100 | O38: 5100
A39: VMR02 | B39: Rôti de bœuf | C39: =IF($B39<>"",SUMIF(Janvier!$N$4:$N$65,'Quantités viandes'!$B39,Janvier!$Q$4:$Q$65),"") -> 500 | D39: =IF($B39<>"",SUMIF(Février!$N$4:$N$65,'Quantités viandes'!$B39,Février!$Q$4:$Q$65),"") -> 200 | E39: =IF($B39<>"",SUMIF(Mars!$N$4:$N$65,'Quantités viandes'!$B39,Mars!$Q$4:$Q$65),"") -> 300 | F39: =IF($B39<>"",SUMIF(Avril!$N$4:$N$64,'Quantités viandes'!$B39,Avril!$Q$4:$Q$64),"") -> 500 | G39: =IF($B39<>"",SUMIF(Mai!$N$4:$N$64,'Quantités viandes'!$B39,Mai!$Q$4:$Q$64),"") -> 500 | H39: =IF($B39<>"",SUMIF(Juin!$N$4:$N$62,'Quantités viandes'!$B39,Juin!$Q$4:$Q$62),"") -> 500 | I39: =IF($B39<>"",SUMIF(Juillet!$N$4:$N$54,'Quantités viandes'!$B39,Juillet!$Q$4:$Q$54),"") -> 500 | J39: =IF($B39<>"",SUMIF(Août!$N$4:$N$62,'Quantités viandes'!$B39,Août!$Q$4:$Q$62),"") -> 500 | K39: =IF($B39<>"",SUMIF(Septembre!$N$4:$N$65,'Quantités viandes'!$B39,Septembre!$Q$4:$Q$65),"") -> 500 | L39: =IF($B39<>"",SUMIF(Octobre!$N$4:$N$64,'Quantités viandes'!$B39,Octobre!$Q$4:$Q$64),"") -> 200 | M39: =IF($B39<>"",SUMIF(Novembre!$N$4:$N$65,'Quantités viandes'!$B39,Novembre!$Q$4:$Q$65),"") -> 300 | N39: =IF($B39<>"",SUMIF(Décembre!$N$4:$N$64,'Quantités viandes'!$B39,Décembre!$Q$4:$Q$64),"") -> 500 | O39: 5000
A40: VMR03 | B40: Rôti de cheval | C40: =IF($B40<>"",SUMIF(Janvier!$N$4:$N$65,'Quantités viandes'!$B40,Janvier!$Q$4:$Q$65),"") -> 200 | D40: =IF($B40<>"",SUMIF(Février!$N$4:$N$65,'Quantités viandes'!$B40,Février!$Q$4:$Q$65),"") -> 300 | E40: =IF($B40<>"",SUMIF(Mars!$N$4:$N$65,'Quantités viandes'!$B40,Mars!$Q$4:$Q$65),"") -> 500 | F40: =IF($B40<>"",SUMIF(Avril!$N$4:$N$64,'Quantités viandes'!$B40,Avril!$Q$4:$Q$64),"") -> 500 | G40: =IF($B40<>"",SUMIF(Mai!$N$4:$N$64,'Quantités viandes'!$B40,Mai!$Q$4:$Q$64),"") -> 500 | H40: =IF($B40<>"",SUMIF(Juin!$N$4:$N$62,'Quantités viandes'!$B40,Juin!$Q$4:$Q$62),"") -> 500 | I40: =IF($B40<>"",SUMIF(Juillet!$N$4:$N$54,'Quantités viandes'!$B40,Juillet!$Q$4:$Q$54),"") -> 500 | J40: =IF($B40<>"",SUMIF(Août!$N$4:$N$62,'Quantités viandes'!$B40,Août!$Q$4:$Q$62),"") -> 400 | K40: =IF($B40<>"",SUMIF(Septembre!$N$4:$N$65,'Quantités viandes'!$B40,Septembre!$Q$4:$Q$65),"") -> 100 | L40: =IF($B40<>"",SUMIF(Octobre!$N$4:$N$64,'Quantités viandes'!$B40,Octobre!$Q$4:$Q$64),"") -> 500 | M40: =IF($B40<>"",SUMIF(Novembre!$N$4:$N$65,'Quantités viandes'!$B40,Novembre!$Q$4:$Q$65),"") -> 500 | N40: =IF($B40<>"",SUMIF(Décembre!$N$4:$N$64,'Quantités viandes'!$B40,Décembre!$Q$4:$Q$64),"") -> 500 | O40: 5000
A41: VMR04 | B41: Rôti de porc | C41: =IF($B41<>"",SUMIF(Janvier!$N$4:$N$65,'Quantités viandes'!$B41,Janvier!$Q$4:$Q$65),"") -> 500 | D41: =IF($B41<>"",SUMIF(Février!$N$4:$N$65,'Quantités viandes'!$B41,Février!$Q$4:$Q$65),"") -> 500 | E41: =IF($B41<>"",SUMIF(Mars!$N$4:$N$65,'Quantités viandes'!$B41,Mars!$Q$4:$Q$65),"") -> 500 | F41: =IF($B41<>"",SUMIF(Avril!$N$4:$N$64,'Quantités viandes'!$B41,Avril!$Q$4:$Q$64),"") -> 500 | G41: =IF($B41<>"",SUMIF(Mai!$N$4:$N$64,'Quantités viandes'!$B41,Mai!$Q$4:$Q$64),"") -> 500 | H41: =IF($B41<>"",SUMIF(Juin!$N$4:$N$62,'Quantités viandes'!$B41,Juin!$Q$4:$Q$62),"") -> 500 | I41: =IF($B41<>"",SUMIF(Juillet!$N$4:$N$54,'Quantités viandes'!$B41,Juillet!$Q$4:$Q$54),"") -> 100 | J41: =IF($B41<>"",SUMIF(Août!$N$4:$N$62,'Quantités viandes'!$B41,Août!$Q$4:$Q$62),"") -> 400 | K41: =IF($B41<>"",SUMIF(Septembre!$N$4:$N$65,'Quantités viandes'!$B41,Septembre!$Q$4:$Q$65),"") -> 500 | L41: =IF($B41<>"",SUMIF(Octobre!$N$4:$N$64,'Quantités viandes'!$B41,Octobre!$Q$4:$Q$64),"") -> 500 | M41: =IF($B41<>"",SUMIF(Novembre!$N$4:$N$65,'Quantités viandes'!$B41,Novembre!$Q$4:$Q$65),"") -> 500 | N41: =IF($B41<>"",SUMIF(Décembre!$N$4:$N$64,'Quantités viandes'!$B41,Décembre!$Q$4:$Q$64),"") -> 500 | O41: 5500
A42: VMR05 | B42: Rôti de veau | C42: =IF($B42<>"",SUMIF(Janvier!$N$4:$N$65,'Quantités viandes'!$B42,Janvier!$Q$4:$Q$65),"") -> 500 | D42: =IF($B42<>"",SUMIF(Février!$N$4:$N$65,'Quantités viandes'!$B42,Février!$Q$4:$Q$65),"") -> 500 | E42: =IF($B42<>"",SUMIF(Mars!$N$4:$N$65,'Quantités viandes'!$B42,Mars!$Q$4:$Q$65),"") -> 500 | F42: =IF($B42<>"",SUMIF(Avril!$N$4:$N$64,'Quantités viandes'!$B42,Avril!$Q$4:$Q$64),"") -> 500 | G42: =IF($B42<>"",SUMIF(Mai!$N$4:$N$64,'Quantités viandes'!$B42,Mai!$Q$4:$Q$64),"") -> 400 | H42: =IF($B42<>"",SUMIF(Juin!$N$4:$N$62,'Quantités viandes'!$B42,Juin!$Q$4:$Q$62),"") -> 200 | I42: =IF($B42<>"",SUMIF(Juillet!$N$4:$N$54,'Quantités viandes'!$B42,Juillet!$Q$4:$Q$54),"") -> 400 | J42: =IF($B42<>"",SUMIF(Août!$N$4:$N$62,'Quantités viandes'!$B42,Août!$Q$4:$Q$62),"") -> 500 | K42: =IF($B42<>"",SUMIF(Septembre!$N$4:$N$65,'Quantités viandes'!$B42,Septembre!$Q$4:$Q$65),"") -> 500 | L42: =IF($B42<>"",SUMIF(Octobre!$N$4:$N$64,'Quantités viandes'!$B42,Octobre!$Q$4:$Q$64),"") -> 500 | M42: =IF($B42<>"",SUMIF(Novembre!$N$4:$N$65,'Quantités viandes'!$B42,Novembre!$Q$4:$Q$65),"") -> 500 | N42: =IF($B42<>"",SUMIF(Décembre!$N$4:$N$64,'Quantités viandes'!$B42,Décembre!$Q$4:$Q$64),"") -> 500 | O42: 5500
A44: Fait à Limeil-Brévannes, le jeudi 05 janvier 2017.

Sheet Quantités desserts
A1: Récapitulatif des quantités desserts de l'année 2017.
A2: Accueil
A3: Code desserts | B3: Desserts | C3: Janvier | D3: Février | E3: Mars | F3: Avril | G3: Mai | H3: Juin | I3: Juillet | J3: Août | K3: Septembre | L3: Octobre | M3: Novembre | N3: Décembre | O3: Total
A4: D01 | B4: Ananas | C4: =IF($B4<>"",SUMIF(Janvier!S$4:$S$65,'Quantités desserts'!$B4,Janvier!$V$4:$V$65),"") -> 0 | D4: =IF($B4<>"",SUMIF(Février!$S$4:T$65,'Quantités desserts'!$B4,Février!$V$4:$V$65),"") -> 1 | E4: =IF($B4<>"",SUMIF(Mars!$S$4:U$65,'Quantités desserts'!$B4,Mars!$V$4:$V$65),"") -> 0 | F4: =IF($B4<>"",SUMIF(Avril!$S$4:V$64,'Quantités desserts'!$B4,Avril!$V$4:$V$64),"") -> 0 | G4: =IF($B4<>"",SUMIF(Mai!$S$4:W$64,'Quantités desserts'!$B4,Mai!$V$4:$V$64),"") -> 0 | H4: =IF($B4<>"",SUMIF(Juin!$S$4:X$62,'Quantités desserts'!$B4,Juin!$V$4:$V$62),"") -> 0 | I4: =IF($B4<>"",SUMIF(Juillet!$S$4:Y$54,'Quantités desserts'!$B4,Juillet!$V$4:$V$54),"") -> 1 | J4: =IF($B4<>"",SUMIF(Août!$S$4:Z$62,'Quantités desserts'!$B4,Août!$V$4:$V$62),"") -> 0 | K4: =IF($B4<>"",SUMIF(Septembre!$S$4:AA$65,'Quantités desserts'!$B4,Septembre!$V$4:$V$65),"") -> 0 | L4: =IF($B4<>"",SUMIF(Octobre!$S$4:AB$64,'Quantités desserts'!$B4,Octobre!$V$4:$V$64),"") -> 0 | M4: =IF($B4<>"",SUMIF(Novembre!$S$4:AC$65,'Quantités desserts'!$B4,Novembre!$V$4:$V$65),"") -> 0 | N4: =IF($B4<>"",SUMIF(Décembre!$S$4:AD$64,'Quantités desserts'!$B4,Décembre!$V$4:$V$64),"") -> 1 | O4: =SUM($C4:$N4) -> 3
A5: D02 | B5: Autres fruits | C5: =IF($B5<>"",SUMIF(Janvier!S$4:$S$65,'Quantités desserts'!$B5,Janvier!$V$4:$V$65),"") -> 0 | D5: =IF($B5<>"",SUMIF(Février!$S$4:T$65,'Quantités desserts'!$B5,Février!$V$4:$V$65),"") -> 16 | E5: =IF($B5<>"",SUMIF(Mars!$S$4:U$65,'Quantités desserts'!$B5,Mars!$V$4:$V$65),"") -> 0 | F5: =IF($B5<>"",SUMIF(Avril!$S$4:V$64,'Quantités desserts'!$B5,Avril!$V$4:$V$64),"") -> 0 | G5: =IF($B5<>"",SUMIF(Mai!$S$4:W$64,'Quantités desserts'!$B5,Mai!$V$4:$V$64),"") -> 0 | H5: =IF($B5<>"",SUMIF(Juin!$S$4:X$62,'Quantités desserts'!$B5,Juin!$V$4:$V$62),"") -> 0 | I5: =IF($B5<>"",SUMIF(Juillet!$S$4:Y$54,'Quantités desserts'!$B5,Juillet!$V$4:$V$54),"") -> 16 | J5: =IF($B5<>"",SUMIF(Août!$S$4:Z$62,'Quantités desserts'!$B5,Août!$V$4:$V$62),"") -> 0 | K5: =IF($B5<>"",SUMIF(Septembre!$S$4:AA$65,'Quantités desserts'!$B5,Septembre!$V$4:$V$65),"") -> 0 | L5: =IF($B5<>"",SUMIF(Octobre!$S$4:AB$64,'Quantités desserts'!$B5,Octobre!$V$4:$V$64),"") -> 0 | M5: =IF($B5<>"",SUMIF(Novembre!$S$4:AC$65,'Quantités desserts'!$B5,Novembre!$V$4:$V$65),"") -> 0 | N5: =IF($B5<>"",SUMIF(Décembre!$S$4:AD$64,'Quantités desserts'!$B5,Décembre!$V$4:$V$64),"") -> 16 | O5: =SUM($C5:$N5) -> 48
A6: D03 | B6: Avocats | C6: =IF($B6<>"",SUMIF(Janvier!S$4:$S$65,'Quantités desserts'!$B6,Janvier!$V$4:$V$65),"") -> 0 | D6: =IF($B6<>"",SUMIF(Février!$S$4:T$65,'Quantités desserts'!$B6,Février!$V$4:$V$65),"") -> 0 | E6: =IF($B6<>"",SUMIF(Mars!$S$4:U$65,'Quantités desserts'!$B6,Mars!$V$4:$V$65),"") -> 4 | F6: =IF($B6<>"",SUMIF(Avril!$S$4:V$64,'Quantités desserts'!$B6,Avril!$V$4:$V$64),"") -> 0 | G6: =IF($B6<>"",SUMIF(Mai!$S$4:W$64,'Quantités desserts'!$B6,Mai!$V$4:$V$64),"") -> 0 | H6: =IF($B6<>"",SUMIF(Juin!$S$4:X$62,'Quantités desserts'!$B6,Juin!$V$4:$V$62),"") -> 0 | I6: =IF($B6<>"",SUMIF(Juillet!$S$4:Y$54,'Quantités desserts'!$B6,Juillet!$V$4:$V$54),"") -> 4 | J6: =IF($B6<>"",SUMIF(Août!$S$4:Z$62,'Quantités desserts'!$B6,Août!$V$4:$V$62),"") -> 0 | K6: =IF($B6<>"",SUMIF(Septembre!$S$4:AA$65,'Quantités desserts'!$B6,Septembre!$V$4:$V$65),"") -> 0 | L6: =IF($B6<>"",SUMIF(Octobre!$S$4:AB$64,'Quantités desserts'!$B6,Octobre!$V$4:$V$64),"") -> 0 | M6: =IF($B6<>"",SUMIF(Novembre!$S$4:AC$65,'Quantités desserts'!$B6,Novembre!$V$4:$V$65),"") -> 0 | N6: =IF($B6<>"",SUMIF(Décembre!$S$4:AD$64,'Quantités desserts'!$B6,Décembre!$V$4:$V$64),"") -> 4 | O6: 12
A7: D04 | B7: Bananes | C7: =IF($B7<>"",SUMIF(Janvier!S$4:$S$65,'Quantités desserts'!$B7,Janvier!$V$4:$V$65),"") -> 0 | D7: =IF($B7<>"",SUMIF(Février!$S$4:T$65,'Quantités desserts'!$B7,Février!$V$4:$V$65),"") -> 0 | E7: =IF($B7<>"",SUMIF(Mars!$S$4:U$65,'Quantités desserts'!$B7,Mars!$V$4:$V$65),"") -> 4 | F7: =IF($B7<>"",SUMIF(Avril!$S$4:V$64,'Quantités desserts'!$B7,Avril!$V$4:$V$64),"") -> 0 | G7: =IF($B7<>"",SUMIF(Mai!$S$4:W$64,'Quantités desserts'!$B7,Mai!$V$4:$V$64),"") -> 0 | H7: =IF($B7<>"",SUMIF(Juin!$S$4:X$62,'Quantités desserts'!$B7,Juin!$V$4:$V$62),"") -> 0 | I7: =IF($B7<>"",SUMIF(Juillet!$S$4:Y$54,'Quantités desserts'!$B7,Juillet!$V$4:$V$54),"") -> 0 | J7: =IF($B7<>"",SUMIF(Août!$S$4:Z$62,'Quantités desserts'!$B7,Août!$V$4:$V$62),"") -> 4 | K7: =IF($B7<>"",SUMIF(Septembre!$S$4:AA$65,'Quantités desserts'!$B7,Septembre!$V$4:$V$65),"") -> 0 | L7: =IF($B7<>"",SUMIF(Octobre!$S$4:AB$64,'Quantités desserts'!$B7,Octobre!$V$4:$V$64),"") -> 0 | M7: =IF($B7<>"",SUMIF(Novembre!$S$4:AC$65,'Quantités desserts'!$B7,Novembre!$V$4:$V$65),"") -> 0 | N7: =IF($B7<>"",SUMIF(Décembre!$S$4:AD$64,'Quantités desserts'!$B7,Décembre!$V$4:$V$64),"") -> 4 | O7: 12
A8: D05 | B8: Clémentines | C8: =IF($B8<>"",SUMIF(Janvier!S$4:$S$65,'Quantités desserts'!$B8,Janvier!$V$4:$V$65),"") -> 0 | D8: =IF($B8<>"",SUMIF(Février!$S$4:T$65,'Quantités desserts'!$B8,Février!$V$4:$V$65),"") -> 0 | E8: =IF($B8<>"",SUMIF(Mars!$S$4:U$65,'Quantités desserts'!$B8,Mars!$V$4:$V$65),"") -> 16 | F8: =IF($B8<>"",SUMIF(Avril!$S$4:V$64,'Quantités desserts'!$B8,Avril!$V$4:$V$64),"") -> 0 | G8: =IF($B8<>"",SUMIF(Mai!$S$4:W$64,'Quantités desserts'!$B8,Mai!$V$4:$V$64),"") -> 0 | H8: =IF($B8<>"",SUMIF(Juin!$S$4:X$62,'Quantités desserts'!$B8,Juin!$V$4:$V$62),"") -> 0 | I8: =IF($B8<>"",SUMIF(Juillet!$S$4:Y$54,'Quantités desserts'!$B8,Juillet!$V$4:$V$54),"") -> 0 | J8: =IF($B8<>"",SUMIF(Août!$S$4:Z$62,'Quantités desserts'!$B8,Août!$V$4:$V$62),"") -> 16 | K8: =IF($B8<>"",SUMIF(Septembre!$S$4:AA$65,'Quantités desserts'!$B8,Septembre!$V$4:$V$65),"") -> 0 | L8: =IF($B8<>"",SUMIF(Octobre!$S$4:AB$64,'Quantités desserts'!$B8,Octobre!$V$4:$V$64),"") -> 0 | M8: =IF($B8<>"",SUMIF(Novembre!$S$4:AC$65,'Quantités desserts'!$B8,Novembre!$V$4:$V$65),"") -> 0 | N8: =IF($B8<>"",SUMIF(Décembre!$S$4:AD$64,'Quantités desserts'!$B8,Décembre!$V$4:$V$64),"") -> 0 | O8: 32
A9: D06 | B9: Crème | C9: =IF($B9<>"",SUMIF(Janvier!S$4:$S$65,'Quantités desserts'!$B9,Janvier!$V$4:$V$65),"") -> 0 | D9: =IF($B9<>"",SUMIF(Février!$S$4:T$65,'Quantités desserts'!$B9,Février!$V$4:$V$65),"") -> 0 | E9: =IF($B9<>"",SUMIF(Mars!$S$4:U$65,'Quantités desserts'!$B9,Mars!$V$4:$V$65),"") -> 1 | F9: =IF($B9<>"",SUMIF(Avril!$S$4:V$64,'Quantités desserts'!$B9,Avril!$V$4:$V$64),"") -> 0 | G9: =IF($B9<>"",SUMIF(Mai!$S$4:W$64,'Quantités desserts'!$B9,Mai!$V$4:$V$64),"") -> 0 | H9: =IF($B9<>"",SUMIF(Juin!$S$4:X$62,'Quantités desserts'!$B9,Juin!$V$4:$V$62),"") -> 0 | I9: =IF($B9<>"",SUMIF(Juillet!$S$4:Y$54,'Quantités desserts'!$B9,Juillet!$V$4:$V$54),"") -> 0 | J9: =IF($B9<>"",SUMIF(Août!$S$4:Z$62,'Quantités desserts'!$B9,Août!$V$4:$V$62),"") -> 1 | K9: =IF($B9<>"",SUMIF(Septembre!$S$4:AA$65,'Quantités desserts'!$B9,Septembre!$V$4:$V$65),"") -> 0 | L9: =IF($B9<>"",SUMIF(Octobre!$S$4:AB$64,'Quantités desserts'!$B9,Octobre!$V$4:$V$64),"") -> 0 | M9: =IF($B9<>"",SUMIF(Novembre!$S$4:AC$65,'Quantités desserts'!$B9,Novembre!$V$4:$V$65),"") -> 0 | N9: =IF($B9<>"",SUMIF(Décembre!$S$4:AD$64,'Quantités desserts'!$B9,Décembre!$V$4:$V$64),"") -> 0 | O9: 2
A10: D07 | B10: Dattes | C10: =IF($B10<>"",SUMIF(Janvier!S$4:$S$65,'Quantités desserts'!$B10,Janvier!$V$4:$V$65),"") -> 0 | D10: =IF($B10<>"",SUMIF(Février!$S$4:T$65,'Quantités desserts'!$B10,Février!$V$4:$V$65),"") -> 0 | E10: =IF($B10<>"",SUMIF(Mars!$S$4:U$65,'Quantités desserts'!$B10,Mars!$V$4:$V$65),"") -> 0 | F10: =IF($B10<>"",SUMIF(Avril!$S$4:V$64,'Quantités desserts'!$B10,Avril!$V$4:$V$64),"") -> 20 | G10: =IF($B10<>"",SUMIF(Mai!$S$4:W$64,'Quantités desserts'!$B10,Mai!$V$4:$V$64),"") -> 0 | H10: =IF($B10<>"",SUMIF(Juin!$S$4:X$62,'Quantités desserts'!$B10,Juin!$V$4:$V$62),"") -> 0 | I10: =IF($B10<>"",SUMIF(Juillet!$S$4:Y$54,'Quantités desserts'!$B10,Juillet!$V$4:$V$54),"") -> 0 | J10: =IF($B10<>"",SUMIF(Août!$S$4:Z$62,'Quantités desserts'!$B10,Août!$V$4:$V$62),"") -> 20 | K10: =IF($B10<>"",SUMIF(Septembre!$S$4:AA$65,'Quantités desserts'!$B10,Septembre!$V$4:$V$65),"") -> 0 | L10: =IF($B10<>"",SUMIF(Octobre!$S$4:AB$64,'Quantités desserts'!$B10,Octobre!$V$4:$V$64),"") -> 0 | M10: =IF($B10<>"",SUMIF(Novembre!$S$4:AC$65,'Quantités desserts'!$B10,Novembre!$V$4:$V$65),"") -> 0 | N10: =IF($B10<>"",SUMIF(Décembre!$S$4:AD$64,'Quantités desserts'!$B10,Décembre!$V$4:$V$64),"") -> 0 | O10: 40
A11: D08 | B11: Figues | C11: =IF($B11<>"",SUMIF(Janvier!S$4:$S$65,'Quantités desserts'!$B11,Janvier!$V$4:$V$65),"") -> 0 | D11: =IF($B11<>"",SUMIF(Février!$S$4:T$65,'Quantités desserts'!$B11,Février!$V$4:$V$65),"") -> 0 | E11: =IF($B11<>"",SUMIF(Mars!$S$4:U$65,'Quantités desserts'!$B11,Mars!$V$4:$V$65),"") -> 0 | F11: =IF($B11<>"",SUMIF(Avril!$S$4:V$64,'Quantités desserts'!$B11,Avril!$V$4:$V$64),"") -> 20 | G11: =IF($B11<>"",SUMIF(Mai!$S$4:W$64,'Quantités desserts'!$B11,Mai!$V$4:$V$64),"") -> 0 | H11: =IF($B11<>"",SUMIF(Juin!$S$4:X$62,'Quantités desserts'!$B11,Juin!$V$4:$V$62),"") -> 0 | I11: =IF($B11<>"",SUMIF(Juillet!$S$4:Y$54,'Quantités desserts'!$B11,Juillet!$V$4:$V$54),"") -> 0 | J11: =IF($B11<>"",SUMIF(Août!$S$4:Z$62,'Quantités desserts'!$B11,Août!$V$4:$V$62),"") -> 0 | K11: =IF($B11<>"",SUMIF(Septembre!$S$4:AA$65,'Quantités desserts'!$B11,Septembre!$V$4:$V$65),"") -> 20 | L11: =IF($B11<>"",SUMIF(Octobre!$S$4:AB$64,'Quantités desserts'!$B11,Octobre!$V$4:$V$64),"") -> 0 | M11: =IF($B11<>"",SUMIF(Novembre!$S$4:AC$65,'Quantités desserts'!$B11,Novembre!$V$4:$V$65),"") -> 0 | N11: =IF($B11<>"",SUMIF(Décembre!$S$4:AD$64,'Quantités desserts'!$B11,Décembre!$V$4:$V$64),"") -> 0 | O11: 40
A12: D09 | B12: Fromage blanc | C12: =IF($B12<>"",SUMIF(Janvier!S$4:$S$65,'Quantités desserts'!$B12,Janvier!$V$4:$V$65),"") -> 0 | D12: =IF($B12<>"",SUMIF(Février!$S$4:T$65,'Quantités desserts'!$B12,Février!$V$4:$V$65),"") -> 0 | E12: =IF($B12<>"",SUMIF(Mars!$S$4:U$65,'Quantités desserts'!$B12,Mars!$V$4:$V$65),"") -> 0 | F12: =IF($B12<>"",SUMIF(Avril!$S$4:V$64,'Quantités desserts'!$B12,Avril!$V$4:$V$64),"") -> 4 | G12: =IF($B12<>"",SUMIF(Mai!$S$4:W$64,'Quantités desserts'!$B12,Mai!$V$4:$V$64),"") -> 0 | H12: =IF($B12<>"",SUMIF(Juin!$S$4:X$62,'Quantités desserts'!$B12,Juin!$V$4:$V$62),"") -> 0 | I12: =IF($B12<>"",SUMIF(Juillet!$S$4:Y$54,'Quantités desserts'!$B12,Juillet!$V$4:$V$54),"") -> 0 | J12: =IF($B12<>"",SUMIF(Août!$S$4:Z$62,'Quantités desserts'!$B12,Août!$V$4:$V$62),"") -> 0 | K12: =IF($B12<>"",SUMIF(Septembre!$S$4:AA$65,'Quantités desserts'!$B12,Septembre!$V$4:$V$65),"") -> 4 | L12: =IF($B12<>"",SUMIF(Octobre!$S$4:AB$64,'Quantités desserts'!$B12,Octobre!$V$4:$V$64),"") -> 0 | M12: =IF($B12<>"",SUMIF(Novembre!$S$4:AC$65,'Quantités desserts'!$B12,Novembre!$V$4:$V$65),"") -> 0 | N12: =IF($B12<>"",SUMIF(Décembre!$S$4:AD$64,'Quantités desserts'!$B12,Décembre!$V$4:$V$64),"") -> 0 | O12: 8
A13: D10 | B13: Fruits au sirop | C13: =IF($B13<>"",SUMIF(Janvier!S$4:$S$65,'Quantités desserts'!$B13,Janvier!$V$4:$V$65),"") -> 0 | D13: =IF($B13<>"",SUMIF(Février!$S$4:T$65,'Quantités desserts'!$B13,Février!$V$4:$V$65),"") -> 0 | E13: =IF($B13<>"",SUMIF(Mars!$S$4:U$65,'Quantités desserts'!$B13,Mars!$V$4:$V$65),"") -> 0 | F13: =IF($B13<>"",SUMIF(Avril!$S$4:V$64,'Quantités desserts'!$B13,Avril!$V$4:$V$64),"") -> 2 | G13: =IF($B13<>"",SUMIF(Mai!$S$4:W$64,'Quantités desserts'!$B13,Mai!$V$4:$V$64),"") -> 0 | H13: =IF($B13<>"",SUMIF(Juin!$S$4:X$62,'Quantités desserts'!$B13,Juin!$V$4:$V$62),"") -> 0 | I13: =IF($B13<>"",SUMIF(Juillet!$S$4:Y$54,'Quantités desserts'!$B13,Juillet!$V$4:$V$54),"") -> 0 | J13: =IF($B13<>"",SUMIF(Août!$S$4:Z$62,'Quantités desserts'!$B13,Août!$V$4:$V$62),"") -> 0 | K13: =IF($B13<>"",SUMIF(Septembre!$S$4:AA$65,'Quantités desserts'!$B13,Septembre!$V$4:$V$65),"") -> 2 | L13: =IF($B13<>"",SUMIF(Octobre!$S$4:AB$64,'Quantités desserts'!$B13,Octobre!$V$4:$V$64),"") -> 0 | M13: =IF($B13<>"",SUMIF(Novembre!$S$4:AC$65,'Quantités desserts'!$B13,Novembre!$V$4:$V$65),"") -> 0 | N13: =IF($B13<>"",SUMIF(Décembre!$S$4:AD$64,'Quantités desserts'!$B13,Décembre!$V$4:$V$64),"") -> 0 | O13: 4
A14: D11 | B14: Fruits de saison | C14: =IF($B14<>"",SUMIF(Janvier!S$4:$S$65,'Quantités desserts'!$B14,Janvier!$V$4:$V$65),"") -> 0 | D14: =IF($B14<>"",SUMIF(Février!$S$4:T$65,'Quantités desserts'!$B14,Février!$V$4:$V$65),"") -> 0 | E14: =IF($B14<>"",SUMIF(Mars!$S$4:U$65,'Quantités desserts'!$B14,Mars!$V$4:$V$65),"") -> 0 | F14: =IF($B14<>"",SUMIF(Avril!$S$4:V$64,'Quantités desserts'!$B14,Avril!$V$4:$V$64),"") -> 16 | G14: =IF($B14<>"",SUMIF(Mai!$S$4:W$64,'Quantités desserts'!$B14,Mai!$V$4:$V$64),"") -> 0 | H14: =IF($B14<>"",SUMIF(Juin!$S$4:X$62,'Quantités desserts'!$B14,Juin!$V$4:$V$62),"") -> 0 | I14: =IF($B14<>"",SUMIF(Juillet!$S$4:Y$54,'Quantités desserts'!$B14,Juillet!$V$4:$V$54),"") -> 0 | J14: =IF($B14<>"",SUMIF(Août!$S$4:Z$62,'Quantités desserts'!$B14,Août!$V$4:$V$62),"") -> 0 | K14: =IF($B14<>"",SUMIF(Septembre!$S$4:AA$65,'Quantités desserts'!$B14,Septembre!$V$4:$V$65),"") -> 16 | L14: =IF($B14<>"",SUMIF(Octobre!$S$4:AB$64,'Quantités desserts'!$B14,Octobre!$V$4:$V$64),"") -> 0 | M14: =IF($B14<>"",SUMIF(Novembre!$S$4:AC$65,'Quantités desserts'!$B14,Novembre!$V$4:$V$65),"") -> 0 | N14: =IF($B14<>"",SUMIF(Décembre!$S$4:AD$64,'Quantités desserts'!$B14,Décembre!$V$4:$V$64),"") -> 0 | O14: 32
A15: D12 | B15: Gâteau de riz | C15: =IF($B15<>"",SUMIF(Janvier!S$4:$S$65,'Quantités desserts'!$B15,Janvier!$V$4:$V$65),"") -> 0 | D15: =IF($B15<>"",SUMIF(Février!$S$4:T$65,'Quantités desserts'!$B15,Février!$V$4:$V$65),"") -> 0 | E15: =IF($B15<>"",SUMIF(Mars!$S$4:U$65,'Quantités desserts'!$B15,Mars!$V$4:$V$65),"") -> 0 | F15: =IF($B15<>"",SUMIF(Avril!$S$4:V$64,'Quantités desserts'!$B15,Avril!$V$4:$V$64),"") -> 0 | G15: =IF($B15<>"",SUMIF(Mai!$S$4:W$64,'Quantités desserts'!$B15,Mai!$V$4:$V$64),"") -> 4 | H15: =IF($B15<>"",SUMIF(Juin!$S$4:X$62,'Quantités desserts'!$B15,Juin!$V$4:$V$62),"") -> 0 | I15: =IF($B15<>"",SUMIF(Juillet!$S$4:Y$54,'Quantités desserts'!$B15,Juillet!$V$4:$V$54),"") -> 0 | J15: =IF($B15<>"",SUMIF(Août!$S$4:Z$62,'Quantités desserts'!$B15,Août!$V$4:$V$62),"") -> 0 | K15: =IF($B15<>"",SUMIF(Septembre!$S$4:AA$65,'Quantités desserts'!$B15,Septembre!$V$4:$V$65),"") -> 2 | L15: =IF($B15<>"",SUMIF(Octobre!$S$4:AB$64,'Quantités desserts'!$B15,Octobre!$V$4:$V$64),"") -> 2 | M15: =IF($B15<>"",SUMIF(Novembre!$S$4:AC$65,'Quantités desserts'!$B15,Novembre!$V$4:$V$65),"") -> 0 | N15: =IF($B15<>"",SUMIF(Décembre!$S$4:AD$64,'Quantités desserts'!$B15,Décembre!$V$4:$V$64),"") -> 0 | O15: 8
A16: D13 | B16: Gâteaux samedis et dimanches | C16: =IF($B16<>"",SUMIF(Janvier!S$4:$S$65,'Quantités desserts'!$B16,Janvier!$V$4:$V$65),"") -> 0 | D16: =IF($B16<>"",SUMIF(Février!$S$4:T$65,'Quantités desserts'!$B16,Février!$V$4:$V$65),"") -> 0 | E16: =IF($B16<>"",SUMIF(Mars!$S$4:U$65,'Quantités desserts'!$B16,Mars!$V$4:$V$65),"") -> 0 | F16: =IF($B16<>"",SUMIF(Avril!$S$4:V$64,'Quantités desserts'!$B16,Avril!$V$4:$V$64),"") -> 0 | G16: =IF($B16<>"",SUMIF(Mai!$S$4:W$64,'Quantités desserts'!$B16,Mai!$V$4:$V$64),"") -> 4 | H16: =IF($B16<>"",SUMIF(Juin!$S$4:X$62,'Quantités desserts'!$B16,Juin!$V$4:$V$62),"") -> 0 | I16: =IF($B16<>"",SUMIF(Juillet!$S$4:Y$54,'Quantités desserts'!$B16,Juillet!$V$4:$V$54),"") -> 0 | J16: =IF($B16<>"",SUMIF(Août!$S$4:Z$62,'Quantités desserts'!$B16,Août!$V$4:$V$62),"") -> 0 | K16: =IF($B16<>"",SUMIF(Septembre!$S$4:AA$65,'Quantités desserts'!$B16,Septembre!$V$4:$V$65),"") -> 0 | L16: =IF($B16<>"",SUMIF(Octobre!$S$4:AB$64,'Quantités desserts'!$B16,Octobre!$V$4:$V$64),"") -> 4 | M16: =IF($B16<>"",SUMIF(Novembre!$S$4:AC$65,'Quantités desserts'!$B16,Novembre!$V$4:$V$65),"") -> 0 | N16: =IF($B16<>"",SUMIF(Décembre!$S$4:AD$64,'Quantités desserts'!$B16,Décembre!$V$4:$V$64),"") -> 0 | O16: 8
A17: D14 | B17: Mousse au chocolat | C17: =IF($B17<>"",SUMIF(Janvier!S$4:$S$65,'Quantités desserts'!$B17,Janvier!$V$4:$V$65),"") -> 0 | D17: =IF($B17<>"",SUMIF(Février!$S$4:T$65,'Quantités desserts'!$B17,Février!$V$4:$V$65),"") -> 0 | E17: =IF($B17<>"",SUMIF(Mars!$S$4:U$65,'Quantités desserts'!$B17,Mars!$V$4:$V$65),"") -> 0 | F17: =IF($B17<>"",SUMIF(Avril!$S$4:V$64,'Quantités desserts'!$B17,Avril!$V$4:$V$64),"") -> 0 | G17: =IF($B17<>"",SUMIF(Mai!$S$4:W$64,'Quantités desserts'!$B17,Mai!$V$4:$V$64),"") -> 4 | H17: =IF($B17<>"",SUMIF(Juin!$S$4:X$62,'Quantités desserts'!$B17,Juin!$V$4:$V$62),"") -> 0 | I17: =IF($B17<>"",SUMIF(Juillet!$S$4:Y$54,'Quantités desserts'!$B17,Juillet!$V$4:$V$54),"") -> 0 | J17: =IF($B17<>"",SUMIF(Août!$S$4:Z$62,'Quantités desserts'!$B17,Août!$V$4:$V$62),"") -> 0 | K17: =IF($B17<>"",SUMIF(Septembre!$S$4:AA$65,'Quantités desserts'!$B17,Septembre!$V$4:$V$65),"") -> 0 | L17: =IF($B17<>"",SUMIF(Octobre!$S$4:AB$64,'Quantités desserts'!$B17,Octobre!$V$4:$V$64),"") -> 4 | M17: =IF($B17<>"",SUMIF(Novembre!$S$4:AC$65,'Quantités desserts'!$B17,Novembre!$V$4:$V$65),"") -> 0 | N17: =IF($B17<>"",SUMIF(Décembre!$S$4:AD$64,'Quantités desserts'!$B17,Décembre!$V$4:$V$64),"") -> 0 | O17: 8
A18: D15 | B18: Oranges | C18: =IF($B18<>"",SUMIF(Janvier!S$4:$S$65,'Quantités desserts'!$B18,Janvier!$V$4:$V$65),"") -> 2 | D18: =IF($B18<>"",SUMIF(Février!$S$4:T$65,'Quantités desserts'!$B18,Février!$V$4:$V$65),"") -> 0 | E18: =IF($B18<>"",SUMIF(Mars!$S$4:U$65,'Quantités desserts'!$B18,Mars!$V$4:$V$65),"") -> 0 | F18: =IF($B18<>"",SUMIF(Avril!$S$4:V$64,'Quantités desserts'!$B18,Avril!$V$4:$V$64),"") -> 0 | G18: =IF($B18<>"",SUMIF(Mai!$S$4:W$64,'Quantités desserts'!$B18,Mai!$V$4:$V$64),"") -> 4 | H18: =IF($B18<>"",SUMIF(Juin!$S$4:X$62,'Quantités desserts'!$B18,Juin!$V$4:$V$62),"") -> 0 | I18: =IF($B18<>"",SUMIF(Juillet!$S$4:Y$54,'Quantités desserts'!$B18,Juillet!$V$4:$V$54),"") -> 0 | J18: =IF($B18<>"",SUMIF(Août!$S$4:Z$62,'Quantités desserts'!$B18,Août!$V$4:$V$62),"") -> 0 | K18: =IF($B18<>"",SUMIF(Septembre!$S$4:AA$65,'Quantités desserts'!$B18,Septembre!$V$4:$V$65),"") -> 0 | L18: =IF($B18<>"",SUMIF(Octobre!$S$4:AB$64,'Quantités desserts'!$B18,Octobre!$V$4:$V$64),"") -> 4 | M18: =IF($B18<>"",SUMIF(Novembre!$S$4:AC$65,'Quantités desserts'!$B18,Novembre!$V$4:$V$65),"") -> 0 | N18: =IF($B18<>"",SUMIF(Décembre!$S$4:AD$64,'Quantités desserts'!$B18,Décembre!$V$4:$V$64),"") -> 0 | O18: 10
A19: D16 | B19: Petits suisses | C19: =IF($B19<>"",SUMIF(Janvier!S$4:$S$65,'Quantités desserts'!$B19,Janvier!$V$4:$V$65),"") -> 12 | D19: =IF($B19<>"",SUMIF(Février!$S$4:T$65,'Quantités desserts'!$B19,Février!$V$4:$V$65),"") -> 0 | E19: =IF($B19<>"",SUMIF(Mars!$S$4:U$65,'Quantités desserts'!$B19,Mars!$V$4:$V$65),"") -> 0 | F19: =IF($B19<>"",SUMIF(Avril!$S$4:V$64,'Quantités desserts'!$B19,Avril!$V$4:$V$64),"") -> 0 | G19: =IF($B19<>"",SUMIF(Mai!$S$4:W$64,'Quantités desserts'!$B19,Mai!$V$4:$V$64),"") -> 0 | H19: =IF($B19<>"",SUMIF(Juin!$S$4:X$62,'Quantités desserts'!$B19,Juin!$V$4:$V$62),"") -> 12 | I19: =IF($B19<>"",SUMIF(Juillet!$S$4:Y$54,'Quantités desserts'!$B19,Juillet!$V$4:$V$54),"") -> 0 | J19: =IF($B19<>"",SUMIF(Août!$S$4:Z$62,'Quantités desserts'!$B19,Août!$V$4:$V$62),"") -> 0 | K19: =IF($B19<>"",SUMIF(Septembre!$S$4:AA$65,'Quantités desserts'!$B19,Septembre!$V$4:$V$65),"") -> 0 | L19: =IF($B19<>"",SUMIF(Octobre!$S$4:AB$64,'Quantités desserts'!$B19,Octobre!$V$4:$V$64),"") -> 12 | M19: =IF($B19<>"",SUMIF(Novembre!$S$4:AC$65,'Quantités desserts'!$B19,Novembre!$V$4:$V$65),"") -> 0 | N19: =IF($B19<>"",SUMIF(Décembre!$S$4:AD$64,'Quantités desserts'!$B19,Décembre!$V$4:$V$64),"") -> 0 | O19: 36
A20: D17 | B20: Pomme | C20: =IF($B20<>"",SUMIF(Janvier!S$4:$S$65,'Quantités desserts'!$B20,Janvier!$V$4:$V$65),"") -> 44 | D20: =IF($B20<>"",SUMIF(Février!$S$4:T$65,'Quantités desserts'!$B20,Février!$V$4:$V$65),"") -> 40 | E20: =IF($B20<>"",SUMIF(Mars!$S$4:U$65,'Quantités desserts'!$B20,Mars!$V$4:$V$65),"") -> 46 | F20: =IF($B20<>"",SUMIF(Avril!$S$4:V$64,'Quantités desserts'!$B20,Avril!$V$4:$V$64),"") -> 40 | G20: =IF($B20<>"",SUMIF(Mai!$S$4:W$64,'Quantités desserts'!$B20,Mai!$V$4:$V$64),"") -> 47 | H20: =IF($B20<>"",SUMIF(Juin!$S$4:X$62,'Quantités desserts'!$B20,Juin!$V$4:$V$62),"") -> 44 | I20: =IF($B20<>"",SUMIF(Juillet!$S$4:Y$54,'Quantités desserts'!$B20,Juillet!$V$4:$V$54),"") -> 41 | J20: =IF($B20<>"",SUMIF(Août!$S$4:Z$62,'Quantités desserts'!$B20,Août!$V$4:$V$62),"") -> 46 | K20: =IF($B20<>"",SUMIF(Septembre!$S$4:AA$65,'Quantités desserts'!$B20,Septembre!$V$4:$V$65),"") -> 43 | L20: =IF($B20<>"",SUMIF(Octobre!$S$4:AB$64,'Quantités desserts'!$B20,Octobre!$V$4:$V$64),"") -> 44 | M20: =IF($B20<>"",SUMIF(Novembre!$S$4:AC$65,'Quantités desserts'!$B20,Novembre!$V$4:$V$65),"") -> 44 | N20: =IF($B20<>"",SUMIF(Décembre!$S$4:AD$64,'Quantités desserts'!$B20,Décembre!$V$4:$V$64),"") -> 42 | O20: 521
A21: D18 | B21: Pruneaux | C21: =IF($B21<>"",SUMIF(Janvier!S$4:$S$65,'Quantités desserts'!$B21,Janvier!$V$4:$V$65),"") -> 20 | D21: =IF($B21<>"",SUMIF(Février!$S$4:T$65,'Quantités desserts'!$B21,Février!$V$4:$V$65),"") -> 0 | E21: =IF($B21<>"",SUMIF(Mars!$S$4:U$65,'Quantités desserts'!$B21,Mars!$V$4:$V$65),"") -> 0 | F21: =IF($B21<>"",SUMIF(Avril!$S$4:V$64,'Quantités desserts'!$B21,Avril!$V$4:$V$64),"") -> 0 | G21: =IF($B21<>"",SUMIF(Mai!$S$4:W$64,'Quantités desserts'!$B21,Mai!$V$4:$V$64),"") -> 0 | H21: =IF($B21<>"",SUMIF(Juin!$S$4:X$62,'Quantités desserts'!$B21,Juin!$V$4:$V$62),"") -> 20 | I21: =IF($B21<>"",SUMIF(Juillet!$S$4:Y$54,'Quantités desserts'!$B21,Juillet!$V$4:$V$54),"") -> 0 | J21: =IF($B21<>"",SUMIF(Août!$S$4:Z$62,'Quantités desserts'!$B21,Août!$V$4:$V$62),"") -> 0 | K21: =IF($B21<>"",SUMIF(Septembre!$S$4:AA$65,'Quantités desserts'!$B21,Septembre!$V$4:$V$65),"") -> 0 | L21: =IF($B21<>"",SUMIF(Octobre!$S$4:AB$64,'Quantités desserts'!$B21,Octobre!$V$4:$V$64),"") -> 0 | M21: =IF($B21<>"",SUMIF(Novembre!$S$4:AC$65,'Quantités desserts'!$B21,Novembre!$V$4:$V$65),"") -> 20 | N21: =IF($B21<>"",SUMIF(Décembre!$S$4:AD$64,'Quantités desserts'!$B21,Décembre!$V$4:$V$64),"") -> 0 | O21: 60
A22: D19 | B22: Riz | C22: =IF($B22<>"",SUMIF(Janvier!S$4:$S$65,'Quantités desserts'!$B22,Janvier!$V$4:$V$65),"") -> 4 | D22: =IF($B22<>"",SUMIF(Février!$S$4:T$65,'Quantités desserts'!$B22,Février!$V$4:$V$65),"") -> 0 | E22: =IF($B22<>"",SUMIF(Mars!$S$4:U$65,'Quantités desserts'!$B22,Mars!$V$4:$V$65),"") -> 0 | F22: =IF($B22<>"",SUMIF(Avril!$S$4:V$64,'Quantités desserts'!$B22,Avril!$V$4:$V$64),"") -> 0 | G22: =IF($B22<>"",SUMIF(Mai!$S$4:W$64,'Quantités desserts'!$B22,Mai!$V$4:$V$64),"") -> 0 | H22: =IF($B22<>"",SUMIF(Juin!$S$4:X$62,'Quantités desserts'!$B22,Juin!$V$4:$V$62),"") -> 4 | I22: =IF($B22<>"",SUMIF(Juillet!$S$4:Y$54,'Quantités desserts'!$B22,Juillet!$V$4:$V$54),"") -> 0 | J22: =IF($B22<>"",SUMIF(Août!$S$4:Z$62,'Quantités desserts'!$B22,Août!$V$4:$V$62),"") -> 0 | K22: =IF($B22<>"",SUMIF(Septembre!$S$4:AA$65,'Quantités desserts'!$B22,Septembre!$V$4:$V$65),"") -> 0 | L22: =IF($B22<>"",SUMIF(Octobre!$S$4:AB$64,'Quantités desserts'!$B22,Octobre!$V$4:$V$64),"") -> 0 | M22: =IF($B22<>"",SUMIF(Novembre!$S$4:AC$65,'Quantités desserts'!$B22,Novembre!$V$4:$V$65),"") -> 4 | N22: =IF($B22<>"",SUMIF(Décembre!$S$4:AD$64,'Quantités desserts'!$B22,Décembre!$V$4:$V$64),"") -> 0 | O22: 12
A23: D20 | B23: Semoule de blé | C23: =IF($B23<>"",SUMIF(Janvier!S$4:$S$65,'Quantités desserts'!$B23,Janvier!$V$4:$V$65),"") -> 4 | D23: =IF($B23<>"",SUMIF(Février!$S$4:T$65,'Quantités desserts'!$B23,Février!$V$4:$V$65),"") -> 0 | E23: =IF($B23<>"",SUMIF(Mars!$S$4:U$65,'Quantités desserts'!$B23,Mars!$V$4:$V$65),"") -> 0 | F23: =IF($B23<>"",SUMIF(Avril!$S$4:V$64,'Quantités desserts'!$B23,Avril!$V$4:$V$64),"") -> 0 | G23: =IF($B23<>"",SUMIF(Mai!$S$4:W$64,'Quantités desserts'!$B23,Mai!$V$4:$V$64),"") -> 0 | H23: =IF($B23<>"",SUMIF(Juin!$S$4:X$62,'Quantités desserts'!$B23,Juin!$V$4:$V$62),"") -> 4 | I23: =IF($B23<>"",SUMIF(Juillet!$S$4:Y$54,'Quantités desserts'!$B23,Juillet!$V$4:$V$54),"") -> 0 | J23: =IF($B23<>"",SUMIF(Août!$S$4:Z$62,'Quantités desserts'!$B23,Août!$V$4:$V$62),"") -> 0 | K23: =IF($B23<>"",SUMIF(Septembre!$S$4:AA$65,'Quantités desserts'!$B23,Septembre!$V$4:$V$65),"") -> 0 | L23: =IF($B23<>"",SUMIF(Octobre!$S$4:AB$64,'Quantités desserts'!$B23,Octobre!$V$4:$V$64),"") -> 0 | M23: =IF($B23<>"",SUMIF(Novembre!$S$4:AC$65,'Quantités desserts'!$B23,Novembre!$V$4:$V$65),"") -> 4 | N23: =IF($B23<>"",SUMIF(Décembre!$S$4:AD$64,'Quantités desserts'!$B23,Décembre!$V$4:$V$64),"") -> 0 | O23: 12
A24: D21 | B24: Tapioca | C24: =IF($B24<>"",SUMIF(Janvier!S$4:$S$65,'Quantités desserts'!$B24,Janvier!$V$4:$V$65),"") -> 0 | D24: =IF($B24<>"",SUMIF(Février!$S$4:T$65,'Quantités desserts'!$B24,Février!$V$4:$V$65),"") -> 200 | E24: =IF($B24<>"",SUMIF(Mars!$S$4:U$65,'Quantités desserts'!$B24,Mars!$V$4:$V$65),"") -> 0 | F24: =IF($B24<>"",SUMIF(Avril!$S$4:V$64,'Quantités desserts'!$B24,Avril!$V$4:$V$64),"") -> 0 | G24: =IF($B24<>"",SUMIF(Mai!$S$4:W$64,'Quantités desserts'!$B24,Mai!$V$4:$V$64),"") -> 0 | H24: =IF($B24<>"",SUMIF(Juin!$S$4:X$62,'Quantités desserts'!$B24,Juin!$V$4:$V$62),"") -> 0 | I24: =IF($B24<>"",SUMIF(Juillet!$S$4:Y$54,'Quantités desserts'!$B24,Juillet!$V$4:$V$54),"") -> 200 | J24: =IF($B24<>"",SUMIF(Août!$S$4:Z$62,'Quantités desserts'!$B24,Août!$V$4:$V$62),"") -> 0 | K24: =IF($B24<>"",SUMIF(Septembre!$S$4:AA$65,'Quantités desserts'!$B24,Septembre!$V$4:$V$65),"") -> 0 | L24: =IF($B24<>"",SUMIF(Octobre!$S$4:AB$64,'Quantités desserts'!$B24,Octobre!$V$4:$V$64),"") -> 0 | M24: =IF($B24<>"",SUMIF(Novembre!$S$4:AC$65,'Quantités desserts'!$B24,Novembre!$V$4:$V$65),"") -> 200 | N24: =IF($B24<>"",SUMIF(Décembre!$S$4:AD$64,'Quantités desserts'!$B24,Décembre!$V$4:$V$64),"") -> 0 | O24: 600
A25: D22 | B25: Yaourts | C25: =IF($B25<>"",SUMIF(Janvier!S$4:$S$65,'Quantités desserts'!$B25,Janvier!$V$4:$V$65),"") -> 0 | D25: =IF($B25<>"",SUMIF(Février!$S$4:T$65,'Quantités desserts'!$B25,Février!$V$4:$V$65),"") -> 4 | E25: =IF($B25<>"",SUMIF(Mars!$S$4:U$65,'Quantités desserts'!$B25,Mars!$V$4:$V$65),"") -> 0 | F25: =IF($B25<>"",SUMIF(Avril!$S$4:V$64,'Quantités desserts'!$B25,Avril!$V$4:$V$64),"") -> 0 | G25: =IF($B25<>"",SUMIF(Mai!$S$4:W$64,'Quantités desserts'!$B25,Mai!$V$4:$V$64),"") -> 0 | H25: =IF($B25<>"",SUMIF(Juin!$S$4:X$62,'Quantités desserts'!$B25,Juin!$V$4:$V$62),"") -> 0 | I25: =IF($B25<>"",SUMIF(Juillet!$S$4:Y$54,'Quantités desserts'!$B25,Juillet!$V$4:$V$54),"") -> 4 | J25: =IF($B25<>"",SUMIF(Août!$S$4:Z$62,'Quantités desserts'!$B25,Août!$V$4:$V$62),"") -> 0 | K25: =IF($B25<>"",SUMIF(Septembre!$S$4:AA$65,'Quantités desserts'!$B25,Septembre!$V$4:$V$65),"") -> 0 | L25: =IF($B25<>"",SUMIF(Octobre!$S$4:AB$64,'Quantités desserts'!$B25,Octobre!$V$4:$V$64),"") -> 0 | M25: =IF($B25<>"",SUMIF(Novembre!$S$4:AC$65,'Quantités desserts'!$B25,Novembre!$V$4:$V$65),"") -> 0 | N25: =IF($B25<>"",SUMIF(Décembre!$S$4:AD$64,'Quantités desserts'!$B25,Décembre!$V$4:$V$64),"") -> 4 | O25: 12
A27: Fait à Limeil-Brévannes, le jeudi 05 janvier 2017.

Sheet Janvier
A1: Menus du mois de janvier 2017.
A2: Accueil
A3: Nature | B3: Date du menu | C3: Code légumes | D3: Code légumes deux | E3: Légumes | F3: Légumes deux | G3: Jours légumes | H3: Jours légumes deux | I3: Conditionnement légumes | J3: Conditionnement légumes deux | K3: Quantité légumes | L3: Quantité légumes deux | M3: Code viandes | N3: Viandes | O3: Jours viandes | P3: Conditionnement viandes | Q3: Quantité viandes | R3: Code desserts | S3: Desserts | T3: Jours desserts | U3: Conditionnement desserts | V3: Quantité desserts | W3: Code observations | X3: Observations | Y3: Nature menus | Z3: Mois concerné | AA3: Numéro menu
A4: Menus | B4: 2017-01-02 | C4: LMR09 | E4: Pâtes à la sauce tomates | G4: Midi retraite | I4: Cinq cuillères par repas | K4: 5 | M4: VMR04 | N4: Rôti de porc | O4: Lundi à vendredi midis | P4: Un morceau pour cinq repas | Q4: 100 | R4: DMR01 | S4: Pomme | T4: Lundi à vendredi midis | U4: Une par repas | V4: 1 | Y4: Menus midi retraite | Z4: Janvier | AA4: 1
A5: Menus | B5: 2017-01-03 | C5: LMR10 | E5: Pâtes au beurre | G5: Midi retraite | I5: Cinq cuillères par repas | K5: 5 | M5: VMR04 | N5: Rôti de porc | O5: Lundi à vendredi midis | P5: Un morceau pour cinq repas | Q5: 100 | R5: DMR01 | S5: Pomme | T5: Lundi à vendredi midis | U5: Une par repas | V5: 1 | Y5: Menus midi retraite | Z5: Janvier | AA5: 2
A6: Menus | B6: 2017-01-04 | C6: LMR11 | E6: Poireau | G6: Midi retraite | I6: Un par repas | K6: 1 | M6: VMR04 | N6: Rôti de porc | O6: Lundi à vendredi midis | P6: Un morceau pour cinq repas | Q6: 100 | R6: DMR01 | S6: Pomme | T6: Lundi à vendredi midis | U6: Une par repas | V6: 1 | Y6: Menus midi retraite | Z6: Janvier | AA6: 3
A7: Menus | B7: 2017-01-05 | C7: LMR12 | E7: Pomme de terre | G7: Midi retraite | I7: Une par repas | K7: 1 | M7: VMR04 | N7: Rôti de porc | O7: Lundi à vendredi midis | P7: Un morceau pour cinq repas | Q7: 100 | R7: DMR01 | S7: Pomme | T7: Lundi à vendredi midis | U7: Une par repas | V7: 1 | Y7: Menus midi retraite | Z7: Janvier | AA7: 4
A8: Menus | B8: 2017-01-06 | C8: LMR13 | E8: Purée | G8: Midi retraite | I8: Une demi-tasse par repas | K8: 25 | M8: VMR04 | N8: Rôti de porc | O8: Lundi à vendredi midis | P8: Un morceau pour cinq repas | Q8: 100 | R8: DMR01 | S8: Pomme | T8: Lundi à vendredi midis | U8: Une par repas | V8: 1 | Y8: Menus midi retraite | Z8: Janvier | AA8: 5
A9: Menus | B9: 2017-01-09 | C9: LMR14 | E9: Radis | G9: Midi retraite | I9: Un sachet pour deux repas | K9: 0.5 | M9: VMR05 | N9: Rôti de veau | O9: Lundi à vendredi midis | P9: Un morceau pour cinq repas | Q9: 100 | R9: DMR01 | S9: Pomme | T9: Lundi à vendredi midis | U9: Une par repas | V9: 1 | Y9: Menus midi retraite | Z9: Janvier | AA9: 6
A10: Menus | B10: 2017-01-10 | C10: LMR14 | E10: Radis | G10: Midi retraite | I10: Un sachet pour deux repas | K10: 0.5 | M10: VMR05 | N10: Rôti de veau | O10: Lundi à vendredi midis | P10: Un morceau pour cinq repas | Q10: 100 | R10: DMR01 | S10: Pomme | T10: Lundi à vendredi midis | U10: Une par repas | V10: 1 | Y10: Menus midi retraite | Z10: Janvier | AA10: 7
A11: Menus | B11: 2017-01-11 | C11: LMR15 | E11: Riz | G11: Midi retraite | I11: Cinquante grammes par repas | K11: 25 | M11: VMR05 | N11: Rôti de veau | O11: Lundi à vendredi midis | P11: Un morceau pour cinq repas | Q11: 100 | R11: DMR01 | S11: Pomme | T11: Lundi à vendredi midis | U11: Une par repas | V11: 1 | Y11: Menus midi retraite | Z11: Janvier | AA11: 8
A12: Menus | B12: 2017-01-12 | C12: LMR16 | E12: Salade | G12: Midi retraite | I12: Une par repas | K12: 1 | M12: VMR05 | N12: Rôti de veau | O12: Lundi à vendredi midis | P12: Un morceau pour cinq repas | Q12: 100 | R12: DMR01 | S12: Pomme | T12: Lundi à vendredi midis | U12: Une par repas | V12: 1 | Y12: Menus midi retraite | Z12: Janvier | AA12: 9
A13: Menus | B13: 2017-01-13 | C13: LMR17 | E13: Tomates | G13: Midi retraite | I13: Deux par repas | K13: 2 | M13: VMR05 | N13: Rôti de veau | O13: Lundi à vendredi midis | P13: Un morceau pour cinq repas | Q13: 100 | R13: DMR01 | S13: Pomme | T13: Lundi à vendredi midis | U13: Une par repas | V13: 1 | Y13: Menus midi retraite | Z13: Janvier | AA13: 10
A14: Menus | B14: 2017-01-16 | C14: LMR01 | E14: Asperges | G14: Midi retraite | I14: Boîte pour un repas | K14: 2 | M14: VMR01 | N14: Rôti d'agneau | O14: Lundi à vendredi midis | P14: Un morceau pour cinq repas | Q14: 100 | R14: DMR01 | S14: Pomme | T14: Lundi à vendredi midis | U14: Une par repas | V14: 1 | Y14: Menus midi retraite | Z14: Janvier | AA14: 11
A15: Menus | B15: 2017-01-17 | C15: LMR02 | E15: Avocat | G15: Midi retraite | I15: Un par repas | K15: 1 | M15: VMR01 | N15: Rôti d'agneau | O15: Lundi à vendredi midis | P15: Un morceau pour cinq repas | Q15: 100 | R15: DMR01 | S15: Pomme | T15: Lundi à vendredi midis | U15: Une par repas | V15: 1 | Y15: Menus midi retraite | Z15: Janvier | AA15: 12
A16: Menus | B16: 2017-01-18 | C16: LMR03 | E16: Carottes | G16: Midi retraite | I16: Deux par repas | K16: 2 | M16: VMR01 | N16: Rôti d'agneau | O16: Lundi à vendredi midis | P16: Un morceau pour cinq repas | Q16: 100 | R16: DMR01 | S16: Pomme | T16: Lundi à vendredi midis | U16: Une par repas | V16: 1 | Y16: Menus midi retraite | Z16: Janvier | AA16: 13
A17: Menus | B17: 2017-01-19 | C17: LMR04 | E17: Céleri | G17: Midi retraite | I17: Une branche par repas | K17: 1 | M17: VMR01 | N17: Rôti d'agneau | O17: Lundi à vendredi midis | P17: Un morceau pour cinq repas | Q17: 100 | R17: DMR01 | S17: Pomme | T17: Lundi à vendredi midis | U17: Une par repas | V17: 1 | Y17: Menus midi retraite | Z17: Janvier | AA17: 14
A18: Menus | B18: 2017-01-20 | C18: LMR05 | E18: Champignons | G18: Midi retraite | I18: Boîte pour un repas | K18: 1 | M18: VMR01 | N18: Rôti d'agneau | O18: Lundi à vendredi midis | P18: Un morceau pour cinq repas | Q18: 100 | R18: DMR01 | S18: Pomme | T18: Lundi à vendredi midis | U18: Une par repas | V18: 1 | Y18: Menus midi retraite | Z18: Janvier | AA18: 15
A19: Menus | B19: 2017-01-23 | C19: LMR06 | E19: Concombre | G19: Midi retraite | I19: Un par repas | K19: 1 | M19: VMR02 | N19: Rôti de bœuf | O19: Lundi à vendredi midis | P19: Un morceau pour cinq repas | Q19: 100 | R19: DMR01 | S19: Pomme | T19: Lundi à vendredi midis | U19: Une par repas | V19: 1 | Y19: Menus midi retraite | Z19: Janvier | AA19: 16
A20: Menus | B20: 2017-01-24 | C20: LMR07 | E20: Couscous | G20: Midi retraite | I20: Cinquante grammes par repas | K20: 25 | M20: VMR02 | N20: Rôti de bœuf | O20: Lundi à vendredi midis | P20: Un morceau pour cinq repas | Q20: 100 | R20: DMR01 | S20: Pomme | T20: Lundi à vendredi midis | U20: Une par repas | V20: 1 | Y20: Menus midi retraite | Z20: Janvier | AA20: 17
A21: Menus | B21: 2017-01-25 | C21: LMR08 | E21: Maïs | G21: Midi retraite | I21: Boîte pour deux repas | K21: 0.5 | M21: VMR02 | N21: Rôti de bœuf | O21: Lundi à vendredi midis | P21: Un morceau pour cinq repas | Q21: 100 | R21: DMR01 | S21: Pomme | T21: Lundi à vendredi midis | U21: Une par repas | V21: 1 | Y21: Menus midi retraite | Z21: Janvier | AA21: 18
A22: Menus | B22: 2017-01-26 | C22: LMR08 | E22: Maïs | G22: Midi retraite | I22: Boîte pour deux repas | K22: 0.5 | M22: VMR02 | N22: Rôti de bœuf | O22: Lundi à vendredi midis | P22: Un morceau pour cinq repas | Q22: 100 | R22: DMR01 | S22: Pomme | T22: Lundi à vendredi midis | U22: Une par repas | V22: 1 | Y22: Menus midi retraite | Z22: Janvier | AA22: 19
A23: Menus | B23: 2017-01-27 | C23: LMR09 | E23: Pâtes à la sauce tomates | G23: Midi retraite | I23: Cinq cuillères par repas | K23: 5 | M23: VMR02 | N23: Rôti de bœuf | O23: Lundi à vendredi midis | P23: Un morceau pour cinq repas | Q23: 100 | R23: DMR01 | S23: Pomme | T23: Lundi à vendredi midis | U23: Une par repas | V23: 1 | Y23: Menus midi retraite | Z23: Janvier | AA23: 20
A24: Menus | B24: 2017-01-30 | C24: LMR10 | E24: Pâtes au beurre | G24: Midi retraite | I24: Cinq cuillères par repas | K24: 5 | M24: VMR03 | N24: Rôti de cheval | O24: Lundi à vendredi midis | P24: Un morceau pour cinq repas | Q24: 100 | R24: DMR01 | S24: Pomme | T24: Lundi à vendredi midis | U24: Une par repas | V24: 1 | Y24: Menus midi retraite | Z24: Janvier | AA24: 21
A25: Menus | B25: 2017-01-31 | C25: LMR11 | E25: Poireau | G25: Midi retraite | I25: Un par repas | K25: 1 | M25: VMR03 | N25: Rôti de cheval | O25: Lundi à vendredi midis | P25: Un morceau pour cinq repas | Q25: 100 | R25: DMR01 | S25: Pomme | T25: Lundi à vendredi midis | U25: Une par repas | V25: 1 | Y25: Menus midi retraite | Z25: Janvier | AA25: 22
A26: Menus | B26: 2017-01-01 | C26: LD04 | E26: Haricots verts | G26: Dimanche midi et soir | I26: Boîte pour deux repas | K26: 1 | M26: V22 | N26: Saucisson | O26: Lundi à dimanche soirs | P26: Morceau de quatre cent grammes pour trois repas | Q26: 134 | R26: D15 | S26: Oranges | T26: Samedis et dimanches midis et soirs | U26: Unité. Une par repas | V26: 2 | W26: O06 | X26: Jour de l'an | Y26: Menus journaliers | Z26: Janvier | AA26: 1
A27: Menus | B27: 2017-01-02 | C27: LLM08 | E27: Maïs | G27: Lundi et mardi soirs | I27: Boîte pour deux repas | K27: 0.5 | M27: V01 | N27: Bifteck haché de bœuf | O27: Lundi à dimanche soirs | P27: Paquet pour deux repas | Q27: 1 | R27: D17 | S27: Pomme | T27: Lundi à vendredi soirs | U27: Une par repas | V27: 1 | Y27: Menus journaliers | Z27: Janvier | AA27: 2
A28: Menus | B28: 2017-01-03 | C28: LLM08 | E28: Maïs | G28: Lundi et mardi soirs | I28: Boîte pour deux repas | K28: 0.5 | M28: V22 | N28: Saucisson | O28: Lundi à dimanche soirs | P28: Morceau de quatre cent grammes pour trois repas | Q28: 133 | R28: D17 | S28: Pomme | T28: Lundi à vendredi soirs | U28: Une par repas | V28: 1 | Y28: Menus journaliers | Z28: Janvier | AA28: 3
A29: Menus | B29: 2017-01-04 | C29: LMJ03 | E29: Petits pois et jeunes carottes | G29: Mercredi et jeudi soirs | I29: Boîte pour deux repas | K29: 0.5 | M29: V02 | N29: Bifteck haché de cheval | O29: Lundi à dimanche soirs | P29: cent vingt-cinq grammes par repas | Q29: 125 | R29: D17 | S29: Pomme | T29: Lundi à vendredi soirs | U29: Une par repas | V29: 1 | Y29: Menus journaliers | Z29: Janvier | AA29: 4
A30: Menus | B30: 2017-01-05 | C30: LMJ03 | E30: Petits pois et jeunes carottes | G30: Mercredi et jeudi soirs | I30: Boîte pour deux repas | K30: 0.5 | M30: V22 | N30: Saucisson | O30: Lundi à dimanche soirs | P30: Morceau de quatre cent grammes pour trois repas | Q30: 133 | R30: D17 | S30: Pomme | T30: Lundi à vendredi soirs | U30: Une par repas | V30: 1 | Y30: Menus journaliers | Z30: Janvier | AA30: 5
A31: Menus | B31: 2017-01-06 | C31: LV10 | E31: Salsifis | G31: Vendredi soir | I31: Boîte pour un repas | K31: 1 | M31: V03 | N31: Bifteck haché de veau | O31: Lundi à dimanche soirs | P31: Paquet pour deux repas | Q31: 1 | R31: D17 | S31: Pomme | T31: Lundi à vendredi soirs | U31: Une par repas | V31: 1 | Y31: Menus journaliers | Z31: Janvier | AA31: 6
A32: Menus | B32: 2017-01-07 | C32: LS02 | E32: Pâtes au beurre | G32: Samedi midi et soir | I32: Cinq cuillères par repas | K32: 10 | M32: V22 | N32: Saucisson | O32: Lundi à dimanche soirs | P32: Morceau de quatre cent grammes pour trois repas | Q32: 134 | R32: D16 | S32: Petits suisses | T32: Samedis et dimanches midis et soirs | U32: Pack de six pots. Trois pots par repas | V32: 6 | Y32: Menus journaliers | Z32: Janvier | AA32: 7
A33: Menus | B33: 2017-01-08 | C33: LD02 | E33: Chips | G33: Dimanche midi et soir | I33: Un sachet pour deux repas | K33: 1 | M33: V03 | N33: Bifteck haché de veau | O33: Lundi à dimanche soirs | P33: Paquet pour deux repas | Q33: 1 | R33: D16 | S33: Petits suisses | T33: Samedis et dimanches midis et soirs | U33: Pack de six pots. Trois pots par repas | V33: 6 | Y33: Menus journaliers | Z33: Janvier | AA33: 8
A34: Menus | B34: 2017-01-09 | C34: LLM09 | E34: Paella | G34: Lundi et mardi soirs | I34: Boîte pour deux repas | K34: 0.5 | M34: V28 | N34: Viande paella | O34: Lundi et mardi soirs | P34: Boîte pour deux repas | Q34: 0.5 | R34: D17 | S34: Pomme | T34: Lundi à vendredi soirs | U34: Une par repas | V34: 1 | Y34: Menus journaliers | Z34: Janvier | AA34: 9
A35: Menus | B35: 2017-01-10 | C35: LLM09 | E35: Paella | G35: Lundi et mardi soirs | I35: Boîte pour deux repas | K35: 0.5 | M35: V28 | N35: Viande paella | O35: Lundi et mardi soirs | P35: Boîte pour deux repas | Q35: 0.5 | R35: D17 | S35: Pomme | T35: Lundi à vendredi soirs | U35: Une par repas | V35: 1 | Y35: Menus journaliers | Z35: Janvier | AA35: 10
A36: Menus | B36: 2017-01-11 | C36: LMJ04 | E36: Ratatouille | G36: Mercredi et jeudi soirs | I36: Boîte pour deux repas | K36: 0.5 | M36: V22 | N36: Saucisson | O36: Lundi à dimanche soirs | P36: Morceau de quatre cent grammes pour trois repas | Q36: 133 | R36: D17 | S36: Pomme | T36: Lundi à vendredi soirs | U36: Une par repas | V36: 1 | Y36: Menus journaliers | Z36: Janvier | AA36: 11
A37: Menus | B37: 2017-01-12 | C37: LMJ04 | E37: Ratatouille | G37: Mercredi et jeudi soirs | I37: Boîte pour deux repas | K37: 0.5 | M37: V04 | N37: Bouchée à la reine | O37: Lundi à dimanche soirs | P37: Paquet pour deux repas | Q37: 1 | R37: D17 | S37: Pomme | T37: Lundi à vendredi soirs | U37: Une par repas | V37: 1 | Y37: Menus journaliers | Z37: Janvier | AA37: 12
A38: Menus | B38: 2017-01-13 | C38: LV11 | E38: Tomates | G38: Vendredi soir | I38: Deux par repas | K38: 2 | M38: V22 | N38: Saucisson | O38: Lundi à dimanche soirs | P38: Morceau de quatre cent grammes pour trois repas | Q38: 133 | R38: D17 | S38: Pomme | T38: Lundi à vendredi soirs | U38: Une par repas | V38: 1 | Y38: Menus journaliers | Z38: Janvier | AA38: 13
A39: Menus | B39: 2017-01-14 | C39: LS03 | E39: Pâtes au fromage râpé | G39: Samedi midi et soir | I39: Cinq cuillères par repas | K39: 10 | M39: V04 | N39: Bouchée à la reine | O39: Lundi à dimanche soirs | P39: Paquet pour deux repas | Q39: 1 | R39: D18 | S39: Pruneaux | T39: Samedis et dimanches midis et soirs | U39: Cinq par repas | V39: 10 | Y39: Menus journaliers | Z39: Janvier | AA39: 14
A40: Menus | B40: 2017-01-15 | C40: LD03 | D40: LD01 | E40: Frites | F40: Asperges | G40: Dimanche midi | H40: Dimanche soir | I40: Vingt frites par repas | J40: Boîte pour un repas | K40: 20 | L40: 1 | M40: V22 | N40: Saucisson | O40: Lundi à dimanche soirs | P40: Morceau de quatre cent grammes pour trois repas | Q40: 134 | R40: D18 | S40: Pruneaux | T40: Samedis et dimanches midis et soirs | U40: Cinq par repas | V40: 10 | Y40: Menus journaliers | Z40: Janvier | AA40: 15
A41: Menus | B41: 2017-01-16 | C41: LLM10 | E41: Poireau | G41: Lundi et mardi soirs | I41: Un par repas | K41: 1 | M41: V05 | N41: Boudin | O41: Lundi à dimanche soirs | P41: Paquet pour deux repas | Q41: 0.5 | R41: D17 | S41: Pomme | T41: Lundi à vendredi soirs | U41: Une par repas | V41: 1 | Y41: Menus journaliers | Z41: Janvier | AA41: 16
A42: Menus | B42: 2017-01-17 | C42: LLM10 | E42: Poireau | G42: Lundi et mardi soirs | I42: Un par repas | K42: 1 | M42: V22 | N42: Saucisson | O42: Lundi à dimanche soirs | P42: Morceau de quatre cent grammes pour trois repas | Q42: 133 | R42: D17 | S42: Pomme | T42: Lundi à vendredi soirs | U42: Une par repas | V42: 1 | Y42: Menus journaliers | Z42: Janvier | AA42: 17
A43: Menus | B43: 2017-01-18 | C43: LMJ05 | E43: Raviolis | G43: Mercredi et jeudi soirs | I43: Boîte pour deux repas | K43: 0.5 | M43: V05 | N43: Boudin | O43: Lundi à dimanche soirs | P43: Paquet pour deux repas | Q43: 0.5 | R43: D17 | S43: Pomme | T43: Lundi à vendredi soirs | U43: Une par repas | V43: 1 | Y43: Menus journaliers | Z43: Janvier | AA43: 18
A44: Menus | B44: 2017-01-19 | C44: LMJ05 | E44: Raviolis | G44: Mercredi et jeudi soirs | I44: Boîte pour deux repas | K44: 0.5 | M44: V22 | N44: Saucisson | O44: Lundi à dimanche soirs | P44: Morceau de quatre cent grammes pour trois repas | Q44: 133 | R44: D17 | S44: Pomme | T44: Lundi à vendredi soirs | U44: Une par repas | V44: 1 | Y44: Menus journaliers | Z44: Janvier | AA44: 19
A45: Menus | B45: 2017-01-20 | C45: LV01 | E45: Asperges | G45: Vendredi soir | I45: Boîte pour un repas | K45: 1 | M45: V06 | N45: Cervelas | O45: Lundi à dimanche soirs | P45: Paquet pour deux repas | Q45: 0.5 | R45: D17 | S45: Pomme | T45: Lundi à vendredi soirs | U45: Une par repas | V45: 1 | Y45: Menus journaliers | Z45: Janvier | AA45: 20
A46: Menus | B46: 2017-01-21 | C46: LS01 | E46: Pâtes à la sauce tomates | G46: Samedi midi et soir | I46: Cinq cuillères par repas | K46: 10 | M46: V22 | N46: Saucisson | O46: Lundi à dimanche soirs | P46: Morceau de quatre cent grammes pour trois repas | Q46: 134 | R46: D19 | S46: Riz | T46: Samedis et dimanches midis et soirs | U46: Pack de quatre pots pour le week-end | V46: 2 | Y46: Menus journaliers | Z46: Janvier | AA46: 21
A47: Menus | B47: 2017-01-22 | C47: LD04 | E47: Haricots verts | G47: Dimanche midi et soir | I47: Boîte pour deux repas | K47: 1 | M47: V06 | N47: Cervelas | O47: Lundi à dimanche soirs | P47: Paquet pour deux repas | Q47: 0.5 | R47: D19 | S47: Riz | T47: Samedis et dimanches midis et soirs | U47: Pack de quatre pots pour le week-end | V47: 2 | Y47: Menus journaliers | Z47: Janvier | AA47: 22
A48: Menus | B48: 2017-01-23 | C48: LLM11 | E48: Pomme de terre | G48: Lundi et mardi soirs | I48: Une par repas | K48: 1 | M48: V22 | N48: Saucisson | O48: Lundi à dimanche soirs | P48: Morceau de quatre cent grammes pour trois repas | Q48: 133 | R48: D17 | S48: Pomme | T48: Lundi à vendredi soirs | U48: Une par repas | V48: 1 | Y48: Menus journaliers | Z48: Janvier | AA48: 23
A49: Menus | B49: 2017-01-24 | C49: LLM11 | E49: Pomme de terre | G49: Lundi et mardi soirs | I49: Une par repas | K49: 1 | M49: V07 | N49: Cœur | O49: Lundi à dimanche soirs | P49: Paquet pour deux repas | Q49: 1 | R49: D17 | S49: Pomme | T49: Lundi à vendredi soirs | U49: Une par repas | V49: 1 | Y49: Menus journaliers | Z49: Janvier | AA49: 24
A50: Menus | B50: 2017-01-25 | C50: LMJ06 | E50: Tomates pelées | G50: Mercredi et jeudi soirs | I50: Boîte pour deux repas | K50: 0.5 | M50: V22 | N50: Saucisson | O50: Lundi à dimanche soirs | P50: Morceau de quatre cent grammes pour trois repas | Q50: 133 | R50: D17 | S50: Pomme | T50: Lundi à vendredi soirs | U50: Une par repas | V50: 1 | Y50: Menus journaliers | Z50: Janvier | AA50: 25
A51: Menus | B51: 2017-01-26 | C51: LMJ06 | E51: Tomates pelées | G51: Mercredi et jeudi soirs | I51: Boîte pour deux repas | K51: 0.5 | M51: V07 | N51: Cœur | O51: Lundi à dimanche soirs | P51: Paquet pour deux repas | Q51: 1 | R51: D17 | S51: Pomme | T51: Lundi à vendredi soirs | U51: Une par repas | V51: 1 | Y51: Menus journaliers | Z51: Janvier | AA51: 26
A52: Menus | B52: 2017-01-27 | C52: LV02 | E52: Avocat | G52: Vendredi soir | I52: Un par repas | K52: 1 | M52: V22 | N52: Saucisson | O52: Lundi à dimanche soirs | P52: Morceau de quatre cent grammes pour trois repas | Q52: 134 | R52: D17 | S52: Pomme | T52: Lundi à vendredi soirs | U52: Une par repas | V52: 1 | Y52: Menus journaliers | Z52: Janvier | AA52: 27
A53: Menus | B53: 2017-01-28 | C53: LS02 | E53: Pâtes au beurre | G53: Samedi midi et soir | I53: Cinq cuillères par repas | K53: 10 | M53: V08 | N53: Croque-monsieur | O53: Lundi à dimanche soirs | P53: Paquet pour deux repas | Q53: 1 | R53: D20 | S53: Semoule de blé | T53: Samedis et dimanches midis et soirs | U53: Pack de quatre pots pour le week-end | V53: 2 | Y53: Menus journaliers | Z53: Janvier | AA53: 28
A54: Menus | B54: 2017-01-29 | C54: LD02 | E54: Chips | G54: Dimanche midi et soir | I54: Un sachet pour deux repas | K54: 1 | M54: V22 | N54: Saucisson | O54: Lundi à dimanche soirs | P54: Morceau de quatre cent grammes pour trois repas | Q54: 133 | R54: D20 | S54: Semoule de blé | T54: Samedis et dimanches midis et soirs | U54: Pack de quatre pots pour le week-end | V54: 2 | Y54: Menus journaliers | Z54: Janvier | AA54: 29
A55: Menus | B55: 2017-01-30 | C55: LLM12 | E55: Purée | G55: Lundi et mardi soirs | I55: Une demi-tasse par repas | K55: 25 | M55: V08 | N55: Croque-monsieur | O55: Lundi à dimanche soirs | P55: Paquet pour deux repas | Q55: 1 | R55: D17 | S55: Pomme | T55: Lundi à vendredi soirs | U55: Une par repas | V55: 1 | Y55: Menus journaliers | Z55: Janvier | AA55: 30
A56: Menus | B56: 2017-01-31 | C56: LLM12 | E56: Purée | G56: Lundi et mardi soirs | I56: Une demi-tasse par repas | K56: 25 | M56: V22 | N56: Saucisson | O56: Lundi à dimanche soirs | P56: Morceau de quatre cent grammes pour trois repas | Q56: 133 | R56: D17 | S56: Pomme | T56: Lundi à vendredi soirs | U56: Une par repas | V56: 1 | Y56: Menus journaliers | Z56: Janvier | AA56: 31
A57: Viandes | B57: 2017-01-01 | M57: V32 | N57: Dinde | O57: Samedi et dimanche midis | P57: Une tranche par repas | Q57: 1 | W57: O06 | X57: Jour de l'an | Y57: Viande premier semestre | Z57: Janvier | AA57: 1
A58: Viandes | B58: 2017-01-07 | M58: V33 | N58: Poisson | O58: Samedi et dimanche midis | P58: Unité. Un par repas | Q58: 1 | Y58: Viande premier semestre | Z58: Janvier | AA58: 2
A59: Viandes | B59: 2017-01-08 | M59: V34 | N59: Porc | O59: Samedi et dimanche midis | P59: Une tranche par repas | Q59: 1 | Y59: Viande premier semestre | Z59: Janvier | AA59: 3
A60: Viandes | B60: 2017-01-14 | M60: V35 | N60: Veau | O60: Samedi et dimanche midis | P60: Une tranche par repas | Q60: 1 | Y60: Viande premier semestre | Z60: Janvier | AA60: 4
A61: Viandes | B61: 2017-01-15 | M61: V29 | N61: Agneau | O61: Samedi et dimanche midis | P61: Une tranche par repas | Q61: 1 | Y61: Viande premier semestre | Z61: Janvier | AA61: 5
A62: Viandes | B62: 2017-01-21 | M62: V30 | N62: Bœuf | O62: Samedi et dimanche midis | P62: Une tranche par repas | Q62: 1 | Y62: Viande premier semestre | Z62: Janvier | AA62: 6
A63: Viandes | B63: 2017-01-22 | M63: V31 | N63: cheval | O63: Samedi et dimanche midis | P63: Une tranche par repas | Q63: 1 | Y63: Viande premier semestre | Z63: Janvier | AA63: 7
A64: Viandes | B64: 2017-01-28 | M64: V32 | N64: Dinde | O64: Samedi et dimanche midis | P64: Une tranche par repas | Q64: 1 | Y64: Viande premier semestre | Z64: Janvier | AA64: 8
A65: Viandes | B65: 2017-01-29 | M65: V33 | N65: Poisson | O65: Samedi et dimanche midis | P65: Unité. Un par repas | Q65: 1 | Y65: Viande premier semestre | Z65: Janvier | AA65: 9

Sheet Février
A1: Menus du mois de février 2017.
A2: Accueil
A3: Nature | B3: Date du menu | C3: Code légumes | D3: Code légumes deux | E3: Légumes | F3: Légumes deux | G3: Jours légumes | H3: Jours légumes deux | I3: Conditionnement légumes | J3: Conditionnement légumes deux | K3: Quantité légumes | L3: Quantité légumes deux | M3: Code viandes | N3: Viandes | O3: Jours viandes | P3: Conditionnement viandes | Q3: Quantité viandes | R3: Code desserts | S3: Desserts | T3: Jours desserts | U3: Conditionnement desserts | V3: Quantité desserts | W3: Code observations | X3: Observations | Y3: Nature menus | Z3: Mois concerné | AA3: Numéro menu
A4: Menus | B4: 2017-02-01 | C4: LMR12 | E4: Pomme de terre | G4: Midi retraite | I4: Une par repas | K4: 1 | M4: VMR03 | N4: Rôti de cheval | O4: Lundi à vendredi midis | P4: Un morceau pour cinq repas | Q4: 100 | R4: DMR01 | S4: Pomme | T4: Lundi à vendredi midis | U4: Une par repas | V4: 1 | Y4: Menus midi retraite | Z4: Février | AA4: 23
A5: Menus | B5: 2017-02-02 | C5: LMR13 | E5: Purée | G5: Midi retraite | I5: Une demi-tasse par repas | K5: 25 | M5: VMR03 | N5: Rôti de cheval | O5: Lundi à vendredi midis | P5: Un morceau pour cinq repas | Q5: 100 | R5: DMR01 | S5: Pomme | T5: Lundi à vendredi midis | U5: Une par repas | V5: 1 | Y5: Menus midi retraite | Z5: Février | AA5: 24
A6: Menus | B6: 2017-02-03 | C6: LMR14 | E6: Radis | G6: Midi retraite | I6: Un sachet pour deux repas | K6: 0.5 | M6: VMR03 | N6: Rôti de cheval | O6: Lundi à vendredi midis | P6: Un morceau pour cinq repas | Q6: 100 | R6: DMR01 | S6: Pomme | T6: Lundi à vendredi midis | U6: Une par repas | V6: 1 | Y6: Menus midi retraite | Z6: Février | AA6: 25
A7: Menus | B7: 2017-02-06 | C7: LMR14 | E7: Radis | G7: Midi retraite | I7: Un sachet pour deux repas | K7: 0.5 | M7: VMR04 | N7: Rôti de porc | O7: Lundi à vendredi midis | P7: Un morceau pour cinq repas | Q7: 100 | R7: DMR01 | S7: Pomme | T7: Lundi à vendredi midis | U7: Une par repas | V7: 1 | Y7: Menus midi retraite | Z7: Février | AA7: 26
A8: Menus | B8: 2017-02-07 | C8: LMR15 | E8: Riz | G8: Midi retraite | I8: Cinquante grammes par repas | K8: 25 | M8: VMR04 | N8: Rôti de porc | O8: Lundi à vendredi midis | P8: Un morceau pour cinq repas | Q8: 100 | R8: DMR01 | S8: Pomme | T8: Lundi à vendredi midis | U8: Une par repas | V8: 1 | Y8: Menus midi retraite | Z8: Février | AA8: 27
A9: Menus | B9: 2017-02-08 | C9: LMR16 | E9: Salade | G9: Midi retraite | I9: Une par repas | K9: 1 | M9: VMR04 | N9: Rôti de porc | O9: Lundi à vendredi midis | P9: Un morceau pour cinq repas | Q9: 100 | R9: DMR01 | S9: Pomme | T9: Lundi à vendredi midis | U9: Une par repas | V9: 1 | Y9: Menus midi retraite | Z9: Février | AA9: 28
A10: Menus | B10: 2017-02-09 | C10: LMR17 | E10: Tomates | G10: Midi retraite | I10: Deux par repas | K10: 2 | M10: VMR04 | N10: Rôti de porc | O10: Lundi à vendredi midis | P10: Un morceau pour cinq repas | Q10: 100 | R10: DMR01 | S10: Pomme | T10: Lundi à vendredi midis | U10: Une par repas | V10: 1 | Y10: Menus midi retraite | Z10: Février | AA10: 29
A11: Menus | B11: 2017-02-10 | C11: LMR01 | E11: Asperges | G11: Midi retraite | I11: Boîte pour un repas | K11: 1 | M11: VMR04 | N11: Rôti de porc | O11: Lundi à vendredi midis | P11: Un morceau pour cinq repas | Q11: 100 | R11: DMR01 | S11: Pomme | T11: Lundi à vendredi midis | U11: Une par repas | V11: 1 | Y11: Menus midi retraite | Z11: Février | AA11: 30
A12: Menus | B12: 2017-02-13 | C12: LMR02 | E12: Avocat | G12: Midi retraite | I12: Un par repas | K12: 1 | M12: VMR05 | N12: Rôti de veau | O12: Lundi à vendredi midis | P12: Un morceau pour cinq repas | Q12: 100 | R12: DMR01 | S12: Pomme | T12: Lundi à vendredi midis | U12: Une par repas | V12: 1 | Y12: Menus midi retraite | Z12: Février | AA12: 31
A13: Menus | B13: 2017-02-14 | C13: LMR03 | E13: Carottes | G13: Midi retraite | I13: Deux par repas | K13: 2 | M13: VMR05 | N13: Rôti de veau | O13: Lundi à vendredi midis | P13: Un morceau pour cinq repas | Q13: 100 | R13: DMR01 | S13: Pomme | T13: Lundi à vendredi midis | U13: Une par repas | V13: 1 | Y13: Menus midi retraite | Z13: Février | AA13: 32
A14: Menus | B14: 2017-02-15 | C14: LMR04 | E14: Céleri | G14: Midi retraite | I14: Une branche par repas | K14: 1 | M14: VMR05 | N14: Rôti de veau | O14: Lundi à vendredi midis | P14: Un morceau pour cinq repas | Q14: 100 | R14: DMR01 | S14: Pomme | T14: Lundi à vendredi midis | U14: Une par repas | V14: 1 | Y14: Menus midi retraite | Z14: Février | AA14: 33
A15: Menus | B15: 2017-02-16 | C15: LMR05 | E15: Champignons | G15: Midi retraite | I15: Boîte pour un repas | K15: 1 | M15: VMR05 | N15: Rôti de veau | O15: Lundi à vendredi midis | P15: Un morceau pour cinq repas | Q15: 100 | R15: DMR01 | S15: Pomme | T15: Lundi à vendredi midis | U15: Une par repas | V15: 1 | Y15: Menus midi retraite | Z15: Février | AA15: 34
A16: Menus | B16: 2017-02-17 | C16: LMR06 | E16: Concombre | G16: Midi retraite | I16: Un par repas | K16: 1 | M16: VMR05 | N16: Rôti de veau | O16: Lundi à vendredi midis | P16: Un morceau pour cinq repas | Q16: 100 | R16: DMR01 | S16: Pomme | T16: Lundi à vendredi midis | U16: Une par repas | V16: 1 | Y16: Menus midi retraite | Z16: Février | AA16: 35
A17: Menus | B17: 2017-02-20 | C17: LMR07 | E17: Couscous | G17: Midi retraite | I17: Cinquante grammes par repas | K17: 25 | M17: VMR01 | N17: Rôti d'agneau | O17: Lundi à vendredi midis | P17: Un morceau pour cinq repas | Q17: 100 | R17: DMR01 | S17: Pomme | T17: Lundi à vendredi midis | U17: Une par repas | V17: 1 | Y17: Menus midi retraite | Z17: Février | AA17: 36
A18: Menus | B18: 2017-02-21 | C18: LMR08 | E18: Maïs | G18: Midi retraite | I18: Boîte pour deux repas | K18: 0.5 | M18: VMR01 | N18: Rôti d'agneau | O18: Lundi à vendredi midis | P18: Un morceau pour cinq repas | Q18: 100 | R18: DMR01 | S18: Pomme | T18: Lundi à vendredi midis | U18: Une par repas | V18: 1 | Y18: Menus midi retraite | Z18: Février | AA18: 37
A19: Menus | B19: 2017-02-22 | C19: LMR08 | E19: Maïs | G19: Midi retraite | I19: Boîte pour deux repas | K19: 0.5 | M19: VMR01 | N19: Rôti d'agneau | O19: Lundi à vendredi midis | P19: Un morceau pour cinq repas | Q19: 100 | R19: DMR01 | S19: Pomme | T19: Lundi à vendredi midis | U19: Une par repas | V19: 1 | Y19: Menus midi retraite | Z19: Février | AA19: 38
A20: Menus | B20: 2017-02-23 | C20: LMR09 | E20: Pâtes à la sauce tomates | G20: Midi retraite | I20: Cinq cuillères par repas | K20: 5 | M20: VMR01 | N20: Rôti d'agneau | O20: Lundi à vendredi midis | P20: Un morceau pour cinq repas | Q20: 100 | R20: DMR01 | S20: Pomme | T20: Lundi à vendredi midis | U20: Une par repas | V20: 1 | Y20: Menus midi retraite | Z20: Février | AA20: 39
A21: Menus | B21: 2017-02-24 | C21: LMR10 | E21: Pâtes au beurre | G21: Midi retraite | I21: Cinq cuillères par repas | K21: 5 | M21: VMR01 | N21: Rôti d'agneau | O21: Lundi à vendredi midis | P21: Un morceau pour cinq repas | Q21: 100 | R21: DMR01 | S21: Pomme | T21: Lundi à vendredi midis | U21: Une par repas | V21: 1 | Y21: Menus midi retraite | Z21: Février | AA21: 40
A22: Menus | B22: 2017-02-27 | C22: LMR11 | E22: Poireau | G22: Midi retraite | I22: Un par repas | K22: 1 | M22: VMR02 | N22: Rôti de bœuf | O22: Lundi à vendredi midis | P22: Un morceau pour cinq repas | Q22: 100 | R22: DMR01 | S22: Pomme | T22: Lundi à vendredi midis | U22: Une par repas | V22: 1 | Y22: Menus midi retraite | Z22: Février | AA22: 41
A23: Menus | B23: 2017-02-28 | C23: LMR12 | E23: Pomme de terre | G23: Midi retraite | I23: Une par repas | K23: 1 | M23: VMR02 | N23: Rôti de bœuf | O23: Lundi à vendredi midis | P23: Un morceau pour cinq repas | Q23: 100 | R23: DMR01 | S23: Pomme | T23: Lundi à vendredi midis | U23: Une par repas | V23: 1 | Y23: Menus midi retraite | Z23: Février | AA23: 42
A24: Menus | B24: 2017-02-01 | C24: LMJ01 | E24: Macédoine de légumes | G24: Mercredi et jeudi soirs | I24: Boîte pour deux repas | K24: 0.5 | M24: V09 | N24: Foie | O24: Lundi à dimanche soirs | P24: Paquet pour deux repas | Q24: 1 | R24: D17 | S24: Pomme | T24: Lundi à vendredi soirs | U24: Une par repas | V24: 1 | Y24: Menus journaliers | Z24: Février | AA24: 32
A25: Menus | B25: 2017-02-02 | C25: LMJ01 | E25: Macédoine de légumes | G25: Mercredi et jeudi soirs | I25: Boîte pour deux repas | K25: 0.5 | M25: V22 | N25: Saucisson | O25: Lundi à dimanche soirs | P25: Morceau de quatre cent grammes pour trois repas | Q25: 134 | R25: D17 | S25: Pomme | T25: Lundi à vendredi soirs | U25: Une par repas | V25: 1 | Y25: Menus journaliers | Z25: Février | AA25: 33
A26: Menus | B26: 2017-02-03 | C26: LV03 | E26: Betterave rouge | G26: Vendredi soir | I26: Une par repas | K26: 1 | M26: V09 | N26: Foie | O26: Lundi à dimanche soirs | P26: Paquet pour deux repas | Q26: 1 | R26: D17 | S26: Pomme | T26: Lundi à vendredi soirs | U26: Une par repas | V26: 1 | Y26: Menus journaliers | Z26: Février | AA26: 34
A27: Menus | B27: 2017-02-04 | C27: LS03 | E27: Pâtes au fromage râpé | G27: Samedi midi et soir | I27: Cinq cuillères par repas | K27: 10 | M27: V22 | N27: Saucisson | O27: Lundi à dimanche soirs | P27: Morceau de quatre cent grammes pour trois repas | Q27: 133 | R27: D21 | S27: Tapioca | T27: Samedis et dimanches midis et soirs | U27: Cinquante grammes par repas | V27: 100 | Y27: Menus journaliers | Z27: Février | AA27: 35
A28: Menus | B28: 2017-02-05 | C28: LD03 | D28: LD01 | E28: Frites | F28: Asperges | G28: Dimanche midi | H28: Dimanche soir | I28: Vingt frites par repas | J28: Boîte pour un repas | K28: 20 | L28: 1 | M28: V10 | N28: Fromage de tête | O28: Lundi à dimanche soirs | P28: Paquet pour deux repas | Q28: 0.5 | R28: D21 | S28: Tapioca | T28: Samedis et dimanches midis et soirs | U28: Cinquante grammes par repas | V28: 100 | Y28: Menus journaliers | Z28: Février | AA28: 36
A29: Menus | B29: 2017-02-06 | C29: LLM13 | E29: Quenelles | G29: Lundi et mardi soirs | I29: Boîte pour deux repas | K29: 0.5 | M29: V22 | N29: Saucisson | O29: Lundi à dimanche soirs | P29: Morceau de quatre cent grammes pour trois repas | Q29: 133 | R29: D17 | S29: Pomme | T29: Lundi à vendredi soirs | U29: Une par repas | V29: 1 | Y29: Menus journaliers | Z29: Février | AA29: 37
A30: Menus | B30: 2017-02-07 | C30: LLM13 | E30: Quenelles | G30: Lundi et mardi soirs | I30: Boîte pour deux repas | K30: 0.5 | M30: V10 | N30: Fromage de tête | O30: Lundi à dimanche soirs | P30: Paquet pour deux repas | Q30: 0.5 | R30: D17 | S30: Pomme | T30: Lundi à vendredi soirs | U30: Une par repas | V30: 1 | Y30: Menus journaliers | Z30: Février | AA30: 38
A31: Menus | B31: 2017-02-08 | C31: LMJ02 | E31: Petits pois | G31: Mercredi et jeudi soirs | I31: Boîte pour deux repas | K31: 0.5 | M31: V22 | N31: Saucisson | O31: Lundi à dimanche soirs | P31: Morceau de quatre cent grammes pour trois repas | Q31: 134 | R31: D17 | S31: Pomme | T31: Lundi à vendredi soirs | U31: Une par repas | V31: 1 | Y31: Menus journaliers | Z31: Février | AA31: 39
A32: Menus | B32: 2017-02-09 | C32: LMJ02 | E32: Petits pois | G32: Mercredi et jeudi soirs | I32: Boîte pour deux repas | K32: 0.5 | M32: V11 | N32: Jambon | O32: Lundi à dimanche soirs | P32: Paquet pour deux repas | Q32: 0.5 | R32: D17 | S32: Pomme | T32: Lundi à vendredi soirs | U32: Une par repas | V32: 1 | Y32: Menus journaliers | Z32: Février | AA32: 40
A33: Menus | B33: 2017-02-10 | C33: LV04 | E33: Carottes | G33: Vendredi soir | I33: Deux par repas | K33: 2 | M33: V22 | N33: Saucisson | O33: Lundi à dimanche soirs | P33: Morceau de quatre cent grammes pour trois repas | Q33: 133 | R33: D17 | S33: Pomme | T33: Lundi à vendredi soirs | U33: Une par repas | V33: 1 | Y33: Menus journaliers | Z33: Février | AA33: 41
A34: Menus | B34: 2017-02-11 | C34: LS01 | E34: Pâtes à la sauce tomates | G34: Samedi midi et soir | I34: Cinq cuillères par repas | K34: 10 | M34: V11 | N34: Jambon | O34: Lundi à dimanche soirs | P34: Paquet pour deux repas | Q34: 0.5 | R34: D22 | S34: Yaourts | T34: Samedis et dimanches midis et soirs | U34: Pack de quatre pots pour le week-end. 1 pot par repas | V34: 2 | Y34: Menus journaliers | Z34: Février | AA34: 42
A35: Menus | B35: 2017-02-12 | C35: LD04 | E35: Haricots verts | G35: Dimanche midi et soir | I35: Boîte pour deux repas | K35: 1 | M35: V22 | N35: Saucisson | O35: Lundi à dimanche soirs | P35: Morceau de quatre cent grammes pour trois repas | Q35: 133 | R35: D22 | S35: Yaourts | T35: Samedis et dimanches midis et soirs | U35: Pack de quatre pots pour le week-end. 1 pot par repas | V35: 2 | Y35: Menus journaliers | Z35: Février | AA35: 43
A36: Menus | B36: 2017-02-13 | C36: LLM14 | E36: Riz | G36: Lundi et mardi soirs | I36: Vingt-cinq grammes par repas | K36: 25 | M36: V12 | N36: Jambonneau | O36: Lundi à dimanche soirs | P36: Paquet pour deux repas | Q36: 0.5 | R36: D17 | S36: Pomme | T36: Lundi à vendredi soirs | U36: Une par repas | V36: 1 | Y36: Menus journaliers | Z36: Février | AA36: 44
A37: Menus | B37: 2017-02-14 | C37: LLM14 | E37: Riz | G37: Lundi et mardi soirs | I37: Vingt-cinq grammes par repas | K37: 25 | M37: V22 | N37: Saucisson | O37: Lundi à dimanche soirs | P37: Morceau de quatre cent grammes pour trois repas | Q37: 134 | R37: D17 | S37: Pomme | T37: Lundi à vendredi soirs | U37: Une par repas | V37: 1 | Y37: Menus journaliers | Z37: Février | AA37: 45
A38: Menus | B38: 2017-02-15 | C38: LMJ03 | E38: Petits pois et jeunes carottes | G38: Mercredi et jeudi soirs | I38: Boîte pour deux repas | K38: 0.5 | M38: V12 | N38: Jambonneau | O38: Lundi à dimanche soirs | P38: Paquet pour deux repas | Q38: 0.5 | R38: D17 | S38: Pomme | T38: Lundi à vendredi soirs | U38: Une par repas | V38: 1 | Y38: Menus journaliers | Z38: Février | AA38: 46
A39: Menus | B39: 2017-02-16 | C39: LMJ03 | E39: Petits pois et jeunes carottes | G39: Mercredi et jeudi soirs | I39: Boîte pour deux repas | K39: 0.5 | M39: V22 | N39: Saucisson | O39: Lundi à dimanche soirs | P39: Morceau de quatre cent grammes pour trois repas | Q39: 133 | R39: D17 | S39: Pomme | T39: Lundi à vendredi soirs | U39: Une par repas | V39: 1 | Y39: Menus journaliers | Z39: Février | AA39: 47
A40: Menus | B40: 2017-02-17 | C40: LV05 | E40: Céleri | G40: Vendredi soir | I40: Une branche par repas | K40: 1 | M40: V13 | N40: Mortadelle | O40: Lundi à dimanche soirs | P40: Paquet pour deux repas | Q40: 0.5 | R40: D17 | S40: Pomme | T40: Lundi à vendredi soirs | U40: Une par repas | V40: 1 | Y40: Menus journaliers | Z40: Février | AA40: 48
A41: Menus | B41: 2017-02-18 | C41: LS02 | E41: Pâtes au beurre | G41: Samedi midi et soir | I41: Cinq cuillères par repas | K41: 10 | M41: V22 | N41: Saucisson | O41: Lundi à dimanche soirs | P41: Morceau de quatre cent grammes pour trois repas | Q41: 133 | R41: D01 | S41: Ananas | T41: Samedis et dimanches midis et soirs | U41: Unité. Un pour quatre repas | V41: 0.5 | Y41: Menus journaliers | Z41: Février | AA41: 49
A42: Menus | B42: 2017-02-19 | C42: LD02 | E42: Chips | G42: Dimanche midi et soir | I42: Un sachet pour deux repas | K42: 1 | M42: V13 | N42: Mortadelle | O42: Lundi à dimanche soirs | P42: Paquet pour deux repas | Q42: 0.5 | R42: D01 | S42: Ananas | T42: Samedis et dimanches midis et soirs | U42: Unité. Un pour quatre repas | V42: 0.5 | Y42: Menus journaliers | Z42: Février | AA42: 50
A43: Menus | B43: 2017-02-20 | C43: LLM01 | E43: Cassoulet | G43: Lundi et mardi soirs | I43: Boîte pour deux repas | K43: 0.5 | M43: V26 | N43: Viande cassoulet | O43: Lundi et mardi soirs | P43: Boîte pour deux repas | Q43: 0.5 | R43: D17 | S43: Pomme | T43: Lundi à vendredi soirs | U43: Une par repas | V43: 1 | Y43: Menus journaliers | Z43: Février | AA43: 51
A44: Menus | B44: 2017-02-21 | C44: LLM01 | E44: Cassoulet | G44: Lundi et mardi soirs | I44: Boîte pour deux repas | K44: 0.5 | M44: V26 | N44: Viande cassoulet | O44: Lundi et mardi soirs | P44: Boîte pour deux repas | Q44: 0.5 | R44: D17 | S44: Pomme | T44: Lundi à vendredi soirs | U44: Une par repas | V44: 1 | Y44: Menus journaliers | Z44: Février | AA44: 52
A45: Menus | B45: 2017-02-22 | C45: LMJ04 | E45: Ratatouille | G45: Mercredi et jeudi soirs | I45: Boîte pour deux repas | K45: 0.5 | M45: V22 | N45: Saucisson | O45: Lundi à dimanche soirs | P45: Morceau de quatre cent grammes pour trois repas | Q45: 134 | R45: D17 | S45: Pomme | T45: Lundi à vendredi soirs | U45: Une par repas | V45: 1 | Y45: Menus journaliers | Z45: Février | AA45: 53
A46: Menus | B46: 2017-02-23 | C46: LMJ04 | E46: Ratatouille | G46: Mercredi et jeudi soirs | I46: Boîte pour deux repas | K46: 0.5 | M46: V14 | N46: Œufs | O46: Lundi à dimanche soirs | P46: Boîte de six œufs. Trois œufs par repas | Q46: 3 | R46: D17 | S46: Pomme | T46: Lundi à vendredi soirs | U46: Une par repas | V46: 1 | Y46: Menus journaliers | Z46: Février | AA46: 54
A47: Menus | B47: 2017-02-24 | C47: LV06 | E47: Champignons | G47: Vendredi soir | I47: Boîte pour un repas | K47: 1 | M47: V22 | N47: Saucisson | O47: Lundi à dimanche soirs | P47: Morceau de quatre cent grammes pour trois repas | Q47: 133 | R47: D17 | S47: Pomme | T47: Lundi à vendredi soirs | U47: Une par repas | V47: 1 | Y47: Menus journaliers | Z47: Février | AA47: 55
A48: Menus | B48: 2017-02-25 | C48: LS03 | E48: Pâtes au fromage râpé | G48: Samedi midi et soir | I48: Cinq cuillères par repas | K48: 10 | M48: V14 | N48: Œufs | O48: Lundi à dimanche soirs | P48: Boîte de six œufs. Trois œufs par repas | Q48: 3 | R48: D02 | S48: Autres fruits | T48: Samedis et dimanches midis et soirs | U48: Unité. Deux à quatre par repas | V48: 8 | Y48: Menus journaliers | Z48: Février | AA48: 56
A49: Menus | B49: 2017-02-26 | C49: LD03 | D49: LD01 | E49: Frites | F49: Asperges | G49: Dimanche midi | H49: Dimanche soir | I49: Vingt frites par repas | J49: Boîte pour un repas | K49: 20 | L49: 1 | M49: V22 | N49: Saucisson | O49: Lundi à dimanche soirs | P49: Morceau de quatre cent grammes pour trois repas | Q49: 133 | R49: D02 | S49: Autres fruits | T49: Samedis et dimanches midis et soirs | U49: Unité. Deux à quatre par repas | V49: 8 | Y49: Menus journaliers | Z49: Février | AA49: 57
A50: Menus | B50: 2017-02-27 | C50: LLM02 | E50: Choucroute | G50: Lundi et mardi soirs | I50: Boîte pour deux repas | K50: 0.5 | M50: V27 | N50: Viande choucroute | O50: Lundi et mardi soirs | P50: Boîte pour deux repas | Q50: 0.5 | R50: D17 | S50: Pomme | T50: Lundi à vendredi soirs | U50: Une par repas | V50: 1 | Y50: Menus journaliers | Z50: Février | AA50: 58
A51: Menus | B51: 2017-02-28 | C51: LLM02 | E51: Choucroute | G51: Lundi et mardi soirs | I51: Boîte pour deux repas | K51: 0.5 | M51: V27 | N51: Viande choucroute | O51: Lundi et mardi soirs | P51: Boîte pour deux repas | Q51: 0.5 | R51: D17 | S51: Pomme | T51: Lundi à vendredi soirs | U51: Une par repas | V51: 1 | Y51: Menus journaliers | Z51: Février | AA51: 59
A52: Viandes | B52: 2017-02-04 | M52: V34 | N52: Porc | O52: Samedi et dimanche midis | P52: Une tranche par repas | Q52: 1 | Y52: Viande premier semestre | Z52: Février | AA52: 10
A53: Viandes | B53: 2017-02-05 | M53: V35 | N53: Veau | O53: Samedi et dimanche midis | P53: Une tranche par repas | Q53: 1 | Y53: Viande premier semestre | Z53: Février | AA53: 11
A54: Viandes | B54: 2017-02-11 | M54: V29 | N54: Agneau | O54: Samedi et dimanche midis | P54: Une tranche par repas | Q54: 1 | Y54: Viande premier semestre | Z54: Février | AA54: 12
A55: Viandes | B55: 2017-02-12 | M55: V30 | N55: Bœuf | O55: Samedi et dimanche midis | P55: Une tranche par repas | Q55: 1 | Y55: Viande premier semestre | Z55: Février | AA55: 13
A56: Viandes | B56: 2017-02-18 | M56: V31 | N56: cheval | O56: Samedi et dimanche midis | P56: Une tranche par repas | Q56: 1 | Y56: Viande premier semestre | Z56: Février | AA56: 14
A57: Viandes | B57: 2017-02-19 | M57: V32 | N57: Dinde | O57: Samedi et dimanche midis | P57: Une tranche par repas | Q57: 1 | Y57: Viande premier semestre | Z57: Février | AA57: 15
A58: Viandes | B58: 2017-02-19 | M58: V32 | N58: Dinde | O58: Samedi et dimanche midis | P58: Une tranche par repas | Q58: 1 | Y58: Viande premier semestre | Z58: Février | AA58: 15
A59: Viandes | B59: 2017-02-25 | M59: V33 | N59: Poisson | O59: Samedi et dimanche midis | P59: Unité. Un par repas | Q59: 1 | Y59: Viande premier semestre | Z59: Février | AA59: 16
A60: Viandes | B60: 2017-02-26 | M60: V34 | N60: Porc | O60: Samedi et dimanche midis | P60: Une tranche par repas | Q60: 1 | Y60: Viande premier semestre | Z60: Février | AA60: 17

Sheet Mars
A1: Menus du mois de mars 2017.
A2: Accueil
A3: Nature | B3: Date du menu | C3: Code légumes | D3: Code légumes deux | E3: Légumes | F3: Légumes deux | G3: Jours légumes | H3: Jours légumes deux | I3: Conditionnement légumes | J3: Conditionnement légumes deux | K3: Quantité légumes | L3: Quantité légumes deux | M3: Code viandes | N3: Viandes | O3: Jours viandes | P3: Conditionnement viandes | Q3: Quantité viandes | R3: Code desserts | S3: Desserts | T3: Jours desserts | U3: Conditionnement desserts | V3: Quantité desserts | W3: Code observations | X3: Observations | Y3: Nature menus | Z3: Mois concerné | AA3: Numéro menu
A4: Menus | B4: 2017-03-01 | C4: LMR13 | E4: Purée | G4: Midi retraite | I4: Une demi-tasse par repas | K4: 25 | M4: VMR02 | N4: Rôti de bœuf | O4: Lundi à vendredi midis | P4: Un morceau pour cinq repas | Q4: 100 | R4: DMR01 | S4: Pomme | T4: Lundi à vendredi midis | U4: Une par repas | V4: 1 | Y4: Menus midi retraite | Z4: Mars | AA4: 43
A5: Menus | B5: 2017-03-02 | C5: LMR14 | E5: Radis | G5: Midi retraite | I5: Un sachet pour deux repas | K5: 0.5 | M5: VMR02 | N5: Rôti de bœuf | O5: Lundi à vendredi midis | P5: Un morceau pour cinq repas | Q5: 100 | R5: DMR01 | S5: Pomme | T5: Lundi à vendredi midis | U5: Une par repas | V5: 1 | Y5: Menus midi retraite | Z5: Mars | AA5: 44
A6: Menus | B6: 2017-03-03 | C6: LMR14 | E6: Radis | G6: Midi retraite | I6: Un sachet pour deux repas | K6: 0.5 | M6: VMR02 | N6: Rôti de bœuf | O6: Lundi à vendredi midis | P6: Un morceau pour cinq repas | Q6: 100 | R6: DMR01 | S6: Pomme | T6: Lundi à vendredi midis | U6: Une par repas | V6: 1 | Y6: Menus midi retraite | Z6: Mars | AA6: 45
A7: Menus | B7: 2017-03-06 | C7: LMR15 | E7: Riz | G7: Midi retraite | I7: Cinquante grammes par repas | K7: 25 | M7: VMR03 | N7: Rôti de cheval | O7: Lundi à vendredi midis | P7: Un morceau pour cinq repas | Q7: 100 | R7: DMR01 | S7: Pomme | T7: Lundi à vendredi midis | U7: Une par repas | V7: 1 | Y7: Menus midi retraite | Z7: Mars | AA7: 46
A8: Menus | B8: 2017-03-07 | C8: LMR16 | E8: Salade | G8: Midi retraite | I8: Une par repas | K8: 1 | M8: VMR03 | N8: Rôti de cheval | O8: Lundi à vendredi midis | P8: Un morceau pour cinq repas | Q8: 100 | R8: DMR01 | S8: Pomme | T8: Lundi à vendredi midis | U8: Une par repas | V8: 1 | Y8: Menus midi retraite | Z8: Mars | AA8: 47
A9: Menus | B9: 2017-03-08 | C9: LMR17 | E9: Tomates | G9: Midi retraite | I9: Deux par repas | K9: 2 | M9: VMR03 | N9: Rôti de cheval | O9: Lundi à vendredi midis | P9: Un morceau pour cinq repas | Q9: 100 | R9: DMR01 | S9: Pomme | T9: Lundi à vendredi midis | U9: Une par repas | V9: 1 | Y9: Menus midi retraite | Z9: Mars | AA9: 48
A10: Menus | B10: 2017-03-09 | C10: LMR01 | E10: Asperges | G10: Midi retraite | I10: Boîte pour un repas | K10: 1 | M10: VMR03 | N10: Rôti de cheval | O10: Lundi à vendredi midis | P10: Un morceau pour cinq repas | Q10: 100 | R10: DMR01 | S10: Pomme | T10: Lundi à vendredi midis | U10: Une par repas | V10: 1 | Y10: Menus midi retraite | Z10: Mars | AA10: 49
A11: Menus | B11: 2017-03-10 | C11: LMR02 | E11: Avocat | G11: Midi retraite | I11: Un par repas | K11: 1 | M11: VMR03 | N11: Rôti de cheval | O11: Lundi à vendredi midis | P11: Un morceau pour cinq repas | Q11: 100 | R11: DMR01 | S11: Pomme | T11: Lundi à vendredi midis | U11: Une par repas | V11: 1 | Y11: Menus midi retraite | Z11: Mars | AA11: 50
A12: Menus | B12: 2017-03-13 | C12: LMR03 | E12: Carottes | G12: Midi retraite | I12: Deux par repas | K12: 1 | M12: VMR04 | N12: Rôti de porc | O12: Lundi à vendredi midis | P12: Un morceau pour cinq repas | Q12: 100 | R12: DMR01 | S12: Pomme | T12: Lundi à vendredi midis | U12: Une par repas | V12: 1 | Y12: Menus midi retraite | Z12: Mars | AA12: 51
A13: Menus | B13: 2017-03-14 | C13: LMR04 | E13: Céleri | G13: Midi retraite | I13: Une branche par repas | K13: 1 | M13: VMR04 | N13: Rôti de porc | O13: Lundi à vendredi midis | P13: Un morceau pour cinq repas | Q13: 100 | R13: DMR01 | S13: Pomme | T13: Lundi à vendredi midis | U13: Une par repas | V13: 1 | Y13: Menus midi retraite | Z13: Mars | AA13: 52
A14: Menus | B14: 2017-03-15 | C14: LMR05 | E14: Champignons | G14: Midi retraite | I14: Boîte pour un repas | K14: 1 | M14: VMR04 | N14: Rôti de porc | O14: Lundi à vendredi midis | P14: Un morceau pour cinq repas | Q14: 100 | R14: DMR01 | S14: Pomme | T14: Lundi à vendredi midis | U14: Une par repas | V14: 1 | Y14: Menus midi retraite | Z14: Mars | AA14: 53
A15: Menus | B15: 2017-03-16 | C15: LMR06 | E15: Concombre | G15: Midi retraite | I15: Un par repas | K15: 1 | M15: VMR04 | N15: Rôti de porc | O15: Lundi à vendredi midis | P15: Un morceau pour cinq repas | Q15: 100 | R15: DMR01 | S15: Pomme | T15: Lundi à vendredi midis | U15: Une par repas | V15: 1 | Y15: Menus midi retraite | Z15: Mars | AA15: 54
A16: Menus | B16: 2017-03-17 | C16: LMR07 | E16: Couscous | G16: Midi retraite | I16: Cinquante grammes par repas | K16: 25 | M16: VMR04 | N16: Rôti de porc | O16: Lundi à vendredi midis | P16: Un morceau pour cinq repas | Q16: 100 | R16: DMR01 | S16: Pomme | T16: Lundi à vendredi midis | U16: Une par repas | V16: 1 | Y16: Menus midi retraite | Z16: Mars | AA16: 55
A17: Menus | B17: 2017-03-20 | C17: LMR08 | E17: Maïs | G17: Midi retraite | I17: Boîte pour deux repas | K17: 0.5 | M17: VMR05 | N17: Rôti de veau | O17: Lundi à vendredi midis | P17: Un morceau pour cinq repas | Q17: 100 | R17: DMR01 | S17: Pomme | T17: Lundi à vendredi midis | U17: Une par repas | V17: 1 | Y17: Menus midi retraite | Z17: Mars | AA17: 56
A18: Menus | B18: 2017-03-21 | C18: LMR08 | E18: Maïs | G18: Midi retraite | I18: Boîte pour deux repas | K18: 0.5 | M18: VMR05 | N18: Rôti de veau | O18: Lundi à vendredi midis | P18: Un morceau pour cinq repas | Q18: 100 | R18: DMR01 | S18: Pomme | T18: Lundi à vendredi midis | U18: Une par repas | V18: 1 | Y18: Menus midi retraite | Z18: Mars | AA18: 57
A19: Menus | B19: 2017-03-22 | C19: LMR09 | E19: Pâtes à la sauce tomates | G19: Midi retraite | I19: Cinq cuillères par repas | K19: 5 | M19: VMR05 | N19: Rôti de veau | O19: Lundi à vendredi midis | P19: Un morceau pour cinq repas | Q19: 100 | R19: DMR01 | S19: Pomme | T19: Lundi à vendredi midis | U19: Une par repas | V19: 1 | Y19: Menus midi retraite | Z19: Mars | AA19: 58
A20: Menus | B20: 2017-03-23 | C20: LMR10 | E20: Pâtes au beurre | G20: Midi retraite | I20: Cinq cuillères par repas | K20: 5 | M20: VMR05 | N20: Rôti de veau | O20: Lundi à vendredi midis | P20: Un morceau pour cinq repas | Q20: 100 | R20: DMR01 | S20: Pomme | T20: Lundi à vendredi midis | U20: Une par repas | V20: 1 | Y20: Menus midi retraite | Z20: Mars | AA20: 59
A21: Menus | B21: 2017-03-24 | C21: LMR11 | E21: Poireau | G21: Midi retraite | I21: Un par repas | K21: 1 | M21: VMR05 | N21: Rôti de veau | O21: Lundi à vendredi midis | P21: Un morceau pour cinq repas | Q21: 100 | R21: DMR01 | S21: Pomme | T21: Lundi à vendredi midis | U21: Une par repas | V21: 1 | Y21: Menus midi retraite | Z21: Mars | AA21: 60
A22: Menus | B22: 2017-03-27 | C22: LMR12 | E22: Pomme de terre | G22: Midi retraite | I22: Une par repas | K22: 1 | M22: VMR01 | N22: Rôti d'agneau | O22: Lundi à vendredi midis | P22: Un morceau pour cinq repas | Q22: 100 | R22: DMR01 | S22: Pomme | T22: Lundi à vendredi midis | U22: Une par repas | V22: 1 | Y22: Menus midi retraite | Z22: Mars | AA22: 61
A23: Menus | B23: 2017-03-28 | C23: LMR13 | E23: Purée | G23: Midi retraite | I23: Une demi-tasse par repas | K23: 25 | M23: VMR01 | N23: Rôti d'agneau | O23: Lundi à vendredi midis | P23: Un morceau pour cinq repas | Q23: 100 | R23: DMR01 | S23: Pomme | T23: Lundi à vendredi midis | U23: Une par repas | V23: 1 | Y23: Menus midi retraite | Z23: Mars | AA23: 62
A24: Menus | B24: 2017-03-29 | C24: LMR14 | E24: Radis | G24: Midi retraite | I24: Un sachet pour deux repas | K24: 0.5 | M24: VMR01 | N24: Rôti d'agneau | O24: Lundi à vendredi midis | P24: Un morceau pour cinq repas | Q24: 100 | R24: DMR01 | S24: Pomme | T24: Lundi à vendredi midis | U24: Une par repas | V24: 1 | Y24: Menus midi retraite | Z24: Mars | AA24: 63
A25: Menus | B25: 2017-03-30 | C25: LMR14 | E25: Radis | G25: Midi retraite | I25: Un sachet pour deux repas | K25: 0.5 | M25: VMR01 | N25: Rôti d'agneau | O25: Lundi à vendredi midis | P25: Un morceau pour cinq repas | Q25: 100 | R25: DMR01 | S25: Pomme | T25: Lundi à vendredi midis | U25: Une par repas | V25: 1 | Y25: Menus midi retraite | Z25: Mars | AA25: 64
A26: Menus | B26: 2017-03-31 | C26: LMR14 | E26: Radis | G26: Midi retraite | I26: Un sachet pour deux repas | K26: 0.5 | M26: VMR01 | N26: Rôti d'agneau | O26: Lundi à vendredi midis | P26: Un morceau pour cinq repas | Q26: 100 | R26: DMR01 | S26: Pomme | T26: Lundi à vendredi midis | U26: Une par repas | V26: 1 | Y26: Menus midi retraite | Z26: Mars | AA26: 65
A27: Menus | B27: 2017-03-01 | C27: LMJ05 | E27: Raviolis | G27: Mercredi et jeudi soirs | I27: Boîte pour deux repas | K27: 0.5 | M27: V15 | N27: Pizza | O27: Lundi à dimanche soirs | P27: Paquet pour deux repas | Q27: 0.5 | R27: D17 | S27: Pomme | T27: Lundi à vendredi soirs | U27: Une par repas | V27: 1 | Y27: Menus journaliers | Z27: Mars | AA27: 60
A28: Menus | B28: 2017-03-02 | C28: LMJ05 | E28: Raviolis | G28: Mercredi et jeudi soirs | I28: Boîte pour deux repas | K28: 0.5 | M28: V22 | N28: Saucisson | O28: Lundi à dimanche soirs | P28: Morceau de quatre cent grammes pour trois repas | Q28: 134 | R28: D17 | S28: Pomme | T28: Lundi à vendredi soirs | U28: Une par repas | V28: 1 | Y28: Menus journaliers | Z28: Mars | AA28: 61
A29: Menus | B29: 2017-03-03 | C29: LV07 | E29: Concombre | G29: Vendredi soir | I29: Un par repas | K29: 1 | M29: V15 | N29: Pizza | O29: Lundi à dimanche soirs | P29: Paquet pour deux repas | Q29: 0.5 | R29: D17 | S29: Pomme | T29: Lundi à vendredi soirs | U29: Une par repas | V29: 1 | Y29: Menus journaliers | Z29: Mars | AA29: 62
A30: Menus | B30: 2017-03-04 | C30: LS01 | E30: Pâtes à la sauce tomates | G30: Samedi midi et soir | I30: Cinq cuillères par repas | K30: 10 | M30: V22 | N30: Saucisson | O30: Lundi à dimanche soirs | P30: Morceau de quatre cent grammes pour trois repas | Q30: 133 | R30: D03 | S30: Avocats | T30: Samedis et dimanches midis et soirs | U30: Un par repas | V30: 2 | Y30: Menus journaliers | Z30: Mars | AA30: 63
A31: Menus | B31: 2017-03-05 | C31: LD04 | E31: Haricots verts | G31: Dimanche midi et soir | I31: Boîte pour deux repas | K31: 1 | M31: V16 | N31: Poisson | O31: Lundi à dimanche soirs | P31: Unité. Un par repas | Q31: 1 | R31: D03 | S31: Avocats | T31: Samedis et dimanches midis et soirs | U31: Un par repas | V31: 2 | Y31: Menus journaliers | Z31: Mars | AA31: 64
A32: Menus | B32: 2017-03-06 | C32: LLM03 | E32: Chou-fleur | G32: Lundi et mardi soirs | I32: Unité. Un pour deux repas | K32: 0.5 | M32: V22 | N32: Saucisson | O32: Lundi à dimanche soirs | P32: Morceau de quatre cent grammes pour trois repas | Q32: 133 | R32: D17 | S32: Pomme | T32: Lundi à vendredi soirs | U32: Une par repas | V32: 1 | Y32: Menus journaliers | Z32: Mars | AA32: 65
A33: Menus | B33: 2017-03-07 | C33: LLM03 | E33: Chou-fleur | G33: Lundi et mardi soirs | I33: Unité. Un pour deux repas | K33: 0.5 | M33: V17 | N33: Quiche lorraine | O33: Lundi à dimanche soirs | P33: Paquet pour deux repas | Q33: 0.5 | R33: D17 | S33: Pomme | T33: Lundi à vendredi soirs | U33: Une par repas | V33: 1 | Y33: Menus journaliers | Z33: Mars | AA33: 66
A34: Menus | B34: 2017-03-08 | C34: LMJ06 | E34: Tomates pelées | G34: Mercredi et jeudi soirs | I34: Boîte pour deux repas | K34: 0.5 | M34: V22 | N34: Saucisson | O34: Lundi à dimanche soirs | P34: Morceau de quatre cent grammes pour trois repas | Q34: 134 | R34: D17 | S34: Pomme | T34: Lundi à vendredi soirs | U34: Une par repas | V34: 1 | Y34: Menus journaliers | Z34: Mars | AA34: 67
A35: Menus | B35: 2017-03-09 | C35: LMJ06 | E35: Tomates pelées | G35: Mercredi et jeudi soirs | I35: Boîte pour deux repas | K35: 0.5 | M35: V17 | N35: Quiche lorraine | O35: Lundi à dimanche soirs | P35: Paquet pour deux repas | Q35: 0.5 | R35: D17 | S35: Pomme | T35: Lundi à vendredi soirs | U35: Une par repas | V35: 1 | Y35: Menus journaliers | Z35: Mars | AA35: 68
A36: Menus | B36: 2017-03-10 | C36: LV08 | E36: Radis | G36: Vendredi soir | I36: Un sachet par repas | K36: 1 | M36: V22 | N36: Saucisson | O36: Lundi à dimanche soirs | P36: Morceau de quatre cent grammes pour trois repas | Q36: 133 | R36: D17 | S36: Pomme | T36: Lundi à vendredi soirs | U36: Une par repas | V36: 1 | Y36: Menus journaliers | Z36: Mars | AA36: 69
A37: Menus | B37: 2017-03-11 | C37: LS02 | E37: Pâtes au beurre | G37: Samedi midi et soir | I37: Cinq cuillères par repas | K37: 10 | M37: V18 | N37: Roulade à la pistache | O37: Lundi à dimanche soirs | P37: Trois tranches par repas | Q37: 3 | R37: D04 | S37: Bananes | T37: Samedis et dimanches midis et soirs | U37: Une par repas | V37: 2 | Y37: Menus journaliers | Z37: Mars | AA37: 70
A38: Menus | B38: 2017-03-12 | C38: LD02 | E38: Chips | G38: Dimanche midi et soir | I38: Un sachet pour deux repas | K38: 1 | M38: V22 | N38: Saucisson | O38: Lundi à dimanche soirs | P38: Morceau de quatre cent grammes pour trois repas | Q38: 133 | R38: D04 | S38: Bananes | T38: Samedis et dimanches midis et soirs | U38: Une par repas | V38: 2 | Y38: Menus journaliers | Z38: Mars | AA38: 71
A39: Menus | B39: 2017-03-13 | C39: LLM04 | E39: Choux de Bruxelles | G39: Lundi et mardi soirs | I39: Boîte pour deux repas | K39: 0.5 | M39: V18 | N39: Roulade à la pistache | O39: Lundi à dimanche soirs | P39: Trois tranches par repas | Q39: 3 | R39: D17 | S39: Pomme | T39: Lundi à vendredi soirs | U39: Une par repas | V39: 1 | Y39: Menus journaliers | Z39: Mars | AA39: 72
A40: Menus | B40: 2017-03-14 | C40: LLM04 | E40: Choux de Bruxelles | G40: Lundi et mardi soirs | I40: Boîte pour deux repas | K40: 0.5 | M40: V22 | N40: Saucisson | O40: Lundi à dimanche soirs | P40: Morceau de quatre cent grammes pour trois repas | Q40: 134 | R40: D17 | S40: Pomme | T40: Lundi à vendredi soirs | U40: Une par repas | V40: 1 | Y40: Menus journaliers | Z40: Mars | AA40: 73
A41: Menus | B41: 2017-03-15 | C41: LMJ01 | E41: Macédoine de légumes | G41: Mercredi et jeudi soirs | I41: Boîte pour deux repas | K41: 0.5 | M41: V19 | N41: Roulé au fromage | O41: Lundi à dimanche soirs | P41: Paquet pour deux repas | Q41: 1 | R41: D17 | S41: Pomme | T41: Lundi à vendredi soirs | U41: Une par repas | V41: 1 | Y41: Menus journaliers | Z41: Mars | AA41: 74
A42: Menus | B42: 2017-03-16 | C42: LMJ01 | E42: Macédoine de légumes | G42: Mercredi et jeudi soirs | I42: Boîte pour deux repas | K42: 0.5 | M42: V22 | N42: Saucisson | O42: Lundi à dimanche soirs | P42: Morceau de quatre cent grammes pour trois repas | Q42: 133 | R42: D17 | S42: Pomme | T42: Lundi à vendredi soirs | U42: Une par repas | V42: 1 | Y42: Menus journaliers | Z42: Mars | AA42: 75
A43: Menus | B43: 2017-03-17 | C43: LV09 | E43: Salade | G43: Vendredi soir | I43: Une par repas | K43: 1 | M43: V19 | N43: Roulé au fromage | O43: Lundi à dimanche soirs | P43: Paquet pour deux repas | Q43: 1 | R43: D17 | S43: Pomme | T43: Lundi à vendredi soirs | U43: Une par repas | V43: 1 | Y43: Menus journaliers | Z43: Mars | AA43: 76
A44: Menus | B44: 2017-03-18 | C44: LS03 | E44: Pâtes au fromage râpé | G44: Samedi midi et soir | I44: Cinq cuillères par repas | K44: 10 | M44: V22 | N44: Saucisson | O44: Lundi à dimanche soirs | P44: Morceau de quatre cent grammes pour trois repas | Q44: 133 | R44: D05 | S44: Clémentines | T44: Samedis et dimanches midis et soirs | U44: Quatre par repas | V44: 8 | Y44: Menus journaliers | Z44: Mars | AA44: 77
A45: Menus | B45: 2017-03-19 | C45: LD03 | D45: LD01 | E45: Frites | F45: Asperges | G45: Dimanche midi | H45: Dimanche soir | I45: Vingt frites par repas | J45: Boîte pour un repas | K45: 20 | L45: 1 | M45: V20 | N45: Salami | O45: Lundi à dimanche soirs | P45: Paquet pour deux repas. Dix tranches par repas | Q45: 10 | R45: D05 | S45: Clémentines | T45: Samedis et dimanches midis et soirs | U45: Quatre par repas | V45: 8 | Y45: Menus journaliers | Z45: Mars | AA45: 78
A46: Menus | B46: 2017-03-20 | C46: LLM05 | E46: Couscous | G46: Lundi et mardi soirs | I46: Vingt-cinq grammes par repas | K46: 25 | M46: V22 | N46: Saucisson | O46: Lundi à dimanche soirs | P46: Morceau de quatre cent grammes pour trois repas | Q46: 134 | R46: D17 | S46: Pomme | T46: Lundi à vendredi soirs | U46: Une par repas | V46: 1 | Y46: Menus journaliers | Z46: Mars | AA46: 79
A47: Menus | B47: 2017-03-21 | C47: LLM05 | E47: Couscous | G47: Lundi et mardi soirs | I47: Vingt-cinq grammes par repas | K47: 25 | M47: V20 | N47: Salami | O47: Lundi à dimanche soirs | P47: Paquet pour deux repas. Dix tranches par repas | Q47: 10 | R47: D17 | S47: Pomme | T47: Lundi à vendredi soirs | U47: Une par repas | V47: 1 | Y47: Menus journaliers | Z47: Mars | AA47: 80
A48: Menus | B48: 2017-03-22 | C48: LMJ02 | E48: Petits pois | G48: Mercredi et jeudi soirs | I48: Boîte pour deux repas | K48: 0.5 | M48: V22 | N48: Saucisson | O48: Lundi à dimanche soirs | P48: Morceau de quatre cent grammes pour trois repas | Q48: 133 | R48: D17 | S48: Pomme | T48: Lundi à vendredi soirs | U48: Une par repas | V48: 1 | Y48: Menus journaliers | Z48: Mars | AA48: 81
A49: Menus | B49: 2017-03-23 | C49: LMJ02 | E49: Petits pois | G49: Mercredi et jeudi soirs | I49: Boîte pour deux repas | K49: 0.5 | M49: V21 | N49: Saucisses | O49: Lundi à dimanche soirs | P49: Paquet pour deux repas. Deux saucisses par repas | Q49: 2 | R49: D17 | S49: Pomme | T49: Lundi à vendredi soirs | U49: Une par repas | V49: 1 | Y49: Menus journaliers | Z49: Mars | AA49: 82
A50: Menus | B50: 2017-03-24 | C50: LV10 | E50: Salsifis | G50: Vendredi soir | I50: Boîte pour un repas | K50: 1 | M50: V22 | N50: Saucisson | O50: Lundi à dimanche soirs | P50: Morceau de quatre cent grammes pour trois repas | Q50: 133 | R50: D17 | S50: Pomme | T50: Lundi à vendredi soirs | U50: Une par repas | V50: 1 | Y50: Menus journaliers | Z50: Mars | AA50: 83
A51: Menus | B51: 2017-03-25 | C51: LS01 | E51: Pâtes à la sauce tomates | G51: Samedi midi et soir | I51: Cinq cuillères par repas | K51: 10 | M51: V21 | N51: Saucisses | O51: Lundi à dimanche soirs | P51: Paquet pour deux repas. Deux saucisses par repas | Q51: 2 | R51: D06 | S51: Crème | T51: Samedis et dimanches midis et soirs | U51: Un sachet pour quatre repas | V51: 0.5 | Y51: Menus journaliers | Z51: Mars | AA51: 84
A52: Menus | B52: 2017-03-26 | C52: LD04 | E52: Haricots verts | G52: Dimanche midi et soir | I52: Boîte pour deux repas | K52: 1 | M52: V22 | N52: Saucisson | O52: Lundi à dimanche soirs | P52: Morceau de quatre cent grammes pour trois repas | Q52: 134 | R52: D06 | S52: Crème | T52: Samedis et dimanches midis et soirs | U52: Un sachet pour quatre repas | V52: 0.5 | Y52: Menus journaliers | Z52: Mars | AA52: 85
A53: Menus | B53: 2017-03-27 | C53: LLM06 | E53: Endives | G53: Lundi et mardi soirs | I53: Boîte pour deux repas | K53: 0.5 | M53: V23 | N53: Tête persillée | O53: Lundi à dimanche soirs | P53: Paquet pour deux repas | Q53: 0.5 | R53: D17 | S53: Pomme | T53: Lundi à vendredi soirs | U53: Une par repas | V53: 1 | Y53: Menus journaliers | Z53: Mars | AA53: 86
A54: Menus | B54: 2017-03-28 | C54: LLM06 | E54: Endives | G54: Lundi et mardi soirs | I54: Boîte pour deux repas | K54: 0.5 | M54: V22 | N54: Saucisson | O54: Lundi à dimanche soirs | P54: Morceau de quatre cent grammes pour trois repas | Q54: 133 | R54: D17 | S54: Pomme | T54: Lundi à vendredi soirs | U54: Une par repas | V54: 1 | Y54: Menus journaliers | Z54: Mars | AA54: 87
A55: Menus | B55: 2017-03-29 | C55: LMJ03 | E55: Petits pois et jeunes carottes | G55: Mercredi et jeudi soirs | I55: Boîte pour deux repas | K55: 0.5 | M55: V23 | N55: Tête persillée | O55: Lundi à dimanche soirs | P55: Paquet pour deux repas | Q55: 0.5 | R55: D17 | S55: Pomme | T55: Lundi à vendredi soirs | U55: Une par repas | V55: 1 | Y55: Menus journaliers | Z55: Mars | AA55: 88
A56: Menus | B56: 2017-03-30 | C56: LMJ03 | E56: Petits pois et jeunes carottes | G56: Mercredi et jeudi soirs | I56: Boîte pour deux repas | K56: 0.5 | M56: V22 | N56: Saucisson | O56: Lundi à dimanche soirs | P56: Morceau de quatre cent grammes pour trois repas | Q56: 133 | R56: D17 | S56: Pomme | T56: Lundi à vendredi soirs | U56: Une par repas | V56: 1 | Y56: Menus journaliers | Z56: Mars | AA56: 89
A57: Menus | B57: 2017-03-31 | C57: LV11 | E57: Tomates | G57: Vendredi soir | I57: Deux par repas | K57: 2 | M57: V24 | N57: Tête roulée | O57: Lundi à dimanche soirs | P57: Paquet pour deux repas | Q57: 0.5 | R57: D17 | S57: Pomme | T57: Lundi à vendredi soirs | U57: Une par repas | V57: 1 | Y57: Menus journaliers | Z57: Mars | AA57: 90
A58: Viandes | B58: 2017-03-04 | M58: V35 | N58: Veau | O58: Samedi et dimanche midis | P58: Une tranche par repas | Q58: 1 | Y58: Viande premier semestre | Z58: Mars | AA58: 18
A59: Viandes | B59: 2017-03-05 | M59: V29 | N59: Agneau | O59: Samedi et dimanche midis | P59: Une tranche par repas | Q59: 1 | Y59: Viande premier semestre | Z59: Mars | AA59: 19
A60: Viandes | B60: 2017-03-11 | M60: V30 | N60: Bœuf | O60: Samedi et dimanche midis | P60: Une tranche par repas | Q60: 1 | Y60: Viande premier semestre | Z60: Mars | AA60: 20
A61: Viandes | B61: 2017-03-12 | M61: V31 | N61: Cheval | O61: Samedi et dimanche midis | P61: Une tranche par repas | Q61: 1 | Y61: Viande premier semestre | Z61: Mars | AA61: 21
A62: Viandes | B62: 2017-03-18 | M62: V32 | N62: Dinde | O62: Samedi et dimanche midis | P62: Une tranche par repas | Q62: 1 | Y62: Viande premier semestre | Z62: Mars | AA62: 22
A63: Viandes | B63: 2017-03-19 | M63: V33 | N63: Poisson | O63: Samedi et dimanche midis | P63: Unité. Un par repas | Q63: 1 | Y63: Viande premier semestre | Z63: Mars | AA63: 23
A64: Viandes | B64: 2017-03-25 | M64: V34 | N64: Porc | O64: Samedi et dimanche midis | P64: Une tranche par repas | Q64: 1 | Y64: Viande premier semestre | Z64: Mars | AA64: 24
A65: Viandes | B65: 2017-03-26 | M65: V35 | N65: Veau | O65: Samedi et dimanche midis | P65: Une tranche par repas | Q65: 1 | Y65: Viande premier semestre | Z65: Mars | AA65: 25

Sheet Avril
A1: Menus du mois d'avril 2017.
A2: Accueil
A3: Nature | B3: Date du menu | C3: Code légumes | D3: Code légumes deux | E3: Légumes | F3: Légumes deux | G3: Jours légumes | H3: Jours légumes deux | I3: Conditionnement légumes | J3: Conditionnement légumes deux | K3: Quantité légumes | L3: Quantité légumes deux | M3: Code viandes | N3: Viandes | O3: Jours viandes | P3: Conditionnement viandes | Q3: Quantité viandes | R3: Code desserts | S3: Desserts | T3: Jours desserts | U3: Conditionnement desserts | V3: Quantité desserts | W3: Code observations | X3: Observations | Y3: Nature menus | Z3: Mois concerné | AA3: Numéro menu
A4: Menus | B4: 2017-04-03 | C4: LMR16 | E4: Salade | G4: Midi retraite | I4: Une par repas | K4: 1 | M4: VMR02 | N4: Rôti de bœuf | O4: Lundi à vendredi midis | P4: Un morceau pour cinq repas | Q4: 100 | R4: DMR01 | S4: Pomme | T4: Lundi à vendredi midis | U4: Une par repas | V4: 1 | Y4: Menus midi retraite | Z4: Avril | AA4: 66
A5: Menus | B5: 2017-04-04 | C5: LMR17 | E5: Tomates | G5: Midi retraite | I5: Deux par repas | K5: 2 | M5: VMR02 | N5: Rôti de bœuf | O5: Lundi à vendredi midis | P5: Un morceau pour cinq repas | Q5: 100 | R5: DMR01 | S5: Pomme | T5: Lundi à vendredi midis | U5: Une par repas | V5: 1 | Y5: Menus midi retraite | Z5: Avril | AA5: 67
A6: Menus | B6: 2017-04-05 | C6: LMR01 | E6: Asperges | G6: Midi retraite | I6: Boîte pour un repas | K6: 1 | M6: VMR02 | N6: Rôti de bœuf | O6: Lundi à vendredi midis | P6: Un morceau pour cinq repas | Q6: 100 | R6: DMR01 | S6: Pomme | T6: Lundi à vendredi midis | U6: Une par repas | V6: 1 | Y6: Menus midi retraite | Z6: Avril | AA6: 68
A7: Menus | B7: 2017-04-06 | C7: LMR02 | E7: Avocat | G7: Midi retraite | I7: Un par repas | K7: 1 | M7: VMR02 | N7: Rôti de bœuf | O7: Lundi à vendredi midis | P7: Un morceau pour cinq repas | Q7: 100 | R7: DMR01 | S7: Pomme | T7: Lundi à vendredi midis | U7: Une par repas | V7: 1 | Y7: Menus midi retraite | Z7: Avril | AA7: 69
A8: Menus | B8: 2017-04-07 | C8: LMR03 | E8: Carottes | G8: Midi retraite | I8: Deux par repas | K8: 2 | M8: VMR02 | N8: Rôti de bœuf | O8: Lundi à vendredi midis | P8: Un morceau pour cinq repas | Q8: 100 | R8: DMR01 | S8: Pomme | T8: Lundi à vendredi midis | U8: Une par repas | V8: 1 | Y8: Menus midi retraite | Z8: Avril | AA8: 70
A9: Menus | B9: 2017-04-10 | C9: LMR04 | E9: Céleri | G9: Midi retraite | I9: Une branche par repas | K9: 1 | M9: VMR03 | N9: Rôti de cheval | O9: Lundi à vendredi midis | P9: Un morceau pour cinq repas | Q9: 100 | R9: DMR01 | S9: Pomme | T9: Lundi à vendredi midis | U9: Une par repas | V9: 1 | Y9: Menus midi retraite | Z9: Avril | AA9: 71
A10: Menus | B10: 2017-04-11 | C10: LMR05 | E10: Champignons | G10: Midi retraite | I10: Boîte pour un repas | K10: 1 | M10: VMR03 | N10: Rôti de cheval | O10: Lundi à vendredi midis | P10: Un morceau pour cinq repas | Q10: 100 | R10: DMR01 | S10: Pomme | T10: Lundi à vendredi midis | U10: Une par repas | V10: 1 | Y10: Menus midi retraite | Z10: Avril | AA10: 72
A11: Menus | B11: 2017-04-12 | C11: LMR06 | E11: Concombre | G11: Midi retraite | I11: Un par repas | K11: 1 | M11: VMR03 | N11: Rôti de cheval | O11: Lundi à vendredi midis | P11: Un morceau pour cinq repas | Q11: 100 | R11: DMR01 | S11: Pomme | T11: Lundi à vendredi midis | U11: Une par repas | V11: 1 | Y11: Menus midi retraite | Z11: Avril | AA11: 73
A12: Menus | B12: 2017-04-13 | C12: LMR07 | E12: Couscous | G12: Midi retraite | I12: Cinquante grammes par repas | K12: 25 | M12: VMR03 | N12: Rôti de cheval | O12: Lundi à vendredi midis | P12: Un morceau pour cinq repas | Q12: 100 | R12: DMR01 | S12: Pomme | T12: Lundi à vendredi midis | U12: Une par repas | V12: 1 | Y12: Menus midi retraite | Z12: Avril | AA12: 74
A13: Menus | B13: 2017-04-14 | C13: LMR08 | E13: Maïs | G13: Midi retraite | I13: Boîte pour deux repas | K13: 0.5 | M13: VMR03 | N13: Rôti de cheval | O13: Lundi à vendredi midis | P13: Un morceau pour cinq repas | Q13: 100 | R13: DMR01 | S13: Pomme | T13: Lundi à vendredi midis | U13: Une par repas | V13: 1 | Y13: Menus midi retraite | Z13: Avril | AA13: 75
A14: Menus | B14: 2017-04-17 | C14: LMR08 | E14: Maïs | G14: Midi retraite | I14: Boîte pour deux repas | K14: 0.5 | M14: VMR04 | N14: Rôti de porc | O14: Lundi à vendredi midis | P14: Un morceau pour cinq repas | Q14: 100 | R14: DMR01 | S14: Pomme | T14: Lundi à vendredi midis | U14: Une par repas | V14: 1 | W14: O07 | X14: Lundi de Pâques | Y14: Menus midi retraite | Z14: Avril | AA14: 76
A15: Menus | B15: 2017-04-18 | C15: LMR09 | E15: Pâtes à la sauce tomates | G15: Midi retraite | I15: Cinq cuillères par repas | K15: 5 | M15: VMR04 | N15: Rôti de porc | O15: Lundi à vendredi midis | P15: Un morceau pour cinq repas | Q15: 100 | R15: DMR01 | S15: Pomme | T15: Lundi à vendredi midis | U15: Une par repas | V15: 1 | Y15: Menus midi retraite | Z15: Avril | AA15: 77
A16: Menus | B16: 2017-04-19 | C16: LMR10 | E16: Pâtes au beurre | G16: Midi retraite | I16: Cinq cuillères par repas | K16: 5 | M16: VMR04 | N16: Rôti de porc | O16: Lundi à vendredi midis | P16: Un morceau pour cinq repas | Q16: 100 | R16: DMR01 | S16: Pomme | T16: Lundi à vendredi midis | U16: Une par repas | V16: 1 | Y16: Menus midi retraite | Z16: Avril | AA16: 78
A17: Menus | B17: 2017-04-20 | C17: LMR11 | E17: Poireau | G17: Midi retraite | I17: Un par repas | K17: 1 | M17: VMR04 | N17: Rôti de porc | O17: Lundi à vendredi midis | P17: Un morceau pour cinq repas | Q17: 100 | R17: DMR01 | S17: Pomme | T17: Lundi à vendredi midis | U17: Une par repas | V17: 1 | Y17: Menus midi retraite | Z17: Avril | AA17: 79
A18: Menus | B18: 2017-04-21 | C18: LMR12 | E18: Pomme de terre | G18: Midi retraite | I18: Une par repas | K18: 1 | M18: VMR04 | N18: Rôti de porc | O18: Lundi à vendredi midis | P18: Un morceau pour cinq repas | Q18: 100 | R18: DMR01 | S18: Pomme | T18: Lundi à vendredi midis | U18: Une par repas | V18: 1 | Y18: Menus midi retraite | Z18: Avril | AA18: 80
A19: Menus | B19: 2017-04-24 | C19: LMR13 | E19: Purée | G19: Midi retraite | I19: Une demi-tasse par repas | K19: 25 | M19: VMR05 | N19: Rôti de veau | O19: Lundi à vendredi midis | P19: Un morceau pour cinq repas | Q19: 100 | R19: DMR01 | S19: Pomme | T19: Lundi à vendredi midis | U19: Une par repas | V19: 1 | Y19: Menus midi retraite | Z19: Avril | AA19: 81
A20: Menus | B20: 2017-04-25 | C20: LMR14 | E20: Radis | G20: Midi retraite | I20: Un sachet pour deux repas | K20: 0.5 | M20: VMR05 | N20: Rôti de veau | O20: Lundi à vendredi midis | P20: Un morceau pour cinq repas | Q20: 100 | R20: DMR01 | S20: Pomme | T20: Lundi à vendredi midis | U20: Une par repas | V20: 1 | Y20: Menus midi retraite | Z20: Avril | AA20: 82
A21: Menus | B21: 2017-04-26 | C21: LMR14 | E21: Radis | G21: Midi retraite | I21: Un sachet pour deux repas | K21: 0.5 | M21: VMR05 | N21: Rôti de veau | O21: Lundi à vendredi midis | P21: Un morceau pour cinq repas | Q21: 100 | R21: DMR01 | S21: Pomme | T21: Lundi à vendredi midis | U21: Une par repas | V21: 1 | Y21: Menus midi retraite | Z21: Avril | AA21: 83
A22: Menus | B22: 2017-04-27 | C22: LMR15 | E22: Riz | G22: Midi retraite | I22: Cinquante grammes par repas | K22: 25 | M22: VMR05 | N22: Rôti de veau | O22: Lundi à vendredi midis | P22: Un morceau pour cinq repas | Q22: 100 | R22: DMR01 | S22: Pomme | T22: Lundi à vendredi midis | U22: Une par repas | V22: 1 | Y22: Menus midi retraite | Z22: Avril | AA22: 84
A23: Menus | B23: 2017-04-28 | C23: LMR16 | E23: Salade | G23: Midi retraite | I23: Une par repas | K23: 1 | M23: VMR05 | N23: Rôti de veau | O23: Lundi à vendredi midis | P23: Un morceau pour cinq repas | Q23: 100 | R23: DMR01 | S23: Pomme | T23: Lundi à vendredi midis | U23: Une par repas | V23: 1 | Y23: Menus midi retraite | Z23: Avril | AA23: 85
A24: Menus | B24: 2017-04-01 | C24: LS02 | E24: Pâtes au beurre | G24: Samedi midi et soir | I24: Cinq cuillères par repas | K24: 10 | M24: V22 | N24: Saucisson | O24: Lundi à dimanche soirs | P24: Morceau de quatre cent grammes pour trois repas | Q24: 134 | R24: D07 | S24: Dattes | T24: Samedis et dimanches midis et soirs | U24: Cinq par repas | V24: 10 | Y24: Menus journaliers | Z24: Avril | AA24: 91
A25: Menus | B25: 2017-04-02 | C25: LD02 | E25: Chips | G25: Dimanche midi et soir | I25: Un sachet pour deux repas | K25: 1 | M25: V24 | N25: Tête roulée | O25: Lundi à dimanche soirs | P25: Paquet pour deux repas | Q25: 0.5 | R25: D07 | S25: Dattes | T25: Samedis et dimanches midis et soirs | U25: Cinq par repas | V25: 10 | Y25: Menus journaliers | Z25: Avril | AA25: 92
A26: Menus | B26: 2017-04-03 | C26: LLM07 | E26: Haricots verts | G26: Lundi et mardi soirs | I26: Boîte pour deux repas | K26: 0.5 | M26: V22 | N26: Saucisson | O26: Lundi à dimanche soirs | P26: Morceau de quatre cent grammes pour trois repas | Q26: 133 | R26: D17 | S26: Pomme | T26: Lundi à vendredi soirs | U26: Une par repas | V26: 1 | Y26: Menus journaliers | Z26: Avril | AA26: 93
A27: Menus | B27: 2017-04-04 | C27: LLM07 | E27: Haricots verts | G27: Lundi et mardi soirs | I27: Boîte pour deux repas | K27: 0.5 | M27: V25 | N27: Thon | O27: Lundi à dimanche soirs | P27: Boîte pour un repas | Q27: 1 | R27: D17 | S27: Pomme | T27: Lundi à vendredi soirs | U27: Une par repas | V27: 1 | Y27: Menus journaliers | Z27: Avril | AA27: 94
A28: Menus | B28: 2017-04-05 | C28: LMJ04 | E28: Ratatouille | G28: Mercredi et jeudi soirs | I28: Boîte pour deux repas | K28: 0.5 | M28: V22 | N28: Saucisson | O28: Lundi à dimanche soirs | P28: Morceau de quatre cent grammes pour trois repas | Q28: 133 | R28: D17 | S28: Pomme | T28: Lundi à vendredi soirs | U28: Une par repas | V28: 1 | Y28: Menus journaliers | Z28: Avril | AA28: 95
A29: Menus | B29: 2017-04-06 | C29: LMJ04 | E29: Ratatouille | G29: Mercredi et jeudi soirs | I29: Boîte pour deux repas | K29: 0.5 | M29: V01 | N29: Bifteck haché de bœuf | O29: Lundi à dimanche soirs | P29: Paquet pour deux repas | Q29: 1 | R29: D17 | S29: Pomme | T29: Lundi à vendredi soirs | U29: Une par repas | V29: 1 | Y29: Menus journaliers | Z29: Avril | AA29: 96
A30: Menus | B30: 2017-04-07 | C30: LV01 | E30: Asperges | G30: Vendredi soir | I30: Boîte pour un repas | K30: 1 | M30: V22 | N30: Saucisson | O30: Lundi à dimanche soirs | P30: Morceau de quatre cent grammes pour trois repas | Q30: 134 | R30: D17 | S30: Pomme | T30: Lundi à vendredi soirs | U30: Une par repas | V30: 1 | Y30: Menus journaliers | Z30: Avril | AA30: 97
A31: Menus | B31: 2017-04-08 | C31: LS03 | E31: Pâtes au fromage râpé | G31: Samedi midi et soir | I31: Cinq cuillères par repas | K31: 10 | M31: V01 | N31: Bifteck haché de bœuf | O31: Lundi à dimanche soirs | P31: Paquet pour deux repas | Q31: 1 | R31: D08 | S31: Figues | T31: Samedis et dimanches midis et soirs | U31: Cinq par repas | V31: 10 | Y31: Menus journaliers | Z31: Avril | AA31: 98
A32: Menus | B32: 2017-04-09 | C32: LD03 | D32: LD01 | E32: Frites | F32: Asperges | G32: Dimanche midi | H32: Dimanche soir | I32: Vingt frites par repas | J32: Boîte pour un repas | K32: 20 | L32: 1 | M32: V22 | N32: Saucisson | O32: Lundi à dimanche soirs | P32: Morceau de quatre cent grammes pour trois repas | Q32: 133 | R32: D08 | S32: Figues | T32: Samedis et dimanches midis et soirs | U32: Cinq par repas | V32: 10 | Y32: Menus journaliers | Z32: Avril | AA32: 99
A33: Menus | B33: 2017-04-10 | C33: LLM08 | E33: Maïs | G33: Lundi et mardi soirs | I33: Boîte pour deux repas | K33: 0.5 | M33: V02 | N33: Bifteck haché de cheval | O33: Lundi à dimanche soirs | P33: cent vingt-cinq grammes par repas | Q33: 125 | R33: D17 | S33: Pomme | T33: Lundi à vendredi soirs | U33: Une par repas | V33: 1 | Y33: Menus journaliers | Z33: Avril | AA33: 100
A34: Menus | B34: 2017-04-11 | C34: LLM08 | E34: Maïs | G34: Lundi et mardi soirs | I34: Boîte pour deux repas | K34: 0.5 | M34: V22 | N34: Saucisson | O34: Lundi à dimanche soirs | P34: Morceau de quatre cent grammes pour trois repas | Q34: 133 | R34: D17 | S34: Pomme | T34: Lundi à vendredi soirs | U34: Une par repas | V34: 1 | Y34: Menus journaliers | Z34: Avril | AA34: 101
A35: Menus | B35: 2017-04-12 | C35: LMJ05 | E35: Raviolis | G35: Mercredi et jeudi soirs | I35: Boîte pour deux repas | K35: 0.5 | M35: V03 | N35: Bifteck haché de veau | O35: Lundi à dimanche soirs | P35: Paquet pour deux repas | Q35: 1 | R35: D17 | S35: Pomme | T35: Lundi à vendredi soirs | U35: Une par repas | V35: 1 | Y35: Menus journaliers | Z35: Avril | AA35: 102
A36: Menus | B36: 2017-04-13 | C36: LMJ05 | E36: Raviolis | G36: Mercredi et jeudi soirs | I36: Boîte pour deux repas | K36: 0.5 | M36: V22 | N36: Saucisson | O36: Lundi à dimanche soirs | P36: Morceau de quatre cent grammes pour trois repas | Q36: 134 | R36: D17 | S36: Pomme | T36: Lundi à vendredi soirs | U36: Une par repas | V36: 1 | Y36: Menus journaliers | Z36: Avril | AA36: 103
A37: Menus | B37: 2017-04-14 | C37: LV02 | E37: Avocat | G37: Vendredi soir | I37: Un par repas | K37: 1 | M37: V03 | N37: Bifteck haché de veau | O37: Lundi à dimanche soirs | P37: Paquet pour deux repas | Q37: 1 | R37: D17 | S37: Pomme | T37: Lundi à vendredi soirs | U37: Une par repas | V37: 1 | Y37: Menus journaliers | Z37: Avril | AA37: 104
A38: Menus | B38: 2017-04-15 | C38: LS01 | E38: Pâtes à la sauce tomates | G38: Samedi midi et soir | I38: Cinq cuillères par repas | K38: 10 | M38: V22 | N38: Saucisson | O38: Lundi à dimanche soirs | P38: Morceau de quatre cent grammes pour trois repas | Q38: 133 | R38: D09 | S38: Fromage blanc | T38: Samedis et dimanches midis et soirs | U38: Pack de quatre pots pour le week-end | V38: 2 | Y38: Menus journaliers | Z38: Avril | AA38: 105
A39: Menus | B39: 2017-04-16 | C39: LD04 | E39: Haricots verts | G39: Dimanche midi et soir | I39: Boîte pour deux repas | K39: 1 | M39: V04 | N39: Bouchée à la reine | O39: Lundi à dimanche soirs | P39: Paquet pour deux repas | Q39: 1 | R39: D09 | S39: Fromage blanc | T39: Samedis et dimanches midis et soirs | U39: Pack de quatre pots pour le week-end | V39: 2 | W39: O10 | X39: Pâques | Y39: Menus journaliers | Z39: Avril | AA39: 106
A40: Menus | B40: 2017-04-17 | C40: LLM09 | E40: Paella | G40: Lundi et mardi soirs | I40: Boîte pour deux repas | K40: 0.5 | M40: V28 | N40: Viande paella | O40: Lundi et mardi soirs | P40: Boîte pour deux repas | Q40: 0.5 | R40: D17 | S40: Pomme | T40: Lundi à vendredi soirs | U40: Une par repas | V40: 1 | W40: O07 | X40: Lundi de Pâques | Y40: Menus journaliers | Z40: Avril | AA40: 107
A41: Menus | B41: 2017-04-18 | C41: LLM09 | E41: Paella | G41: Lundi et mardi soirs | I41: Boîte pour deux repas | K41: 0.5 | M41: V28 | N41: Viande paella | O41: Lundi et mardi soirs | P41: Boîte pour deux repas | Q41: 0.5 | R41: D17 | S41: Pomme | T41: Lundi à vendredi soirs | U41: Une par repas | V41: 1 | Y41: Menus journaliers | Z41: Avril | AA41: 108
A42: Menus | B42: 2017-04-19 | C42: LMJ06 | E42: Tomates pelées | G42: Mercredi et jeudi soirs | I42: Boîte pour deux repas | K42: 0.5 | M42: V22 | N42: Saucisson | O42: Lundi à dimanche soirs | P42: Morceau de quatre cent grammes pour trois repas | Q42: 133 | R42: D17 | S42: Pomme | T42: Lundi à vendredi soirs | U42: Une par repas | V42: 1 | Y42: Menus journaliers | Z42: Avril | AA42: 109
A43: Menus | B43: 2017-04-20 | C43: LMJ06 | E43: Tomates pelées | G43: Mercredi et jeudi soirs | I43: Boîte pour deux repas | K43: 0.5 | M43: V04 | N43: Bouchée à la reine | O43: Lundi à dimanche soirs | P43: Paquet pour deux repas | Q43: 1 | R43: D17 | S43: Pomme | T43: Lundi à vendredi soirs | U43: Une par repas | V43: 1 | Y43: Menus journaliers | Z43: Avril | AA43: 110
A44: Menus | B44: 2017-04-21 | C44: LV03 | E44: Betterave rouge | G44: Vendredi soir | I44: Une par repas | K44: 1 | M44: V22 | N44: Saucisson | O44: Lundi à dimanche soirs | P44: Morceau de quatre cent grammes pour trois repas | Q44: 134 | R44: D17 | S44: Pomme | T44: Lundi à vendredi soirs | U44: Une par repas | V44: 1 | Y44: Menus journaliers | Z44: Avril | AA44: 111
A45: Menus | B45: 2017-04-22 | C45: LS02 | E45: Pâtes au beurre | G45: Samedi midi et soir | I45: Cinq cuillères par repas | K45: 10 | M45: V05 | N45: Boudin | O45: Lundi à dimanche soirs | P45: Paquet pour deux repas | Q45: 0.5 | R45: D10 | S45: Fruits au sirop | T45: Samedis et dimanches midis et soirs | U45: Boîte pour deux repas | V45: 1 | Y45: Menus journaliers | Z45: Avril | AA45: 112
A46: Menus | B46: 2017-04-23 | C46: LD02 | E46: Chips | G46: Dimanche midi et soir | I46: Un sachet pour deux repas | K46: 1 | M46: V22 | N46: Saucisson | O46: Lundi à dimanche soirs | P46: Morceau de quatre cent grammes pour trois repas | Q46: 133 | R46: D10 | S46: Fruits au sirop | T46: Samedis et dimanches midis et soirs | U46: Boîte pour deux repas | V46: 1 | Y46: Menus journaliers | Z46: Avril | AA46: 113
A47: Menus | B47: 2017-04-24 | C47: LLM10 | E47: Poireau | G47: Lundi et mardi soirs | I47: Un par repas | K47: 1 | M47: V05 | N47: Boudin | O47: Lundi à dimanche soirs | P47: Paquet pour deux repas | Q47: 0.5 | R47: D17 | S47: Pomme | T47: Lundi à vendredi soirs | U47: Une par repas | V47: 1 | Y47: Menus journaliers | Z47: Avril | AA47: 114
A48: Menus | B48: 2017-04-25 | C48: LLM10 | E48: Poireau | G48: Lundi et mardi soirs | I48: Un par repas | K48: 1 | M48: V22 | N48: Saucisson | O48: Lundi à dimanche soirs | P48: Morceau de quatre cent grammes pour trois repas | Q48: 134 | R48: D17 | S48: Pomme | T48: Lundi à vendredi soirs | U48: Une par repas | V48: 1 | Y48: Menus journaliers | Z48: Avril | AA48: 115
A49: Menus | B49: 2017-04-26 | C49: LMJ01 | E49: Macédoine de légumes | G49: Mercredi et jeudi soirs | I49: Boîte pour deux repas | K49: 0.5 | M49: V06 | N49: Cervelas | O49: Lundi à dimanche soirs | P49: Paquet pour deux repas | Q49: 0.5 | R49: D17 | S49: Pomme | T49: Lundi à vendredi soirs | U49: Une par repas | V49: 1 | Y49: Menus journaliers | Z49: Avril | AA49: 116
A50: Menus | B50: 2017-04-27 | C50: LMJ01 | E50: Macédoine de légumes | G50: Mercredi et jeudi soirs | I50: Boîte pour deux repas | K50: 0.5 | M50: V22 | N50: Saucisson | O50: Lundi à dimanche soirs | P50: Morceau de quatre cent grammes pour trois repas | Q50: 133 | R50: D17 | S50: Pomme | T50: Lundi à vendredi soirs | U50: Une par repas | V50: 1 | Y50: Menus journaliers | Z50: Avril | AA50: 117
A51: Menus | B51: 2017-04-28 | C51: LV04 | E51: Carottes | G51: Vendredi soir | I51: Deux par repas | K51: 2 | M51: V06 | N51: Cervelas | O51: Lundi à dimanche soirs | P51: Paquet pour deux repas | Q51: 0.5 | R51: D17 | S51: Pomme | T51: Lundi à vendredi soirs | U51: Une par repas | V51: 1 | Y51: Menus journaliers | Z51: Avril | AA51: 118
A52: Menus | B52: 2017-04-29 | C52: LS03 | E52: Pâtes au fromage râpé | G52: Samedi midi et soir | I52: Cinq cuillères par repas | K52: 10 | M52: V22 | N52: Saucisson | O52: Lundi à dimanche soirs | P52: Morceau de quatre cent grammes pour trois repas | Q52: 133 | R52: D11 | S52: Fruits de saison | T52: Samedis et dimanches midis et soirs | U52: Unité. Deux à quatre par repas | V52: 8 | Y52: Menus journaliers | Z52: Avril | AA52: 119
A53: Menus | B53: 2017-04-30 | C53: LD03 | D53: LD01 | E53: Frites | F53: Asperges | G53: Dimanche midi | H53: Dimanche soir | I53: Vingt frites par repas | J53: Boîte pour un repas | K53: 20 | L53: 1 | M53: V07 | N53: Cœur | O53: Lundi à dimanche soirs | P53: Paquet pour deux repas | Q53: 1 | R53: D11 | S53: Fruits de saison | T53: Samedis et dimanches midis et soirs | U53: Unité. Deux à quatre par repas | V53: 8 | Y53: Menus journaliers | Z53: Avril | AA53: 120
A54: Viandes | B54: 2017-04-01 | M54: V29 | N54: Agneau | O54: Samedi et dimanche midis | P54: Une tranche par repas | Q54: 1 | Y54: Viande premier semestre | Z54: Avril | AA54: 26
A55: Viandes | B55: 2017-04-02 | M55: V30 | N55: Bœuf | O55: Samedi et dimanche midis | P55: Une tranche par repas | Q55: 1 | Y55: Viande premier semestre | Z55: Avril | AA55: 27
A56: Viandes | B56: 2017-04-08 | M56: V31 | N56: Cheval | O56: Samedi et dimanche midis | P56: Une tranche par repas | Q56: 1 | Y56: Viande premier semestre | Z56: Avril | AA56: 28
A57: Viandes | B57: 2017-04-09 | M57: V32 | N57: Dinde | O57: Samedi et dimanche midis | P57: Une tranche par repas | Q57: 1 | Y57: Viande premier semestre | Z57: Avril | AA57: 29
A58: Viandes | B58: 2017-04-15 | M58: V33 | N58: Poisson | O58: Samedi et dimanche midis | P58: Unité. Un par repas | Q58: 1 | Y58: Viande premier semestre | Z58: Avril | AA58: 30
A59: Viandes | B59: 2017-04-16 | M59: V34 | N59: Porc | O59: Samedi et dimanche midis | P59: Une tranche par repas | Q59: 1 | W59: O10 | X59: Pâques | Y59: Viande premier semestre | Z59: Avril | AA59: 31
A60: Viandes | B60: 2017-04-22 | M60: V35 | N60: Veau | O60: Samedi et dimanche midis | P60: Une tranche par repas | Q60: 1 | Y60: Viande premier semestre | Z60: Avril | AA60: 32
A61: Viandes | B61: 2017-04-23 | M61: V29 | N61: Agneau | O61: Samedi et dimanche midis | P61: Une tranche par repas | Q61: 1 | Y61: Viande premier semestre | Z61: Avril | AA61: 33
A62: Viandes | B62: 2017-04-29 | M62: V30 | N62: Bœuf | O62: Samedi et dimanche midis | P62: Une tranche par repas | Q62: 1 | Y62: Viande premier semestre | Z62: Avril | AA62: 34
A63: Viandes | B63: 2017-04-30 | M63: V31 | N63: Cheval | O63: Samedi et dimanche midis | P63: Une tranche par repas | Q63: 1 | Y63: Viande premier semestre | Z63: Avril | AA63: 35

Sheet Mai
A1: Menus du mois de mai 2017.
A2: Accueil
A3: Nature | B3: Date du menu | C3: Code légumes | D3: Code légumes deux | E3: Légumes | F3: Légumes deux | G3: Jours légumes | H3: Jours légumes deux | I3: Conditionnement légumes | J3: Conditionnement légumes deux | K3: Quantité légumes | L3: Quantité légumes deux | M3: Code viandes | N3: Viandes | O3: Jours viandes | P3: Conditionnement viandes | Q3: Quantité viandes | R3: Code desserts | S3: Desserts | T3: Jours desserts | U3: Conditionnement desserts | V3: Quantité desserts | W3: Code observations | X3: Observations | Y3: Nature menus | Z3: Mois concerné | AA3: Numéro menu
A4: Menus | B4: 2017-05-01 | C4: LMR17 | E4: Tomates | G4: Midi retraite | I4: Deux par repas | K4: 2 | M4: VMR01 | N4: Rôti d'agneau | O4: Lundi à vendredi midis | P4: Un morceau pour cinq repas | Q4: 100 | R4: DMR01 | S4: Pomme | T4: Lundi à vendredi midis | U4: Une par repas | V4: 1 | W4: O04 | X4: Fête du travail | Y4: Menus midi retraite | Z4: Mai | AA4: 86
A5: Menus | B5: 2017-05-02 | C5: LMR01 | E5: Asperges | G5: Midi retraite | I5: Boîte pour un repas | K5: 1 | M5: VMR01 | N5: Rôti d'agneau | O5: Lundi à vendredi midis | P5: Un morceau pour cinq repas | Q5: 100 | R5: DMR01 | S5: Pomme | T5: Lundi à vendredi midis | U5: Une par repas | V5: 1 | Y5: Menus midi retraite | Z5: Mai | AA5: 87
A6: Menus | B6: 2017-05-03 | C6: LMR02 | E6: Avocat | G6: Midi retraite | I6: Un par repas | K6: 1 | M6: VMR01 | N6: Rôti d'agneau | O6: Lundi à vendredi midis | P6: Un morceau pour cinq repas | Q6: 100 | R6: DMR01 | S6: Pomme | T6: Lundi à vendredi midis | U6: Une par repas | V6: 1 | Y6: Menus midi retraite | Z6: Mai | AA6: 88
A7: Menus | B7: 2017-05-04 | C7: LMR03 | E7: Carottes | G7: Midi retraite | I7: Deux par repas | K7: 2 | M7: VMR01 | N7: Rôti d'agneau | O7: Lundi à vendredi midis | P7: Un morceau pour cinq repas | Q7: 100 | R7: DMR01 | S7: Pomme | T7: Lundi à vendredi midis | U7: Une par repas | V7: 1 | Y7: Menus midi retraite | Z7: Mai | AA7: 89
A8: Menus | B8: 2017-05-05 | C8: LMR04 | E8: Céleri | G8: Midi retraite | I8: Une branche par repas | K8: 1 | M8: VMR01 | N8: Rôti d'agneau | O8: Lundi à vendredi midis | P8: Un morceau pour cinq repas | Q8: 100 | R8: DMR01 | S8: Pomme | T8: Lundi à vendredi midis | U8: Une par repas | V8: 1 | Y8: Menus midi retraite | Z8: Mai | AA8: 90
A9: Menus | B9: 2017-05-08 | C9: LMR05 | E9: Champignons | G9: Midi retraite | I9: Boîte pour un repas | K9: 1 | M9: VMR02 | N9: Rôti de bœuf | O9: Lundi à vendredi midis | P9: Un morceau pour cinq repas | Q9: 100 | R9: DMR01 | S9: Pomme | T9: Lundi à vendredi midis | U9: Une par repas | V9: 1 | W9: O13 | X9: Victoire du 08 mai 1945 | Y9: Menus midi retraite | Z9: Mai | AA9: 91
A10: Menus | B10: 2017-05-09 | C10: LMR06 | E10: Concombre | G10: Midi retraite | I10: Un par repas | K10: 1 | M10: VMR02 | N10: Rôti de bœuf | O10: Lundi à vendredi midis | P10: Un morceau pour cinq repas | Q10: 100 | R10: DMR01 | S10: Pomme | T10: Lundi à vendredi midis | U10: Une par repas | V10: 1 | Y10: Menus midi retraite | Z10: Mai | AA10: 92
A11: Menus | B11: 2017-05-10 | C11: LMR07 | E11: Couscous | G11: Midi retraite | I11: Cinquante grammes par repas | K11: 25 | M11: VMR02 | N11: Rôti de bœuf | O11: Lundi à vendredi midis | P11: Un morceau pour cinq repas | Q11: 100 | R11: DMR01 | S11: Pomme | T11: Lundi à vendredi midis | U11: Une par repas | V11: 1 | Y11: Menus midi retraite | Z11: Mai | AA11: 93
A12: Menus | B12: 2017-05-11 | C12: LMR08 | E12: Maïs | G12: Midi retraite | I12: Boîte pour deux repas | K12: 0.5 | M12: VMR02 | N12: Rôti de bœuf | O12: Lundi à vendredi midis | P12: Un morceau pour cinq repas | Q12: 100 | R12: DMR01 | S12: Pomme | T12: Lundi à vendredi midis | U12: Une par repas | V12: 1 | Y12: Menus midi retraite | Z12: Mai | AA12: 94
A13: Menus | B13: 2017-05-12 | C13: LMR08 | E13: Maïs | G13: Midi retraite | I13: Boîte pour deux repas | K13: 0.5 | M13: VMR02 | N13: Rôti de bœuf | O13: Lundi à vendredi midis | P13: Un morceau pour cinq repas | Q13: 100 | R13: DMR01 | S13: Pomme | T13: Lundi à vendredi midis | U13: Une par repas | V13: 1 | Y13: Menus midi retraite | Z13: Mai | AA13: 95
A14: Menus | B14: 2017-05-15 | C14: LMR09 | E14: Pâtes à la sauce tomates | G14: Midi retraite | I14: Cinq cuillères par repas | K14: 5 | M14: VMR03 | N14: Rôti de cheval | O14: Lundi à vendredi midis | P14: Un morceau pour cinq repas | Q14: 100 | R14: DMR01 | S14: Pomme | T14: Lundi à vendredi midis | U14: Une par repas | V14: 1 | Y14: Menus midi retraite | Z14: Mai | AA14: 96
A15: Menus | B15: 2017-05-16 | C15: LMR10 | E15: Pâtes au beurre | G15: Midi retraite | I15: Cinq cuillères par repas | K15: 5 | M15: VMR03 | N15: Rôti de cheval | O15: Lundi à vendredi midis | P15: Un morceau pour cinq repas | Q15: 100 | R15: DMR01 | S15: Pomme | T15: Lundi à vendredi midis | U15: Une par repas | V15: 1 | Y15: Menus midi retraite | Z15: Mai | AA15: 97
A16: Menus | B16: 2017-05-17 | C16: LMR11 | E16: Poireau | G16: Midi retraite | I16: Un par repas | K16: 1 | M16: VMR03 | N16: Rôti de cheval | O16: Lundi à vendredi midis | P16: Un morceau pour cinq repas | Q16: 100 | R16: DMR01 | S16: Pomme | T16: Lundi à vendredi midis | U16: Une par repas | V16: 1 | Y16: Menus midi retraite | Z16: Mai | AA16: 98
A17: Menus | B17: 2017-05-18 | C17: LMR12 | E17: Pomme de terre | G17: Midi retraite | I17: Une par repas | K17: 1 | M17: VMR03 | N17: Rôti de cheval | O17: Lundi à vendredi midis | P17: Un morceau pour cinq repas | Q17: 100 | R17: DMR01 | S17: Pomme | T17: Lundi à vendredi midis | U17: Une par repas | V17: 1 | Y17: Menus midi retraite | Z17: Mai | AA17: 99
A18: Menus | B18: 2017-05-19 | C18: LMR13 | E18: Purée | G18: Midi retraite | I18: Une demi-tasse par repas | K18: 25 | M18: VMR03 | N18: Rôti de cheval | O18: Lundi à vendredi midis | P18: Un morceau pour cinq repas | Q18: 100 | R18: DMR01 | S18: Pomme | T18: Lundi à vendredi midis | U18: Une par repas | V18: 1 | Y18: Menus midi retraite | Z18: Mai | AA18: 100
A19: Menus | B19: 2017-05-22 | C19: LMR14 | E19: Radis | G19: Midi retraite | I19: Un sachet pour deux repas | K19: 0.5 | M19: VMR04 | N19: Rôti de porc | O19: Lundi à vendredi midis | P19: Un morceau pour cinq repas | Q19: 100 | R19: DMR01 | S19: Pomme | T19: Lundi à vendredi midis | U19: Une par repas | V19: 1 | Y19: Menus midi retraite | Z19: Mai | AA19: 101
A20: Menus | B20: 2017-05-23 | C20: LMR14 | E20: Radis | G20: Midi retraite | I20: Un sachet pour deux repas | K20: 0.5 | M20: VMR04 | N20: Rôti de porc | O20: Lundi à vendredi midis | P20: Un morceau pour cinq repas | Q20: 100 | R20: DMR01 | S20: Pomme | T20: Lundi à vendredi midis | U20: Une par repas | V20: 1 | Y20: Menus midi retraite | Z20: Mai | AA20: 102
A21: Menus | B21: 2017-05-24 | C21: LMR15 | E21: Riz | G21: Midi retraite | I21: Cinquante grammes par repas | K21: 25 | M21: VMR04 | N21: Rôti de porc | O21: Lundi à vendredi midis | P21: Un morceau pour cinq repas | Q21: 100 | R21: DMR01 | S21: Pomme | T21: Lundi à vendredi midis | U21: Une par repas | V21: 1 | Y21: Menus midi retraite | Z21: Mai | AA21: 103
A22: Menus | B22: 2017-05-25 | C22: LMR16 | E22: Salade | G22: Midi retraite | I22: Une par repas | K22: 1 | M22: VMR04 | N22: Rôti de porc | O22: Lundi à vendredi midis | P22: Un morceau pour cinq repas | Q22: 100 | R22: DMR01 | S22: Pomme | T22: Lundi à vendredi midis | U22: Une par repas | V22: 1 | W22: O02 | X22: Ascension | Y22: Menus midi retraite | Z22: Mai | AA22: 104
A23: Menus | B23: 2017-05-26 | C23: LMR17 | E23: Tomates | G23: Midi retraite | I23: Deux par repas | K23: 2 | M23: VMR04 | N23: Rôti de porc | O23: Lundi à vendredi midis | P23: Un morceau pour cinq repas | Q23: 100 | R23: DMR01 | S23: Pomme | T23: Lundi à vendredi midis | U23: Une par repas | V23: 1 | Y23: Menus midi retraite | Z23: Mai | AA23: 105
A24: Menus | B24: 2017-05-29 | C24: LMR01 | E24: Asperges | G24: Midi retraite | I24: Boîte pour un repas | K24: 1 | M24: VMR05 | N24: Rôti de veau | O24: Lundi à vendredi midis | P24: Un morceau pour cinq repas | Q24: 100 | R24: DMR01 | S24: Pomme | T24: Lundi à vendredi midis | U24: Une par repas | V24: 1 | Y24: Menus midi retraite | Z24: Mai | AA24: 106
A25: Menus | B25: 2017-05-30 | C25: LMR02 | E25: Avocat | G25: Midi retraite | I25: Un par repas | K25: 1 | M25: VMR05 | N25: Rôti de veau | O25: Lundi à vendredi midis | P25: Un morceau pour cinq repas | Q25: 100 | R25: DMR01 | S25: Pomme | T25: Lundi à vendredi midis | U25: Une par repas | V25: 1 | Y25: Menus midi retraite | Z25: Mai | AA25: 107
A26: Menus | B26: 2017-05-31 | C26: LMR03 | E26: Carottes | G26: Midi retraite | I26: Deux par repas | K26: 2 | M26: VMR05 | N26: Rôti de veau | O26: Lundi à vendredi midis | P26: Un morceau pour cinq repas | Q26: 100 | R26: DMR01 | S26: Pomme | T26: Lundi à vendredi midis | U26: Une par repas | V26: 1 | Y26: Menus midi retraite | Z26: Mai | AA26: 108
A27: Menus | B27: 2017-05-31 | C27: LMR03 | E27: Carottes | G27: Midi retraite | I27: Deux par repas | K27: 2 | M27: VMR05 | N27: Rôti de veau | O27: Lundi à vendredi midis | P27: Un morceau pour cinq repas | Q27: 100 | R27: DMR01 | S27: Pomme | T27: Lundi à vendredi midis | U27: Une par repas | V27: 1 | Y27: Menus midi retraite | Z27: Mai | AA27: 108
A28: Menus | B28: 2017-05-01 | C28: LLM11 | E28: Pomme de terre | G28: Lundi et mardi soirs | I28: Une par repas | K28: 1 | L28: 1 | M28: V22 | N28: Saucisson | O28: Lundi à dimanche soirs | P28: Morceau de quatre cent grammes pour trois repas | Q28: 134 | R28: D17 | S28: Pomme | T28: Lundi à vendredi soirs | U28: Une par repas | V28: 1 | W28: O04 | X28: Fête du travail | Y28: Menus journaliers | Z28: Mai | AA28: 121
A29: Menus | B29: 2017-05-02 | C29: LLM11 | E29: Pomme de terre | G29: Lundi et mardi soirs | I29: Une par repas | K29: 1 | M29: V07 | N29: Cœur | O29: Lundi à dimanche soirs | P29: Paquet pour deux repas | Q29: 1 | R29: D17 | S29: Pomme | T29: Lundi à vendredi soirs | U29: Une par repas | V29: 1 | Y29: Menus journaliers | Z29: Mai | AA29: 122
A30: Menus | B30: 2017-05-03 | C30: LMJ02 | E30: Petits pois | G30: Mercredi et jeudi soirs | I30: Boîte pour deux repas | K30: 1 | M30: V22 | N30: Saucisson | O30: Lundi à dimanche soirs | P30: Morceau de quatre cent grammes pour trois repas | Q30: 133 | R30: D17 | S30: Pomme | T30: Lundi à vendredi soirs | U30: Une par repas | V30: 1 | Y30: Menus journaliers | Z30: Mai | AA30: 123
A31: Menus | B31: 2017-05-04 | C31: LMJ02 | E31: Petits pois | G31: Mercredi et jeudi soirs | I31: Boîte pour deux repas | K31: 1 | M31: V08 | N31: Croque-monsieur | O31: Lundi à dimanche soirs | P31: Paquet pour deux repas | Q31: 1 | R31: D17 | S31: Pomme | T31: Lundi à vendredi soirs | U31: Une par repas | V31: 1 | Y31: Menus journaliers | Z31: Mai | AA31: 124
A32: Menus | B32: 2017-05-05 | C32: LV05 | E32: Céleri | G32: Vendredi soir | I32: Une branche par repas | K32: 1 | M32: V22 | N32: Saucisson | O32: Lundi à dimanche soirs | P32: Morceau de quatre cent grammes pour trois repas | Q32: 133 | R32: D17 | S32: Pomme | T32: Lundi à vendredi soirs | U32: Une par repas | V32: 1 | Y32: Menus journaliers | Z32: Mai | AA32: 125
A33: Menus | B33: 2017-05-06 | C33: LS01 | E33: Pâtes à la sauce tomates | G33: Samedi midi et soir | I33: Cinq cuillères par repas | K33: 10 | M33: V08 | N33: Croque-monsieur | O33: Lundi à dimanche soirs | P33: Paquet pour deux repas | Q33: 1 | R33: D12 | S33: Gâteau de riz | T33: Samedis et dimanches midis et soirs | U33: Pack de quatre pots pour le week-end | V33: 2 | Y33: Menus journaliers | Z33: Mai | AA33: 126
A34: Menus | B34: 2017-05-07 | C34: LD04 | E34: Haricots verts | G34: Dimanche midi et soir | I34: Boîte pour deux repas | K34: 1 | M34: V22 | N34: Saucisson | O34: Lundi à dimanche soirs | P34: Morceau de quatre cent grammes pour trois repas | Q34: 134 | R34: D12 | S34: Gâteau de riz | T34: Samedis et dimanches midis et soirs | U34: Pack de quatre pots pour le week-end | V34: 2 | Y34: Menus journaliers | Z34: Mai | AA34: 127
A35: Menus | B35: 2017-05-08 | C35: LLM12 | E35: Purée | G35: Lundi et mardi soirs | I35: Vingt-cinq grammes par repas | K35: 25 | M35: V09 | N35: Foie | O35: Lundi à dimanche soirs | P35: Paquet pour deux repas | Q35: 1 | R35: D17 | S35: Pomme | T35: Lundi à vendredi soirs | U35: Une par repas | V35: 1 | W35: O13 | X35: Victoire du 08 mai 1945 | Y35: Menus journaliers | Z35: Mai | AA35: 128
A36: Menus | B36: 2017-05-09 | C36: LLM12 | E36: Purée | G36: Lundi et mardi soirs | I36: Vingt-cinq grammes par repas | K36: 25 | M36: V22 | N36: Saucisson | O36: Lundi à dimanche soirs | P36: Morceau de quatre cent grammes pour trois repas | Q36: 133 | R36: D17 | S36: Pomme | T36: Lundi à vendredi soirs | U36: Une par repas | V36: 1 | Y36: Menus journaliers | Z36: Mai | AA36: 129
A37: Menus | B37: 2017-05-10 | C37: LMJ03 | E37: Petits pois et jeunes carottes | G37: Mercredi et jeudi soirs | I37: Boîte pour deux repas | K37: 0.5 | M37: V09 | N37: Foie | O37: Lundi à dimanche soirs | P37: Paquet pour deux repas | Q37: 1 | R37: D17 | S37: Pomme | T37: Lundi à vendredi soirs | U37: Une par repas | V37: 1 | Y37: Menus journaliers | Z37: Mai | AA37: 130
A38: Menus | B38: 2017-05-11 | C38: LMJ03 | E38: Petits pois et jeunes carottes | G38: Mercredi et jeudi soirs | I38: Boîte pour deux repas | K38: 0.5 | M38: V22 | N38: Saucisson | O38: Lundi à dimanche soirs | P38: Morceau de quatre cent grammes pour trois repas | Q38: 133 | R38: D17 | S38: Pomme | T38: Lundi à vendredi soirs | U38: Une par repas | V38: 1 | Y38: Menus journaliers | Z38: Mai | AA38: 131
A39: Menus | B39: 2017-05-12 | C39: LV06 | E39: Champignons | G39: Vendredi soir | I39: Boîte pour un repas | K39: 1 | M39: V10 | N39: Fromage de tête | O39: Lundi à dimanche soirs | P39: Paquet pour deux repas | Q39: 0.5 | R39: D17 | S39: Pomme | T39: Lundi à vendredi soirs | U39: Une par repas | V39: 1 | Y39: Menus journaliers | Z39: Mai | AA39: 132
A40: Menus | B40: 2017-05-13 | C40: LS02 | E40: Pâtes au beurre | G40: Samedi midi et soir | I40: Cinq cuillères par repas | K40: 10 | M40: V22 | N40: Saucisson | O40: Lundi à dimanche soirs | P40: Morceau de quatre cent grammes pour trois repas | Q40: 134 | R40: D13 | S40: Gâteaux samedis et dimanches | T40: Samedis et dimanches midis et soirs | U40: Boîte pour deux repas | V40: 2 | Y40: Menus journaliers | Z40: Mai | AA40: 133
A41: Menus | B41: 2017-05-14 | C41: LD02 | E41: Chips | G41: Dimanche midi et soir | I41: Un sachet pour deux repas | K41: 1 | M41: V10 | N41: Fromage de tête | O41: Lundi à dimanche soirs | P41: Paquet pour deux repas | Q41: 0.5 | R41: D13 | S41: Gâteaux samedis et dimanches | T41: Samedis et dimanches midis et soirs | U41: Boîte pour deux repas | V41: 2 | Y41: Menus journaliers | Z41: Mai | AA41: 134
A42: Menus | B42: 2017-05-15 | C42: LLM13 | E42: Quenelles | G42: Lundi et mardi soirs | I42: Boîte pour deux repas | K42: 0.5 | M42: V22 | N42: Saucisson | O42: Lundi à dimanche soirs | P42: Morceau de quatre cent grammes pour trois repas | Q42: 133 | R42: D17 | S42: Pomme | T42: Lundi à vendredi soirs | U42: Une par repas | V42: 1 | Y42: Menus journaliers | Z42: Mai | AA42: 135
A43: Menus | B43: 2017-05-16 | C43: LLM13 | E43: Quenelles | G43: Lundi et mardi soirs | I43: Boîte pour deux repas | K43: 0.5 | M43: V11 | N43: Jambon | O43: Lundi à dimanche soirs | P43: Paquet pour deux repas | Q43: 0.5 | R43: D17 | S43: Pomme | T43: Lundi à vendredi soirs | U43: Une par repas | V43: 1 | Y43: Menus journaliers | Z43: Mai | AA43: 136
A44: Menus | B44: 2017-05-17 | C44: LMJ04 | E44: Ratatouille | G44: Mercredi et jeudi soirs | I44: Boîte pour deux repas | K44: 0.5 | M44: V22 | N44: Saucisson | O44: Lundi à dimanche soirs | P44: Morceau de quatre cent grammes pour trois repas | Q44: 133 | R44: D17 | S44: Pomme | T44: Lundi à vendredi soirs | U44: Une par repas | V44: 1 | Y44: Menus journaliers | Z44: Mai | AA44: 137
A45: Menus | B45: 2017-05-18 | C45: LMJ04 | E45: Ratatouille | G45: Mercredi et jeudi soirs | I45: Boîte pour deux repas | K45: 0.5 | M45: V11 | N45: Jambon | O45: Lundi à dimanche soirs | P45: Paquet pour deux repas | Q45: 0.5 | R45: D17 | S45: Pomme | T45: Lundi à vendredi soirs | U45: Une par repas | V45: 1 | Y45: Menus journaliers | Z45: Mai | AA45: 138
A46: Menus | B46: 2017-05-19 | C46: LV07 | E46: Concombre | G46: Vendredi soir | I46: Un par repas | K46: 1 | M46: V22 | N46: Saucisson | O46: Lundi à dimanche soirs | P46: Morceau de quatre cent grammes pour trois repas | Q46: 134 | R46: D17 | S46: Pomme | T46: Lundi à vendredi soirs | U46: Une par repas | V46: 1 | Y46: Menus journaliers | Z46: Mai | AA46: 139
A47: Menus | B47: 2017-05-20 | C47: LS03 | E47: Pâtes au fromage râpé | G47: Samedi midi et soir | I47: Cinq cuillères par repas | K47: 10 | M47: V12 | N47: Jambonneau | O47: Lundi à dimanche soirs | P47: Paquet pour deux repas | Q47: 0.5 | R47: D14 | S47: Mousse au chocolat | T47: Samedis et dimanches midis et soirs | U47: Pack de quatre pots pour le week-end | V47: 2 | Y47: Menus journaliers | Z47: Mai | AA47: 140
A48: Menus | B48: 2017-05-21 | C48: LD03 | D48: LD01 | E48: Frites | F48: Asperges | G48: Dimanche midi | H48: Dimanche soir | I48: Vingt frites par repas | J48: Boîte pour un repas | K48: 20 | L48: 1 | M48: V22 | N48: Saucisson | O48: Lundi à dimanche soirs | P48: Morceau de quatre cent grammes pour trois repas | Q48: 133 | R48: D14 | S48: Mousse au chocolat | T48: Samedis et dimanches midis et soirs | U48: Pack de quatre pots pour le week-end | V48: 2 | Y48: Menus journaliers | Z48: Mai | AA48: 141
A49: Menus | B49: 2017-05-22 | C49: LLM14 | E49: Riz | G49: Lundi et mardi soirs | I49: Vingt-cinq grammes par repas | K49: 25 | M49: V12 | N49: Jambonneau | O49: Lundi à dimanche soirs | P49: Paquet pour deux repas | Q49: 0.5 | R49: D17 | S49: Pomme | T49: Lundi à vendredi soirs | U49: Une par repas | V49: 1 | Y49: Menus journaliers | Z49: Mai | AA49: 142
A50: Menus | B50: 2017-05-23 | C50: LLM14 | E50: Riz | G50: Lundi et mardi soirs | I50: Vingt-cinq grammes par repas | K50: 25 | M50: V22 | N50: Saucisson | O50: Lundi à dimanche soirs | P50: Morceau de quatre cent grammes pour trois repas | Q50: 133 | R50: D17 | S50: Pomme | T50: Lundi à vendredi soirs | U50: Une par repas | V50: 1 | Y50: Menus journaliers | Z50: Mai | AA50: 143
A51: Menus | B51: 2017-05-24 | C51: LMJ05 | E51: Raviolis | G51: Mercredi et jeudi soirs | I51: Boîte pour deux repas | K51: 0.5 | M51: V13 | N51: Mortadelle | O51: Lundi à dimanche soirs | P51: Paquet pour deux repas | Q51: 0.5 | R51: D17 | S51: Pomme | T51: Lundi à vendredi soirs | U51: Une par repas | V51: 1 | Y51: Menus journaliers | Z51: Mai | AA51: 144
A52: Menus | B52: 2017-05-25 | C52: LMJ05 | E52: Raviolis | G52: Mercredi et jeudi soirs | I52: Boîte pour deux repas | K52: 0.5 | M52: V22 | N52: Saucisson | O52: Lundi à dimanche soirs | P52: Morceau de quatre cent grammes pour trois repas | Q52: 134 | R52: D17 | S52: Pomme | T52: Lundi à vendredi soirs | U52: Une par repas | V52: 1 | W52: O02 | X52: Ascension | Y52: Menus journaliers | Z52: Mai | AA52: 145
A53: Menus | B53: 2017-05-26 | C53: LV08 | E53: Radis | G53: Vendredi soir | I53: Un sachet par repas | K53: 1 | M53: V13 | N53: Mortadelle | O53: Lundi à dimanche soirs | P53: Paquet pour deux repas | Q53: 0.5 | R53: D17 | S53: Pomme | T53: Lundi à vendredi soirs | U53: Une par repas | V53: 1 | Y53: Menus journaliers | Z53: Mai | AA53: 146
A54: Menus | B54: 2017-05-27 | C54: LS01 | E54: Pâtes à la sauce tomates | G54: Samedi midi et soir | I54: Cinq cuillères par repas | K54: 10 | M54: V22 | N54: Saucisson | O54: Lundi à dimanche soirs | P54: Morceau de quatre cent grammes pour trois repas | Q54: 133 | R54: D15 | S54: Oranges | T54: Samedis et dimanches midis et soirs | U54: Unité. Une par repas | V54: 2 | Y54: Menus journaliers | Z54: Mai | AA54: 147
A55: Menus | B55: 2017-05-28 | C55: LD04 | E55: Haricots verts | G55: Dimanche midi et soir | I55: Boîte pour deux repas | K55: 1 | M55: V14 | N55: Œufs | O55: Lundi à dimanche soirs | P55: Boîte de six œufs. Trois œufs par repas | Q55: 3 | R55: D15 | S55: Oranges | T55: Samedis et dimanches midis et soirs | U55: Unité. Une par repas | V55: 2 | Y55: Menus journaliers | Z55: Mai | AA55: 148
